Workbook

Sheet Gruppen
A8: Die Gruppen:
A10: Gruppe A: | D10: Gruppe B:
A11: 1 | B11: Russland | D11: 1 | E11: Portugal
A12: 2 | B12: Saudiarabien | D12: 2 | E12: Spanien
A13: 3 | B13: Ägypten | D13: 3 | E13: Marokko
A14: 4 | B14: Uruguay | D14: 4 | E14: Iran
A16: Gruppe C: | D16: Gruppe D:
A17: 1 | B17: Frankreich | D17: 1 | E17: Argentinien
A18: 2 | B18: Australien | D18: 2 | E18: Island
A19: 3 | B19: Peru | D19: 3 | E19: Kroatien
A20: 4 | B20: Dänemark | D20: 4 | E20: Nigeria
A22: Gruppe E: | D22: Gruppe F:
A23: 1 | B23: Brasilien | D23: 1 | E23: Deutschland
A24: 2 | B24: Schweiz | D24: 2 | E24: Mexiko
A25: 3 | B25: Costa Rica | D25: 3 | E25: Schweden
A26: 4 | B26: Serbien | D26: 4 | E26: Südkorea
A28: Gruppe G: | D28: Gruppe H:
A29: 1 | B29: Belgien | D29: 1 | E29: Polen
A30: 2 | B30: Panama | D30: 2 | E30: Senegal
A31: 3 | B31: Tunesien | D31: 3 | E31: Kolumbien
A32: 4 | B32: England | D32: 4 | E32: Japan

Sheet Resultate
W1: 3. Viertelfinal | AF1: 5. Kleiner Final | AP1: Gruppenphase Ranglisten | AX1: Umgekehrte Finals:
A2: 1. Gruppenspiele | N2: 2. Achtelfinal | W2: Welche Mannschaften erreichen den Halbfinal. | AF2: Welche Mannschaften erreichen den Final? 100 Punkte pro richtig gesetzte
A3: Toto-Tip: 75 Punkte pro richtigen Tip 1, x oder 2 plus 75 Punkte für richtiges Resultat! | N3: Welche zwei Mannschaften pro Gruppe erreichen | W3: 150 Punkte pro richtig gesetzte Mannschaft (nur an | AF3: Mannschaft (Reihenfolge egal). 75 Punkte für richtig getipptes Resultat! | AP3: Rangliste Gruppe A | AR3: Pte. | AS3: +Tore | AT3: -Tore | AU3: Diff. | AV3: ABC | AX3: Kleiner Final: | AY3: =AI8 ->  | AZ3: - | BA3: =AG8 ->  | BB3: =AM8 -> 0 | BC3: : | BD3: =AK8 -> 0
A4: (Maximalpunktzahl 3600+3600). Getipptes Resultat ins gelbe Feld hineinschreiben! | N4: den Achtelfinal? 100 Punkte pro richtig gesetzte | W4: richtiger Stelle gesetzte Mannschaften zählen). | AF4: Maximalpunktzahl 200+75. | AP4: 1 | AQ4: =$B$12 -> Uruguay | AR4: =IF($K$9>$I$9,3,IF($K$9<$I$9,0,IF($K$9="",0,IF($I$9=$K$9,1,""))))+IF($I$11>$K$11,3,IF($I$11<$K$11,0,IF($I$11="",0,IF($I$11=$K$11,1,""))))+IF($K$12>$I$12,0,IF($K$12<$I$12,3,IF($K$12="",0,IF($K$12=$I$12,1,"")))) -> 9 | AS4: =$K$9+$I$11+$I$12 -> 5 | AT4: =$I$9+$K$11+$K$12 -> 0 | AU4: =AS4-AT4 -> 5 | AX4: Final: | AY4: =AI22 ->  | AZ4: - | BA4: =AG22 ->  | BB4: =AM22 -> 0 | BC4: : | BD4: =AK22 -> 0
A5: Um die richtigen Achtelsfinalisten zu bekommen, drücke bitte den Kurzbefehl unter der | N5: Mannschaft (Gruppenerster und Gruppenzweiter | W5: 75 Punkte für richtig getipptes Resultat! | AG5: 14.7./16:00 | AP5: 2 | AQ5: =$B$9 -> Russland | AR5: =IF($I$8>$K$8,3,IF($I$8<$K$8,0,IF($I$8="",0,IF($I$8=$K$8,1,""))))+IF($I$10>$K$10,3,IF($I$10<$K$10,0,IF($I$10="",0,IF($K$10=$I$10,1,""))))+IF($K$12>$I$12,3,IF($K$12<$I$12,0,IF($K$12="",0,IF($K$12=$I$12,1,"")))) -> 6 | AS5: =$I$8+$I$10+$K$12 -> 8 | AT5: =$K$8+$K$10+$I$12 -> 4 | AU5: =AS5-AT5 -> 4
A6: jeweiligen Gruppe. Falls der "Makro"-Befehl (z.B. ctrl+q) nicht funktioniert, | N6: müssen richtig getippt werden). | W6: Maximalpunktzahl 1200+600. | AG6: Verlierer | AI6: Verlierer | AP6: 3 | AQ6: =$B$10 -> Saudiarabien | AR6: =IF($K$8>$I$8,3,IF($K$8<$I$8,0,IF($K$8="",0,IF($I$8=$K$8,1,""))))+IF($I$11>$K$11,0,IF($I$11<$K$11,3,IF($I$11="",0,IF($I$11=$K$11,1,""))))+IF($I$13>$K$13,3,IF($I$13<$K$13,0,IF($I$13="",0,IF($I$13=$K$13,1,"")))) -> 3 | AS6: =$K$8+$I$13+$K$11 -> 2 | AT6: =$I$8+$I$11+$K$13 -> 7 | AU6: =AS6-AT6 -> -5
A7: trage die 1/8-Finalisten von Hand ein (gelbe Felder)! | N7: Wenn du die das Resultat einträgst, ergeben sich | W7: Achtung: Achtelsfinal-Nummer beachten! | AF7: Nr. | AG7: ½-Final 1 | AI7: ½-Final 2 | AJ7: Nr. | AP7: 4 | AQ7: =$B$11 -> Ägypten | AR7: =IF($I$9>$K$9,3,IF($I$9<$K$9,0,IF($I$9="",0,IF($I$9=$K$9,1,""))))+IF($K$10>$I$10,3,IF($K$10<$I$10,0,IF($K$10="",0,IF($K$10=$I$10,1,""))))+IF($K$13>$I$13,3,IF($K$13<$I$13,0,IF($K$13="",0,IF($K$13=$I$13,1,"")))) -> 0 | AS7: =$K$10+$I$9+$K$13 -> 2 | AT7: =$K$9+$I$10+$I$13 -> 6 | AU7: =AS7-AT7 -> -4
A8: A | C8: 14.6. | D8: 17:00 | E8: =B9 -> Russland | F8: - | G8: =B10 -> Saudiarabien | H8: 1 | I8: 5 | J8: : | K8: 0 | L8: =IF($I$8="","",IF($I$8>$K$8,1,IF($I$8<$K$8,2,IF($I$8=$K$8,"x")))) -> 1 | N8: automatisch die richtigen Viertelfinalisten! | AF8: 77 | AG8: =IF($AB$48=$AD$48,"",IF($AB$48<$AD$48,$X$48,$Z$48)) ->  | AH8: - | AI8: =IF($AB$54=$AD$54,"",IF($AB$54<$AD$54,$X$54,$Z$54)) ->  | AJ8: 78 | AL8: : | AP8: Rangliste sortieren mit "ctrl+q" | AV8: ok
B9: =Gruppen!B11 -> Russland | C9: 15.6. | D9: 14:00 | E9: =B11 -> Ägypten | F9: - | G9: =B12 -> Uruguay | H9: 2 | I9: 0 | J9: : | K9: 1 | L9: =IF($I$9="","",IF($I$9>$K$9,1,IF($I$9<$K$9,2,IF($I$9=$K$9,"x")))) -> 2 | X9: Viertelfinal 1
B10: =Gruppen!B12 -> Saudiarabien | C10: 19.6. | D10: 20:00 | E10: =B9 -> Russland | F10: - | G10: =B11 -> Ägypten | H10: 17 | I10: 3 | J10: : | K10: 1 | L10: =IF($I$10="","",IF($I$10>$K$10,1,IF($I$10<$K$10,2,IF($I$10=$K$10,"x")))) -> 1 | O10: Achtelfinal 1 | X10: 6.7./16:00 | AF10: 6. Sieger Kleiner Final | AP10: Rangliste Gruppe B | AR10: Pte. | AS10: +Tore | AT10: -Tore | AU10: Diff. | AV10: ABC
B11: =Gruppen!B13 -> Ägypten | C11: 20.6. | D11: 17:00 | E11: =B12 -> Uruguay | F11: - | G11: =B10 -> Saudiarabien | H11: 18 | I11: 1 | J11: : | K11: 0 | L11: =IF($I$11="","",IF($I$11>$K$11,1,IF($I$11<$K$11,2,IF($I$11=$K$11,"x")))) -> 1 | O11: 30.6./20:00 | X11: Sieger | Z11: Sieger | AF11: Wer wird Sieger des Kleinen Finals? 200 Punkte für den richtigen Tipp. | AP11: 1 | AQ11: =$B$16 -> Portugal | AR11: =IF($I$15>$K$15,3,IF($I$15<$K$15,0,IF($I$15="",0,IF($I$15=$K$15,1,""))))+IF($I$18>$K$18,3,IF($I$18<$K$18,0,IF($I$18="",0,IF($I$18=$K$18,1,""))))+IF($K$19>$I$19,3,IF($K$19<$I$19,0,IF($K$19="",0,IF($K$19=$I$19,1,"")))) -> 4 | AS11: =$I$15+$I$18+$K$19 -> 4 | AT11: =$K$15+$K$18+$I$19 -> 3 | AU11: =AS11-AT11 -> 1
B12: =Gruppen!B14 -> Uruguay | C12: 25.6. | D12: 16:00 | E12: =B12 -> Uruguay | F12: - | G12: =B9 -> Russland | H12: 33 | I12: 3 | J12: : | K12: 0 | L12: =IF($I$12="","",IF($I$12>$K$12,1,IF($I$12<$K$12,2,IF($I$12=$K$12,"x")))) -> 1 | N12: Nr. | O12: 1. Gruppe A | Q12: 2. Gruppe B | R12: Nr. | W12: Nr. | X12: Achtelfinal 1 | Z12: Achtelfinal 2 | AA12: Nr. | AF12: Nr. | AH12: S i e g e r K l e i n e r F i n a l 2 0 1 8 | AP12: 2 | AQ12: =$B$17 -> Spanien | AR12: =IF($K$15>$I$15,3,IF($K$15<$I$15,0,IF($K$15="",0,IF($K$15=$I$15,1,""))))+IF($K$17>$I$17,3,IF($K$17<$I$17,0,IF($I$17="",0,IF($I$17=$K$17,1,""))))+IF($I$20>$K$20,3,IF($I$20<$K$20,0,IF($I$20="",0,IF($I$20=$K$20,1,"")))) -> 4 | AS12: =$K$15+$K$17+$I$20 -> 4 | AT12: =$I$15+$I$17+$K$20 -> 3 | AU12: =AS12-AT12 -> 1
C13: 25.6. | D13: 16:00 | E13: =B10 -> Saudiarabien | F13: - | G13: =B11 -> Ägypten | H13: 34 | I13: 2 | J13: : | K13: 1 | L13: =IF($I$13="","",IF($I$13>$K$13,1,IF($I$13<$K$13,2,IF($I$13=$K$13,"x")))) -> 1 | N13: 49 | O13: =IF(K13="","",$AQ$4) -> Uruguay | P13: - | Q13: =IF(K20="","",$AQ$12) ->  | R13: 50 | T13: : | W13: 65 | X13: =IF($S$13=$U$13,"",IF($S$13>$U$13,$O$13,$Q$13)) ->  | Y13: - | Z13: =IF($S$20=$U$20,"",IF($S$20>$U$20,$O$20,$Q$20)) ->  | AA13: 66 | AC13: : | AF13: 79 | AG13: =IF($AM$8=$AK$8,"",IF($AK$8>$AM$8,$AG$8,$AI$8)) ->  | AP13: 3 | AQ13: =$B$19 -> Iran | AR13: =IF($I$16>$K$16,0,IF($I$16<$K$16,3,IF($I$16="",0,IF($I$16=$K$16,1,""))))+IF($K$17>$I$17,0,IF($K$17<$I$17,3,IF($K$17="",0,IF($K$17=$I$17,1,""))))+IF($K$19>$I$19,0,IF($K$19<$I$19,3,IF($K$19="",0,IF($K$19=$I$19,1,"")))) -> 3 | AS13: =$K$16+$I$17+$I$19 -> 1 | AT13: =$I$16+$K$17+$K$19 -> 1 | AU13: =AS13-AT13 -> 0
A14: "ctrl +q" für die richtige Tabelle der Gruppe A (siehe Spalten AP ff.) | AP14: 4 | AQ14: =$B$18 -> Marokko | AR14: =IF($K$16>$I$16,0,IF($K$16<$I$16,3,IF($K$16="",0,IF($I$16=$K$16,1,""))))+IF($I$18>$K$18,0,IF($I$18<$K$18,3,IF($I$18="",0,IF($I$18=$K$18,1,""))))+IF($K$20>$I$20,3,IF($K$20<$I$20,0,IF($K$20="",0,IF($K$20=$I$20,1,"")))) -> 0 | AS14: =$I$16+$K$18+$K$20 -> 0 | AT14: =$K$16+$I$18+$I$20 -> 2 | AU14: =AS14-AT14 -> -2
A15: B | C15: 15.6. | D15: 20:00 | E15: =B16 -> Portugal | F15: - | G15: =B17 -> Spanien | H15: 3 | I15: 3 | J15: : | K15: 3 | L15: =IF($I$15="","",IF($I$15>$K$15,1,IF($I$15<$K$15,2,IF($I$15=$K$15,"x")))) -> x | X15: Viertelfinal 2 | AF15: 7. Final | AP15: =AP8 -> Rangliste sortieren mit "ctrl+q" | AV15: ok
B16: =Gruppen!E11 -> Portugal | C16: 15.6. | D16: 17:00 | E16: =B18 -> Marokko | F16: - | G16: =B19 -> Iran | H16: 4 | I16: 0 | J16: : | K16: 1 | L16: =IF($I$16="","",IF($I$16>$K$16,1,IF($I$16<$K$16,2,IF($I$16=$K$16,"x")))) -> 2 | X16: 6.7./20:00 | AF16: Welche Mannschaften erreicht den Final? 250 Punkte pro richtig gesetzte
B17: =Gruppen!E12 -> Spanien | C17: 20.6. | D17: 20:00 | E17: =B19 -> Iran | F17: - | G17: =B17 -> Spanien | H17: 19 | I17: 0 | J17: : | K17: 1 | L17: =IF($I$17="","",IF($I$17>$K$17,1,IF($I$17<$K$17,2,IF($I$17=$K$17,"x")))) -> 2 | O17: Achtelfinal 2 | X17: Sieger | Z17: Sieger | AF17: Mannschaft (Reihenfolge egal). 75 Punkte für richtig getipptes Resultat! | AP17: Rangliste Gruppe C | AR17: Pte. | AS17: +Tore | AT17: -Tore | AU17: Diff. | AV17: ABC
B18: =Gruppen!E13 -> Marokko | C18: 20.6. | D18: 14:00 | E18: =B16 -> Portugal | F18: - | G18: =B18 -> Marokko | H18: 20 | I18: 1 | J18: : | K18: 0 | L18: =IF($I$18="","",IF($I$18>$K$18,1,IF($I$18<$K$18,2,IF($I$18=$K$18,"x")))) -> 1 | O18: 30.6./16:00 | W18: Nr. | X18: Achtelfinal 5 | Z18: Achtelfinal 6 | AA18: Nr. | AF18: Maximalpunktzahl 500+75. | AP18: 1 | AQ18: =$B$23 -> Frankreich | AR18: =IF($I$22>$K$22,3,IF($I$22<$K$22,0,IF($I$22="",0,IF($I$22=$K$22,1,""))))+IF($I$26>$K$26,0,IF($I$26<$K$26,3,IF($I$26="",0,IF($I$26=$K$26,1,""))))+IF($K$24>$I$24,0,IF($K$24<$I$24,3,IF($K$24="",0,IF($K$24=$I$24,1,"")))) -> 6 | AS18: =$I$22+$I$24+$K$26 -> 3 | AT18: =$K$22+$K$24+$I$26 -> 1 | AU18: =AS18-AT18 -> 2
B19: =Gruppen!E14 -> Iran | C19: 25.6. | D19: 20:00 | E19: =B19 -> Iran | F19: - | G19: =B16 -> Portugal | H19: 35 | J19: : | L19: =IF($I$19="","",IF($I$19>$K$19,1,IF($I$19<$K$19,2,IF($I$19=$K$19,"x")))) ->  | N19: Nr. | O19: 1. Gruppe C | Q19: 2. Gruppe D | R19: Nr. | W19: 67 | X19: =IF($S$40=$U$40,"",IF($S$40>$U$40,$O$40,$Q$40)) ->  | Y19: - | Z19: =IF($S$47=$U$47,"",IF($S$47>$U$47,$O$47,$Q$47)) ->  | AA19: 68 | AC19: : | AG19: 15.7./17:00 | AP19: 2 | AQ19: =$B$26 -> Dänemark | AR19: =IF($I$23>$K$23,0,IF($I$23<$K$23,3,IF($I$23="",0,IF($I$23=$K$23,1,""))))+IF($K$25>$I$25,0,IF($K$25<$I$25,3,IF($K$25="",0,IF($I$25=$K$25,1,""))))+IF($K$26>$I$26,0,IF($K$26<$I$26,3,IF($K$26="",0,IF($K$26=$I$26,1,"")))) -> 4 | AS19: =$K$23+$I$25+$I$26 -> 2 | AT19: =$I$23+$K$25+$K$26 -> 1 | AU19: =AS19-AT19 -> 1
C20: 25.6. | D20: 20:00 | E20: =B17 -> Spanien | F20: - | G20: =B18 -> Marokko | H20: 36 | J20: : | L20: =IF($I$20="","",IF($I$20>$K$20,1,IF($I$20<$K$20,2,IF($I$20=$K$20,"x")))) ->  | N20: 51 | O20: =IF(K27="","",AQ18) ->  | P20: - | Q20: =IF(K34="","",$AQ$26) ->  | R20: 52 | T20: : | AG20: Sieger | AI20: Sieger | AP20: 3 | AQ20: =$B$24 -> Australien | AR20: =IF($K$22>$I$22,3,IF($K$22<$I$22,0,IF($K$22="",0,IF($K$22=$I$22,1,""))))+IF($I$25>$K$25,0,IF($I$25<$K$25,3,IF($I$25="",0,IF($I$25=$K$25,1,""))))+IF($I$27>$K$27,3,IF($I$27<$K$27,0,IF($I$27="",0,IF($I$27=$K$27,1,"")))) -> 1 | AS20: =$K$22+$K$25+$I$27 -> 2 | AT20: =$I$22+$I$25+$K$27 -> 3 | AU20: =AS20-AT20 -> -1
A21: =A14 -> "ctrl +q" für die richtige Tabelle der Gruppe A (siehe Spalten AP ff.) | X21: Viertelfinal 3 | AF21: Nr. | AG21: ½-Final 1 | AI21: ½-Final 2 | AJ21: Nr. | AP21: 4 | AQ21: =$B$25 -> Peru | AR21: =IF($K$23>$I$23,0,IF($K$23<$I$23,3,IF($K$23="",0,IF($K$23=$I$23,1,""))))+IF($I$24>$K$24,0,IF($I$24<$K$24,3,IF($I$24="",0,IF($I$24=$K$24,1,""))))+IF($K$27>$I$27,3,IF($K$27<$I$27,0,IF($K$27="",0,IF($K$27=$I$27,1,"")))) -> 0 | AS21: =$I$23+$K$24+$K$27 -> 0 | AT21: =$K$23+$I$24+$I$27 -> 2 | AU21: =AS21-AT21 -> -2
A22: C | C22: 16.6. | D22: 12:00 | E22: =B23 -> Frankreich | F22: - | G22: =B24 -> Australien | H22: 5 | I22: 2 | J22: : | K22: 1 | L22: =IF($I$22="","",IF($I$22>$K$22,1,IF($I$22<$K$22,2,IF($I$22=$K$22,"x")))) -> 1 | X22: 7.7./20:00 | AF22: 80 | AG22: =IF($AB$48=$AD$48,"",IF($AB$48>$AD$48,$X$48,$Z$48)) ->  | AH22: - | AI22: =IF($AB$54=$AD$54,"",IF($AB$54>$AD$54,$X$54,$Z$54)) ->  | AJ22: 81 | AL22: : | AP22: =AP8 -> Rangliste sortieren mit "ctrl+q" | AV22: ok
B23: =Gruppen!B17 -> Frankreich | C23: 16.6. | D23: 18:00 | E23: =B25 -> Peru | F23: - | G23: =B26 -> Dänemark | H23: 6 | I23: 0 | J23: : | K23: 1 | L23: =IF($I$23="","",IF($I$23>$K$23,1,IF($I$23<$K$23,2,IF($I$23=$K$23,"x")))) -> 2 | X23: Sieger | Z23: Sieger
B24: =Gruppen!B18 -> Australien | C24: 21.6. | D24: 14:00 | E24: =B23 -> Frankreich | F24: - | G24: =B25 -> Peru | H24: 22 | I24: 1 | J24: : | K24: 0 | L24: =IF($I$24="","",IF($I$24>$K$24,1,IF($I$24<$K$24,2,IF($I$24=$K$24,"x")))) -> 1 | O24: Achtelfinal 3 | W24: Nr. | X24: Achtelfinal 3 | Z24: Achtelfinal 4 | AA24: Nr. | AF24: 8. Weltmeister | AP24: Rangliste Gruppe D | AR24: Pte. | AS24: +Tore | AT24: -Tore | AU24: Diff. | AV24: ABC
B25: =Gruppen!B19 -> Peru | C25: 21.6. | D25: 17:00 | E25: =B26 -> Dänemark | F25: - | G25: =B24 -> Australien | H25: 23 | I25: 1 | J25: : | K25: 1 | L25: =IF($I$25="","",IF($I$25>$K$25,1,IF($I$25<$K$25,2,IF($I$25=$K$25,"x")))) -> x | O25: 1.7./16:00 | W25: 69 | X25: =IF($S$27=$U$27,"",IF($S$27>$U$27,$O$27,$Q$27)) ->  | Y25: - | Z25: =IF($S$34=$U$34,"",IF($S$34>$U$34,$O$34,$Q$34)) ->  | AA25: 70 | AC25: : | AF25: Wer wird Weltmeister? 300 Punkte für den richtigen Tipp. | AP25: 1 | AQ25: =$B$32 -> Kroatien | AR25: =IF($I$30>$K$30,3,IF($I$30<$K$30,0,IF($I$30="",0,IF($I$30=$K$30,1,""))))+IF($K$31>$I$31,3,IF($K$31<$I$31,0,IF($K$31="",0,IF($I$31=$K$31,1,""))))+IF($I$34>$K$34,0,IF($I$34<$K$34,3,IF($I$34="",0,IF($I$34=$K$34,1,"")))) -> 6 | AS25: =$I$30+$K$31+$K$34 -> 5 | AT25: =$K$30+$I$31+$I$34 -> 0 | AU25: =AS25-AT25 -> 5
B26: =Gruppen!B20 -> Dänemark | C26: 26.6. | D26: 16:00 | E26: =B26 -> Dänemark | F26: - | G26: =B23 -> Frankreich | H26: 37 | J26: : | L26: =IF($I$26="","",IF($I$26>$K$26,1,IF($I$26<$K$26,2,IF($I$26=$K$26,"x")))) ->  | N26: Nr. | O26: 1. Gruppe B | Q26: 2. Gruppe A | R26: Nr. | AF26: Nr. | AH26: W E L T M E I S T E R 2 0 1 8 | AP26: 2 | AQ26: =$B$33 -> Nigeria | AR26: =IF($K$30>$I$30,3,IF($K$30<$I$30,0,IF($K$30="",0,IF($K$30=$I$30,1,""))))+IF($I$32>$K$32,3,IF($I$32<$K$32,0,IF($I$32="",0,IF($I$32=$K$32,1,""))))+IF($K$33>$I$33,0,IF($K$33<$I$33,3,IF($K$33="",0,IF($K$33=$I$33,1,"")))) -> 3 | AS26: =$K$30+$I$32+$I$33 -> 2 | AT26: =$I$30+$K$32+$K$33 -> 2 | AU26: =AS26-AT26 -> 0
C27: 26.6. | D27: 16:00 | E27: =B24 -> Australien | F27: - | G27: =B25 -> Peru | H27: 38 | J27: : | L27: =IF($I$27="","",IF($I$27>$K$27,1,IF($I$27<$K$27,2,IF($I$27=$K$27,"x")))) ->  | N27: 53 | O27: =IF(K20="","",$AQ$11) ->  | P27: - | Q27: =IF(K13="","",$AQ$5) -> Russland | R27: 54 | T27: : | X27: Viertelfinal 4 | AF27: 82 | AG27: =IF($AM$22=$AK$22,"",IF($AK$22>$AM$22,$AG$22,$AI$22)) ->  | AP27: 3 | AQ27: =$B$31 -> Island | AR27: =IF($I$29>$K$29,0,IF($I$29<$K$29,3,IF($I$29="",0,IF($I$29=$K$29,1,""))))+IF($I$32>$K$32,0,IF($I$32<$K$32,3,IF($I$32="",0,IF($I$32=$K$32,1,""))))+IF($K$34>$I$34,0,IF($K$34<$I$34,3,IF($K$34="",0,IF($K$34=$I$34,1,"")))) -> 1 | AS27: =$K$29+$K$32+$I$34 -> 1 | AT27: =$I$29+$I$32+$K$34 -> 3 | AU27: =AS27-AT27 -> -2
A28: =A14 -> "ctrl +q" für die richtige Tabelle der Gruppe A (siehe Spalten AP ff.) | X28: 7.7./16:00 | AP28: 4 | AQ28: =$B$30 -> Argentinien | AR28: =IF($K$31>$I$31,0,IF($K$31<$I$31,3,IF($K$31="",0,IF($I$31=$K$31,1,""))))+IF($I$33>$K$33,0,IF($I$33<$K$33,3,IF($I$33="",0,IF($I$33=$K$33,1,""))))+IF($I$29>$K$29,3,IF($I$29<$K$29,0,IF($I$29="",0,IF($I$29=$K$29,1,"")))) -> 1 | AS28: =$I$29+$I$31+$K$33 -> 1 | AT28: =$K$29+$K$31+$I$33 -> 4 | AU28: =AS28-AT28 -> -3
A29: D | C29: 16.6. | D29: 15:00 | E29: =B30 -> Argentinien | F29: - | G29: =B31 -> Island | H29: 7 | I29: 1 | J29: : | K29: 1 | L29: =IF($I$29="","",IF($I$29>$K$29,1,IF($I$29<$K$29,2,IF($I$29=$K$29,"x")))) -> x | X29: Sieger | Z29: Sieger | AF29: 9. Joker-Tip | AP29: =AP8 -> Rangliste sortieren mit "ctrl+q" | AV29: ok
B30: =Gruppen!E17 -> Argentinien | C30: 16.6. | D30: 21:00 | E30: =B32 -> Kroatien | F30: - | G30: =B33 -> Nigeria | H30: 8 | I30: 2 | J30: : | K30: 0 | L30: =IF($I$30="","",IF($I$30>$K$30,1,IF($I$30<$K$30,2,IF($I$30=$K$30,"x")))) -> 1 | W30: Nr. | X30: Achtelfinal 7 | Z30: Achtelfinal 8 | AA30: Nr. | AF30: Wie viele Tore werden total an der WM 2018 erzielt (inkl. Penaltyschiessen)?
B31: =Gruppen!E18 -> Island | C31: 21.6. | D31: 20:00 | E31: =B30 -> Argentinien | F31: - | G31: =B32 -> Kroatien | H31: 21 | I31: 0 | J31: : | K31: 3 | L31: =IF($I$31="","",IF($I$31>$K$31,1,IF($I$31<$K$31,2,IF($I$31=$K$31,"x")))) -> 2 | O31: Achtelfinal 4 | W31: 71 | X31: =IF($S$54=$U$54,"",IF($S$54>$U$54,$O$54,$Q$54)) ->  | Y31: - | Z31: =IF($S$61=$U$61,"",IF($S$61>$U$61,$O$61,$Q$61)) ->  | AA31: 72 | AC31: : | AF31: Dieser Tip entscheidet bei gleicher Punktzahl mehrerer Teilnehmer/-innen. | AP31: Rangliste Gruppe E | AR31: Pte. | AS31: +Tore | AT31: -Tore | AU31: Diff. | AV31: ABC
B32: =Gruppen!E19 -> Kroatien | C32: 22.6. | D32: 17:00 | E32: =B33 -> Nigeria | F32: - | G32: =B31 -> Island | H32: 24 | I32: 2 | J32: : | K32: 0 | L32: =IF($I$32="","",IF($I$32>$K$32,1,IF($I$32<$K$32,2,IF($I$32=$K$32,"x")))) -> 1 | O32: 1.7./20:00 | AP32: 1 | AQ32: =$B$37 -> Brasilien | AR32: =IF($I$36>$K$36,3,IF($I$36<$K$36,0,IF($I$36="",0,IF($I$36=$K$36,1,""))))+IF($I$38>$K$38,3,IF($I$38<$K$38,0,IF($I$38="",0,IF($I$38=$K$38,1,""))))+IF($K$40>$I$40,3,IF($K$40<$I$40,0,IF($K$40="",0,IF($K$40=$I$40,1,"")))) -> 4 | AS32: =$I$36+$I$38+$K$40 -> 3 | AT32: =$K$36+$K$38+$I$40 -> 1 | AU32: =AS32-AT32 -> 2
B33: =Gruppen!E20 -> Nigeria | C33: 26.6. | D33: 20:00 | E33: =B33 -> Nigeria | F33: - | G33: =B30 -> Argentinien | H33: 39 | J33: : | L33: =IF($I$33="","",IF($I$33>$K$33,1,IF($I$33<$K$33,2,IF($I$33=$K$33,"x")))) ->  | N33: Nr. | O33: 1. Gruppe D | Q33: 2. Gruppe C | R33: Nr. | AF33: 10. Personalien | AN33: =SUM(I8:I63)+SUM(K8:K63)+SUM(S13:S62)+SUM(U13:U62)+SUM(AB13:AB55)+SUM(AD13:AD55)+AK8+AM8+AK22+AM22 -> 91 | AP33: 2 | AQ33: =$B$38 -> Schweiz | AR33: =IF($K$36>$I$36,3,IF($K$36<$I$36,0,IF($K$36="",0,IF($I$36=$K$36,1,""))))+IF($I$39>$K$39,0,IF($I$39<$K$39,3,IF($I$39="",0,IF($I$39=$K$39,1,""))))+IF($K$41>$I$41,0,IF($K$41<$I$41,3,IF($K$41="",0,IF($K$41=$I$41,1,"")))) -> 4 | AS33: =$K$36+$K$39+$I$41 -> 3 | AT33: =$I$36+$I$39+$K$41 -> 2 | AU33: =AS33-AT33 -> 1
C34: 26.6. | D34: 20:00 | E34: =B31 -> Island | F34: - | G34: =B32 -> Kroatien | H34: 40 | J34: : | L34: =IF($I$34="","",IF($I$34>$K$34,1,IF($I$34<$K$34,2,IF($I$34=$K$34,"x")))) ->  | N34: 55 | O34: =IF(K34="","",$AQ$25) ->  | P34: - | Q34: =IF(K27="","",$AQ$19) ->  | R34: 56 | T34: : | AP34: 3 | AQ34: =$B$40 -> Serbien | AR34: =IF($I$37>$K$37,0,IF($I$37<$K$37,3,IF($I$37="",0,IF($I$37=$K$37,1,""))))+IF($K$39>$I$39,0,IF($K$39<$I$39,3,IF($K$39="",0,IF($K$39=$I$39,1,""))))+IF($K$40>$I$40,0,IF($K$40<$I$40,3,IF($K$40="",0,IF($I$40=$K$40,1,"")))) -> 3 | AS34: =$K$37+$I$39+$I$40 -> 2 | AT34: =$I$37+$K$39+$K$40 -> 2 | AU34: =AS34-AT34 -> 0
A35: =A28 -> "ctrl +q" für die richtige Tabelle der Gruppe A (siehe Spalten AP ff.) | AG35: Name/Vorname: | AP35: 4 | AQ35: =$B$39 -> Costa Rica | AR35: =IF($K$37>$I$37,0,IF($K$37<$I$37,3,IF($K$37="",0,IF($I$37=$K$37,1,""))))+IF($I$38>$K$38,0,IF($I$38<$K$38,3,IF($I$38="",0,IF($I$38=$K$38,1,""))))+IF($I$41>$K$41,0,IF($I$41<$K$41,3,IF($I$41="",0,IF($I$41=$K$41,1,"")))) -> 0 | AS35: =$I$37+$K$38+$K$41 -> 0 | AT35: =$K$37+$I$38+$I$41 -> 3 | AU35: =AS35-AT35 -> -3
A36: E | C36: 17.6. | D36: 20:00 | E36: =B37 -> Brasilien | F36: - | G36: =B38 -> Schweiz | H36: 9 | I36: 1 | J36: : | K36: 1 | L36: =IF($I$36="","",IF($I$36>$K$36,1,IF($I$36<$K$36,2,IF($I$36=$K$36,"x")))) -> x | W36: 4. Halbfinal | AG36: Adresse: | AP36: =AP29 -> Rangliste sortieren mit "ctrl+q" | AV36: ok
B37: =Gruppen!B23 -> Brasilien | C37: 17.6. | D37: 14:00 | E37: =B39 -> Costa Rica | F37: - | G37: =B40 -> Serbien | H37: 10 | I37: 0 | J37: : | K37: 1 | L37: =IF($I$37="","",IF($I$37>$K$37,1,IF($I$37<$K$37,2,IF($I$37=$K$37,"x")))) -> 2 | O37: Achtelfinal 5 | W37: Welche Mannschaften erreichen den Halbfinal. | AG37: PLZ/Ort:
B38: =Gruppen!B24 -> Schweiz | C38: 22.6. | D38: 14:00 | E38: =B37 -> Brasilien | F38: - | G38: =B39 -> Costa Rica | H38: 25 | I38: 2 | J38: : | K38: 0 | L38: =IF($I$38="","",IF($I$38>$K$38,1,IF($I$38<$K$38,2,IF($I$38=$K$38,"x")))) -> 1 | O38: 2.7./16:00 | W38: 200 Punkte pro richtig gesetzte Mannschaft (nur an | AG38: Telefon: | AP38: Rangliste Gruppe F | AR38: Pte. | AS38: +Tore | AT38: -Tore | AU38: Diff. | AV38: ABC
B39: =Gruppen!B25 -> Costa Rica | C39: 22.6. | D39: 20:00 | E39: =B40 -> Serbien | F39: - | G39: =B38 -> Schweiz | H39: 26 | I39: 1 | J39: : | K39: 2 | L39: =IF($I$39="","",IF($I$39>$K$39,1,IF($I$39<$K$39,2,IF($I$39=$K$39,"x")))) -> 2 | N39: Nr. | O39: 1. Gruppe E | Q39: 2. Gruppe F | R39: Nr. | W39: richtiger Stelle gesetzte Mannschaften zählen). | AG39: e-mail: | AP39: 1 | AQ39: =$B$45 -> Mexiko | AR39: =IF($K$43>$I$43,3,IF($K$43<$I$43,0,IF($K$43="",0,IF($K$43=$I$43,1,""))))+IF($I$46>$K$46,0,IF($I$46<$K$46,3,IF($I$46="",0,IF($I$46=$K$46,1,""))))+IF($K$48>$I$48,0,IF($K$48<$I$48,3,IF($K$48="",0,IF($I$48=$K$48,1,"")))) -> 6 | AS39: =$K$43+$K$46+$I$48 -> 3 | AT39: =$I$43+$I$46+$K$48 -> 1 | AU39: =AS39-AT39 -> 2
B40: =Gruppen!B26 -> Serbien | C40: 27.6. | D40: 20:00 | E40: =B40 -> Serbien | F40: - | G40: =B37 -> Brasilien | H40: 43 | J40: : | L40: =IF($I$40="","",IF($I$40>$K$40,1,IF($I$40<$K$40,2,IF($I$40=$K$40,"x")))) ->  | N40: 57 | O40: =IF(K41="","",$AQ$32) ->  | P40: - | Q40: =IF(K48="","",$AQ$40) ->  | R40: 58 | T40: : | W40: 75 Punkte für richtig getipptes Resultat! | AP40: 2 | AQ40: =$B$46 -> Schweden | AR40: =IF($K$44>$I$44,0,IF($K$44<$I$44,3,IF($K$44="",0,IF($I$44=$K$44,1,""))))+IF($I$45>$K$45,0,IF($I$45<$K$45,3,IF($I$45="",0,IF($I$45=$K$45,1,""))))+IF($K$48>$I$48,3,IF($K$48<$I$48,0,IF($K$48="",0,IF($K$48=$I$48,1,"")))) -> 3 | AS40: =$I$44+$K$45+$K$48 -> 2 | AT40: =$K$44+$I$45+$I$48 -> 2 | AU40: =AS40-AT40 -> 0
C41: 27.6. | D41: 20:00 | E41: =B38 -> Schweiz | F41: - | G41: =B39 -> Costa Rica | H41: 44 | J41: : | L41: =IF($I$41="","",IF($I$41>$K$41,1,IF($I$41<$K$41,2,IF($I$41=$K$41,"x")))) ->  | W41: Maximalpunktzahl 800+300. | AP41: 3 | AQ41: =$B$44 -> Deutschland | AR41: =IF($I$43>$K$43,3,IF($I$43<$K$43,0,IF($I$43="",0,IF($I$43=$K$43,1,""))))+IF($I$45>$K$45,3,IF($I$45<$K$45,0,IF($K$45="",0,IF($I$45=$K$45,1,""))))+IF($K$47>$I$47,3,IF($K$47<$I$47,0,IF($K$47="",0,IF($K$47=$I$47,1,"")))) -> 3 | AS41: =$I$43+$I$45+$K$47 -> 2 | AT41: =$K$43+$K$45+$I$47 -> 2 | AU41: =AS41-AT41 -> 0
A42: =A35 -> "ctrl +q" für die richtige Tabelle der Gruppe A (siehe Spalten AP ff.) | W42: Achtung: Viertelsfinals-Nummern beachten! | AP42: 4 | AQ42: =$B$47 -> Südkorea | AR42: =IF($I$44>$K$44,0,IF($I$44<$K$44,3,IF($I$44="",0,IF($I$44=$K$44,1,""))))+IF($K$46>$I$46,0,IF($K$46<$I$46,3,IF($K$46="",0,IF($K$46=$I$46,1,""))))+IF($I$47>$K$47,3,IF($I$47<$K$47,0,IF($I$47="",0,IF($I$47=$K$47,1,"")))) -> 0 | AS42: =$K$44+$I$46+$I$47 -> 1 | AT42: =$I$44+$K$46+$K$47 -> 3 | AU42: =AS42-AT42 -> -2
A43: F | C43: 17.6. | D43: 17:00 | E43: =B44 -> Deutschland | F43: - | G43: =B45 -> Mexiko | H43: 11 | I43: 0 | J43: : | K43: 1 | L43: =IF($I$43="","",IF($I$43>$K$43,1,IF($I$43<$K$43,2,IF($I$43=$K$43,"x")))) -> 2 | AP43: =AP36 -> Rangliste sortieren mit "ctrl+q" | AV43: ok
B44: =Gruppen!E23 -> Deutschland | C44: 18.6. | D44: 14:00 | E44: =B46 -> Schweden | F44: - | G44: =B47 -> Südkorea | H44: 12 | I44: 1 | J44: : | K44: 0 | L44: =IF($I$44="","",IF($I$44>$K$44,1,IF($I$44<$K$44,2,IF($I$44=$K$44,"x")))) -> 1 | O44: Achtelfinal 6 | X44: ½-Final 1
B45: =Gruppen!E24 -> Mexiko | C45: 23.6. | D45: 17:00 | E45: =B44 -> Deutschland | F45: - | G45: =B46 -> Schweden | H45: 27 | I45: 2 | J45: : | K45: 1 | L45: =IF($I$45="","",IF($I$45>$K$45,1,IF($I$45<$K$45,2,IF($I$45=$K$45,"x")))) -> 1 | O45: 2.7./20:00 | X45: 10.7./20:00 | AP45: Rangliste Gruppe G | AR45: Pte. | AS45: +Tore | AT45: -Tore | AU45: Diff. | AV45: ABC
B46: =Gruppen!E25 -> Schweden | C46: 23.6. | D46: 20:00 | E46: =B47 -> Südkorea | F46: - | G46: =B45 -> Mexiko | H46: 28 | I46: 1 | J46: : | K46: 2 | L46: =IF($I$46="","",IF($I$46>$K$46,1,IF($I$46<$K$46,2,IF($I$46=$K$46,"x")))) -> 2 | N46: Nr. | O46: 1. Gruppe G | Q46: 2. Gruppe H | R46: Nr. | X46: Sieger | Z46: Sieger | AP46: 1 | AQ46: =$B$54 -> England | AR46: =IF($K$53>$I$53,0,IF($K$53<$I$53,3,IF($K$53="",0,IF($K$53=$I$53,1,""))))+IF($I$54>$K$54,3,IF($I$54<$K$54,0,IF($I$54="",0,IF($I$54=$K$54,1,""))))+IF($I$51>$K$51,0,IF($I$51<$K$51,3,IF($I$51="",0,IF($K$51=$I$51,1,"")))) -> 6 | AS46: =$K$51+$I$53+$I$54 -> 8 | AT46: =$I$51+$K$53+$K$54 -> 2 | AU46: =AS46-AT46 -> 6
B47: =Gruppen!E26 -> Südkorea | C47: 27.6. | D47: 16:00 | E47: =B47 -> Südkorea | F47: - | G47: =B44 -> Deutschland | H47: 41 | J47: : | L47: =IF($I$47="","",IF($I$47>$K$47,1,IF($I$47<$K$47,2,IF($I$47=$K$47,"x")))) ->  | N47: 59 | O47: =IF(K55="","",$AQ$46) ->  | P47: - | Q47: =IF(K62="","",$AQ$54) ->  | R47: 60 | T47: : | W47: Nr. | X47: ¼-Final 1 | Z47: ¼-Final 2 | AA47: Nr. | AP47: 2 | AQ47: =$B$51 -> Belgien | AR47: =IF($K$52>$I$52,0,IF($K$52<$I$52,3,IF($K$52="",0,IF($I$52=$K$52,1,""))))+IF($K$54>$I$54,3,IF($K$54<$I$54,0,IF($K$54="",0,IF($I$54=$K$54,1,""))))+IF($I$50>$K$50,3,IF($I$50<$K$50,0,IF($I$50="",0,IF($I$50=$K$50,1,"")))) -> 6 | AS47: =$I$50+$I$52+$K$54 -> 8 | AT47: =$K$50+$K$52+$I$54 -> 2 | AU47: =AS47-AT47 -> 6
C48: 27.6. | D48: 16:00 | E48: =B45 -> Mexiko | F48: - | G48: =B46 -> Schweden | H48: 42 | J48: : | L48: =IF($I$48="","",IF($I$48>$K$48,1,IF($I$48<$K$48,2,IF($I$48=$K$48,"x")))) ->  | W48: 73 | X48: =IF($AB$13=$AD$13,"",IF($AB$13>$AD$13,$X$13,$Z$13)) ->  | Y48: - | Z48: =IF($AB$19=$AD$19,"",IF($AB$19>$AD$19,$X$19,$Z$19)) ->  | AA48: 74 | AC48: : | AP48: 3 | AQ48: =$B$53 -> Tunesien | AR48: =IF($K$51>$I$51,0,IF($K$51<$I$51,3,IF($K$51="",0,IF($K$51=$I$51,1,""))))+IF($I$52>$K$52,0,IF($I$52<$K$52,3,IF($I$52="",0,IF($I$52=$K$52,1,""))))+IF($K$55>$I$55,3,IF($K$55<$I$55,0,IF($K$55="",0,IF($I$55=$K$55,1,"")))) -> 0 | AS48: =$K$52+$I$51+$K$55 -> 3 | AT48: =$K$51+$I$52+$I$55 -> 7 | AU48: =AS48-AT48 -> -4
A49: =A42 -> "ctrl +q" für die richtige Tabelle der Gruppe A (siehe Spalten AP ff.) | AP49: 4 | AQ49: =$B$52 -> Panama | AR49: =IF($I$50>$K$50,0,IF($I$50<$K$50,3,IF($I$50="",0,IF($I$50=$K$50,1,""))))+IF($I$53>$K$53,0,IF($I$53<$K$53,3,IF($I$53="",0,IF($K$53=$I$53,1,""))))+IF($K$55>$I$55,0,IF($K$55<$I$55,3,IF($K$55="",0,IF($K$55=$I$55,1,"")))) -> 0 | AS49: =$K$50+$K$53+$I$55 -> 1 | AT49: =$I$50+$I$53+$K$55 -> 9 | AU49: =AS49-AT49 -> -8
A50: G | C50: 18.6. | D50: 17:00 | E50: =B51 -> Belgien | F50: - | G50: =B52 -> Panama | H50: 13 | I50: 3 | J50: : | K50: 0 | L50: =IF($I$50="","",IF($I$50>$K$50,1,IF($I$50<$K$50,2,IF($I$50=$K$50,"x")))) -> 1 | X50: ½-Final 2 | AP50: =AP43 -> Rangliste sortieren mit "ctrl+q" | AV50: ok
B51: =Gruppen!B29 -> Belgien | C51: 18.6. | D51: 20:00 | E51: =B53 -> Tunesien | F51: - | G51: =B54 -> England | H51: 14 | I51: 1 | J51: : | K51: 2 | L51: =IF($I$51="","",IF($I$51>$K$51,1,IF($I$51<$K$51,2,IF($I$51=$K$51,"x")))) -> 2 | O51: Achtelfinal 7 | X51: 11.7./20:00
B52: =Gruppen!B30 -> Panama | C52: 23.6 | D52: 14:00 | E52: =B51 -> Belgien | F52: - | G52: =B53 -> Tunesien | H52: 29 | I52: 5 | J52: : | K52: 2 | L52: =IF($I$52="","",IF($I$52>$K$52,1,IF($I$52<$K$52,2,IF($I$52=$K$52,"x")))) -> 1 | O52: 3.7./16:00 | X52: Sieger | Z52: Sieger | AP52: Rangliste Gruppe H | AR52: Pte. | AS52: +Tore | AT52: -Tore | AU52: Diff. | AV52: ABC
B53: =Gruppen!B31 -> Tunesien | C53: 24.6. | D53: 14:00 | E53: =B54 -> England | F53: - | G53: =B52 -> Panama | H53: 30 | I53: 6 | J53: : | K53: 1 | L53: =IF($I$53="","",IF($I$53>$K$53,1,IF($I$53<$K$53,2,IF($I$53=$K$53,"x")))) -> 1 | N53: Nr. | O53: 1. Gruppe F | Q53: 2. Gruppe E | R53: Nr. | W53: Nr. | X53: ¼-Final 3 | Z53: ¼-Final 4 | AA53: Nr. | AP53: 1 | AQ53: =$B$59 -> Senegal | AR53: =IF($K$57>$I$57,3,IF($K$57<$I$57,0,IF($K$57="",0,IF($I$57=$K$57,1,""))))+IF($K$59>$I$59,3,IF($K$59<$I$59,0,IF($K$59="",0,IF($I$59=$K$59,1,""))))+IF($I$62>$K$62,3,IF($I$62<$K$62,0,IF($I$62="",0,IF($I$62=$K$62,1,"")))) -> 4 | AS53: =$K$57+$K$59+$I$62 -> 4 | AT53: =$I$57+$I$59+$K$62 -> 3 | AU53: =AS53-AT53 -> 1
B54: =Gruppen!B32 -> England | C54: 28.6. | D54: 20:00 | E54: =B54 -> England | F54: - | G54: =B51 -> Belgien | H54: 45 | L54: =IF($I$54="","",IF($I$54>$K$54,1,IF($I$54<$K$54,2,IF($I$54=$K$54,"x")))) ->  | N54: 61 | O54: =IF(K48="","",$AQ$39) ->  | P54: - | Q54: =IF(K41="","",$AQ$33) ->  | R54: 62 | T54: : | W54: 75 | X54: =IF($AB$25=$AD$25,"",IF($AB$25>$AD$25,$X$25,$Z$25)) ->  | Y54: - | Z54: =IF($AB$31=$AD$31,"",IF($AB$31>$AD$31,$X$31,$Z$31)) ->  | AA54: 76 | AC54: : | AP54: 2 | AQ54: =$B$61 -> Japan | AR54: =IF($K$58>$I$58,3,IF($K$58<$I$58,0,IF($K$58="",0,IF($K$58=$I$58,1,""))))+IF($I$59>$K$59,3,IF($I$59<$K$59,0,IF($I$59="",0,IF($I$59=$K$59,1,""))))+IF($I$61>$K$61,3,IF($I$61<$K$61,0,IF($I$61="",0,IF($K$61=$I$61,1,"")))) -> 4 | AS54: =$K$58+$I$59+$I$61 -> 4 | AT54: =$I$58+$K$59+$K$61 -> 3 | AU54: =AS54-AT54 -> 1
C55: 28.6. | D55: 20:00 | E55: =B52 -> Panama | F55: - | G55: =B53 -> Tunesien | H55: 46 | L55: =IF($I$55="","",IF($I$55>$K$55,1,IF($I$55<$K$55,2,IF($I$55=$K$55,"x")))) ->  | AP55: 3 | AQ55: =$B$60 -> Kolumbien | AR55: =IF($I$58>$K$58,3,IF($I$58<$K$58,0,IF($I$58="",0,IF($I$58=$K$58,1,""))))+IF($K$60>$I$60,3,IF($K$60<$I$60,0,IF($K$60="",0,IF($I$60=$K$60,1,""))))+IF($K$62>$I$62,3,IF($K$62<$I$62,0,IF($K$62="",0,IF($I$62=$K$62,1,"")))) -> 3 | AS55: =$I$58+$K$60+$K$62 -> 4 | AT55: =$K$58+$I$60+$I$62 -> 2 | AU55: =AS55-AT55 -> 2
A56: =A49 -> "ctrl +q" für die richtige Tabelle der Gruppe A (siehe Spalten AP ff.) | AP56: 4 | AQ56: =$B$58 -> Polen | AR56: =IF($I$57>$K$57,3,IF($I$57<$K$57,0,IF($I$57="",0,IF($I$57=$K$57,1,""))))+IF($I$60>$K$60,3,IF($I$60<$K$60,0,IF($I$60="",0,IF($I$60=$K$60,1,""))))+IF($K$61>$I$61,3,IF($K$61<$I$61,0,IF($K$61="",0,IF($K$61=$I$61,1,"")))) -> 0 | AS56: =$I$57+$K$61+$I$60 -> 1 | AT56: =$K$57+$K$60+$I$61 -> 5 | AU56: =AS56-AT56 -> -4
A57: H | C57: 19.6. | D57: 14:00 | E57: =B58 -> Polen | F57: - | G57: =B59 -> Senegal | H57: 15 | I57: 1 | J57: : | K57: 2 | L57: =IF($I$57="","",IF($I$57>$K$57,1,IF($I$57<$K$57,2,IF($I$57=$K$57,"x")))) -> 2 | AP57: =AP50 -> Rangliste sortieren mit "ctrl+q"
B58: =Gruppen!E29 -> Polen | C58: 19.6. | D58: 17:00 | E58: =B60 -> Kolumbien | F58: - | G58: =B61 -> Japan | H58: 16 | I58: 1 | J58: : | K58: 2 | L58: =IF($I$58="","",IF($I$58>$K$58,1,IF($I$58<$K$58,2,IF($I$58=$K$58,"x")))) -> 2 | O58: Achtelfinal 8
B59: =Gruppen!E30 -> Senegal | C59: 24.6. | D59: 17:00 | E59: =B61 -> Japan | F59: - | G59: =B59 -> Senegal | H59: 31 | I59: 2 | J59: : | K59: 2 | L59: =IF($I$59="","",IF($I$59>$K$59,1,IF($I$59<$K$59,2,IF($I$59=$K$59,"x")))) -> x | O59: 3.7./20:00
B60: =Gruppen!E31 -> Kolumbien | C60: 24.6. | D60: 20:00 | E60: =B58 -> Polen | F60: - | G60: =B60 -> Kolumbien | H60: 32 | I60: 0 | J60: : | K60: 3 | L60: =IF($I$60="","",IF($I$60>$K$60,1,IF($I$60<$K$60,2,IF($I$60=$K$60,"x")))) -> 2 | N60: Nr. | O60: 1. Gruppe H | Q60: 2. Gruppe G | R60: Nr.
B61: =Gruppen!E32 -> Japan | C61: 28.6. | D61: 16:00 | E61: =B61 -> Japan | F61: - | G61: =B58 -> Polen | H61: 47 | J61: : | L61: =IF($I$61="","",IF($I$61>$K$61,1,IF($I$61<$K$61,2,IF($I$61=$K$61,"x")))) ->  | N61: 63 | O61: =IF(K62="","",$AQ$53) ->  | P61: - | Q61: =IF(K55="","",$AQ$47) ->  | R61: 64 | T61: :
C62: 28.6. | D62: 16:00 | E62: =B59 -> Senegal | F62: - | G62: =B60 -> Kolumbien | H62: 48 | J62: : | L62: =IF($I$62="","",IF($I$62>$K$62,1,IF($I$62<$K$62,2,IF($I$62=$K$62,"x")))) -> 
A63: =A56 -> "ctrl +q" für die richtige Tabelle der Gruppe A (siehe Spalten AP ff.)

Sheet Teilnehmer-Blatt
W1: 3. Viertelfinal | AF1: 5. Kleiner Final | AP1: Gruppenphase Ranglisten | AX1: Umgekehrte Finals:
A2: 1. Gruppenspiele | N2: 2. Achtelfinal | W2: Welche Mannschaften erreichen den Halbfinal. | AF2: Welche Mannschaften erreichen den Final? 100 Punkte pro richtig gesetzte
A3: Toto-Tip: 75 Punkte pro richtigen Tip 1, x oder 2 plus 75 Punkte für richtiges Resultat! | N3: Welche zwei Mannschaften pro Gruppe erreichen | W3: 150 Punkte pro richtig gesetzte Mannschaft (nur an | AF3: Mannschaft (Reihenfolge egal). 75 Punkte für richtig getipptes Resultat! | AP3: Rangliste Gruppe A | AR3: Pte. | AS3: +Tore | AT3: -Tore | AU3: Diff. | AV3: ABC | AX3: Kleiner Final: | AY3: =AI8 ->  | AZ3: - | BA3: =AG8 ->  | BB3: =AM8 -> 0 | BC3: : | BD3: =AK8 -> 0
A4: (Maximalpunktzahl 3600+3600). Getipptes Resultat ins gelbe Feld hineinschreiben! | N4: den Achtelfinal? 100 Punkte pro richtig gesetzte | W4: richtiger Stelle gesetzte Mannschaften zählen). | AF4: Maximalpunktzahl 200+75. | AP4: 1 | AQ4: =$B$9 -> Russland | AR4: =IF($I$8>$K$8,3,IF($I$8<$K$8,0,IF($I$8="",0,IF($I$8=$K$8,1,""))))+IF($I$10>$K$10,3,IF($I$10<$K$10,0,IF($I$10="",0,IF($K$10=$I$10,1,""))))+IF($K$12>$I$12,3,IF($K$12<$I$12,0,IF($K$12="",0,IF($K$12=$I$12,1,"")))) -> 0 | AS4: =$I$8+$I$10+$K$12 -> 0 | AT4: =$K$8+$K$10+$I$12 -> 0 | AU4: =AS4-AT4 -> 0 | AX4: Final: | AY4: =AI22 ->  | AZ4: - | BA4: =AG22 ->  | BB4: =AM22 -> 0 | BC4: : | BD4: =AK22 -> 0
A5: Um die richtigen Achtelsfinalisten zu bekommen, drücke bitte den Kurzbefehl unter der | N5: Mannschaft (Gruppenerster und Gruppenzweiter | W5: 75 Punkte für richtig getipptes Resultat! | AG5: 14.7./16:00 | AP5: 2 | AQ5: =$B$11 -> Ägypten | AR5: =IF($I$9>$K$9,3,IF($I$9<$K$9,0,IF($I$9="",0,IF($I$9=$K$9,1,""))))+IF($K$10>$I$10,3,IF($K$10<$I$10,0,IF($K$10="",0,IF($K$10=$I$10,1,""))))+IF($K$13>$I$13,3,IF($K$13<$I$13,0,IF($K$13="",0,IF($K$13=$I$13,1,"")))) -> 0 | AS5: =$K$10+$I$9+$K$13 -> 0 | AT5: =$K$9+$I$10+$I$13 -> 0 | AU5: =AS5-AT5 -> 0
A6: jeweiligen Gruppe. Falls der "Makro"-Befehl (z.B. ctrl+a) nicht funktioniert, | N6: müssen richtig getippt werden). | W6: Maximalpunktzahl 1200+600. | AG6: Verlierer | AI6: Verlierer | AP6: 3 | AQ6: =$B$10 -> Saudiarabien | AR6: =IF($K$8>$I$8,3,IF($K$8<$I$8,0,IF($K$8="",0,IF($I$8=$K$8,1,""))))+IF($I$11>$K$11,0,IF($I$11<$K$11,3,IF($I$11="",0,IF($I$11=$K$11,1,""))))+IF($I$13>$K$13,3,IF($I$13<$K$13,0,IF($I$13="",0,IF($I$13=$K$13,1,"")))) -> 0 | AS6: =$K$8+$I$13+$K$11 -> 0 | AT6: =$I$8+$I$11+$K$13 -> 0 | AU6: =AS6-AT6 -> 0
A7: trage die 1/8-Finalisten von Hand ein (gelbe Felder)! | N7: Wenn du die das Resultat einträgst, ergeben sich | W7: Achtung: Achtelsfinal-Nummer beachten! | AF7: Nr. | AG7: ½-Final 1 | AI7: ½-Final 2 | AJ7: Nr. | AP7: 4 | AQ7: =$B$12 -> Uruguay | AR7: =IF($K$9>$I$9,3,IF($K$9<$I$9,0,IF($K$9="",0,IF($I$9=$K$9,1,""))))+IF($I$11>$K$11,3,IF($I$11<$K$11,0,IF($I$11="",0,IF($I$11=$K$11,1,""))))+IF($K$12>$I$12,0,IF($K$12<$I$12,3,IF($K$12="",0,IF($K$12=$I$12,1,"")))) -> 0 | AS7: =$K$9+$I$11+$I$12 -> 0 | AT7: =$I$9+$K$11+$K$12 -> 0 | AU7: =AS7-AT7 -> 0
A8: A | C8: 14.6. | D8: 17:00 | E8: Russland | F8: - | G8: Saudiarabien | H8: 1 | J8: : | L8: =IF($I$8="","",IF($I$8>$K$8,1,IF($I$8<$K$8,2,IF($I$8=$K$8,"x")))) ->  | N8: automatisch die richtigen Viertelfinalisten! | AF8: 77 | AG8: =IF($AB$48=$AD$48,"",IF($AB$48<$AD$48,$X$48,$Z$48)) ->  | AH8: - | AI8: =IF($AB$54=$AD$54,"",IF($AB$54<$AD$54,$X$54,$Z$54)) ->  | AJ8: 78 | AL8: : | AP8: Rangliste sortieren mit "ctrl+a" | AV8: ok
B9: Russland | C9: 15.6. | D9: 14:00 | E9: Ägypten | F9: - | G9: Uruguay | H9: 2 | J9: : | L9: =IF($I$9="","",IF($I$9>$K$9,1,IF($I$9<$K$9,2,IF($I$9=$K$9,"x")))) ->  | X9: Viertelfinal 1
B10: Saudiarabien | C10: 19.6. | D10: 20:00 | E10: Russland | F10: - | G10: Ägypten | H10: 17 | J10: : | L10: =IF($I$10="","",IF($I$10>$K$10,1,IF($I$10<$K$10,2,IF($I$10=$K$10,"x")))) ->  | O10: Achtelfinal 1 | X10: 6.7./16:00 | AF10: 6. Sieger Kleiner Final | AP10: Rangliste Gruppe B | AR10: Pte. | AS10: +Tore | AT10: -Tore | AU10: Diff. | AV10: ABC
B11: Ägypten | C11: 20.6. | D11: 17:00 | E11: Uruguay | F11: - | G11: Saudiarabien | H11: 18 | J11: : | L11: =IF($I$11="","",IF($I$11>$K$11,1,IF($I$11<$K$11,2,IF($I$11=$K$11,"x")))) ->  | O11: 30.6./20:00 | X11: Sieger | Z11: Sieger | AF11: Wer wird Sieger des Kleinen Finals? 200 Punkte für den richtigen Tipp. | AP11: 1 | AQ11: =$B$17 -> Spanien | AR11: =IF($K$15>$I$15,3,IF($K$15<$I$15,0,IF($K$15="",0,IF($K$15=$I$15,1,""))))+IF($K$17>$I$17,3,IF($K$17<$I$17,0,IF($I$17="",0,IF($I$17=$K$17,1,""))))+IF($I$20>$K$20,3,IF($I$20<$K$20,0,IF($I$20="",0,IF($I$20=$K$20,1,"")))) -> 0 | AS11: =$K$15+$K$17+$I$20 -> 0 | AT11: =$I$15+$I$17+$K$20 -> 0 | AU11: =AS11-AT11 -> 0
B12: Uruguay | C12: 25.6. | D12: 16:00 | E12: Uruguay | F12: - | G12: Russland | H12: 33 | J12: : | L12: =IF($I$12="","",IF($I$12>$K$12,1,IF($I$12<$K$12,2,IF($I$12=$K$12,"x")))) ->  | N12: Nr. | O12: 1. Gruppe A | Q12: 2. Gruppe B | R12: Nr. | W12: Nr. | X12: Achtelfinal 1 | Z12: Achtelfinal 2 | AA12: Nr. | AF12: Nr. | AH12: S i e g e r K l e i n e r F i n a l 2 0 1 8 | AP12: 2 | AQ12: =$B$18 -> Marokko | AR12: =IF($K$16>$I$16,0,IF($K$16<$I$16,3,IF($K$16="",0,IF($I$16=$K$16,1,""))))+IF($I$18>$K$18,0,IF($I$18<$K$18,3,IF($I$18="",0,IF($I$18=$K$18,1,""))))+IF($K$20>$I$20,3,IF($K$20<$I$20,0,IF($K$20="",0,IF($K$20=$I$20,1,"")))) -> 0 | AS12: =$I$16+$K$18+$K$20 -> 0 | AT12: =$K$16+$I$18+$I$20 -> 0 | AU12: =AS12-AT12 -> 0
C13: 25.6. | D13: 16:00 | E13: Saudiarabien | F13: - | G13: Ägypten | H13: 34 | J13: : | L13: =IF($I$13="","",IF($I$13>$K$13,1,IF($I$13<$K$13,2,IF($I$13=$K$13,"x")))) ->  | N13: 49 | O13: =IF(K13="","",$AQ$4) ->  | P13: - | Q13: =IF(K20="","",$AQ$12) ->  | R13: 50 | T13: : | W13: 65 | X13: =IF($S$13=$U$13,"",IF($S$13>$U$13,$O$13,$Q$13)) ->  | Y13: - | Z13: =IF($S$20=$U$20,"",IF($S$20>$U$20,$O$20,$Q$20)) ->  | AA13: 66 | AC13: : | AF13: 79 | AG13: =IF($AM$8=$AK$8,"",IF($AK$8>$AM$8,$AG$8,$AI$8)) ->  | AP13: 3 | AQ13: =$B$16 -> Portugal | AR13: =IF($I$15>$K$15,3,IF($I$15<$K$15,0,IF($I$15="",0,IF($I$15=$K$15,1,""))))+IF($I$18>$K$18,3,IF($I$18<$K$18,0,IF($I$18="",0,IF($I$18=$K$18,1,""))))+IF($K$19>$I$19,3,IF($K$19<$I$19,0,IF($K$19="",0,IF($K$19=$I$19,1,"")))) -> 0 | AS13: =$I$15+$I$18+$K$19 -> 0 | AT13: =$K$15+$K$18+$I$19 -> 0 | AU13: =AS13-AT13 -> 0
A14: "ctrl +a" für die richtige Tabelle der Gruppe A (siehe Spalten AP ff.) | AP14: 4 | AQ14: =$B$19 -> Iran | AR14: =IF($I$16>$K$16,0,IF($I$16<$K$16,3,IF($I$16="",0,IF($I$16=$K$16,1,""))))+IF($K$17>$I$17,0,IF($K$17<$I$17,3,IF($K$17="",0,IF($K$17=$I$17,1,""))))+IF($K$19>$I$19,0,IF($K$19<$I$19,3,IF($K$19="",0,IF($K$19=$I$19,1,"")))) -> 0 | AS14: =$K$16+$I$17+$I$19 -> 0 | AT14: =$I$16+$K$17+$K$19 -> 0 | AU14: =AS14-AT14 -> 0
A15: B | C15: 15.6. | D15: 20:00 | E15: Portugal | F15: - | G15: Spanien | H15: 3 | J15: : | L15: =IF($I$15="","",IF($I$15>$K$15,1,IF($I$15<$K$15,2,IF($I$15=$K$15,"x")))) ->  | X15: Viertelfinal 2 | AF15: 7. Final | AP15: Rangliste sortieren mit "ctrl+b" | AV15: ok
B16: Portugal | C16: 15.6. | D16: 17:00 | E16: Marokko | F16: - | G16: Iran | H16: 4 | J16: : | L16: =IF($I$16="","",IF($I$16>$K$16,1,IF($I$16<$K$16,2,IF($I$16=$K$16,"x")))) ->  | X16: 6.7./20:00 | AF16: Welche Mannschaften erreicht den Final? 250 Punkte pro richtig gesetzte
B17: Spanien | C17: 20.6. | D17: 20:00 | E17: Iran | F17: - | G17: Spanien | H17: 19 | J17: : | L17: =IF($I$17="","",IF($I$17>$K$17,1,IF($I$17<$K$17,2,IF($I$17=$K$17,"x")))) ->  | O17: Achtelfinal 2 | X17: Sieger | Z17: Sieger | AF17: Mannschaft (Reihenfolge egal). 75 Punkte für richtig getipptes Resultat! | AP17: Rangliste Gruppe C | AR17: Pte. | AS17: +Tore | AT17: -Tore | AU17: Diff. | AV17: ABC
B18: Marokko | C18: 20.6. | D18: 14:00 | E18: Portugal | F18: - | G18: Marokko | H18: 20 | J18: : | L18: =IF($I$18="","",IF($I$18>$K$18,1,IF($I$18<$K$18,2,IF($I$18=$K$18,"x")))) ->  | O18: 30.6./16:00 | W18: Nr. | X18: Achtelfinal 5 | Z18: Achtelfinal 6 | AA18: Nr. | AF18: Maximalpunktzahl 500+75. | AP18: 1 | AQ18: =$B$23 -> Frankreich | AR18: =IF($I$22>$K$22,3,IF($I$22<$K$22,0,IF($I$22="",0,IF($I$22=$K$22,1,""))))+IF($I$26>$K$26,0,IF($I$26<$K$26,3,IF($I$26="",0,IF($I$26=$K$26,1,""))))+IF($K$24>$I$24,0,IF($K$24<$I$24,3,IF($K$24="",0,IF($K$24=$I$24,1,"")))) -> 0 | AS18: =$I$22+$I$24+$K$26 -> 0 | AT18: =$K$22+$K$24+$I$26 -> 0 | AU18: =AS18-AT18 -> 0
B19: Iran | C19: 25.6. | D19: 20:00 | E19: Iran | F19: - | G19: Portugal | H19: 35 | J19: : | L19: =IF($I$19="","",IF($I$19>$K$19,1,IF($I$19<$K$19,2,IF($I$19=$K$19,"x")))) ->  | N19: Nr. | O19: 1. Gruppe C | Q19: 2. Gruppe D | R19: Nr. | W19: 67 | X19: =IF($S$40=$U$40,"",IF($S$40>$U$40,$O$40,$Q$40)) ->  | Y19: - | Z19: =IF($S$47=$U$47,"",IF($S$47>$U$47,$O$47,$Q$47)) ->  | AA19: 68 | AC19: : | AG19: 15.7./17:00 | AP19: 2 | AQ19: =$B$24 -> Australien | AR19: =IF($K$22>$I$22,3,IF($K$22<$I$22,0,IF($K$22="",0,IF($K$22=$I$22,1,""))))+IF($I$25>$K$25,0,IF($I$25<$K$25,3,IF($I$25="",0,IF($I$25=$K$25,1,""))))+IF($I$27>$K$27,3,IF($I$27<$K$27,0,IF($I$27="",0,IF($I$27=$K$27,1,"")))) -> 0 | AS19: =$K$22+$K$25+$I$27 -> 0 | AT19: =$I$22+$I$25+$K$27 -> 0 | AU19: =AS19-AT19 -> 0
C20: 25.6. | D20: 20:00 | E20: Spanien | F20: - | G20: Marokko | H20: 36 | J20: : | L20: =IF($I$20="","",IF($I$20>$K$20,1,IF($I$20<$K$20,2,IF($I$20=$K$20,"x")))) ->  | N20: 51 | O20: =IF(K27="","",AQ18) ->  | P20: - | Q20: =IF(K34="","",$AQ$26) ->  | R20: 52 | T20: : | AG20: Sieger | AI20: Sieger | AP20: 3 | AQ20: =$B$25 -> Peru | AR20: =IF($K$23>$I$23,0,IF($K$23<$I$23,3,IF($K$23="",0,IF($K$23=$I$23,1,""))))+IF($I$24>$K$24,0,IF($I$24<$K$24,3,IF($I$24="",0,IF($I$24=$K$24,1,""))))+IF($K$27>$I$27,3,IF($K$27<$I$27,0,IF($K$27="",0,IF($K$27=$I$27,1,"")))) -> 0 | AS20: =$I$23+$K$24+$K$27 -> 0 | AT20: =$K$23+$I$24+$I$27 -> 0 | AU20: =AS20-AT20 -> 0
A21: "ctrl +b" für die richtige Tabelle der Gruppe B (siehe Spalten AP ff.) | X21: Viertelfinal 3 | AF21: Nr. | AG21: ½-Final 1 | AI21: ½-Final 2 | AJ21: Nr. | AP21: 4 | AQ21: =$B$26 -> Dänemark | AR21: =IF($I$23>$K$23,0,IF($I$23<$K$23,3,IF($I$23="",0,IF($I$23=$K$23,1,""))))+IF($K$25>$I$25,0,IF($K$25<$I$25,3,IF($K$25="",0,IF($I$25=$K$25,1,""))))+IF($K$26>$I$26,0,IF($K$26<$I$26,3,IF($K$26="",0,IF($K$26=$I$26,1,"")))) -> 0 | AS21: =$K$23+$I$25+$I$26 -> 0 | AT21: =$I$23+$K$25+$K$26 -> 0 | AU21: =AS21-AT21 -> 0
A22: C | C22: 16.6. | D22: 12:00 | E22: Frankreich | F22: - | G22: Australien | H22: 5 | J22: : | L22: =IF($I$22="","",IF($I$22>$K$22,1,IF($I$22<$K$22,2,IF($I$22=$K$22,"x")))) ->  | X22: 7.7./20:00 | AF22: 80 | AG22: =IF($AB$48=$AD$48,"",IF($AB$48>$AD$48,$X$48,$Z$48)) ->  | AH22: - | AI22: =IF($AB$54=$AD$54,"",IF($AB$54>$AD$54,$X$54,$Z$54)) ->  | AJ22: 81 | AL22: : | AP22: Rangliste sortieren mit "ctrl+q" | AV22: ok
B23: Frankreich | C23: 16.6. | D23: 18:00 | E23: Peru | F23: - | G23: Dänemark | H23: 6 | J23: : | L23: =IF($I$23="","",IF($I$23>$K$23,1,IF($I$23<$K$23,2,IF($I$23=$K$23,"x")))) ->  | X23: Sieger | Z23: Sieger
B24: Australien | C24: 21.6. | D24: 14:00 | E24: Frankreich | F24: - | G24: Peru | H24: 22 | J24: : | L24: =IF($I$24="","",IF($I$24>$K$24,1,IF($I$24<$K$24,2,IF($I$24=$K$24,"x")))) ->  | O24: Achtelfinal 3 | W24: Nr. | X24: Achtelfinal 3 | Z24: Achtelfinal 4 | AA24: Nr. | AF24: 8. Weltmeister | AP24: Rangliste Gruppe D | AR24: Pte. | AS24: +Tore | AT24: -Tore | AU24: Diff. | AV24: ABC
B25: Peru | C25: 21.6. | D25: 17:00 | E25: Dänemark | F25: - | G25: Australien | H25: 23 | J25: : | L25: =IF($I$25="","",IF($I$25>$K$25,1,IF($I$25<$K$25,2,IF($I$25=$K$25,"x")))) ->  | O25: 1.7./16:00 | W25: 69 | X25: =IF($S$27=$U$27,"",IF($S$27>$U$27,$O$27,$Q$27)) ->  | Y25: - | Z25: =IF($S$34=$U$34,"",IF($S$34>$U$34,$O$34,$Q$34)) ->  | AA25: 70 | AC25: : | AF25: Wer wird Weltmeister? 300 Punkte für den richtigen Tipp. | AP25: 1 | AQ25: =$B$31 -> Island | AR25: =IF($I$29>$K$29,0,IF($I$29<$K$29,3,IF($I$29="",0,IF($I$29=$K$29,1,""))))+IF($I$32>$K$32,0,IF($I$32<$K$32,3,IF($I$32="",0,IF($I$32=$K$32,1,""))))+IF($K$34>$I$34,0,IF($K$34<$I$34,3,IF($K$34="",0,IF($K$34=$I$34,1,"")))) -> 0 | AS25: =$K$29+$K$32+$I$34 -> 0 | AT25: =$I$29+$I$32+$K$34 -> 0 | AU25: =AS25-AT25 -> 0
B26: Dänemark | C26: 26.6. | D26: 16:00 | E26: Dänemark | F26: - | G26: Frankreich | H26: 37 | J26: : | L26: =IF($I$26="","",IF($I$26>$K$26,1,IF($I$26<$K$26,2,IF($I$26=$K$26,"x")))) ->  | N26: Nr. | O26: 1. Gruppe B | Q26: 2. Gruppe A | R26: Nr. | AF26: Nr. | AH26: W E L T M E I S T E R 2 0 1 8 | AP26: 2 | AQ26: =$B$30 -> Argentinien | AR26: =IF($K$31>$I$31,0,IF($K$31<$I$31,3,IF($K$31="",0,IF($I$31=$K$31,1,""))))+IF($I$33>$K$33,0,IF($I$33<$K$33,3,IF($I$33="",0,IF($I$33=$K$33,1,""))))+IF($I$29>$K$29,3,IF($I$29<$K$29,0,IF($I$29="",0,IF($I$29=$K$29,1,"")))) -> 0 | AS26: =$I$29+$I$31+$K$33 -> 0 | AT26: =$K$29+$K$31+$I$33 -> 0 | AU26: =AS26-AT26 -> 0
C27: 26.6. | D27: 16:00 | E27: Australien | F27: - | G27: Peru | H27: 38 | J27: : | L27: =IF($I$27="","",IF($I$27>$K$27,1,IF($I$27<$K$27,2,IF($I$27=$K$27,"x")))) ->  | N27: 53 | O27: =IF(K20="","",$AQ$11) ->  | P27: - | Q27: =IF(K13="","",$AQ$5) ->  | R27: 54 | T27: : | X27: Viertelfinal 4 | AF27: 82 | AG27: =IF($AM$22=$AK$22,"",IF($AK$22>$AM$22,$AG$22,$AI$22)) ->  | AP27: 3 | AQ27: =$B$33 -> Nigeria | AR27: =IF($K$30>$I$30,3,IF($K$30<$I$30,0,IF($K$30="",0,IF($K$30=$I$30,1,""))))+IF($I$32>$K$32,3,IF($I$32<$K$32,0,IF($I$32="",0,IF($I$32=$K$32,1,""))))+IF($K$33>$I$33,0,IF($K$33<$I$33,3,IF($K$33="",0,IF($K$33=$I$33,1,"")))) -> 0 | AS27: =$K$30+$I$32+$I$33 -> 0 | AT27: =$I$30+$K$32+$K$33 -> 0 | AU27: =AS27-AT27 -> 0
A28: "ctrl +q" für die richtige Tabelle der Gruppe C (siehe Spalten AP ff.) | X28: 7.7./16:00 | AP28: 4 | AQ28: =$B$32 -> Kroatien | AR28: =IF($I$30>$K$30,3,IF($I$30<$K$30,0,IF($I$30="",0,IF($I$30=$K$30,1,""))))+IF($K$31>$I$31,3,IF($K$31<$I$31,0,IF($K$31="",0,IF($I$31=$K$31,1,""))))+IF($I$34>$K$34,0,IF($I$34<$K$34,3,IF($I$34="",0,IF($I$34=$K$34,1,"")))) -> 0 | AS28: =$I$30+$K$31+$K$34 -> 0 | AT28: =$K$30+$I$31+$I$34 -> 0 | AU28: =AS28-AT28 -> 0
A29: D | C29: 16.6. | D29: 15:00 | E29: Argentinien | F29: - | G29: Island | H29: 7 | J29: : | L29: =IF($I$29="","",IF($I$29>$K$29,1,IF($I$29<$K$29,2,IF($I$29=$K$29,"x")))) ->  | X29: Sieger | Z29: Sieger | AF29: 9. Joker-Tip | AP29: Rangliste sortieren mit "ctrl+d" | AV29: ok
B30: Argentinien | C30: 16.6. | D30: 21:00 | E30: Kroatien | F30: - | G30: Nigeria | H30: 8 | J30: : | L30: =IF($I$30="","",IF($I$30>$K$30,1,IF($I$30<$K$30,2,IF($I$30=$K$30,"x")))) ->  | W30: Nr. | X30: Achtelfinal 7 | Z30: Achtelfinal 8 | AA30: Nr. | AF30: Wie viele Tore werden total an der WM 2018 erzielt (inkl. Penaltyschiessen)?
B31: Island | C31: 21.6. | D31: 20:00 | E31: Argentinien | F31: - | G31: Kroatien | H31: 21 | J31: : | L31: =IF($I$31="","",IF($I$31>$K$31,1,IF($I$31<$K$31,2,IF($I$31=$K$31,"x")))) ->  | O31: Achtelfinal 4 | W31: 71 | X31: =IF($S$54=$U$54,"",IF($S$54>$U$54,$O$54,$Q$54)) ->  | Y31: - | Z31: =IF($S$61=$U$61,"",IF($S$61>$U$61,$O$61,$Q$61)) ->  | AA31: 72 | AC31: : | AF31: Dieser Tip entscheidet bei gleicher Punktzahl mehrerer Teilnehmer/-innen. | AP31: Rangliste Gruppe E | AR31: Pte. | AS31: +Tore | AT31: -Tore | AU31: Diff. | AV31: ABC
B32: Kroatien | C32: 22.6. | D32: 17:00 | E32: Nigeria | F32: - | G32: Island | H32: 24 | J32: : | L32: =IF($I$32="","",IF($I$32>$K$32,1,IF($I$32<$K$32,2,IF($I$32=$K$32,"x")))) ->  | O32: 1.7./20:00 | AP32: 1 | AQ32: =$B$39 -> Costa Rica | AR32: =IF($K$37>$I$37,0,IF($K$37<$I$37,3,IF($K$37="",0,IF($I$37=$K$37,1,""))))+IF($I$38>$K$38,0,IF($I$38<$K$38,3,IF($I$38="",0,IF($I$38=$K$38,1,""))))+IF($I$41>$K$41,0,IF($I$41<$K$41,3,IF($I$41="",0,IF($I$41=$K$41,1,"")))) -> 0 | AS32: =$I$37+$K$38+$K$41 -> 0 | AT32: =$K$37+$I$38+$I$41 -> 0 | AU32: =AS32-AT32 -> 0
B33: Nigeria | C33: 26.6. | D33: 20:00 | E33: Nigeria | F33: - | G33: Argentinien | H33: 39 | J33: : | L33: =IF($I$33="","",IF($I$33>$K$33,1,IF($I$33<$K$33,2,IF($I$33=$K$33,"x")))) ->  | N33: Nr. | O33: 1. Gruppe D | Q33: 2. Gruppe C | R33: Nr. | AF33: 10. Personalien | AN33: =IF(I8="","",SUM(I8:I63)+SUM(K8:K63)+SUM(S13:S62)+SUM(U13:U62)+SUM(AB13:AB55)+SUM(AD13:AD55)+AK8+AM8+AK22+AM22) ->  | AP33: 2 | AQ33: =$B$37 -> Brasilien | AR33: =IF($I$36>$K$36,3,IF($I$36<$K$36,0,IF($I$36="",0,IF($I$36=$K$36,1,""))))+IF($I$38>$K$38,3,IF($I$38<$K$38,0,IF($I$38="",0,IF($I$38=$K$38,1,""))))+IF($K$40>$I$40,3,IF($K$40<$I$40,0,IF($K$40="",0,IF($K$40=$I$40,1,"")))) -> 0 | AS33: =$I$36+$I$38+$K$40 -> 0 | AT33: =$K$36+$K$38+$I$40 -> 0 | AU33: =AS33-AT33 -> 0
C34: 26.6. | D34: 20:00 | E34: Island | F34: - | G34: Kroatien | H34: 40 | J34: : | L34: =IF($I$34="","",IF($I$34>$K$34,1,IF($I$34<$K$34,2,IF($I$34=$K$34,"x")))) ->  | N34: 55 | O34: =IF(K34="","",$AQ$25) ->  | P34: - | Q34: =IF(K27="","",$AQ$19) ->  | R34: 56 | T34: : | AP34: 3 | AQ34: =$B$38 -> Schweiz | AR34: =IF($K$36>$I$36,3,IF($K$36<$I$36,0,IF($K$36="",0,IF($I$36=$K$36,1,""))))+IF($I$39>$K$39,0,IF($I$39<$K$39,3,IF($I$39="",0,IF($I$39=$K$39,1,""))))+IF($K$41>$I$41,0,IF($K$41<$I$41,3,IF($K$41="",0,IF($K$41=$I$41,1,"")))) -> 0 | AS34: =$K$36+$K$39+$I$41 -> 0 | AT34: =$I$36+$I$39+$K$41 -> 0 | AU34: =AS34-AT34 -> 0
A35: "ctrl +d" für die richtige Tabelle der Gruppe D (siehe Spalten AP ff.) | AG35: Name/Vorname: | AP35: 4 | AQ35: =$B$40 -> Serbien | AR35: =IF($I$37>$K$37,0,IF($I$37<$K$37,3,IF($I$37="",0,IF($I$37=$K$37,1,""))))+IF($K$39>$I$39,0,IF($K$39<$I$39,3,IF($K$39="",0,IF($K$39=$I$39,1,""))))+IF($K$40>$I$40,0,IF($K$40<$I$40,3,IF($K$40="",0,IF($I$40=$K$40,1,"")))) -> 0 | AS35: =$K$37+$I$39+$I$40 -> 0 | AT35: =$I$37+$K$39+$K$40 -> 0 | AU35: =AS35-AT35 -> 0
A36: E | C36: 17.6. | D36: 20:00 | E36: Brasilien | F36: - | G36: Schweiz | H36: 9 | J36: : | L36: =IF($I$36="","",IF($I$36>$K$36,1,IF($I$36<$K$36,2,IF($I$36=$K$36,"x")))) ->  | W36: 4. Halbfinal | AG36: Adresse: | AP36: Rangliste sortieren mit "ctrl+e" | AV36: ok
B37: Brasilien | C37: 17.6. | D37: 14:00 | E37: Costa Rica | F37: - | G37: Serbien | H37: 10 | J37: : | L37: =IF($I$37="","",IF($I$37>$K$37,1,IF($I$37<$K$37,2,IF($I$37=$K$37,"x")))) ->  | O37: Achtelfinal 5 | W37: Welche Mannschaften erreichen den Halbfinal. | AG37: PLZ/Ort:
B38: Schweiz | C38: 22.6. | D38: 14:00 | E38: Brasilien | F38: - | G38: Costa Rica | H38: 25 | J38: : | L38: =IF($I$38="","",IF($I$38>$K$38,1,IF($I$38<$K$38,2,IF($I$38=$K$38,"x")))) ->  | O38: 2.7./16:00 | W38: 200 Punkte pro richtig gesetzte Mannschaft (nur an | AG38: Telefon: | AP38: Rangliste Gruppe F | AR38: Pte. | AS38: +Tore | AT38: -Tore | AU38: Diff. | AV38: ABC
B39: Costa Rica | C39: 22.6. | D39: 20:00 | E39: Serbien | F39: - | G39: Schweiz | H39: 26 | J39: : | L39: =IF($I$39="","",IF($I$39>$K$39,1,IF($I$39<$K$39,2,IF($I$39=$K$39,"x")))) ->  | N39: Nr. | O39: 1. Gruppe E | Q39: 2. Gruppe F | R39: Nr. | W39: richtiger Stelle gesetzte Mannschaften zählen). | AG39: e-mail: | AP39: 1 | AQ39: =$B$44 -> Deutschland | AR39: =IF($I$43>$K$43,3,IF($I$43<$K$43,0,IF($I$43="",0,IF($I$43=$K$43,1,""))))+IF($I$45>$K$45,3,IF($I$45<$K$45,0,IF($K$45="",0,IF($I$45=$K$45,1,""))))+IF($K$47>$I$47,3,IF($K$47<$I$47,0,IF($K$47="",0,IF($K$47=$I$47,1,"")))) -> 0 | AS39: =$I$43+$I$45+$K$47 -> 0 | AT39: =$K$43+$K$45+$I$47 -> 0 | AU39: =AS39-AT39 -> 0
B40: Serbien | C40: 27.6. | D40: 20:00 | E40: Serbien | F40: - | G40: Brasilien | H40: 43 | J40: : | L40: =IF($I$40="","",IF($I$40>$K$40,1,IF($I$40<$K$40,2,IF($I$40=$K$40,"x")))) ->  | N40: 57 | O40: =IF(K41="","",$AQ$32) ->  | P40: - | Q40: =IF(K48="","",$AQ$40) ->  | R40: 58 | T40: : | W40: 75 Punkte für richtig getipptes Resultat! | AP40: 2 | AQ40: =$B$47 -> Südkorea | AR40: =IF($I$44>$K$44,0,IF($I$44<$K$44,3,IF($I$44="",0,IF($I$44=$K$44,1,""))))+IF($K$46>$I$46,0,IF($K$46<$I$46,3,IF($K$46="",0,IF($K$46=$I$46,1,""))))+IF($I$47>$K$47,3,IF($I$47<$K$47,0,IF($I$47="",0,IF($I$47=$K$47,1,"")))) -> 0 | AS40: =$K$44+$I$46+$I$47 -> 0 | AT40: =$I$44+$K$46+$K$47 -> 0 | AU40: =AS40-AT40 -> 0
C41: 27.6. | D41: 20:00 | E41: Schweiz | F41: - | G41: Costa Rica | H41: 44 | J41: : | L41: =IF($I$41="","",IF($I$41>$K$41,1,IF($I$41<$K$41,2,IF($I$41=$K$41,"x")))) ->  | W41: Maximalpunktzahl 800+300. | AP41: 3 | AQ41: =$B$45 -> Mexiko | AR41: =IF($K$43>$I$43,3,IF($K$43<$I$43,0,IF($K$43="",0,IF($K$43=$I$43,1,""))))+IF($I$46>$K$46,0,IF($I$46<$K$46,3,IF($I$46="",0,IF($I$46=$K$46,1,""))))+IF($K$48>$I$48,0,IF($K$48<$I$48,3,IF($K$48="",0,IF($I$48=$K$48,1,"")))) -> 0 | AS41: =$K$43+$K$46+$I$48 -> 0 | AT41: =$I$43+$I$46+$K$48 -> 0 | AU41: =AS41-AT41 -> 0
A42: "ctrl +e" für die richtige Tabelle der Gruppe E (siehe Spalten AP ff.) | W42: Achtung: Viertelsfinals-Nummern beachten! | AP42: 4 | AQ42: =$B$46 -> Schweden | AR42: =IF($K$44>$I$44,0,IF($K$44<$I$44,3,IF($K$44="",0,IF($I$44=$K$44,1,""))))+IF($I$45>$K$45,0,IF($I$45<$K$45,3,IF($I$45="",0,IF($I$45=$K$45,1,""))))+IF($K$48>$I$48,3,IF($K$48<$I$48,0,IF($K$48="",0,IF($K$48=$I$48,1,"")))) -> 0 | AS42: =$I$44+$K$45+$K$48 -> 0 | AT42: =$K$44+$I$45+$I$48 -> 0 | AU42: =AS42-AT42 -> 0
A43: F | C43: 17.6. | D43: 17:00 | E43: Deutschland | F43: - | G43: Mexiko | H43: 11 | J43: : | L43: =IF($I$43="","",IF($I$43>$K$43,1,IF($I$43<$K$43,2,IF($I$43=$K$43,"x")))) ->  | AP43: Rangliste sortieren mit "ctrl+i" | AV43: ok
B44: Deutschland | C44: 18.6. | D44: 14:00 | E44: Schweden | F44: - | G44: Südkorea | H44: 12 | J44: : | L44: =IF($I$44="","",IF($I$44>$K$44,1,IF($I$44<$K$44,2,IF($I$44=$K$44,"x")))) ->  | O44: Achtelfinal 6 | X44: ½-Final 1
B45: Mexiko | C45: 23.6. | D45: 17:00 | E45: Deutschland | F45: - | G45: Schweden | H45: 27 | J45: : | L45: =IF($I$45="","",IF($I$45>$K$45,1,IF($I$45<$K$45,2,IF($I$45=$K$45,"x")))) ->  | O45: 2.7./20:00 | X45: 10.7./20:00 | AP45: Rangliste Gruppe G | AR45: Pte. | AS45: +Tore | AT45: -Tore | AU45: Diff. | AV45: ABC
B46: Schweden | C46: 23.6. | D46: 20:00 | E46: Südkorea | F46: - | G46: Mexiko | H46: 28 | J46: : | L46: =IF($I$46="","",IF($I$46>$K$46,1,IF($I$46<$K$46,2,IF($I$46=$K$46,"x")))) ->  | N46: Nr. | O46: 1. Gruppe G | Q46: 2. Gruppe H | R46: Nr. | X46: Sieger | Z46: Sieger | AP46: 1 | AQ46: =$B$51 -> Belgien | AR46: =IF($K$52>$I$52,0,IF($K$52<$I$52,3,IF($K$52="",0,IF($I$52=$K$52,1,""))))+IF($K$54>$I$54,3,IF($K$54<$I$54,0,IF($K$54="",0,IF($I$54=$K$54,1,""))))+IF($I$50>$K$50,3,IF($I$50<$K$50,0,IF($I$50="",0,IF($I$50=$K$50,1,"")))) -> 0 | AS46: =$I$50+$I$52+$K$54 -> 0 | AT46: =$K$50+$K$52+$I$54 -> 0 | AU46: =AS46-AT46 -> 0
B47: Südkorea | C47: 27.6. | D47: 16:00 | E47: Südkorea | F47: - | G47: Deutschland | H47: 41 | J47: : | L47: =IF($I$47="","",IF($I$47>$K$47,1,IF($I$47<$K$47,2,IF($I$47=$K$47,"x")))) ->  | N47: 59 | O47: =IF(K55="","",$AQ$46) ->  | P47: - | Q47: =IF(K62="","",$AQ$54) ->  | R47: 60 | T47: : | W47: Nr. | X47: ¼-Final 1 | Z47: ¼-Final 2 | AA47: Nr. | AP47: 2 | AQ47: =$B$54 -> England | AR47: =IF($K$53>$I$53,0,IF($K$53<$I$53,3,IF($K$53="",0,IF($K$53=$I$53,1,""))))+IF($I$54>$K$54,3,IF($I$54<$K$54,0,IF($I$54="",0,IF($I$54=$K$54,1,""))))+IF($I$51>$K$51,0,IF($I$51<$K$51,3,IF($I$51="",0,IF($K$51=$I$51,1,"")))) -> 0 | AS47: =$K$51+$I$53+$I$54 -> 0 | AT47: =$I$51+$K$53+$K$54 -> 0 | AU47: =AS47-AT47 -> 0
C48: 27.6. | D48: 16:00 | E48: Mexiko | F48: - | G48: Schweden | H48: 42 | J48: : | L48: =IF($I$48="","",IF($I$48>$K$48,1,IF($I$48<$K$48,2,IF($I$48=$K$48,"x")))) ->  | W48: 73 | X48: =IF($AB$13=$AD$13,"",IF($AB$13>$AD$13,$X$13,$Z$13)) ->  | Y48: - | Z48: =IF($AB$19=$AD$19,"",IF($AB$19>$AD$19,$X$19,$Z$19)) ->  | AA48: 74 | AC48: : | AP48: 3 | AQ48: =$B$52 -> Panama | AR48: =IF($I$50>$K$50,0,IF($I$50<$K$50,3,IF($I$50="",0,IF($I$50=$K$50,1,""))))+IF($I$53>$K$53,0,IF($I$53<$K$53,3,IF($I$53="",0,IF($K$53=$I$53,1,""))))+IF($K$55>$I$55,0,IF($K$55<$I$55,3,IF($K$55="",0,IF($K$55=$I$55,1,"")))) -> 0 | AS48: =$K$50+$K$53+$I$55 -> 0 | AT48: =$I$50+$I$53+$K$55 -> 0 | AU48: =AS48-AT48 -> 0
A49: "ctrl +i" für die richtige Tabelle der Gruppe F (siehe Spalten AP ff.) | AP49: 4 | AQ49: =$B$53 -> Tunesien | AR49: =IF($K$51>$I$51,0,IF($K$51<$I$51,3,IF($K$51="",0,IF($K$51=$I$51,1,""))))+IF($I$52>$K$52,0,IF($I$52<$K$52,3,IF($I$52="",0,IF($I$52=$K$52,1,""))))+IF($K$55>$I$55,3,IF($K$55<$I$55,0,IF($K$55="",0,IF($I$55=$K$55,1,"")))) -> 0 | AS49: =$K$52+$I$51+$K$55 -> 0 | AT49: =$K$51+$I$52+$I$55 -> 0 | AU49: =AS49-AT49 -> 0
A50: G | C50: 18.6. | D50: 17:00 | E50: Belgien | F50: - | G50: Panama | H50: 13 | J50: : | L50: =IF($I$50="","",IF($I$50>$K$50,1,IF($I$50<$K$50,2,IF($I$50=$K$50,"x")))) ->  | X50: ½-Final 2 | AP50: Rangliste sortieren mit "ctrl+g" | AV50: ok
B51: Belgien | C51: 18.6. | D51: 20:00 | E51: Tunesien | F51: - | G51: England | H51: 14 | J51: : | L51: =IF($I$51="","",IF($I$51>$K$51,1,IF($I$51<$K$51,2,IF($I$51=$K$51,"x")))) ->  | O51: Achtelfinal 7 | X51: 11.7./20:00
B52: Panama | C52: 23.6 | D52: 14:00 | E52: Belgien | F52: - | G52: Tunesien | H52: 29 | J52: : | L52: =IF($I$52="","",IF($I$52>$K$52,1,IF($I$52<$K$52,2,IF($I$52=$K$52,"x")))) ->  | O52: 3.7./16:00 | X52: Sieger | Z52: Sieger | AP52: Rangliste Gruppe H | AR52: Pte. | AS52: +Tore | AT52: -Tore | AU52: Diff. | AV52: ABC
B53: Tunesien | C53: 24.6. | D53: 14:00 | E53: England | F53: - | G53: Panama | H53: 30 | J53: : | L53: =IF($I$53="","",IF($I$53>$K$53,1,IF($I$53<$K$53,2,IF($I$53=$K$53,"x")))) ->  | N53: Nr. | O53: 1. Gruppe F | Q53: 2. Gruppe E | R53: Nr. | W53: Nr. | X53: ¼-Final 3 | Z53: ¼-Final 4 | AA53: Nr. | AP53: 1 | AQ53: =$B$58 -> Polen | AR53: =IF($I$57>$K$57,3,IF($I$57<$K$57,0,IF($I$57="",0,IF($I$57=$K$57,1,""))))+IF($I$60>$K$60,3,IF($I$60<$K$60,0,IF($I$60="",0,IF($I$60=$K$60,1,""))))+IF($K$61>$I$61,3,IF($K$61<$I$61,0,IF($K$61="",0,IF($K$61=$I$61,1,"")))) -> 0 | AS53: =$I$57+$K$61+$I$60 -> 0 | AT53: =$K$57+$K$60+$I$61 -> 0 | AU53: =AS53-AT53 -> 0
B54: England | C54: 28.6. | D54: 20:00 | E54: England | F54: - | G54: Belgien | H54: 45 | L54: =IF($I$54="","",IF($I$54>$K$54,1,IF($I$54<$K$54,2,IF($I$54=$K$54,"x")))) ->  | N54: 61 | O54: =IF(K48="","",$AQ$39) ->  | P54: - | Q54: =IF(K41="","",$AQ$33) ->  | R54: 62 | T54: : | W54: 75 | X54: =IF($AB$25=$AD$25,"",IF($AB$25>$AD$25,$X$25,$Z$25)) ->  | Y54: - | Z54: =IF($AB$31=$AD$31,"",IF($AB$31>$AD$31,$X$31,$Z$31)) ->  | AA54: 76 | AC54: : | AP54: 2 | AQ54: =$B$59 -> Senegal | AR54: =IF($K$57>$I$57,3,IF($K$57<$I$57,0,IF($K$57="",0,IF($I$57=$K$57,1,""))))+IF($K$59>$I$59,3,IF($K$59<$I$59,0,IF($K$59="",0,IF($I$59=$K$59,1,""))))+IF($I$62>$K$62,3,IF($I$62<$K$62,0,IF($I$62="",0,IF($I$62=$K$62,1,"")))) -> 0 | AS54: =$K$57+$K$59+$I$62 -> 0 | AT54: =$I$57+$I$59+$K$62 -> 0 | AU54: =AS54-AT54 -> 0
C55: 28.6. | D55: 20:00 | E55: Panama | F55: - | G55: Tunesien | H55: 46 | L55: =IF($I$55="","",IF($I$55>$K$55,1,IF($I$55<$K$55,2,IF($I$55=$K$55,"x")))) ->  | AP55: 3 | AQ55: =$B$60 -> Kolumbien | AR55: =IF($I$58>$K$58,3,IF($I$58<$K$58,0,IF($I$58="",0,IF($I$58=$K$58,1,""))))+IF($K$60>$I$60,3,IF($K$60<$I$60,0,IF($K$60="",0,IF($I$60=$K$60,1,""))))+IF($K$62>$I$62,3,IF($K$62<$I$62,0,IF($K$62="",0,IF($I$62=$K$62,1,"")))) -> 0 | AS55: =$I$58+$K$60+$K$62 -> 0 | AT55: =$K$58+$I$60+$I$62 -> 0 | AU55: =AS55-AT55 -> 0
A56: "ctrl +g" für die richtige Tabelle der Gruppe G (siehe Spalten AP ff.) | AP56: 4 | AQ56: =$B$61 -> Japan | AR56: =IF($K$58>$I$58,3,IF($K$58<$I$58,0,IF($K$58="",0,IF($K$58=$I$58,1,""))))+IF($I$59>$K$59,3,IF($I$59<$K$59,0,IF($I$59="",0,IF($I$59=$K$59,1,""))))+IF($I$61>$K$61,3,IF($I$61<$K$61,0,IF($I$61="",0,IF($K$61=$I$61,1,"")))) -> 0 | AS56: =$K$58+$I$59+$I$61 -> 0 | AT56: =$I$58+$K$59+$K$61 -> 0 | AU56: =AS56-AT56 -> 0
A57: H | C57: 19.6. | D57: 14:00 | E57: Polen | F57: - | G57: Senegal | H57: 15 | J57: : | L57: =IF($I$57="","",IF($I$57>$K$57,1,IF($I$57<$K$57,2,IF($I$57=$K$57,"x")))) ->  | AP57: Rangliste sortieren mit "ctrl+h"
B58: Polen | C58: 19.6. | D58: 17:00 | E58: Kolumbien | F58: - | G58: Japan | H58: 16 | J58: : | L58: =IF($I$58="","",IF($I$58>$K$58,1,IF($I$58<$K$58,2,IF($I$58=$K$58,"x")))) ->  | O58: Achtelfinal 8
B59: Senegal | C59: 24.6. | D59: 17:00 | E59: Japan | F59: - | G59: Senegal | H59: 31 | J59: : | L59: =IF($I$59="","",IF($I$59>$K$59,1,IF($I$59<$K$59,2,IF($I$59=$K$59,"x")))) ->  | O59: 3.7./20:00 | AP59: Umgekehrte Finals
B60: Kolumbien | C60: 24.6. | D60: 20:00 | E60: Polen | F60: - | G60: Kolumbien | H60: 32 | J60: : | L60: =IF($I$60="","",IF($I$60>$K$60,1,IF($I$60<$K$60,2,IF($I$60=$K$60,"x")))) ->  | N60: Nr. | O60: 1. Gruppe H | Q60: 2. Gruppe G | R60: Nr.
B61: Japan | C61: 28.6. | D61: 16:00 | E61: Japan | F61: - | G61: Polen | H61: 47 | J61: : | L61: =IF($I$61="","",IF($I$61>$K$61,1,IF($I$61<$K$61,2,IF($I$61=$K$61,"x")))) ->  | N61: 63 | O61: =IF(K62="","",$AQ$53) ->  | P61: - | Q61: =IF(K55="","",$AQ$47) ->  | R61: 64 | T61: :
C62: 28.6. | D62: 16:00 | E62: Senegal | F62: - | G62: Kolumbien | H62: 48 | J62: : | L62: =IF($I$62="","",IF($I$62>$K$62,1,IF($I$62<$K$62,2,IF($I$62=$K$62,"x")))) -> 
A63: "ctrl +h" für die richtige Tabelle der Gruppe H (siehe Spalten AP ff.)

Sheet Auswertung
A1: WM 2018-TIPPSPIEL-AUSWERTUNG | P1: 25.06.2018, 18:00 | BK1: Achtelsfinalisten | CA1: Viertelsfinalisten | CI1: Halbfinalisten | CQ1: Kleines Final | CW1: Grosses Final | DB1: WM | DC1: Tore
E2: Total | F2: Vor- | G2: 1/8- | H2: 1/4- | I2: 1/2- | J2: Kl. | K2: Gr. | L2: WM | M2: Tore | N2: Tore | O2: 1 | P2: 2 | Q2: 3 | R2: 4 | S2: 5 | T2: 6 | U2: 7 | V2: 8 | W2: 9 | X2: 10 | Y2: 11 | Z2: 12 | AA2: 13 | AB2: 14 | AC2: 15 | AD2: 16 | AE2: 17 | AF2: 18 | AG2: 19 | AH2: 20 | AI2: 21 | AJ2: 22 | AK2: 23 | AL2: 24 | AM2: 25 | AN2: 26 | AO2: 27 | AP2: 28 | AQ2: 29 | AR2: 30 | AS2: 31 | AT2: 32 | AU2: 33 | AV2: 34 | AW2: 35 | AX2: 36 | AY2: 37 | AZ2: 38 | BA2: 39 | BB2: 40 | BC2: 41 | BD2: 42 | BE2: 43 | BF2: 44 | BG2: 45 | BH2: 46 | BI2: 47 | BJ2: 48 | BK2: 49 | BL2: 50 | BM2: 51 | BN2: 52 | BO2: 53 | BP2: 54 | BQ2: 55 | BR2: 56 | BS2: 57 | BT2: 58 | BU2: 59 | BV2: 60 | BW2: 61 | BX2: 62 | BY2: 63 | BZ2: 64 | CA2: 65 | CB2: 66 | CC2: 67 | CD2: 68 | CE2: 69 | CF2: 70 | CG2: 71 | CH2: 72 | CI2: 73 | CK2: 74 | CM2: 75 | CO2: 76 | CQ2: 77 | CS2: 78 | CU2: 79 | CW2: 80 | CZ2: 81 | DA2: 82 | DC2: 83
A3: Rang | B3: Start | C3: Name/Tipp-Nr. | D3: Name/Tipp-Nr. | E3: Pte. | F3: runde | G3: Final | H3: Final | I3: Final | J3: Final | K3: Final | N3: Anzahl | O3: 75 | P3: 75 | Q3: 75 | R3: 75 | S3: 75 | T3: 75 | U3: 75 | V3: 75 | W3: 75 | X3: 75 | Y3: 75 | Z3: 75 | AA3: 75 | AB3: 75 | AC3: 75 | AD3: 75 | AE3: 75 | AF3: 75 | AG3: 75 | AH3: 75 | AI3: 75 | AJ3: 75 | AK3: 75 | AL3: 75 | AM3: 75 | AN3: 75 | AO3: 75 | AP3: 75 | AQ3: 75 | AR3: 75 | AS3: 75 | AT3: 75 | AU3: 75 | AV3: 75 | AW3: 75 | AX3: 75 | AY3: 75 | AZ3: 75 | BA3: 75 | BB3: 75 | BC3: 75 | BD3: 75 | BE3: 75 | BF3: 75 | BG3: 75 | BH3: 75 | BI3: 75 | BJ3: 75 | BK3: 100 | BL3: 100 | BM3: 100 | BN3: 100 | BO3: 100 | BP3: 100 | BQ3: 100 | BR3: 100 | BS3: 100 | BT3: 100 | BU3: 100 | BV3: 100 | BW3: 100 | BX3: 100 | BY3: 100 | BZ3: 100 | CA3: 150 | CB3: 150 | CC3: 150 | CD3: 150 | CE3: 150 | CF3: 150 | CG3: 150 | CH3: 150 | CJ3: 200 | CL3: 200 | CN3: 200 | CP3: 200 | CR3: 100 | CT3: 100 | CV3: 200 | CX3: 250 | CZ3: 250 | DB3: 300 | DC3: 1
B4: Nr. | C4: Startnummer: ctrl+y | D4: ctrl+y | F4: Pte. | G4: Pte. | H4: Pte. | I4: Pte. | J4: Pte. | K4: Pte. | L4: Pte. | M4: Pte.
C5: Rangliste: ctrl+x | D5: ctrl+x
A6: 1 | B6: 24 | C6: ='24'!$AH$35 -> Gattlen Alain 1 | D6: ='24'!$AH$39 -> alain.gattlen@gmx.ch | E6: =SUM(F6:M6) -> 2450 | F6: =SUM(O6:BJ6) -> 2250 | G6: =SUM(BK6:BZ6) -> 200 | H6: =SUM(CA6:CH6) -> 0 | I6: =SUM(CJ6:CP6) -> 0 | J6: =SUM(CR6:CV6) -> 0 | K6: =SUM(CX6:CZ6) -> 0 | L6: =DB6 -> 0 | M6: =IF(DC6="",0,DC6) -> 0 | N6: ='24'!$AN$33 -> 167 | O6: =IF(Resultate!$K$8="",0,IF('24'!$L$8=Resultate!$L$8,75,0)+IF(AND(Resultate!$I$8='24'!$I$8,Resultate!$K$8='24'!$K$8)=TRUE,75,0)) -> 75 | P6: =IF(Resultate!$K$9="",0,IF('24'!$L$9=Resultate!$L$9,75,0)+IF(AND(Resultate!$I$9='24'!$I$9,Resultate!$K$9='24'!$K$9)=TRUE,75,0)) -> 75 | Q6: =IF(Resultate!$K$15="",0,IF('24'!$L$15=Resultate!$L$15,75,0)+IF(AND(Resultate!$I$15='24'!$I$15,Resultate!$K$15='24'!$K$15)=TRUE,75,0)) -> 0 | R6: =IF(Resultate!$K$16="",0,IF('24'!$L$16=Resultate!$L$16,75,0)+IF(AND(Resultate!$I$16='24'!$I$16,Resultate!$K$16='24'!$K$16)=TRUE,75,0)) -> 0 | S6: =IF(Resultate!$K$22="",0,IF('24'!$L$22=Resultate!$L$22,75,0)+IF(AND(Resultate!$I$22='24'!$I$22,Resultate!$K$22='24'!$K$22)=TRUE,75,0)) -> 150 | T6: =IF(Resultate!$K$23="",0,IF('24'!$L$23=Resultate!$L$23,75,0)+IF(AND(Resultate!$I$23='24'!$I$23,Resultate!$K$23='24'!$K$23)=TRUE,75,0)) -> 75 | U6: =IF(Resultate!$K$29="",0,IF('24'!$L$29=Resultate!$L$29,75,0)+IF(AND(Resultate!$I$29='24'!$I$29,Resultate!$K$29='24'!$K$29)=TRUE,75,0)) -> 0 | V6: =IF(Resultate!$K$30="",0,IF('24'!$L$30=Resultate!$L$30,75,0)+IF(AND(Resultate!$I$30='24'!$I$30,Resultate!$K$30='24'!$K$30)=TRUE,75,0)) -> 150 | W6: =IF(Resultate!$K$36="",0,IF('24'!$L$36=Resultate!$L$36,75,0)+IF(AND(Resultate!$I$36='24'!$I$36,Resultate!$K$36='24'!$K$36)=TRUE,75,0)) -> 0 | X6: =IF(Resultate!$K$37="",0,IF('24'!$L$37=Resultate!$L$37,75,0)+IF(AND(Resultate!$I$37='24'!$I$37,Resultate!$K$37='24'!$K$37)=TRUE,75,0)) -> 75 | Y6: =IF(Resultate!$K$43="",0,IF('24'!$L$43=Resultate!$L$43,75,0)+IF(AND(Resultate!$I$43='24'!$I$43,Resultate!$K$43='24'!$K$43)=TRUE,75,0)) -> 0 | Z6: =IF(Resultate!$K$44="",0,IF('24'!$L$44=Resultate!$L$44,75,0)+IF(AND(Resultate!$I$44='24'!$I$44,Resultate!$K$44='24'!$K$44)=TRUE,75,0)) -> 75 | AA6: =IF(Resultate!$K$50="",0,IF('24'!$L$50=Resultate!$L$50,75,0)+IF(AND(Resultate!$I$50='24'!$I$50,Resultate!$K$50='24'!$K$50)=TRUE,75,0)) -> 75 | AB6: =IF(Resultate!$K$51="",0,IF('24'!$L$51=Resultate!$L$51,75,0)+IF(AND(Resultate!$I$51='24'!$I$51,Resultate!$K$51='24'!$K$51)=TRUE,75,0)) -> 150 | AC6: =IF(Resultate!$K$57="",0,IF('24'!$L$57=Resultate!$L$57,75,0)+IF(AND(Resultate!$I$57='24'!$I$57,Resultate!$K$57='24'!$K$57)=TRUE,75,0)) -> 0 | AD6: =IF(Resultate!$K$58="",0,IF('24'!$L$58=Resultate!$L$58,75,0)+IF(AND(Resultate!$I$58='24'!$I$58,Resultate!$K$58='24'!$K$58)=TRUE,75,0)) -> 150 | AE6: =IF(Resultate!$K$10="",0,IF('24'!$L$10=Resultate!$L$10,75,0)+IF(AND(Resultate!$I$10='24'!$I$10,Resultate!$K$10='24'!$K$10)=TRUE,75,0)) -> 75 | AF6: =IF(Resultate!$K$11="",0,IF('24'!$L$11=Resultate!$L$11,75,0)+IF(AND(Resultate!$I$11='24'!$I$11,Resultate!$K$11='24'!$K$11)=TRUE,75,0)) -> 75 | AG6: =IF(Resultate!$K$17="",0,IF('24'!$L$17=Resultate!$L$17,75,0)+IF(AND(Resultate!$I$17='24'!$I$17,Resultate!$K$17='24'!$K$17)=TRUE,75,0)) -> 75 | AH6: =IF(Resultate!$K$18="",0,IF('24'!$L$18=Resultate!$L$18,75,0)+IF(AND(Resultate!$I$18='24'!$I$18,Resultate!$K$18='24'!$K$18)=TRUE,75,0)) -> 75 | AI6: =IF(Resultate!$K$31="",0,IF('24'!$L$31=Resultate!$L$31,75,0)+IF(AND(Resultate!$I$31='24'!$I$31,Resultate!$K$31='24'!$K$31)=TRUE,75,0)) -> 0 | AJ6: =IF(Resultate!$K$24="",0,IF('24'!$L$24=Resultate!$L$24,75,0)+IF(AND(Resultate!$I$24='24'!$I$24,Resultate!$K$24='24'!$K$24)=TRUE,75,0)) -> 75 | AK6: =IF(Resultate!$K$25="",0,IF('24'!$L$25=Resultate!$L$25,75,0)+IF(AND(Resultate!$I$25='24'!$I$25,Resultate!$K$25='24'!$K$25)=TRUE,75,0)) -> 0 | AL6: =IF(Resultate!$K$32="",0,IF('24'!$L$32=Resultate!$L$32,75,0)+IF(AND(Resultate!$I$32='24'!$I$32,Resultate!$K$32='24'!$K$32)=TRUE,75,0)) -> 0 | AM6: =IF(Resultate!$K$38="",0,IF('24'!$L$38=Resultate!$L$38,75,0)+IF(AND(Resultate!$I$38='24'!$I$38,Resultate!$K$38='24'!$K$38)=TRUE,75,0)) -> 150 | AN6: =IF(Resultate!$K$39="",0,IF('24'!$L$39=Resultate!$L$39,75,0)+IF(AND(Resultate!$I$39='24'!$I$39,Resultate!$K$39='24'!$K$39)=TRUE,75,0)) -> 150 | AO6: =IF(Resultate!$K$45="",0,IF('24'!$L$45=Resultate!$L$45,75,0)+IF(AND(Resultate!$I$45='24'!$I$45,Resultate!$K$45='24'!$K$45)=TRUE,75,0)) -> 150 | AP6: =IF(Resultate!$K$46="",0,IF('24'!$L$46=Resultate!$L$46,75,0)+IF(AND(Resultate!$I$46='24'!$I$46,Resultate!$K$46='24'!$K$46)=TRUE,75,0)) -> 150 | AQ6: =IF(Resultate!$K$52="",0,IF('24'!$L$52=Resultate!$L$52,75,0)+IF(AND(Resultate!$I$52='24'!$I$52,Resultate!$K$52='24'!$K$52)=TRUE,75,0)) -> 75 | AR6: =IF(Resultate!$K$53="",0,IF('24'!$L$53=Resultate!$L$53,75,0)+IF(AND(Resultate!$I$53='24'!$I$53,Resultate!$K$53='24'!$K$53)=TRUE,75,0)) -> 75 | AS6: =IF(Resultate!$K$59="",0,IF('24'!$L$59=Resultate!$L$59,75,0)+IF(AND(Resultate!$I$59='24'!$I$59,Resultate!$K$59='24'!$K$59)=TRUE,75,0)) -> 75 | AT6: =IF(Resultate!$K$60="",0,IF('24'!$L$60=Resultate!$L$60,75,0)+IF(AND(Resultate!$I$60='24'!$I$60,Resultate!$K$60='24'!$K$60)=TRUE,75,0)) -> 0 | AU6: =IF(Resultate!$K$12="",0,IF('24'!$L$12=Resultate!$L$12,75,0)+IF(AND(Resultate!$I$12='24'!$I$12,Resultate!$K$12='24'!$K$12)=TRUE,75,0)) -> 0 | AV6: =IF(Resultate!$K$13="",0,IF('24'!$L$13=Resultate!$L$13,75,0)+IF(AND(Resultate!$I$13='24'!$I$13,Resultate!$K$13='24'!$K$13)=TRUE,75,0)) -> 0 | AW6: =IF(Resultate!$K$19="",0,IF('24'!$L$19=Resultate!$L$19,75,0)+IF(AND(Resultate!$I$19='24'!$I$19,Resultate!$K$19='24'!$K$19)=TRUE,75,0)) -> 0 | AX6: =IF(Resultate!$K$20="",0,IF('24'!$L$20=Resultate!$L$20,75,0)+IF(AND(Resultate!$I$20='24'!$I$20,Resultate!$K$20='24'!$K$20)=TRUE,75,0)) -> 0 | AY6: =IF(Resultate!$K$26="",0,IF('24'!$L$26=Resultate!$L$26,75,0)+IF(AND(Resultate!$I$26='24'!$I$26,Resultate!$K$26='24'!$K$26)=TRUE,75,0)) -> 0 | AZ6: =IF(Resultate!$K$27="",0,IF('24'!$L$27=Resultate!$L$27,75,0)+IF(AND(Resultate!$I$27='24'!$I$27,Resultate!$K$27='24'!$K$27)=TRUE,75,0)) -> 0 | BA6: =IF(Resultate!$K$33="",0,IF('24'!$L$33=Resultate!$L$33,75,0)+IF(AND(Resultate!$I$33='24'!$I$33,Resultate!$K$33='24'!$K$33)=TRUE,75,0)) -> 0 | BB6: =IF(Resultate!$K$34="",0,IF('24'!$L$34=Resultate!$L$34,75,0)+IF(AND(Resultate!$I$34='24'!$I$34,Resultate!$K$34='24'!$K$34)=TRUE,75,0)) -> 0 | BC6: =IF(Resultate!$K$47="",0,IF('24'!$L$47=Resultate!$L$47,75,0)+IF(AND(Resultate!$I$47='24'!$I$47,Resultate!$K$47='24'!$K$47)=TRUE,75,0)) -> 0 | BD6: =IF(Resultate!$K$48="",0,IF('24'!$L$48=Resultate!$L$48,75,0)+IF(AND(Resultate!$I$48='24'!$I$48,Resultate!$K$48='24'!$K$48)=TRUE,75,0)) -> 0 | BE6: =IF(Resultate!$K$40="",0,IF('24'!$L$40=Resultate!$L$40,75,0)+IF(AND(Resultate!$I$40='24'!$I$40,Resultate!$K$40='24'!$K$40)=TRUE,75,0)) -> 0 | BF6: =IF(Resultate!$K$41="",0,IF('24'!$L$41=Resultate!$L$41,75,0)+IF(AND(Resultate!$I$41='24'!$I$41,Resultate!$K$41='24'!$K$41)=TRUE,75,0)) -> 0 | BG6: =IF(Resultate!$K$54="",0,IF('24'!$L$54=Resultate!$L$54,75,0)+IF(AND(Resultate!$I$54='24'!$I$54,Resultate!$K$54='24'!$K$54)=TRUE,75,0)) -> 0 | BH6: =IF(Resultate!$K$55="",0,IF('24'!$L$55=Resultate!$L$55,75,0)+IF(AND(Resultate!$I$55='24'!$I$55,Resultate!$K$55='24'!$K$55)=TRUE,75,0)) -> 0 | BI6: =IF(Resultate!$K$61="",0,IF('24'!$L$61=Resultate!$L$61,75,0)+IF(AND(Resultate!$I$61='24'!$I$61,Resultate!$K$61='24'!$K$61)=TRUE,75,0)) -> 0 | BJ6: =IF(Resultate!$K$62="",0,IF('24'!$L$62=Resultate!$L$62,75,0)+IF(AND(Resultate!$I$62='24'!$I$62,Resultate!$K$62='24'!$K$62)=TRUE,75,0)) -> 0 | BK6: =IF('24'!$O$13=Resultate!$O$13,100,0) -> 100 | BL6: =IF('24'!$Q$13=Resultate!$Q$13,100,0) -> 0 | BM6: =IF('24'!$O$20=Resultate!$O$20,100,0) -> 0 | BN6: =IF('24'!$Q$20=Resultate!$Q$20,100,0) -> 0 | BO6: =IF('24'!$O$27=Resultate!$O$27,100,0) -> 0 | BP6: =IF('24'!$Q$27=Resultate!$Q$27,100,0) -> 100 | BQ6: =IF('24'!$O$34=Resultate!$O$34,100,0) -> 0 | BR6: =IF('24'!$Q$34=Resultate!$Q$34,100,0) -> 0 | BS6: =IF('24'!$O$40=Resultate!$O$40,100,0) -> 0 | BT6: =IF('24'!$Q$40=Resultate!$Q$40,100,0) -> 0 | BU6: =IF('24'!$O$47=Resultate!$O$47,100,0) -> 0 | BV6: =IF('24'!$Q$47=Resultate!$Q$47,100,0) -> 0 | BW6: =IF('24'!$O$54=Resultate!$O$54,100,0) -> 0 | BX6: =IF('24'!$Q$54=Resultate!$Q$54,100,0) -> 0 | BY6: =IF('24'!$O$61=Resultate!$O$61,100,0) -> 0 | BZ6: =IF('24'!$Q$61=Resultate!$Q$61,100,0) -> 0 | CA6: =VALUE(IF('24'!$X$13=Resultate!$X$13,150,0))+IF(AND(Resultate!$O$13='24'!$O$13,Resultate!$Q$13='24'!$Q$13,Resultate!$S$13='24'!$S$13,Resultate!$U$13='24'!$U$13)=TRUE,75,0) -> 0 | CB6: =VALUE(IF('24'!$Z$13=Resultate!$Z$13,150,0))+IF(AND(Resultate!$O$20='24'!$O$20,Resultate!$Q$20='24'!$Q$20,Resultate!$S$20='24'!$S$20,Resultate!$U$20='24'!$U$20)=TRUE,75,0) -> 0 | CC6: =VALUE(IF('24'!$X$19=Resultate!$X$19,150,0))+IF(AND(Resultate!$O$40='24'!$O$40,Resultate!$Q$40='24'!$Q$40,Resultate!$S$40='24'!$S$40,Resultate!$U$40='24'!$U$40)=TRUE,75,0) -> 0 | CD6: =VALUE(IF('24'!$Z$19=Resultate!$Z$19,150,0))+IF(AND(Resultate!$O$47='24'!$O$47,Resultate!$Q$47='24'!$Q$47,Resultate!$S$47='24'!$S$47,Resultate!$U$47='24'!$U$47)=TRUE,75,0) -> 0 | CE6: =VALUE(IF('24'!$X$25=Resultate!$X$25,150,0))+IF(AND(Resultate!$O$27='24'!$O$27,Resultate!$Q$27='24'!$Q$27,Resultate!$S$27='24'!$S$27,Resultate!$U$27='24'!$U$27)=TRUE,75,0) -> 0 | CF6: =VALUE(IF('24'!$Z$25=Resultate!$Z$25,150,0))+IF(AND(Resultate!$O$34='24'!$O$34,Resultate!$Q$34='24'!$Q$34,Resultate!$S$34='24'!$S$34,Resultate!$U$34='24'!$U$34)=TRUE,75,0) -> 0 | CG6: =VALUE(IF('24'!$X$31=Resultate!$X$31,150,0))+IF(AND(Resultate!$O$54='24'!$O$54,Resultate!$Q$54='24'!$Q$54,Resultate!$S$54='24'!$S$54,Resultate!$U$54='24'!$U$54)=TRUE,75,0) -> 0 | CH6: =VALUE(IF('24'!$Z$31=Resultate!$Z$31,150,0))+IF(AND(Resultate!$O$61='24'!$O$61,Resultate!$Q$61='24'!$Q$61,Resultate!$S$61='24'!$S$61,Resultate!$U$61='24'!$U$61)=TRUE,75,0) -> 0 | CI6: ='24'!$X$48 -> Portugal | CJ6: =VALUE(IF('24'!$X$48=Resultate!$X$48,200,0))+IF(AND(Resultate!$X$13='24'!$X$13,Resultate!$Z$13='24'!$Z$13,Resultate!$AB$13='24'!$AB$13,Resultate!$AD$13='24'!$AD$13)=TRUE,75,0) -> 0 | CK6: ='24'!$Z$48 -> Belgien | CL6: =VALUE(IF('24'!$Z$48=Resultate!$Z$48,200,0))+IF(AND(Resultate!$X$19='24'!$X$19,Resultate!$Z$19='24'!$Z$19,Resultate!$AB$19='24'!$AB$19,Resultate!$AD$19='24'!$AD$19)=TRUE,75,0) -> 0 | CM6: ='24'!$X$54 -> Spanien | CN6: =VALUE(IF('24'!$X$54=Resultate!$X$54,200,0))+IF(AND(Resultate!$X$25='24'!$X$25,Resultate!$Z$25='24'!$Z$25,Resultate!$AB$25='24'!$AB$25,Resultate!$AD$25='24'!$AD$25)=TRUE,75,0) -> 0 | CO6: ='24'!$Z$54 -> Deutschland | CP6: =VALUE(IF('24'!$Z$54=Resultate!$Z$54,200,0))+IF(AND(Resultate!$X$31='24'!$X$31,Resultate!$Z$31='24'!$Z$31,Resultate!$AB$31='24'!$AB$31,Resultate!$AD$31='24'!$AD$31)=TRUE,75,0) -> 0 | CQ6: ='24'!$AG$8 -> Belgien | CR6: =IF((OR('24'!$AG$8=Resultate!$AG$8,'24'!$AI$8=Resultate!$AG$8))=TRUE,100,) -> 0 | CS6: ='24'!$AI$8 -> Spanien | CT6: =IF((OR('24'!$AI$8=Resultate!$AI$8,'24'!$AI$8=Resultate!$AG$8))=TRUE,100,) -> 0 | CU6: ='24'!$AG$13 -> Spanien | CV6: =IF('24'!$AG$13=Resultate!$AG$13,200,0) -> 0 | CW6: ='24'!$AG$22 -> Portugal | CX6: =IF((OR('24'!$AG$22=Resultate!$AG$22,'24'!$AI$22=Resultate!$AG$22))=TRUE,250,)+IF((OR('24'!$AG$22=Resultate!$AG$22,'24'!$AI$22=Resultate!$AG$22))=TRUE,IF(AND(Resultate!$AB$48='24'!$AB$48,Resultate!$AD$48='24'!$AD$48)=TRUE,75,0),0) -> 0 | CY6: ='24'!$AI$22 -> Deutschland | CZ6: =IF((OR('24'!$AG$22=Resultate!$AI$22,'24'!$AI$22=Resultate!$AI$22))=TRUE,250,)+IF((OR('24'!$AG$22=Resultate!$AG$22,'24'!$AI$22=Resultate!$AG$22))=TRUE,IF(AND(Resultate!$AB$54='24'!$AB$54,Resultate!$AD$54='24'!$AD$54)=TRUE,75,0),0) -> 0 | DA6: ='24'!$AG$27 -> Deutschland | DB6: =IF('24'!$AG$27=Resultate!$AG$27,300,0) -> 0 | DE6: ='24'!$AN$33 -> 167
A7: 2 | B7: 125 | C7: ='125'!$AH$35 -> Peppa Wutz & Shkiprim | D7: ='125'!$AH$39 -> chrigel.heer@bluewin.ch | E7: =SUM(F7:M7) -> 2450 | F7: =SUM(O7:BJ7) -> 2250 | G7: =SUM(BK7:BZ7) -> 200 | H7: =SUM(CA7:CH7) -> 0 | I7: =SUM(CJ7:CP7) -> 0 | J7: =SUM(CR7:CV7) -> 0 | K7: =SUM(CX7:CZ7) -> 0 | L7: =DB7 -> 0 | M7: =IF(DC7="",0,DC7) -> 0 | N7: ='125'!$AN$33 -> 177 | O7: =IF(Resultate!$K$8="",0,IF('125'!$L$8=Resultate!$L$8,75,0)+IF(AND(Resultate!$I$8='125'!$I$8,Resultate!$K$8='125'!$K$8)=TRUE,75,0)) -> 75 | P7: =IF(Resultate!$K$9="",0,IF('125'!$L$9=Resultate!$L$9,75,0)+IF(AND(Resultate!$I$9='125'!$I$9,Resultate!$K$9='125'!$K$9)=TRUE,75,0)) -> 150 | Q7: =IF(Resultate!$K$15="",0,IF('125'!$L$15=Resultate!$L$15,75,0)+IF(AND(Resultate!$I$15='125'!$I$15,Resultate!$K$15='125'!$K$15)=TRUE,75,0)) -> 0 | R7: =IF(Resultate!$K$16="",0,IF('125'!$L$16=Resultate!$L$16,75,0)+IF(AND(Resultate!$I$16='125'!$I$16,Resultate!$K$16='125'!$K$16)=TRUE,75,0)) -> 0 | S7: =IF(Resultate!$K$22="",0,IF('125'!$L$22=Resultate!$L$22,75,0)+IF(AND(Resultate!$I$22='125'!$I$22,Resultate!$K$22='125'!$K$22)=TRUE,75,0)) -> 75 | T7: =IF(Resultate!$K$23="",0,IF('125'!$L$23=Resultate!$L$23,75,0)+IF(AND(Resultate!$I$23='125'!$I$23,Resultate!$K$23='125'!$K$23)=TRUE,75,0)) -> 150 | U7: =IF(Resultate!$K$29="",0,IF('125'!$L$29=Resultate!$L$29,75,0)+IF(AND(Resultate!$I$29='125'!$I$29,Resultate!$K$29='125'!$K$29)=TRUE,75,0)) -> 150 | V7: =IF(Resultate!$K$30="",0,IF('125'!$L$30=Resultate!$L$30,75,0)+IF(AND(Resultate!$I$30='125'!$I$30,Resultate!$K$30='125'!$K$30)=TRUE,75,0)) -> 150 | W7: =IF(Resultate!$K$36="",0,IF('125'!$L$36=Resultate!$L$36,75,0)+IF(AND(Resultate!$I$36='125'!$I$36,Resultate!$K$36='125'!$K$36)=TRUE,75,0)) -> 0 | X7: =IF(Resultate!$K$37="",0,IF('125'!$L$37=Resultate!$L$37,75,0)+IF(AND(Resultate!$I$37='125'!$I$37,Resultate!$K$37='125'!$K$37)=TRUE,75,0)) -> 150 | Y7: =IF(Resultate!$K$43="",0,IF('125'!$L$43=Resultate!$L$43,75,0)+IF(AND(Resultate!$I$43='125'!$I$43,Resultate!$K$43='125'!$K$43)=TRUE,75,0)) -> 0 | Z7: =IF(Resultate!$K$44="",0,IF('125'!$L$44=Resultate!$L$44,75,0)+IF(AND(Resultate!$I$44='125'!$I$44,Resultate!$K$44='125'!$K$44)=TRUE,75,0)) -> 75 | AA7: =IF(Resultate!$K$50="",0,IF('125'!$L$50=Resultate!$L$50,75,0)+IF(AND(Resultate!$I$50='125'!$I$50,Resultate!$K$50='125'!$K$50)=TRUE,75,0)) -> 75 | AB7: =IF(Resultate!$K$51="",0,IF('125'!$L$51=Resultate!$L$51,75,0)+IF(AND(Resultate!$I$51='125'!$I$51,Resultate!$K$51='125'!$K$51)=TRUE,75,0)) -> 75 | AC7: =IF(Resultate!$K$57="",0,IF('125'!$L$57=Resultate!$L$57,75,0)+IF(AND(Resultate!$I$57='125'!$I$57,Resultate!$K$57='125'!$K$57)=TRUE,75,0)) -> 0 | AD7: =IF(Resultate!$K$58="",0,IF('125'!$L$58=Resultate!$L$58,75,0)+IF(AND(Resultate!$I$58='125'!$I$58,Resultate!$K$58='125'!$K$58)=TRUE,75,0)) -> 75 | AE7: =IF(Resultate!$K$10="",0,IF('125'!$L$10=Resultate!$L$10,75,0)+IF(AND(Resultate!$I$10='125'!$I$10,Resultate!$K$10='125'!$K$10)=TRUE,75,0)) -> 0 | AF7: =IF(Resultate!$K$11="",0,IF('125'!$L$11=Resultate!$L$11,75,0)+IF(AND(Resultate!$I$11='125'!$I$11,Resultate!$K$11='125'!$K$11)=TRUE,75,0)) -> 0 | AG7: =IF(Resultate!$K$17="",0,IF('125'!$L$17=Resultate!$L$17,75,0)+IF(AND(Resultate!$I$17='125'!$I$17,Resultate!$K$17='125'!$K$17)=TRUE,75,0)) -> 75 | AH7: =IF(Resultate!$K$18="",0,IF('125'!$L$18=Resultate!$L$18,75,0)+IF(AND(Resultate!$I$18='125'!$I$18,Resultate!$K$18='125'!$K$18)=TRUE,75,0)) -> 150 | AI7: =IF(Resultate!$K$31="",0,IF('125'!$L$31=Resultate!$L$31,75,0)+IF(AND(Resultate!$I$31='125'!$I$31,Resultate!$K$31='125'!$K$31)=TRUE,75,0)) -> 0 | AJ7: =IF(Resultate!$K$24="",0,IF('125'!$L$24=Resultate!$L$24,75,0)+IF(AND(Resultate!$I$24='125'!$I$24,Resultate!$K$24='125'!$K$24)=TRUE,75,0)) -> 150 | AK7: =IF(Resultate!$K$25="",0,IF('125'!$L$25=Resultate!$L$25,75,0)+IF(AND(Resultate!$I$25='125'!$I$25,Resultate!$K$25='125'!$K$25)=TRUE,75,0)) -> 75 | AL7: =IF(Resultate!$K$32="",0,IF('125'!$L$32=Resultate!$L$32,75,0)+IF(AND(Resultate!$I$32='125'!$I$32,Resultate!$K$32='125'!$K$32)=TRUE,75,0)) -> 75 | AM7: =IF(Resultate!$K$38="",0,IF('125'!$L$38=Resultate!$L$38,75,0)+IF(AND(Resultate!$I$38='125'!$I$38,Resultate!$K$38='125'!$K$38)=TRUE,75,0)) -> 75 | AN7: =IF(Resultate!$K$39="",0,IF('125'!$L$39=Resultate!$L$39,75,0)+IF(AND(Resultate!$I$39='125'!$I$39,Resultate!$K$39='125'!$K$39)=TRUE,75,0)) -> 0 | AO7: =IF(Resultate!$K$45="",0,IF('125'!$L$45=Resultate!$L$45,75,0)+IF(AND(Resultate!$I$45='125'!$I$45,Resultate!$K$45='125'!$K$45)=TRUE,75,0)) -> 75 | AP7: =IF(Resultate!$K$46="",0,IF('125'!$L$46=Resultate!$L$46,75,0)+IF(AND(Resultate!$I$46='125'!$I$46,Resultate!$K$46='125'!$K$46)=TRUE,75,0)) -> 75 | AQ7: =IF(Resultate!$K$52="",0,IF('125'!$L$52=Resultate!$L$52,75,0)+IF(AND(Resultate!$I$52='125'!$I$52,Resultate!$K$52='125'!$K$52)=TRUE,75,0)) -> 75 | AR7: =IF(Resultate!$K$53="",0,IF('125'!$L$53=Resultate!$L$53,75,0)+IF(AND(Resultate!$I$53='125'!$I$53,Resultate!$K$53='125'!$K$53)=TRUE,75,0)) -> 75 | AS7: =IF(Resultate!$K$59="",0,IF('125'!$L$59=Resultate!$L$59,75,0)+IF(AND(Resultate!$I$59='125'!$I$59,Resultate!$K$59='125'!$K$59)=TRUE,75,0)) -> 75 | AT7: =IF(Resultate!$K$60="",0,IF('125'!$L$60=Resultate!$L$60,75,0)+IF(AND(Resultate!$I$60='125'!$I$60,Resultate!$K$60='125'!$K$60)=TRUE,75,0)) -> 0 | AU7: =IF(Resultate!$K$12="",0,IF('125'!$L$12=Resultate!$L$12,75,0)+IF(AND(Resultate!$I$12='125'!$I$12,Resultate!$K$12='125'!$K$12)=TRUE,75,0)) -> 75 | AV7: =IF(Resultate!$K$13="",0,IF('125'!$L$13=Resultate!$L$13,75,0)+IF(AND(Resultate!$I$13='125'!$I$13,Resultate!$K$13='125'!$K$13)=TRUE,75,0)) -> 0 | AW7: =IF(Resultate!$K$19="",0,IF('125'!$L$19=Resultate!$L$19,75,0)+IF(AND(Resultate!$I$19='125'!$I$19,Resultate!$K$19='125'!$K$19)=TRUE,75,0)) -> 0 | AX7: =IF(Resultate!$K$20="",0,IF('125'!$L$20=Resultate!$L$20,75,0)+IF(AND(Resultate!$I$20='125'!$I$20,Resultate!$K$20='125'!$K$20)=TRUE,75,0)) -> 0 | AY7: =IF(Resultate!$K$26="",0,IF('125'!$L$26=Resultate!$L$26,75,0)+IF(AND(Resultate!$I$26='125'!$I$26,Resultate!$K$26='125'!$K$26)=TRUE,75,0)) -> 0 | AZ7: =IF(Resultate!$K$27="",0,IF('125'!$L$27=Resultate!$L$27,75,0)+IF(AND(Resultate!$I$27='125'!$I$27,Resultate!$K$27='125'!$K$27)=TRUE,75,0)) -> 0 | BA7: =IF(Resultate!$K$33="",0,IF('125'!$L$33=Resultate!$L$33,75,0)+IF(AND(Resultate!$I$33='125'!$I$33,Resultate!$K$33='125'!$K$33)=TRUE,75,0)) -> 0 | BB7: =IF(Resultate!$K$34="",0,IF('125'!$L$34=Resultate!$L$34,75,0)+IF(AND(Resultate!$I$34='125'!$I$34,Resultate!$K$34='125'!$K$34)=TRUE,75,0)) -> 0 | BC7: =IF(Resultate!$K$47="",0,IF('125'!$L$47=Resultate!$L$47,75,0)+IF(AND(Resultate!$I$47='125'!$I$47,Resultate!$K$47='125'!$K$47)=TRUE,75,0)) -> 0 | BD7: =IF(Resultate!$K$48="",0,IF('125'!$L$48=Resultate!$L$48,75,0)+IF(AND(Resultate!$I$48='125'!$I$48,Resultate!$K$48='125'!$K$48)=TRUE,75,0)) -> 0 | BE7: =IF(Resultate!$K$40="",0,IF('125'!$L$40=Resultate!$L$40,75,0)+IF(AND(Resultate!$I$40='125'!$I$40,Resultate!$K$40='125'!$K$40)=TRUE,75,0)) -> 0 | BF7: =IF(Resultate!$K$41="",0,IF('125'!$L$41=Resultate!$L$41,75,0)+IF(AND(Resultate!$I$41='125'!$I$41,Resultate!$K$41='125'!$K$41)=TRUE,75,0)) -> 0 | BG7: =IF(Resultate!$K$54="",0,IF('125'!$L$54=Resultate!$L$54,75,0)+IF(AND(Resultate!$I$54='125'!$I$54,Resultate!$K$54='125'!$K$54)=TRUE,75,0)) -> 0 | BH7: =IF(Resultate!$K$55="",0,IF('125'!$L$55=Resultate!$L$55,75,0)+IF(AND(Resultate!$I$55='125'!$I$55,Resultate!$K$55='125'!$K$55)=TRUE,75,0)) -> 0 | BI7: =IF(Resultate!$K$61="",0,IF('125'!$L$61=Resultate!$L$61,75,0)+IF(AND(Resultate!$I$61='125'!$I$61,Resultate!$K$61='125'!$K$61)=TRUE,75,0)) -> 0 | BJ7: =IF(Resultate!$K$62="",0,IF('125'!$L$62=Resultate!$L$62,75,0)+IF(AND(Resultate!$I$62='125'!$I$62,Resultate!$K$62='125'!$K$62)=TRUE,75,0)) -> 0 | BK7: =IF('125'!$O$13=Resultate!$O$13,100,0) -> 100 | BL7: =IF('125'!$Q$13=Resultate!$Q$13,100,0) -> 0 | BM7: =IF('125'!$O$20=Resultate!$O$20,100,0) -> 0 | BN7: =IF('125'!$Q$20=Resultate!$Q$20,100,0) -> 0 | BO7: =IF('125'!$O$27=Resultate!$O$27,100,0) -> 0 | BP7: =IF('125'!$Q$27=Resultate!$Q$27,100,0) -> 100 | BQ7: =IF('125'!$O$34=Resultate!$O$34,100,0) -> 0 | BR7: =IF('125'!$Q$34=Resultate!$Q$34,100,0) -> 0 | BS7: =IF('125'!$O$40=Resultate!$O$40,100,0) -> 0 | BT7: =IF('125'!$Q$40=Resultate!$Q$40,100,0) -> 0 | BU7: =IF('125'!$O$47=Resultate!$O$47,100,0) -> 0 | BV7: =IF('125'!$Q$47=Resultate!$Q$47,100,0) -> 0 | BW7: =IF('125'!$O$54=Resultate!$O$54,100,0) -> 0 | BX7: =IF('125'!$Q$54=Resultate!$Q$54,100,0) -> 0 | BY7: =IF('125'!$O$61=Resultate!$O$61,100,0) -> 0 | BZ7: =IF('125'!$Q$61=Resultate!$Q$61,100,0) -> 0 | CA7: =VALUE(IF('125'!$X$13=Resultate!$X$13,150,0))+IF(AND(Resultate!$O$13='125'!$O$13,Resultate!$Q$13='125'!$Q$13,Resultate!$S$13='125'!$S$13,Resultate!$U$13='125'!$U$13)=TRUE,75,0) -> 0 | CB7: =VALUE(IF('125'!$Z$13=Resultate!$Z$13,150,0))+IF(AND(Resultate!$O$20='125'!$O$20,Resultate!$Q$20='125'!$Q$20,Resultate!$S$20='125'!$S$20,Resultate!$U$20='125'!$U$20)=TRUE,75,0) -> 0 | CC7: =VALUE(IF('125'!$X$19=Resultate!$X$19,150,0))+IF(AND(Resultate!$O$40='125'!$O$40,Resultate!$Q$40='125'!$Q$40,Resultate!$S$40='125'!$S$40,Resultate!$U$40='125'!$U$40)=TRUE,75,0) -> 0 | CD7: =VALUE(IF('125'!$Z$19=Resultate!$Z$19,150,0))+IF(AND(Resultate!$O$47='125'!$O$47,Resultate!$Q$47='125'!$Q$47,Resultate!$S$47='125'!$S$47,Resultate!$U$47='125'!$U$47)=TRUE,75,0) -> 0 | CE7: =VALUE(IF('125'!$X$25=Resultate!$X$25,150,0))+IF(AND(Resultate!$O$27='125'!$O$27,Resultate!$Q$27='125'!$Q$27,Resultate!$S$27='125'!$S$27,Resultate!$U$27='125'!$U$27)=TRUE,75,0) -> 0 | CF7: =VALUE(IF('125'!$Z$25=Resultate!$Z$25,150,0))+IF(AND(Resultate!$O$34='125'!$O$34,Resultate!$Q$34='125'!$Q$34,Resultate!$S$34='125'!$S$34,Resultate!$U$34='125'!$U$34)=TRUE,75,0) -> 0 | CG7: =VALUE(IF('125'!$X$31=Resultate!$X$31,150,0))+IF(AND(Resultate!$O$54='125'!$O$54,Resultate!$Q$54='125'!$Q$54,Resultate!$S$54='125'!$S$54,Resultate!$U$54='125'!$U$54)=TRUE,75,0) -> 0 | CH7: =VALUE(IF('125'!$Z$31=Resultate!$Z$31,150,0))+IF(AND(Resultate!$O$61='125'!$O$61,Resultate!$Q$61='125'!$Q$61,Resultate!$S$61='125'!$S$61,Resultate!$U$61='125'!$U$61)=TRUE,75,0) -> 0 | CI7: ='125'!$X$48 -> Frankreich | CJ7: =VALUE(IF('125'!$X$48=Resultate!$X$48,200,0))+IF(AND(Resultate!$X$13='125'!$X$13,Resultate!$Z$13='125'!$Z$13,Resultate!$AB$13='125'!$AB$13,Resultate!$AD$13='125'!$AD$13)=TRUE,75,0) -> 0 | CK7: ='125'!$Z$48 -> Brasilien | CL7: =VALUE(IF('125'!$Z$48=Resultate!$Z$48,200,0))+IF(AND(Resultate!$X$19='125'!$X$19,Resultate!$Z$19='125'!$Z$19,Resultate!$AB$19='125'!$AB$19,Resultate!$AD$19='125'!$AD$19)=TRUE,75,0) -> 0 | CM7: ='125'!$X$54 -> Portugal | CN7: =VALUE(IF('125'!$X$54=Resultate!$X$54,200,0))+IF(AND(Resultate!$X$25='125'!$X$25,Resultate!$Z$25='125'!$Z$25,Resultate!$AB$25='125'!$AB$25,Resultate!$AD$25='125'!$AD$25)=TRUE,75,0) -> 0 | CO7: ='125'!$Z$54 -> Deutschland | CP7: =VALUE(IF('125'!$Z$54=Resultate!$Z$54,200,0))+IF(AND(Resultate!$X$31='125'!$X$31,Resultate!$Z$31='125'!$Z$31,Resultate!$AB$31='125'!$AB$31,Resultate!$AD$31='125'!$AD$31)=TRUE,75,0) -> 0 | CQ7: ='125'!$AG$8 -> Brasilien | CR7: =IF((OR('125'!$AG$8=Resultate!$AG$8,'125'!$AI$8=Resultate!$AG$8))=TRUE,100,) -> 0 | CS7: ='125'!$AI$8 -> Portugal | CT7: =IF((OR('125'!$AI$8=Resultate!$AI$8,'125'!$AI$8=Resultate!$AG$8))=TRUE,100,) -> 0 | CU7: ='125'!$AG$13 -> Brasilien | CV7: =IF('125'!$AG$13=Resultate!$AG$13,200,0) -> 0 | CW7: ='125'!$AG$22 -> Frankreich | CX7: =IF((OR('125'!$AG$22=Resultate!$AG$22,'125'!$AI$22=Resultate!$AG$22))=TRUE,250,)+IF((OR('125'!$AG$22=Resultate!$AG$22,'125'!$AI$22=Resultate!$AG$22))=TRUE,IF(AND(Resultate!$AB$48='125'!$AB$48,Resultate!$AD$48='125'!$AD$48)=TRUE,75,0),0) -> 0 | CY7: ='125'!$AI$22 -> Deutschland | CZ7: =IF((OR('125'!$AG$22=Resultate!$AI$22,'125'!$AI$22=Resultate!$AI$22))=TRUE,250,)+IF((OR('125'!$AG$22=Resultate!$AG$22,'125'!$AI$22=Resultate!$AG$22))=TRUE,IF(AND(Resultate!$AB$54='125'!$AB$54,Resultate!$AD$54='125'!$AD$54)=TRUE,75,0),0) -> 0 | DA7: ='125'!$AG$27 -> Frankreich | DB7: =IF('125'!$AG$27=Resultate!$AG$27,300,0) -> 0 | DE7: ='125'!$AN$33 -> 177
A8: 3 | B8: 96 | C8: ='96'!$AH$35 -> sturzi 2 | D8: ='96'!$AH$39 -> 0 | E8: =SUM(F8:M8) -> 2375 | F8: =SUM(O8:BJ8) -> 2175 | G8: =SUM(BK8:BZ8) -> 200 | H8: =SUM(CA8:CH8) -> 0 | I8: =SUM(CJ8:CP8) -> 0 | J8: =SUM(CR8:CV8) -> 0 | K8: =SUM(CX8:CZ8) -> 0 | L8: =DB8 -> 0 | M8: =IF(DC8="",0,DC8) -> 0 | N8: ='96'!$AN$33 -> 180 | O8: =IF(Resultate!$K$8="",0,IF('96'!$L$8=Resultate!$L$8,75,0)+IF(AND(Resultate!$I$8='96'!$I$8,Resultate!$K$8='96'!$K$8)=TRUE,75,0)) -> 0 | P8: =IF(Resultate!$K$9="",0,IF('96'!$L$9=Resultate!$L$9,75,0)+IF(AND(Resultate!$I$9='96'!$I$9,Resultate!$K$9='96'!$K$9)=TRUE,75,0)) -> 75 | Q8: =IF(Resultate!$K$15="",0,IF('96'!$L$15=Resultate!$L$15,75,0)+IF(AND(Resultate!$I$15='96'!$I$15,Resultate!$K$15='96'!$K$15)=TRUE,75,0)) -> 75 | R8: =IF(Resultate!$K$16="",0,IF('96'!$L$16=Resultate!$L$16,75,0)+IF(AND(Resultate!$I$16='96'!$I$16,Resultate!$K$16='96'!$K$16)=TRUE,75,0)) -> 0 | S8: =IF(Resultate!$K$22="",0,IF('96'!$L$22=Resultate!$L$22,75,0)+IF(AND(Resultate!$I$22='96'!$I$22,Resultate!$K$22='96'!$K$22)=TRUE,75,0)) -> 75 | T8: =IF(Resultate!$K$23="",0,IF('96'!$L$23=Resultate!$L$23,75,0)+IF(AND(Resultate!$I$23='96'!$I$23,Resultate!$K$23='96'!$K$23)=TRUE,75,0)) -> 75 | U8: =IF(Resultate!$K$29="",0,IF('96'!$L$29=Resultate!$L$29,75,0)+IF(AND(Resultate!$I$29='96'!$I$29,Resultate!$K$29='96'!$K$29)=TRUE,75,0)) -> 0 | V8: =IF(Resultate!$K$30="",0,IF('96'!$L$30=Resultate!$L$30,75,0)+IF(AND(Resultate!$I$30='96'!$I$30,Resultate!$K$30='96'!$K$30)=TRUE,75,0)) -> 150 | W8: =IF(Resultate!$K$36="",0,IF('96'!$L$36=Resultate!$L$36,75,0)+IF(AND(Resultate!$I$36='96'!$I$36,Resultate!$K$36='96'!$K$36)=TRUE,75,0)) -> 150 | X8: =IF(Resultate!$K$37="",0,IF('96'!$L$37=Resultate!$L$37,75,0)+IF(AND(Resultate!$I$37='96'!$I$37,Resultate!$K$37='96'!$K$37)=TRUE,75,0)) -> 75 | Y8: =IF(Resultate!$K$43="",0,IF('96'!$L$43=Resultate!$L$43,75,0)+IF(AND(Resultate!$I$43='96'!$I$43,Resultate!$K$43='96'!$K$43)=TRUE,75,0)) -> 0 | Z8: =IF(Resultate!$K$44="",0,IF('96'!$L$44=Resultate!$L$44,75,0)+IF(AND(Resultate!$I$44='96'!$I$44,Resultate!$K$44='96'!$K$44)=TRUE,75,0)) -> 75 | AA8: =IF(Resultate!$K$50="",0,IF('96'!$L$50=Resultate!$L$50,75,0)+IF(AND(Resultate!$I$50='96'!$I$50,Resultate!$K$50='96'!$K$50)=TRUE,75,0)) -> 75 | AB8: =IF(Resultate!$K$51="",0,IF('96'!$L$51=Resultate!$L$51,75,0)+IF(AND(Resultate!$I$51='96'!$I$51,Resultate!$K$51='96'!$K$51)=TRUE,75,0)) -> 150 | AC8: =IF(Resultate!$K$57="",0,IF('96'!$L$57=Resultate!$L$57,75,0)+IF(AND(Resultate!$I$57='96'!$I$57,Resultate!$K$57='96'!$K$57)=TRUE,75,0)) -> 0 | AD8: =IF(Resultate!$K$58="",0,IF('96'!$L$58=Resultate!$L$58,75,0)+IF(AND(Resultate!$I$58='96'!$I$58,Resultate!$K$58='96'!$K$58)=TRUE,75,0)) -> 0 | AE8: =IF(Resultate!$K$10="",0,IF('96'!$L$10=Resultate!$L$10,75,0)+IF(AND(Resultate!$I$10='96'!$I$10,Resultate!$K$10='96'!$K$10)=TRUE,75,0)) -> 75 | AF8: =IF(Resultate!$K$11="",0,IF('96'!$L$11=Resultate!$L$11,75,0)+IF(AND(Resultate!$I$11='96'!$I$11,Resultate!$K$11='96'!$K$11)=TRUE,75,0)) -> 75 | AG8: =IF(Resultate!$K$17="",0,IF('96'!$L$17=Resultate!$L$17,75,0)+IF(AND(Resultate!$I$17='96'!$I$17,Resultate!$K$17='96'!$K$17)=TRUE,75,0)) -> 75 | AH8: =IF(Resultate!$K$18="",0,IF('96'!$L$18=Resultate!$L$18,75,0)+IF(AND(Resultate!$I$18='96'!$I$18,Resultate!$K$18='96'!$K$18)=TRUE,75,0)) -> 75 | AI8: =IF(Resultate!$K$31="",0,IF('96'!$L$31=Resultate!$L$31,75,0)+IF(AND(Resultate!$I$31='96'!$I$31,Resultate!$K$31='96'!$K$31)=TRUE,75,0)) -> 75 | AJ8: =IF(Resultate!$K$24="",0,IF('96'!$L$24=Resultate!$L$24,75,0)+IF(AND(Resultate!$I$24='96'!$I$24,Resultate!$K$24='96'!$K$24)=TRUE,75,0)) -> 75 | AK8: =IF(Resultate!$K$25="",0,IF('96'!$L$25=Resultate!$L$25,75,0)+IF(AND(Resultate!$I$25='96'!$I$25,Resultate!$K$25='96'!$K$25)=TRUE,75,0)) -> 0 | AL8: =IF(Resultate!$K$32="",0,IF('96'!$L$32=Resultate!$L$32,75,0)+IF(AND(Resultate!$I$32='96'!$I$32,Resultate!$K$32='96'!$K$32)=TRUE,75,0)) -> 0 | AM8: =IF(Resultate!$K$38="",0,IF('96'!$L$38=Resultate!$L$38,75,0)+IF(AND(Resultate!$I$38='96'!$I$38,Resultate!$K$38='96'!$K$38)=TRUE,75,0)) -> 150 | AN8: =IF(Resultate!$K$39="",0,IF('96'!$L$39=Resultate!$L$39,75,0)+IF(AND(Resultate!$I$39='96'!$I$39,Resultate!$K$39='96'!$K$39)=TRUE,75,0)) -> 0 | AO8: =IF(Resultate!$K$45="",0,IF('96'!$L$45=Resultate!$L$45,75,0)+IF(AND(Resultate!$I$45='96'!$I$45,Resultate!$K$45='96'!$K$45)=TRUE,75,0)) -> 150 | AP8: =IF(Resultate!$K$46="",0,IF('96'!$L$46=Resultate!$L$46,75,0)+IF(AND(Resultate!$I$46='96'!$I$46,Resultate!$K$46='96'!$K$46)=TRUE,75,0)) -> 75 | AQ8: =IF(Resultate!$K$52="",0,IF('96'!$L$52=Resultate!$L$52,75,0)+IF(AND(Resultate!$I$52='96'!$I$52,Resultate!$K$52='96'!$K$52)=TRUE,75,0)) -> 75 | AR8: =IF(Resultate!$K$53="",0,IF('96'!$L$53=Resultate!$L$53,75,0)+IF(AND(Resultate!$I$53='96'!$I$53,Resultate!$K$53='96'!$K$53)=TRUE,75,0)) -> 75 | AS8: =IF(Resultate!$K$59="",0,IF('96'!$L$59=Resultate!$L$59,75,0)+IF(AND(Resultate!$I$59='96'!$I$59,Resultate!$K$59='96'!$K$59)=TRUE,75,0)) -> 75 | AT8: =IF(Resultate!$K$60="",0,IF('96'!$L$60=Resultate!$L$60,75,0)+IF(AND(Resultate!$I$60='96'!$I$60,Resultate!$K$60='96'!$K$60)=TRUE,75,0)) -> 75 | AU8: =IF(Resultate!$K$12="",0,IF('96'!$L$12=Resultate!$L$12,75,0)+IF(AND(Resultate!$I$12='96'!$I$12,Resultate!$K$12='96'!$K$12)=TRUE,75,0)) -> 75 | AV8: =IF(Resultate!$K$13="",0,IF('96'!$L$13=Resultate!$L$13,75,0)+IF(AND(Resultate!$I$13='96'!$I$13,Resultate!$K$13='96'!$K$13)=TRUE,75,0)) -> 0 | AW8: =IF(Resultate!$K$19="",0,IF('96'!$L$19=Resultate!$L$19,75,0)+IF(AND(Resultate!$I$19='96'!$I$19,Resultate!$K$19='96'!$K$19)=TRUE,75,0)) -> 0 | AX8: =IF(Resultate!$K$20="",0,IF('96'!$L$20=Resultate!$L$20,75,0)+IF(AND(Resultate!$I$20='96'!$I$20,Resultate!$K$20='96'!$K$20)=TRUE,75,0)) -> 0 | AY8: =IF(Resultate!$K$26="",0,IF('96'!$L$26=Resultate!$L$26,75,0)+IF(AND(Resultate!$I$26='96'!$I$26,Resultate!$K$26='96'!$K$26)=TRUE,75,0)) -> 0 | AZ8: =IF(Resultate!$K$27="",0,IF('96'!$L$27=Resultate!$L$27,75,0)+IF(AND(Resultate!$I$27='96'!$I$27,Resultate!$K$27='96'!$K$27)=TRUE,75,0)) -> 0 | BA8: =IF(Resultate!$K$33="",0,IF('96'!$L$33=Resultate!$L$33,75,0)+IF(AND(Resultate!$I$33='96'!$I$33,Resultate!$K$33='96'!$K$33)=TRUE,75,0)) -> 0 | BB8: =IF(Resultate!$K$34="",0,IF('96'!$L$34=Resultate!$L$34,75,0)+IF(AND(Resultate!$I$34='96'!$I$34,Resultate!$K$34='96'!$K$34)=TRUE,75,0)) -> 0 | BC8: =IF(Resultate!$K$47="",0,IF('96'!$L$47=Resultate!$L$47,75,0)+IF(AND(Resultate!$I$47='96'!$I$47,Resultate!$K$47='96'!$K$47)=TRUE,75,0)) -> 0 | BD8: =IF(Resultate!$K$48="",0,IF('96'!$L$48=Resultate!$L$48,75,0)+IF(AND(Resultate!$I$48='96'!$I$48,Resultate!$K$48='96'!$K$48)=TRUE,75,0)) -> 0 | BE8: =IF(Resultate!$K$40="",0,IF('96'!$L$40=Resultate!$L$40,75,0)+IF(AND(Resultate!$I$40='96'!$I$40,Resultate!$K$40='96'!$K$40)=TRUE,75,0)) -> 0 | BF8: =IF(Resultate!$K$41="",0,IF('96'!$L$41=Resultate!$L$41,75,0)+IF(AND(Resultate!$I$41='96'!$I$41,Resultate!$K$41='96'!$K$41)=TRUE,75,0)) -> 0 | BG8: =IF(Resultate!$K$54="",0,IF('96'!$L$54=Resultate!$L$54,75,0)+IF(AND(Resultate!$I$54='96'!$I$54,Resultate!$K$54='96'!$K$54)=TRUE,75,0)) -> 0 | BH8: =IF(Resultate!$K$55="",0,IF('96'!$L$55=Resultate!$L$55,75,0)+IF(AND(Resultate!$I$55='96'!$I$55,Resultate!$K$55='96'!$K$55)=TRUE,75,0)) -> 0 | BI8: =IF(Resultate!$K$61="",0,IF('96'!$L$61=Resultate!$L$61,75,0)+IF(AND(Resultate!$I$61='96'!$I$61,Resultate!$K$61='96'!$K$61)=TRUE,75,0)) -> 0 | BJ8: =IF(Resultate!$K$62="",0,IF('96'!$L$62=Resultate!$L$62,75,0)+IF(AND(Resultate!$I$62='96'!$I$62,Resultate!$K$62='96'!$K$62)=TRUE,75,0)) -> 0 | BK8: =IF('96'!$O$13=Resultate!$O$13,100,0) -> 100 | BL8: =IF('96'!$Q$13=Resultate!$Q$13,100,0) -> 0 | BM8: =IF('96'!$O$20=Resultate!$O$20,100,0) -> 0 | BN8: =IF('96'!$Q$20=Resultate!$Q$20,100,0) -> 0 | BO8: =IF('96'!$O$27=Resultate!$O$27,100,0) -> 0 | BP8: =IF('96'!$Q$27=Resultate!$Q$27,100,0) -> 100 | BQ8: =IF('96'!$O$34=Resultate!$O$34,100,0) -> 0 | BR8: =IF('96'!$Q$34=Resultate!$Q$34,100,0) -> 0 | BS8: =IF('96'!$O$40=Resultate!$O$40,100,0) -> 0 | BT8: =IF('96'!$Q$40=Resultate!$Q$40,100,0) -> 0 | BU8: =IF('96'!$O$47=Resultate!$O$47,100,0) -> 0 | BV8: =IF('96'!$Q$47=Resultate!$Q$47,100,0) -> 0 | BW8: =IF('96'!$O$54=Resultate!$O$54,100,0) -> 0 | BX8: =IF('96'!$Q$54=Resultate!$Q$54,100,0) -> 0 | BY8: =IF('96'!$O$61=Resultate!$O$61,100,0) -> 0 | BZ8: =IF('96'!$Q$61=Resultate!$Q$61,100,0) -> 0 | CA8: =VALUE(IF('96'!$X$13=Resultate!$X$13,150,0))+IF(AND(Resultate!$O$13='96'!$O$13,Resultate!$Q$13='96'!$Q$13,Resultate!$S$13='96'!$S$13,Resultate!$U$13='96'!$U$13)=TRUE,75,0) -> 0 | CB8: =VALUE(IF('96'!$Z$13=Resultate!$Z$13,150,0))+IF(AND(Resultate!$O$20='96'!$O$20,Resultate!$Q$20='96'!$Q$20,Resultate!$S$20='96'!$S$20,Resultate!$U$20='96'!$U$20)=TRUE,75,0) -> 0 | CC8: =VALUE(IF('96'!$X$19=Resultate!$X$19,150,0))+IF(AND(Resultate!$O$40='96'!$O$40,Resultate!$Q$40='96'!$Q$40,Resultate!$S$40='96'!$S$40,Resultate!$U$40='96'!$U$40)=TRUE,75,0) -> 0 | CD8: =VALUE(IF('96'!$Z$19=Resultate!$Z$19,150,0))+IF(AND(Resultate!$O$47='96'!$O$47,Resultate!$Q$47='96'!$Q$47,Resultate!$S$47='96'!$S$47,Resultate!$U$47='96'!$U$47)=TRUE,75,0) -> 0 | CE8: =VALUE(IF('96'!$X$25=Resultate!$X$25,150,0))+IF(AND(Resultate!$O$27='96'!$O$27,Resultate!$Q$27='96'!$Q$27,Resultate!$S$27='96'!$S$27,Resultate!$U$27='96'!$U$27)=TRUE,75,0) -> 0 | CF8: =VALUE(IF('96'!$Z$25=Resultate!$Z$25,150,0))+IF(AND(Resultate!$O$34='96'!$O$34,Resultate!$Q$34='96'!$Q$34,Resultate!$S$34='96'!$S$34,Resultate!$U$34='96'!$U$34)=TRUE,75,0) -> 0 | CG8: =VALUE(IF('96'!$X$31=Resultate!$X$31,150,0))+IF(AND(Resultate!$O$54='96'!$O$54,Resultate!$Q$54='96'!$Q$54,Resultate!$S$54='96'!$S$54,Resultate!$U$54='96'!$U$54)=TRUE,75,0) -> 0 | CH8: =VALUE(IF('96'!$Z$31=Resultate!$Z$31,150,0))+IF(AND(Resultate!$O$61='96'!$O$61,Resultate!$Q$61='96'!$Q$61,Resultate!$S$61='96'!$S$61,Resultate!$U$61='96'!$U$61)=TRUE,75,0) -> 0 | CI8: ='96'!$X$48 -> Frankreich | CJ8: =VALUE(IF('96'!$X$48=Resultate!$X$48,200,0))+IF(AND(Resultate!$X$13='96'!$X$13,Resultate!$Z$13='96'!$Z$13,Resultate!$AB$13='96'!$AB$13,Resultate!$AD$13='96'!$AD$13)=TRUE,75,0) -> 0 | CK8: ='96'!$Z$48 -> Brasilien | CL8: =VALUE(IF('96'!$Z$48=Resultate!$Z$48,200,0))+IF(AND(Resultate!$X$19='96'!$X$19,Resultate!$Z$19='96'!$Z$19,Resultate!$AB$19='96'!$AB$19,Resultate!$AD$19='96'!$AD$19)=TRUE,75,0) -> 0 | CM8: ='96'!$X$54 -> Spanien | CN8: =VALUE(IF('96'!$X$54=Resultate!$X$54,200,0))+IF(AND(Resultate!$X$25='96'!$X$25,Resultate!$Z$25='96'!$Z$25,Resultate!$AB$25='96'!$AB$25,Resultate!$AD$25='96'!$AD$25)=TRUE,75,0) -> 0 | CO8: ='96'!$Z$54 -> Schweiz | CP8: =VALUE(IF('96'!$Z$54=Resultate!$Z$54,200,0))+IF(AND(Resultate!$X$31='96'!$X$31,Resultate!$Z$31='96'!$Z$31,Resultate!$AB$31='96'!$AB$31,Resultate!$AD$31='96'!$AD$31)=TRUE,75,0) -> 0 | CQ8: ='96'!$AG$8 -> Brasilien | CR8: =IF((OR('96'!$AG$8=Resultate!$AG$8,'96'!$AI$8=Resultate!$AG$8))=TRUE,100,) -> 0 | CS8: ='96'!$AI$8 -> Schweiz | CT8: =IF((OR('96'!$AI$8=Resultate!$AI$8,'96'!$AI$8=Resultate!$AG$8))=TRUE,100,) -> 0 | CU8: ='96'!$AG$13 -> Brasilien | CV8: =IF('96'!$AG$13=Resultate!$AG$13,200,0) -> 0 | CW8: ='96'!$AG$22 -> Frankreich | CX8: =IF((OR('96'!$AG$22=Resultate!$AG$22,'96'!$AI$22=Resultate!$AG$22))=TRUE,250,)+IF((OR('96'!$AG$22=Resultate!$AG$22,'96'!$AI$22=Resultate!$AG$22))=TRUE,IF(AND(Resultate!$AB$48='96'!$AB$48,Resultate!$AD$48='96'!$AD$48)=TRUE,75,0),0) -> 0 | CY8: ='96'!$AI$22 -> Spanien | CZ8: =IF((OR('96'!$AG$22=Resultate!$AI$22,'96'!$AI$22=Resultate!$AI$22))=TRUE,250,)+IF((OR('96'!$AG$22=Resultate!$AG$22,'96'!$AI$22=Resultate!$AG$22))=TRUE,IF(AND(Resultate!$AB$54='96'!$AB$54,Resultate!$AD$54='96'!$AD$54)=TRUE,75,0),0) -> 0 | DA8: ='96'!$AG$27 -> Frankreich | DB8: =IF('96'!$AG$27=Resultate!$AG$27,300,0) -> 0 | DE8: ='96'!$AN$33 -> 180
A9: 4 | B9: 18 | C9: ='18'!$AH$35 -> Vils Marco | D9: ='18'!$AH$39 -> vils.m@gmx.ch | E9: =SUM(F9:M9) -> 2225 | F9: =SUM(O9:BJ9) -> 2025 | G9: =SUM(BK9:BZ9) -> 200 | H9: =SUM(CA9:CH9) -> 0 | I9: =SUM(CJ9:CP9) -> 0 | J9: =SUM(CR9:CV9) -> 0 | K9: =SUM(CX9:CZ9) -> 0 | L9: =DB9 -> 0 | M9: =IF(DC9="",0,DC9) -> 0 | N9: ='18'!$AN$33 -> 207 | O9: =IF(Resultate!$K$8="",0,IF('18'!$L$8=Resultate!$L$8,75,0)+IF(AND(Resultate!$I$8='18'!$I$8,Resultate!$K$8='18'!$K$8)=TRUE,75,0)) -> 0 | P9: =IF(Resultate!$K$9="",0,IF('18'!$L$9=Resultate!$L$9,75,0)+IF(AND(Resultate!$I$9='18'!$I$9,Resultate!$K$9='18'!$K$9)=TRUE,75,0)) -> 75 | Q9: =IF(Resultate!$K$15="",0,IF('18'!$L$15=Resultate!$L$15,75,0)+IF(AND(Resultate!$I$15='18'!$I$15,Resultate!$K$15='18'!$K$15)=TRUE,75,0)) -> 75 | R9: =IF(Resultate!$K$16="",0,IF('18'!$L$16=Resultate!$L$16,75,0)+IF(AND(Resultate!$I$16='18'!$I$16,Resultate!$K$16='18'!$K$16)=TRUE,75,0)) -> 0 | S9: =IF(Resultate!$K$22="",0,IF('18'!$L$22=Resultate!$L$22,75,0)+IF(AND(Resultate!$I$22='18'!$I$22,Resultate!$K$22='18'!$K$22)=TRUE,75,0)) -> 75 | T9: =IF(Resultate!$K$23="",0,IF('18'!$L$23=Resultate!$L$23,75,0)+IF(AND(Resultate!$I$23='18'!$I$23,Resultate!$K$23='18'!$K$23)=TRUE,75,0)) -> 0 | U9: =IF(Resultate!$K$29="",0,IF('18'!$L$29=Resultate!$L$29,75,0)+IF(AND(Resultate!$I$29='18'!$I$29,Resultate!$K$29='18'!$K$29)=TRUE,75,0)) -> 0 | V9: =IF(Resultate!$K$30="",0,IF('18'!$L$30=Resultate!$L$30,75,0)+IF(AND(Resultate!$I$30='18'!$I$30,Resultate!$K$30='18'!$K$30)=TRUE,75,0)) -> 0 | W9: =IF(Resultate!$K$36="",0,IF('18'!$L$36=Resultate!$L$36,75,0)+IF(AND(Resultate!$I$36='18'!$I$36,Resultate!$K$36='18'!$K$36)=TRUE,75,0)) -> 150 | X9: =IF(Resultate!$K$37="",0,IF('18'!$L$37=Resultate!$L$37,75,0)+IF(AND(Resultate!$I$37='18'!$I$37,Resultate!$K$37='18'!$K$37)=TRUE,75,0)) -> 0 | Y9: =IF(Resultate!$K$43="",0,IF('18'!$L$43=Resultate!$L$43,75,0)+IF(AND(Resultate!$I$43='18'!$I$43,Resultate!$K$43='18'!$K$43)=TRUE,75,0)) -> 0 | Z9: =IF(Resultate!$K$44="",0,IF('18'!$L$44=Resultate!$L$44,75,0)+IF(AND(Resultate!$I$44='18'!$I$44,Resultate!$K$44='18'!$K$44)=TRUE,75,0)) -> 75 | AA9: =IF(Resultate!$K$50="",0,IF('18'!$L$50=Resultate!$L$50,75,0)+IF(AND(Resultate!$I$50='18'!$I$50,Resultate!$K$50='18'!$K$50)=TRUE,75,0)) -> 150 | AB9: =IF(Resultate!$K$51="",0,IF('18'!$L$51=Resultate!$L$51,75,0)+IF(AND(Resultate!$I$51='18'!$I$51,Resultate!$K$51='18'!$K$51)=TRUE,75,0)) -> 150 | AC9: =IF(Resultate!$K$57="",0,IF('18'!$L$57=Resultate!$L$57,75,0)+IF(AND(Resultate!$I$57='18'!$I$57,Resultate!$K$57='18'!$K$57)=TRUE,75,0)) -> 0 | AD9: =IF(Resultate!$K$58="",0,IF('18'!$L$58=Resultate!$L$58,75,0)+IF(AND(Resultate!$I$58='18'!$I$58,Resultate!$K$58='18'!$K$58)=TRUE,75,0)) -> 0 | AE9: =IF(Resultate!$K$10="",0,IF('18'!$L$10=Resultate!$L$10,75,0)+IF(AND(Resultate!$I$10='18'!$I$10,Resultate!$K$10='18'!$K$10)=TRUE,75,0)) -> 75 | AF9: =IF(Resultate!$K$11="",0,IF('18'!$L$11=Resultate!$L$11,75,0)+IF(AND(Resultate!$I$11='18'!$I$11,Resultate!$K$11='18'!$K$11)=TRUE,75,0)) -> 75 | AG9: =IF(Resultate!$K$17="",0,IF('18'!$L$17=Resultate!$L$17,75,0)+IF(AND(Resultate!$I$17='18'!$I$17,Resultate!$K$17='18'!$K$17)=TRUE,75,0)) -> 75 | AH9: =IF(Resultate!$K$18="",0,IF('18'!$L$18=Resultate!$L$18,75,0)+IF(AND(Resultate!$I$18='18'!$I$18,Resultate!$K$18='18'!$K$18)=TRUE,75,0)) -> 75 | AI9: =IF(Resultate!$K$31="",0,IF('18'!$L$31=Resultate!$L$31,75,0)+IF(AND(Resultate!$I$31='18'!$I$31,Resultate!$K$31='18'!$K$31)=TRUE,75,0)) -> 0 | AJ9: =IF(Resultate!$K$24="",0,IF('18'!$L$24=Resultate!$L$24,75,0)+IF(AND(Resultate!$I$24='18'!$I$24,Resultate!$K$24='18'!$K$24)=TRUE,75,0)) -> 75 | AK9: =IF(Resultate!$K$25="",0,IF('18'!$L$25=Resultate!$L$25,75,0)+IF(AND(Resultate!$I$25='18'!$I$25,Resultate!$K$25='18'!$K$25)=TRUE,75,0)) -> 75 | AL9: =IF(Resultate!$K$32="",0,IF('18'!$L$32=Resultate!$L$32,75,0)+IF(AND(Resultate!$I$32='18'!$I$32,Resultate!$K$32='18'!$K$32)=TRUE,75,0)) -> 0 | AM9: =IF(Resultate!$K$38="",0,IF('18'!$L$38=Resultate!$L$38,75,0)+IF(AND(Resultate!$I$38='18'!$I$38,Resultate!$K$38='18'!$K$38)=TRUE,75,0)) -> 150 | AN9: =IF(Resultate!$K$39="",0,IF('18'!$L$39=Resultate!$L$39,75,0)+IF(AND(Resultate!$I$39='18'!$I$39,Resultate!$K$39='18'!$K$39)=TRUE,75,0)) -> 150 | AO9: =IF(Resultate!$K$45="",0,IF('18'!$L$45=Resultate!$L$45,75,0)+IF(AND(Resultate!$I$45='18'!$I$45,Resultate!$K$45='18'!$K$45)=TRUE,75,0)) -> 75 | AP9: =IF(Resultate!$K$46="",0,IF('18'!$L$46=Resultate!$L$46,75,0)+IF(AND(Resultate!$I$46='18'!$I$46,Resultate!$K$46='18'!$K$46)=TRUE,75,0)) -> 0 | AQ9: =IF(Resultate!$K$52="",0,IF('18'!$L$52=Resultate!$L$52,75,0)+IF(AND(Resultate!$I$52='18'!$I$52,Resultate!$K$52='18'!$K$52)=TRUE,75,0)) -> 75 | AR9: =IF(Resultate!$K$53="",0,IF('18'!$L$53=Resultate!$L$53,75,0)+IF(AND(Resultate!$I$53='18'!$I$53,Resultate!$K$53='18'!$K$53)=TRUE,75,0)) -> 75 | AS9: =IF(Resultate!$K$59="",0,IF('18'!$L$59=Resultate!$L$59,75,0)+IF(AND(Resultate!$I$59='18'!$I$59,Resultate!$K$59='18'!$K$59)=TRUE,75,0)) -> 150 | AT9: =IF(Resultate!$K$60="",0,IF('18'!$L$60=Resultate!$L$60,75,0)+IF(AND(Resultate!$I$60='18'!$I$60,Resultate!$K$60='18'!$K$60)=TRUE,75,0)) -> 75 | AU9: =IF(Resultate!$K$12="",0,IF('18'!$L$12=Resultate!$L$12,75,0)+IF(AND(Resultate!$I$12='18'!$I$12,Resultate!$K$12='18'!$K$12)=TRUE,75,0)) -> 75 | AV9: =IF(Resultate!$K$13="",0,IF('18'!$L$13=Resultate!$L$13,75,0)+IF(AND(Resultate!$I$13='18'!$I$13,Resultate!$K$13='18'!$K$13)=TRUE,75,0)) -> 0 | AW9: =IF(Resultate!$K$19="",0,IF('18'!$L$19=Resultate!$L$19,75,0)+IF(AND(Resultate!$I$19='18'!$I$19,Resultate!$K$19='18'!$K$19)=TRUE,75,0)) -> 0 | AX9: =IF(Resultate!$K$20="",0,IF('18'!$L$20=Resultate!$L$20,75,0)+IF(AND(Resultate!$I$20='18'!$I$20,Resultate!$K$20='18'!$K$20)=TRUE,75,0)) -> 0 | AY9: =IF(Resultate!$K$26="",0,IF('18'!$L$26=Resultate!$L$26,75,0)+IF(AND(Resultate!$I$26='18'!$I$26,Resultate!$K$26='18'!$K$26)=TRUE,75,0)) -> 0 | AZ9: =IF(Resultate!$K$27="",0,IF('18'!$L$27=Resultate!$L$27,75,0)+IF(AND(Resultate!$I$27='18'!$I$27,Resultate!$K$27='18'!$K$27)=TRUE,75,0)) -> 0 | BA9: =IF(Resultate!$K$33="",0,IF('18'!$L$33=Resultate!$L$33,75,0)+IF(AND(Resultate!$I$33='18'!$I$33,Resultate!$K$33='18'!$K$33)=TRUE,75,0)) -> 0 | BB9: =IF(Resultate!$K$34="",0,IF('18'!$L$34=Resultate!$L$34,75,0)+IF(AND(Resultate!$I$34='18'!$I$34,Resultate!$K$34='18'!$K$34)=TRUE,75,0)) -> 0 | BC9: =IF(Resultate!$K$47="",0,IF('18'!$L$47=Resultate!$L$47,75,0)+IF(AND(Resultate!$I$47='18'!$I$47,Resultate!$K$47='18'!$K$47)=TRUE,75,0)) -> 0 | BD9: =IF(Resultate!$K$48="",0,IF('18'!$L$48=Resultate!$L$48,75,0)+IF(AND(Resultate!$I$48='18'!$I$48,Resultate!$K$48='18'!$K$48)=TRUE,75,0)) -> 0 | BE9: =IF(Resultate!$K$40="",0,IF('18'!$L$40=Resultate!$L$40,75,0)+IF(AND(Resultate!$I$40='18'!$I$40,Resultate!$K$40='18'!$K$40)=TRUE,75,0)) -> 0 | BF9: =IF(Resultate!$K$41="",0,IF('18'!$L$41=Resultate!$L$41,75,0)+IF(AND(Resultate!$I$41='18'!$I$41,Resultate!$K$41='18'!$K$41)=TRUE,75,0)) -> 0 | BG9: =IF(Resultate!$K$54="",0,IF('18'!$L$54=Resultate!$L$54,75,0)+IF(AND(Resultate!$I$54='18'!$I$54,Resultate!$K$54='18'!$K$54)=TRUE,75,0)) -> 0 | BH9: =IF(Resultate!$K$55="",0,IF('18'!$L$55=Resultate!$L$55,75,0)+IF(AND(Resultate!$I$55='18'!$I$55,Resultate!$K$55='18'!$K$55)=TRUE,75,0)) -> 0 | BI9: =IF(Resultate!$K$61="",0,IF('18'!$L$61=Resultate!$L$61,75,0)+IF(AND(Resultate!$I$61='18'!$I$61,Resultate!$K$61='18'!$K$61)=TRUE,75,0)) -> 0 | BJ9: =IF(Resultate!$K$62="",0,IF('18'!$L$62=Resultate!$L$62,75,0)+IF(AND(Resultate!$I$62='18'!$I$62,Resultate!$K$62='18'!$K$62)=TRUE,75,0)) -> 0 | BK9: =IF('18'!$O$13=Resultate!$O$13,100,0) -> 100 | BL9: =IF('18'!$Q$13=Resultate!$Q$13,100,0) -> 0 | BM9: =IF('18'!$O$20=Resultate!$O$20,100,0) -> 0 | BN9: =IF('18'!$Q$20=Resultate!$Q$20,100,0) -> 0 | BO9: =IF('18'!$O$27=Resultate!$O$27,100,0) -> 0 | BP9: =IF('18'!$Q$27=Resultate!$Q$27,100,0) -> 100 | BQ9: =IF('18'!$O$34=Resultate!$O$34,100,0) -> 0 | BR9: =IF('18'!$Q$34=Resultate!$Q$34,100,0) -> 0 | BS9: =IF('18'!$O$40=Resultate!$O$40,100,0) -> 0 | BT9: =IF('18'!$Q$40=Resultate!$Q$40,100,0) -> 0 | BU9: =IF('18'!$O$47=Resultate!$O$47,100,0) -> 0 | BV9: =IF('18'!$Q$47=Resultate!$Q$47,100,0) -> 0 | BW9: =IF('18'!$O$54=Resultate!$O$54,100,0) -> 0 | BX9: =IF('18'!$Q$54=Resultate!$Q$54,100,0) -> 0 | BY9: =IF('18'!$O$61=Resultate!$O$61,100,0) -> 0 | BZ9: =IF('18'!$Q$61=Resultate!$Q$61,100,0) -> 0 | CA9: =VALUE(IF('18'!$X$13=Resultate!$X$13,150,0))+IF(AND(Resultate!$O$13='18'!$O$13,Resultate!$Q$13='18'!$Q$13,Resultate!$S$13='18'!$S$13,Resultate!$U$13='18'!$U$13)=TRUE,75,0) -> 0 | CB9: =VALUE(IF('18'!$Z$13=Resultate!$Z$13,150,0))+IF(AND(Resultate!$O$20='18'!$O$20,Resultate!$Q$20='18'!$Q$20,Resultate!$S$20='18'!$S$20,Resultate!$U$20='18'!$U$20)=TRUE,75,0) -> 0 | CC9: =VALUE(IF('18'!$X$19=Resultate!$X$19,150,0))+IF(AND(Resultate!$O$40='18'!$O$40,Resultate!$Q$40='18'!$Q$40,Resultate!$S$40='18'!$S$40,Resultate!$U$40='18'!$U$40)=TRUE,75,0) -> 0 | CD9: =VALUE(IF('18'!$Z$19=Resultate!$Z$19,150,0))+IF(AND(Resultate!$O$47='18'!$O$47,Resultate!$Q$47='18'!$Q$47,Resultate!$S$47='18'!$S$47,Resultate!$U$47='18'!$U$47)=TRUE,75,0) -> 0 | CE9: =VALUE(IF('18'!$X$25=Resultate!$X$25,150,0))+IF(AND(Resultate!$O$27='18'!$O$27,Resultate!$Q$27='18'!$Q$27,Resultate!$S$27='18'!$S$27,Resultate!$U$27='18'!$U$27)=TRUE,75,0) -> 0 | CF9: =VALUE(IF('18'!$Z$25=Resultate!$Z$25,150,0))+IF(AND(Resultate!$O$34='18'!$O$34,Resultate!$Q$34='18'!$Q$34,Resultate!$S$34='18'!$S$34,Resultate!$U$34='18'!$U$34)=TRUE,75,0) -> 0 | CG9: =VALUE(IF('18'!$X$31=Resultate!$X$31,150,0))+IF(AND(Resultate!$O$54='18'!$O$54,Resultate!$Q$54='18'!$Q$54,Resultate!$S$54='18'!$S$54,Resultate!$U$54='18'!$U$54)=TRUE,75,0) -> 0 | CH9: =VALUE(IF('18'!$Z$31=Resultate!$Z$31,150,0))+IF(AND(Resultate!$O$61='18'!$O$61,Resultate!$Q$61='18'!$Q$61,Resultate!$S$61='18'!$S$61,Resultate!$U$61='18'!$U$61)=TRUE,75,0) -> 0 | CI9: ='18'!$X$48 -> Portugal | CJ9: =VALUE(IF('18'!$X$48=Resultate!$X$48,200,0))+IF(AND(Resultate!$X$13='18'!$X$13,Resultate!$Z$13='18'!$Z$13,Resultate!$AB$13='18'!$AB$13,Resultate!$AD$13='18'!$AD$13)=TRUE,75,0) -> 0 | CK9: ='18'!$Z$48 -> Brasilien | CL9: =VALUE(IF('18'!$Z$48=Resultate!$Z$48,200,0))+IF(AND(Resultate!$X$19='18'!$X$19,Resultate!$Z$19='18'!$Z$19,Resultate!$AB$19='18'!$AB$19,Resultate!$AD$19='18'!$AD$19)=TRUE,75,0) -> 0 | CM9: ='18'!$X$54 -> Spanien | CN9: =VALUE(IF('18'!$X$54=Resultate!$X$54,200,0))+IF(AND(Resultate!$X$25='18'!$X$25,Resultate!$Z$25='18'!$Z$25,Resultate!$AB$25='18'!$AB$25,Resultate!$AD$25='18'!$AD$25)=TRUE,75,0) -> 0 | CO9: ='18'!$Z$54 -> Schweiz | CP9: =VALUE(IF('18'!$Z$54=Resultate!$Z$54,200,0))+IF(AND(Resultate!$X$31='18'!$X$31,Resultate!$Z$31='18'!$Z$31,Resultate!$AB$31='18'!$AB$31,Resultate!$AD$31='18'!$AD$31)=TRUE,75,0) -> 0 | CQ9: ='18'!$AG$8 -> Brasilien | CR9: =IF((OR('18'!$AG$8=Resultate!$AG$8,'18'!$AI$8=Resultate!$AG$8))=TRUE,100,) -> 0 | CS9: ='18'!$AI$8 -> Schweiz | CT9: =IF((OR('18'!$AI$8=Resultate!$AI$8,'18'!$AI$8=Resultate!$AG$8))=TRUE,100,) -> 0 | CU9: ='18'!$AG$13 -> Brasilien | CV9: =IF('18'!$AG$13=Resultate!$AG$13,200,0) -> 0 | CW9: ='18'!$AG$22 -> Portugal | CX9: =IF((OR('18'!$AG$22=Resultate!$AG$22,'18'!$AI$22=Resultate!$AG$22))=TRUE,250,)+IF((OR('18'!$AG$22=Resultate!$AG$22,'18'!$AI$22=Resultate!$AG$22))=TRUE,IF(AND(Resultate!$AB$48='18'!$AB$48,Resultate!$AD$48='18'!$AD$48)=TRUE,75,0),0) -> 0 | CY9: ='18'!$AI$22 -> Spanien | CZ9: =IF((OR('18'!$AG$22=Resultate!$AI$22,'18'!$AI$22=Resultate!$AI$22))=TRUE,250,)+IF((OR('18'!$AG$22=Resultate!$AG$22,'18'!$AI$22=Resultate!$AG$22))=TRUE,IF(AND(Resultate!$AB$54='18'!$AB$54,Resultate!$AD$54='18'!$AD$54)=TRUE,75,0),0) -> 0 | DA9: ='18'!$AG$27 -> Portugal | DB9: =IF('18'!$AG$27=Resultate!$AG$27,300,0) -> 0 | DE9: ='18'!$AN$33 -> 207
A10: 5 | B10: 27 | C10: ='27'!$AH$35 -> Brandi Gianni | D10: ='27'!$AH$39 -> gibra_72@hotmail.com | E10: =SUM(F10:M10) -> 2225 | F10: =SUM(O10:BJ10) -> 2025 | G10: =SUM(BK10:BZ10) -> 200 | H10: =SUM(CA10:CH10) -> 0 | I10: =SUM(CJ10:CP10) -> 0 | J10: =SUM(CR10:CV10) -> 0 | K10: =SUM(CX10:CZ10) -> 0 | L10: =DB10 -> 0 | M10: =IF(DC10="",0,DC10) -> 0 | N10: ='27'!$AN$33 -> 112 | O10: =IF(Resultate!$K$8="",0,IF('27'!$L$8=Resultate!$L$8,75,0)+IF(AND(Resultate!$I$8='27'!$I$8,Resultate!$K$8='27'!$K$8)=TRUE,75,0)) -> 75 | P10: =IF(Resultate!$K$9="",0,IF('27'!$L$9=Resultate!$L$9,75,0)+IF(AND(Resultate!$I$9='27'!$I$9,Resultate!$K$9='27'!$K$9)=TRUE,75,0)) -> 75 | Q10: =IF(Resultate!$K$15="",0,IF('27'!$L$15=Resultate!$L$15,75,0)+IF(AND(Resultate!$I$15='27'!$I$15,Resultate!$K$15='27'!$K$15)=TRUE,75,0)) -> 75 | R10: =IF(Resultate!$K$16="",0,IF('27'!$L$16=Resultate!$L$16,75,0)+IF(AND(Resultate!$I$16='27'!$I$16,Resultate!$K$16='27'!$K$16)=TRUE,75,0)) -> 0 | S10: =IF(Resultate!$K$22="",0,IF('27'!$L$22=Resultate!$L$22,75,0)+IF(AND(Resultate!$I$22='27'!$I$22,Resultate!$K$22='27'!$K$22)=TRUE,75,0)) -> 75 | T10: =IF(Resultate!$K$23="",0,IF('27'!$L$23=Resultate!$L$23,75,0)+IF(AND(Resultate!$I$23='27'!$I$23,Resultate!$K$23='27'!$K$23)=TRUE,75,0)) -> 150 | U10: =IF(Resultate!$K$29="",0,IF('27'!$L$29=Resultate!$L$29,75,0)+IF(AND(Resultate!$I$29='27'!$I$29,Resultate!$K$29='27'!$K$29)=TRUE,75,0)) -> 0 | V10: =IF(Resultate!$K$30="",0,IF('27'!$L$30=Resultate!$L$30,75,0)+IF(AND(Resultate!$I$30='27'!$I$30,Resultate!$K$30='27'!$K$30)=TRUE,75,0)) -> 75 | W10: =IF(Resultate!$K$36="",0,IF('27'!$L$36=Resultate!$L$36,75,0)+IF(AND(Resultate!$I$36='27'!$I$36,Resultate!$K$36='27'!$K$36)=TRUE,75,0)) -> 150 | X10: =IF(Resultate!$K$37="",0,IF('27'!$L$37=Resultate!$L$37,75,0)+IF(AND(Resultate!$I$37='27'!$I$37,Resultate!$K$37='27'!$K$37)=TRUE,75,0)) -> 0 | Y10: =IF(Resultate!$K$43="",0,IF('27'!$L$43=Resultate!$L$43,75,0)+IF(AND(Resultate!$I$43='27'!$I$43,Resultate!$K$43='27'!$K$43)=TRUE,75,0)) -> 0 | Z10: =IF(Resultate!$K$44="",0,IF('27'!$L$44=Resultate!$L$44,75,0)+IF(AND(Resultate!$I$44='27'!$I$44,Resultate!$K$44='27'!$K$44)=TRUE,75,0)) -> 150 | AA10: =IF(Resultate!$K$50="",0,IF('27'!$L$50=Resultate!$L$50,75,0)+IF(AND(Resultate!$I$50='27'!$I$50,Resultate!$K$50='27'!$K$50)=TRUE,75,0)) -> 75 | AB10: =IF(Resultate!$K$51="",0,IF('27'!$L$51=Resultate!$L$51,75,0)+IF(AND(Resultate!$I$51='27'!$I$51,Resultate!$K$51='27'!$K$51)=TRUE,75,0)) -> 75 | AC10: =IF(Resultate!$K$57="",0,IF('27'!$L$57=Resultate!$L$57,75,0)+IF(AND(Resultate!$I$57='27'!$I$57,Resultate!$K$57='27'!$K$57)=TRUE,75,0)) -> 150 | AD10: =IF(Resultate!$K$58="",0,IF('27'!$L$58=Resultate!$L$58,75,0)+IF(AND(Resultate!$I$58='27'!$I$58,Resultate!$K$58='27'!$K$58)=TRUE,75,0)) -> 0 | AE10: =IF(Resultate!$K$10="",0,IF('27'!$L$10=Resultate!$L$10,75,0)+IF(AND(Resultate!$I$10='27'!$I$10,Resultate!$K$10='27'!$K$10)=TRUE,75,0)) -> 0 | AF10: =IF(Resultate!$K$11="",0,IF('27'!$L$11=Resultate!$L$11,75,0)+IF(AND(Resultate!$I$11='27'!$I$11,Resultate!$K$11='27'!$K$11)=TRUE,75,0)) -> 75 | AG10: =IF(Resultate!$K$17="",0,IF('27'!$L$17=Resultate!$L$17,75,0)+IF(AND(Resultate!$I$17='27'!$I$17,Resultate!$K$17='27'!$K$17)=TRUE,75,0)) -> 75 | AH10: =IF(Resultate!$K$18="",0,IF('27'!$L$18=Resultate!$L$18,75,0)+IF(AND(Resultate!$I$18='27'!$I$18,Resultate!$K$18='27'!$K$18)=TRUE,75,0)) -> 75 | AI10: =IF(Resultate!$K$31="",0,IF('27'!$L$31=Resultate!$L$31,75,0)+IF(AND(Resultate!$I$31='27'!$I$31,Resultate!$K$31='27'!$K$31)=TRUE,75,0)) -> 0 | AJ10: =IF(Resultate!$K$24="",0,IF('27'!$L$24=Resultate!$L$24,75,0)+IF(AND(Resultate!$I$24='27'!$I$24,Resultate!$K$24='27'!$K$24)=TRUE,75,0)) -> 75 | AK10: =IF(Resultate!$K$25="",0,IF('27'!$L$25=Resultate!$L$25,75,0)+IF(AND(Resultate!$I$25='27'!$I$25,Resultate!$K$25='27'!$K$25)=TRUE,75,0)) -> 150 | AL10: =IF(Resultate!$K$32="",0,IF('27'!$L$32=Resultate!$L$32,75,0)+IF(AND(Resultate!$I$32='27'!$I$32,Resultate!$K$32='27'!$K$32)=TRUE,75,0)) -> 0 | AM10: =IF(Resultate!$K$38="",0,IF('27'!$L$38=Resultate!$L$38,75,0)+IF(AND(Resultate!$I$38='27'!$I$38,Resultate!$K$38='27'!$K$38)=TRUE,75,0)) -> 75 | AN10: =IF(Resultate!$K$39="",0,IF('27'!$L$39=Resultate!$L$39,75,0)+IF(AND(Resultate!$I$39='27'!$I$39,Resultate!$K$39='27'!$K$39)=TRUE,75,0)) -> 0 | AO10: =IF(Resultate!$K$45="",0,IF('27'!$L$45=Resultate!$L$45,75,0)+IF(AND(Resultate!$I$45='27'!$I$45,Resultate!$K$45='27'!$K$45)=TRUE,75,0)) -> 75 | AP10: =IF(Resultate!$K$46="",0,IF('27'!$L$46=Resultate!$L$46,75,0)+IF(AND(Resultate!$I$46='27'!$I$46,Resultate!$K$46='27'!$K$46)=TRUE,75,0)) -> 0 | AQ10: =IF(Resultate!$K$52="",0,IF('27'!$L$52=Resultate!$L$52,75,0)+IF(AND(Resultate!$I$52='27'!$I$52,Resultate!$K$52='27'!$K$52)=TRUE,75,0)) -> 75 | AR10: =IF(Resultate!$K$53="",0,IF('27'!$L$53=Resultate!$L$53,75,0)+IF(AND(Resultate!$I$53='27'!$I$53,Resultate!$K$53='27'!$K$53)=TRUE,75,0)) -> 75 | AS10: =IF(Resultate!$K$59="",0,IF('27'!$L$59=Resultate!$L$59,75,0)+IF(AND(Resultate!$I$59='27'!$I$59,Resultate!$K$59='27'!$K$59)=TRUE,75,0)) -> 75 | AT10: =IF(Resultate!$K$60="",0,IF('27'!$L$60=Resultate!$L$60,75,0)+IF(AND(Resultate!$I$60='27'!$I$60,Resultate!$K$60='27'!$K$60)=TRUE,75,0)) -> 0 | AU10: =IF(Resultate!$K$12="",0,IF('27'!$L$12=Resultate!$L$12,75,0)+IF(AND(Resultate!$I$12='27'!$I$12,Resultate!$K$12='27'!$K$12)=TRUE,75,0)) -> 75 | AV10: =IF(Resultate!$K$13="",0,IF('27'!$L$13=Resultate!$L$13,75,0)+IF(AND(Resultate!$I$13='27'!$I$13,Resultate!$K$13='27'!$K$13)=TRUE,75,0)) -> 0 | AW10: =IF(Resultate!$K$19="",0,IF('27'!$L$19=Resultate!$L$19,75,0)+IF(AND(Resultate!$I$19='27'!$I$19,Resultate!$K$19='27'!$K$19)=TRUE,75,0)) -> 0 | AX10: =IF(Resultate!$K$20="",0,IF('27'!$L$20=Resultate!$L$20,75,0)+IF(AND(Resultate!$I$20='27'!$I$20,Resultate!$K$20='27'!$K$20)=TRUE,75,0)) -> 0 | AY10: =IF(Resultate!$K$26="",0,IF('27'!$L$26=Resultate!$L$26,75,0)+IF(AND(Resultate!$I$26='27'!$I$26,Resultate!$K$26='27'!$K$26)=TRUE,75,0)) -> 0 | AZ10: =IF(Resultate!$K$27="",0,IF('27'!$L$27=Resultate!$L$27,75,0)+IF(AND(Resultate!$I$27='27'!$I$27,Resultate!$K$27='27'!$K$27)=TRUE,75,0)) -> 0 | BA10: =IF(Resultate!$K$33="",0,IF('27'!$L$33=Resultate!$L$33,75,0)+IF(AND(Resultate!$I$33='27'!$I$33,Resultate!$K$33='27'!$K$33)=TRUE,75,0)) -> 0 | BB10: =IF(Resultate!$K$34="",0,IF('27'!$L$34=Resultate!$L$34,75,0)+IF(AND(Resultate!$I$34='27'!$I$34,Resultate!$K$34='27'!$K$34)=TRUE,75,0)) -> 0 | BC10: =IF(Resultate!$K$47="",0,IF('27'!$L$47=Resultate!$L$47,75,0)+IF(AND(Resultate!$I$47='27'!$I$47,Resultate!$K$47='27'!$K$47)=TRUE,75,0)) -> 0 | BD10: =IF(Resultate!$K$48="",0,IF('27'!$L$48=Resultate!$L$48,75,0)+IF(AND(Resultate!$I$48='27'!$I$48,Resultate!$K$48='27'!$K$48)=TRUE,75,0)) -> 0 | BE10: =IF(Resultate!$K$40="",0,IF('27'!$L$40=Resultate!$L$40,75,0)+IF(AND(Resultate!$I$40='27'!$I$40,Resultate!$K$40='27'!$K$40)=TRUE,75,0)) -> 0 | BF10: =IF(Resultate!$K$41="",0,IF('27'!$L$41=Resultate!$L$41,75,0)+IF(AND(Resultate!$I$41='27'!$I$41,Resultate!$K$41='27'!$K$41)=TRUE,75,0)) -> 0 | BG10: =IF(Resultate!$K$54="",0,IF('27'!$L$54=Resultate!$L$54,75,0)+IF(AND(Resultate!$I$54='27'!$I$54,Resultate!$K$54='27'!$K$54)=TRUE,75,0)) -> 0 | BH10: =IF(Resultate!$K$55="",0,IF('27'!$L$55=Resultate!$L$55,75,0)+IF(AND(Resultate!$I$55='27'!$I$55,Resultate!$K$55='27'!$K$55)=TRUE,75,0)) -> 0 | BI10: =IF(Resultate!$K$61="",0,IF('27'!$L$61=Resultate!$L$61,75,0)+IF(AND(Resultate!$I$61='27'!$I$61,Resultate!$K$61='27'!$K$61)=TRUE,75,0)) -> 0 | BJ10: =IF(Resultate!$K$62="",0,IF('27'!$L$62=Resultate!$L$62,75,0)+IF(AND(Resultate!$I$62='27'!$I$62,Resultate!$K$62='27'!$K$62)=TRUE,75,0)) -> 0 | BK10: =IF('27'!$O$13=Resultate!$O$13,100,0) -> 100 | BL10: =IF('27'!$Q$13=Resultate!$Q$13,100,0) -> 0 | BM10: =IF('27'!$O$20=Resultate!$O$20,100,0) -> 0 | BN10: =IF('27'!$Q$20=Resultate!$Q$20,100,0) -> 0 | BO10: =IF('27'!$O$27=Resultate!$O$27,100,0) -> 0 | BP10: =IF('27'!$Q$27=Resultate!$Q$27,100,0) -> 100 | BQ10: =IF('27'!$O$34=Resultate!$O$34,100,0) -> 0 | BR10: =IF('27'!$Q$34=Resultate!$Q$34,100,0) -> 0 | BS10: =IF('27'!$O$40=Resultate!$O$40,100,0) -> 0 | BT10: =IF('27'!$Q$40=Resultate!$Q$40,100,0) -> 0 | BU10: =IF('27'!$O$47=Resultate!$O$47,100,0) -> 0 | BV10: =IF('27'!$Q$47=Resultate!$Q$47,100,0) -> 0 | BW10: =IF('27'!$O$54=Resultate!$O$54,100,0) -> 0 | BX10: =IF('27'!$Q$54=Resultate!$Q$54,100,0) -> 0 | BY10: =IF('27'!$O$61=Resultate!$O$61,100,0) -> 0 | BZ10: =IF('27'!$Q$61=Resultate!$Q$61,100,0) -> 0 | CA10: =VALUE(IF('27'!$X$13=Resultate!$X$13,150,0))+IF(AND(Resultate!$O$13='27'!$O$13,Resultate!$Q$13='27'!$Q$13,Resultate!$S$13='27'!$S$13,Resultate!$U$13='27'!$U$13)=TRUE,75,0) -> 0 | CB10: =VALUE(IF('27'!$Z$13=Resultate!$Z$13,150,0))+IF(AND(Resultate!$O$20='27'!$O$20,Resultate!$Q$20='27'!$Q$20,Resultate!$S$20='27'!$S$20,Resultate!$U$20='27'!$U$20)=TRUE,75,0) -> 0 | CC10: =VALUE(IF('27'!$X$19=Resultate!$X$19,150,0))+IF(AND(Resultate!$O$40='27'!$O$40,Resultate!$Q$40='27'!$Q$40,Resultate!$S$40='27'!$S$40,Resultate!$U$40='27'!$U$40)=TRUE,75,0) -> 0 | CD10: =VALUE(IF('27'!$Z$19=Resultate!$Z$19,150,0))+IF(AND(Resultate!$O$47='27'!$O$47,Resultate!$Q$47='27'!$Q$47,Resultate!$S$47='27'!$S$47,Resultate!$U$47='27'!$U$47)=TRUE,75,0) -> 0 | CE10: =VALUE(IF('27'!$X$25=Resultate!$X$25,150,0))+IF(AND(Resultate!$O$27='27'!$O$27,Resultate!$Q$27='27'!$Q$27,Resultate!$S$27='27'!$S$27,Resultate!$U$27='27'!$U$27)=TRUE,75,0) -> 0 | CF10: =VALUE(IF('27'!$Z$25=Resultate!$Z$25,150,0))+IF(AND(Resultate!$O$34='27'!$O$34,Resultate!$Q$34='27'!$Q$34,Resultate!$S$34='27'!$S$34,Resultate!$U$34='27'!$U$34)=TRUE,75,0) -> 0 | CG10: =VALUE(IF('27'!$X$31=Resultate!$X$31,150,0))+IF(AND(Resultate!$O$54='27'!$O$54,Resultate!$Q$54='27'!$Q$54,Resultate!$S$54='27'!$S$54,Resultate!$U$54='27'!$U$54)=TRUE,75,0) -> 0 | CH10: =VALUE(IF('27'!$Z$31=Resultate!$Z$31,150,0))+IF(AND(Resultate!$O$61='27'!$O$61,Resultate!$Q$61='27'!$Q$61,Resultate!$S$61='27'!$S$61,Resultate!$U$61='27'!$U$61)=TRUE,75,0) -> 0 | CI10: ='27'!$X$48 -> Frankreich | CJ10: =VALUE(IF('27'!$X$48=Resultate!$X$48,200,0))+IF(AND(Resultate!$X$13='27'!$X$13,Resultate!$Z$13='27'!$Z$13,Resultate!$AB$13='27'!$AB$13,Resultate!$AD$13='27'!$AD$13)=TRUE,75,0) -> 0 | CK10: ='27'!$Z$48 -> Brasilien | CL10: =VALUE(IF('27'!$Z$48=Resultate!$Z$48,200,0))+IF(AND(Resultate!$X$19='27'!$X$19,Resultate!$Z$19='27'!$Z$19,Resultate!$AB$19='27'!$AB$19,Resultate!$AD$19='27'!$AD$19)=TRUE,75,0) -> 0 | CM10: ='27'!$X$54 -> Spanien | CN10: =VALUE(IF('27'!$X$54=Resultate!$X$54,200,0))+IF(AND(Resultate!$X$25='27'!$X$25,Resultate!$Z$25='27'!$Z$25,Resultate!$AB$25='27'!$AB$25,Resultate!$AD$25='27'!$AD$25)=TRUE,75,0) -> 0 | CO10: ='27'!$Z$54 -> Deutschland | CP10: =VALUE(IF('27'!$Z$54=Resultate!$Z$54,200,0))+IF(AND(Resultate!$X$31='27'!$X$31,Resultate!$Z$31='27'!$Z$31,Resultate!$AB$31='27'!$AB$31,Resultate!$AD$31='27'!$AD$31)=TRUE,75,0) -> 0 | CQ10: ='27'!$AG$8 -> Brasilien | CR10: =IF((OR('27'!$AG$8=Resultate!$AG$8,'27'!$AI$8=Resultate!$AG$8))=TRUE,100,) -> 0 | CS10: ='27'!$AI$8 -> Deutschland | CT10: =IF((OR('27'!$AI$8=Resultate!$AI$8,'27'!$AI$8=Resultate!$AG$8))=TRUE,100,) -> 0 | CU10: ='27'!$AG$13 -> Brasilien | CV10: =IF('27'!$AG$13=Resultate!$AG$13,200,0) -> 0 | CW10: ='27'!$AG$22 -> Frankreich | CX10: =IF((OR('27'!$AG$22=Resultate!$AG$22,'27'!$AI$22=Resultate!$AG$22))=TRUE,250,)+IF((OR('27'!$AG$22=Resultate!$AG$22,'27'!$AI$22=Resultate!$AG$22))=TRUE,IF(AND(Resultate!$AB$48='27'!$AB$48,Resultate!$AD$48='27'!$AD$48)=TRUE,75,0),0) -> 0 | CY10: ='27'!$AI$22 -> Spanien | CZ10: =IF((OR('27'!$AG$22=Resultate!$AI$22,'27'!$AI$22=Resultate!$AI$22))=TRUE,250,)+IF((OR('27'!$AG$22=Resultate!$AG$22,'27'!$AI$22=Resultate!$AG$22))=TRUE,IF(AND(Resultate!$AB$54='27'!$AB$54,Resultate!$AD$54='27'!$AD$54)=TRUE,75,0),0) -> 0 | DA10: ='27'!$AG$27 -> Frankreich | DB10: =IF('27'!$AG$27=Resultate!$AG$27,300,0) -> 0 | DE10: ='27'!$AN$33 -> 112
A11: 6 | B11: 57 | C11: ='57'!$AH$35 -> Lutz René | D11: ='57'!$AH$39 -> rene.lutz69@bluewin.ch | E11: =SUM(F11:M11) -> 2225 | F11: =SUM(O11:BJ11) -> 2025 | G11: =SUM(BK11:BZ11) -> 200 | H11: =SUM(CA11:CH11) -> 0 | I11: =SUM(CJ11:CP11) -> 0 | J11: =SUM(CR11:CV11) -> 0 | K11: =SUM(CX11:CZ11) -> 0 | L11: =DB11 -> 0 | M11: =IF(DC11="",0,DC11) -> 0 | N11: ='57'!$AN$33 -> 184 | O11: =IF(Resultate!$K$8="",0,IF('57'!$L$8=Resultate!$L$8,75,0)+IF(AND(Resultate!$I$8='57'!$I$8,Resultate!$K$8='57'!$K$8)=TRUE,75,0)) -> 75 | P11: =IF(Resultate!$K$9="",0,IF('57'!$L$9=Resultate!$L$9,75,0)+IF(AND(Resultate!$I$9='57'!$I$9,Resultate!$K$9='57'!$K$9)=TRUE,75,0)) -> 150 | Q11: =IF(Resultate!$K$15="",0,IF('57'!$L$15=Resultate!$L$15,75,0)+IF(AND(Resultate!$I$15='57'!$I$15,Resultate!$K$15='57'!$K$15)=TRUE,75,0)) -> 75 | R11: =IF(Resultate!$K$16="",0,IF('57'!$L$16=Resultate!$L$16,75,0)+IF(AND(Resultate!$I$16='57'!$I$16,Resultate!$K$16='57'!$K$16)=TRUE,75,0)) -> 0 | S11: =IF(Resultate!$K$22="",0,IF('57'!$L$22=Resultate!$L$22,75,0)+IF(AND(Resultate!$I$22='57'!$I$22,Resultate!$K$22='57'!$K$22)=TRUE,75,0)) -> 75 | T11: =IF(Resultate!$K$23="",0,IF('57'!$L$23=Resultate!$L$23,75,0)+IF(AND(Resultate!$I$23='57'!$I$23,Resultate!$K$23='57'!$K$23)=TRUE,75,0)) -> 0 | U11: =IF(Resultate!$K$29="",0,IF('57'!$L$29=Resultate!$L$29,75,0)+IF(AND(Resultate!$I$29='57'!$I$29,Resultate!$K$29='57'!$K$29)=TRUE,75,0)) -> 0 | V11: =IF(Resultate!$K$30="",0,IF('57'!$L$30=Resultate!$L$30,75,0)+IF(AND(Resultate!$I$30='57'!$I$30,Resultate!$K$30='57'!$K$30)=TRUE,75,0)) -> 150 | W11: =IF(Resultate!$K$36="",0,IF('57'!$L$36=Resultate!$L$36,75,0)+IF(AND(Resultate!$I$36='57'!$I$36,Resultate!$K$36='57'!$K$36)=TRUE,75,0)) -> 0 | X11: =IF(Resultate!$K$37="",0,IF('57'!$L$37=Resultate!$L$37,75,0)+IF(AND(Resultate!$I$37='57'!$I$37,Resultate!$K$37='57'!$K$37)=TRUE,75,0)) -> 75 | Y11: =IF(Resultate!$K$43="",0,IF('57'!$L$43=Resultate!$L$43,75,0)+IF(AND(Resultate!$I$43='57'!$I$43,Resultate!$K$43='57'!$K$43)=TRUE,75,0)) -> 150 | Z11: =IF(Resultate!$K$44="",0,IF('57'!$L$44=Resultate!$L$44,75,0)+IF(AND(Resultate!$I$44='57'!$I$44,Resultate!$K$44='57'!$K$44)=TRUE,75,0)) -> 150 | AA11: =IF(Resultate!$K$50="",0,IF('57'!$L$50=Resultate!$L$50,75,0)+IF(AND(Resultate!$I$50='57'!$I$50,Resultate!$K$50='57'!$K$50)=TRUE,75,0)) -> 150 | AB11: =IF(Resultate!$K$51="",0,IF('57'!$L$51=Resultate!$L$51,75,0)+IF(AND(Resultate!$I$51='57'!$I$51,Resultate!$K$51='57'!$K$51)=TRUE,75,0)) -> 75 | AC11: =IF(Resultate!$K$57="",0,IF('57'!$L$57=Resultate!$L$57,75,0)+IF(AND(Resultate!$I$57='57'!$I$57,Resultate!$K$57='57'!$K$57)=TRUE,75,0)) -> 75 | AD11: =IF(Resultate!$K$58="",0,IF('57'!$L$58=Resultate!$L$58,75,0)+IF(AND(Resultate!$I$58='57'!$I$58,Resultate!$K$58='57'!$K$58)=TRUE,75,0)) -> 0 | AE11: =IF(Resultate!$K$10="",0,IF('57'!$L$10=Resultate!$L$10,75,0)+IF(AND(Resultate!$I$10='57'!$I$10,Resultate!$K$10='57'!$K$10)=TRUE,75,0)) -> 150 | AF11: =IF(Resultate!$K$11="",0,IF('57'!$L$11=Resultate!$L$11,75,0)+IF(AND(Resultate!$I$11='57'!$I$11,Resultate!$K$11='57'!$K$11)=TRUE,75,0)) -> 75 | AG11: =IF(Resultate!$K$17="",0,IF('57'!$L$17=Resultate!$L$17,75,0)+IF(AND(Resultate!$I$17='57'!$I$17,Resultate!$K$17='57'!$K$17)=TRUE,75,0)) -> 75 | AH11: =IF(Resultate!$K$18="",0,IF('57'!$L$18=Resultate!$L$18,75,0)+IF(AND(Resultate!$I$18='57'!$I$18,Resultate!$K$18='57'!$K$18)=TRUE,75,0)) -> 75 | AI11: =IF(Resultate!$K$31="",0,IF('57'!$L$31=Resultate!$L$31,75,0)+IF(AND(Resultate!$I$31='57'!$I$31,Resultate!$K$31='57'!$K$31)=TRUE,75,0)) -> 0 | AJ11: =IF(Resultate!$K$24="",0,IF('57'!$L$24=Resultate!$L$24,75,0)+IF(AND(Resultate!$I$24='57'!$I$24,Resultate!$K$24='57'!$K$24)=TRUE,75,0)) -> 75 | AK11: =IF(Resultate!$K$25="",0,IF('57'!$L$25=Resultate!$L$25,75,0)+IF(AND(Resultate!$I$25='57'!$I$25,Resultate!$K$25='57'!$K$25)=TRUE,75,0)) -> 0 | AL11: =IF(Resultate!$K$32="",0,IF('57'!$L$32=Resultate!$L$32,75,0)+IF(AND(Resultate!$I$32='57'!$I$32,Resultate!$K$32='57'!$K$32)=TRUE,75,0)) -> 0 | AM11: =IF(Resultate!$K$38="",0,IF('57'!$L$38=Resultate!$L$38,75,0)+IF(AND(Resultate!$I$38='57'!$I$38,Resultate!$K$38='57'!$K$38)=TRUE,75,0)) -> 75 | AN11: =IF(Resultate!$K$39="",0,IF('57'!$L$39=Resultate!$L$39,75,0)+IF(AND(Resultate!$I$39='57'!$I$39,Resultate!$K$39='57'!$K$39)=TRUE,75,0)) -> 0 | AO11: =IF(Resultate!$K$45="",0,IF('57'!$L$45=Resultate!$L$45,75,0)+IF(AND(Resultate!$I$45='57'!$I$45,Resultate!$K$45='57'!$K$45)=TRUE,75,0)) -> 75 | AP11: =IF(Resultate!$K$46="",0,IF('57'!$L$46=Resultate!$L$46,75,0)+IF(AND(Resultate!$I$46='57'!$I$46,Resultate!$K$46='57'!$K$46)=TRUE,75,0)) -> 0 | AQ11: =IF(Resultate!$K$52="",0,IF('57'!$L$52=Resultate!$L$52,75,0)+IF(AND(Resultate!$I$52='57'!$I$52,Resultate!$K$52='57'!$K$52)=TRUE,75,0)) -> 75 | AR11: =IF(Resultate!$K$53="",0,IF('57'!$L$53=Resultate!$L$53,75,0)+IF(AND(Resultate!$I$53='57'!$I$53,Resultate!$K$53='57'!$K$53)=TRUE,75,0)) -> 75 | AS11: =IF(Resultate!$K$59="",0,IF('57'!$L$59=Resultate!$L$59,75,0)+IF(AND(Resultate!$I$59='57'!$I$59,Resultate!$K$59='57'!$K$59)=TRUE,75,0)) -> 0 | AT11: =IF(Resultate!$K$60="",0,IF('57'!$L$60=Resultate!$L$60,75,0)+IF(AND(Resultate!$I$60='57'!$I$60,Resultate!$K$60='57'!$K$60)=TRUE,75,0)) -> 75 | AU11: =IF(Resultate!$K$12="",0,IF('57'!$L$12=Resultate!$L$12,75,0)+IF(AND(Resultate!$I$12='57'!$I$12,Resultate!$K$12='57'!$K$12)=TRUE,75,0)) -> 0 | AV11: =IF(Resultate!$K$13="",0,IF('57'!$L$13=Resultate!$L$13,75,0)+IF(AND(Resultate!$I$13='57'!$I$13,Resultate!$K$13='57'!$K$13)=TRUE,75,0)) -> 0 | AW11: =IF(Resultate!$K$19="",0,IF('57'!$L$19=Resultate!$L$19,75,0)+IF(AND(Resultate!$I$19='57'!$I$19,Resultate!$K$19='57'!$K$19)=TRUE,75,0)) -> 0 | AX11: =IF(Resultate!$K$20="",0,IF('57'!$L$20=Resultate!$L$20,75,0)+IF(AND(Resultate!$I$20='57'!$I$20,Resultate!$K$20='57'!$K$20)=TRUE,75,0)) -> 0 | AY11: =IF(Resultate!$K$26="",0,IF('57'!$L$26=Resultate!$L$26,75,0)+IF(AND(Resultate!$I$26='57'!$I$26,Resultate!$K$26='57'!$K$26)=TRUE,75,0)) -> 0 | AZ11: =IF(Resultate!$K$27="",0,IF('57'!$L$27=Resultate!$L$27,75,0)+IF(AND(Resultate!$I$27='57'!$I$27,Resultate!$K$27='57'!$K$27)=TRUE,75,0)) -> 0 | BA11: =IF(Resultate!$K$33="",0,IF('57'!$L$33=Resultate!$L$33,75,0)+IF(AND(Resultate!$I$33='57'!$I$33,Resultate!$K$33='57'!$K$33)=TRUE,75,0)) -> 0 | BB11: =IF(Resultate!$K$34="",0,IF('57'!$L$34=Resultate!$L$34,75,0)+IF(AND(Resultate!$I$34='57'!$I$34,Resultate!$K$34='57'!$K$34)=TRUE,75,0)) -> 0 | BC11: =IF(Resultate!$K$47="",0,IF('57'!$L$47=Resultate!$L$47,75,0)+IF(AND(Resultate!$I$47='57'!$I$47,Resultate!$K$47='57'!$K$47)=TRUE,75,0)) -> 0 | BD11: =IF(Resultate!$K$48="",0,IF('57'!$L$48=Resultate!$L$48,75,0)+IF(AND(Resultate!$I$48='57'!$I$48,Resultate!$K$48='57'!$K$48)=TRUE,75,0)) -> 0 | BE11: =IF(Resultate!$K$40="",0,IF('57'!$L$40=Resultate!$L$40,75,0)+IF(AND(Resultate!$I$40='57'!$I$40,Resultate!$K$40='57'!$K$40)=TRUE,75,0)) -> 0 | BF11: =IF(Resultate!$K$41="",0,IF('57'!$L$41=Resultate!$L$41,75,0)+IF(AND(Resultate!$I$41='57'!$I$41,Resultate!$K$41='57'!$K$41)=TRUE,75,0)) -> 0 | BG11: =IF(Resultate!$K$54="",0,IF('57'!$L$54=Resultate!$L$54,75,0)+IF(AND(Resultate!$I$54='57'!$I$54,Resultate!$K$54='57'!$K$54)=TRUE,75,0)) -> 0 | BH11: =IF(Resultate!$K$55="",0,IF('57'!$L$55=Resultate!$L$55,75,0)+IF(AND(Resultate!$I$55='57'!$I$55,Resultate!$K$55='57'!$K$55)=TRUE,75,0)) -> 0 | BI11: =IF(Resultate!$K$61="",0,IF('57'!$L$61=Resultate!$L$61,75,0)+IF(AND(Resultate!$I$61='57'!$I$61,Resultate!$K$61='57'!$K$61)=TRUE,75,0)) -> 0 | BJ11: =IF(Resultate!$K$62="",0,IF('57'!$L$62=Resultate!$L$62,75,0)+IF(AND(Resultate!$I$62='57'!$I$62,Resultate!$K$62='57'!$K$62)=TRUE,75,0)) -> 0 | BK11: =IF('57'!$O$13=Resultate!$O$13,100,0) -> 100 | BL11: =IF('57'!$Q$13=Resultate!$Q$13,100,0) -> 0 | BM11: =IF('57'!$O$20=Resultate!$O$20,100,0) -> 0 | BN11: =IF('57'!$Q$20=Resultate!$Q$20,100,0) -> 0 | BO11: =IF('57'!$O$27=Resultate!$O$27,100,0) -> 0 | BP11: =IF('57'!$Q$27=Resultate!$Q$27,100,0) -> 100 | BQ11: =IF('57'!$O$34=Resultate!$O$34,100,0) -> 0 | BR11: =IF('57'!$Q$34=Resultate!$Q$34,100,0) -> 0 | BS11: =IF('57'!$O$40=Resultate!$O$40,100,0) -> 0 | BT11: =IF('57'!$Q$40=Resultate!$Q$40,100,0) -> 0 | BU11: =IF('57'!$O$47=Resultate!$O$47,100,0) -> 0 | BV11: =IF('57'!$Q$47=Resultate!$Q$47,100,0) -> 0 | BW11: =IF('57'!$O$54=Resultate!$O$54,100,0) -> 0 | BX11: =IF('57'!$Q$54=Resultate!$Q$54,100,0) -> 0 | BY11: =IF('57'!$O$61=Resultate!$O$61,100,0) -> 0 | BZ11: =IF('57'!$Q$61=Resultate!$Q$61,100,0) -> 0 | CA11: =VALUE(IF('57'!$X$13=Resultate!$X$13,150,0))+IF(AND(Resultate!$O$13='57'!$O$13,Resultate!$Q$13='57'!$Q$13,Resultate!$S$13='57'!$S$13,Resultate!$U$13='57'!$U$13)=TRUE,75,0) -> 0 | CB11: =VALUE(IF('57'!$Z$13=Resultate!$Z$13,150,0))+IF(AND(Resultate!$O$20='57'!$O$20,Resultate!$Q$20='57'!$Q$20,Resultate!$S$20='57'!$S$20,Resultate!$U$20='57'!$U$20)=TRUE,75,0) -> 0 | CC11: =VALUE(IF('57'!$X$19=Resultate!$X$19,150,0))+IF(AND(Resultate!$O$40='57'!$O$40,Resultate!$Q$40='57'!$Q$40,Resultate!$S$40='57'!$S$40,Resultate!$U$40='57'!$U$40)=TRUE,75,0) -> 0 | CD11: =VALUE(IF('57'!$Z$19=Resultate!$Z$19,150,0))+IF(AND(Resultate!$O$47='57'!$O$47,Resultate!$Q$47='57'!$Q$47,Resultate!$S$47='57'!$S$47,Resultate!$U$47='57'!$U$47)=TRUE,75,0) -> 0 | CE11: =VALUE(IF('57'!$X$25=Resultate!$X$25,150,0))+IF(AND(Resultate!$O$27='57'!$O$27,Resultate!$Q$27='57'!$Q$27,Resultate!$S$27='57'!$S$27,Resultate!$U$27='57'!$U$27)=TRUE,75,0) -> 0 | CF11: =VALUE(IF('57'!$Z$25=Resultate!$Z$25,150,0))+IF(AND(Resultate!$O$34='57'!$O$34,Resultate!$Q$34='57'!$Q$34,Resultate!$S$34='57'!$S$34,Resultate!$U$34='57'!$U$34)=TRUE,75,0) -> 0 | CG11: =VALUE(IF('57'!$X$31=Resultate!$X$31,150,0))+IF(AND(Resultate!$O$54='57'!$O$54,Resultate!$Q$54='57'!$Q$54,Resultate!$S$54='57'!$S$54,Resultate!$U$54='57'!$U$54)=TRUE,75,0) -> 0 | CH11: =VALUE(IF('57'!$Z$31=Resultate!$Z$31,150,0))+IF(AND(Resultate!$O$61='57'!$O$61,Resultate!$Q$61='57'!$Q$61,Resultate!$S$61='57'!$S$61,Resultate!$U$61='57'!$U$61)=TRUE,75,0) -> 0 | CI11: ='57'!$X$48 -> Uruguay | CJ11: =VALUE(IF('57'!$X$48=Resultate!$X$48,200,0))+IF(AND(Resultate!$X$13='57'!$X$13,Resultate!$Z$13='57'!$Z$13,Resultate!$AB$13='57'!$AB$13,Resultate!$AD$13='57'!$AD$13)=TRUE,75,0) -> 0 | CK11: ='57'!$Z$48 -> Brasilien | CL11: =VALUE(IF('57'!$Z$48=Resultate!$Z$48,200,0))+IF(AND(Resultate!$X$19='57'!$X$19,Resultate!$Z$19='57'!$Z$19,Resultate!$AB$19='57'!$AB$19,Resultate!$AD$19='57'!$AD$19)=TRUE,75,0) -> 0 | CM11: ='57'!$X$54 -> Spanien | CN11: =VALUE(IF('57'!$X$54=Resultate!$X$54,200,0))+IF(AND(Resultate!$X$25='57'!$X$25,Resultate!$Z$25='57'!$Z$25,Resultate!$AB$25='57'!$AB$25,Resultate!$AD$25='57'!$AD$25)=TRUE,75,0) -> 0 | CO11: ='57'!$Z$54 -> Deutschland | CP11: =VALUE(IF('57'!$Z$54=Resultate!$Z$54,200,0))+IF(AND(Resultate!$X$31='57'!$X$31,Resultate!$Z$31='57'!$Z$31,Resultate!$AB$31='57'!$AB$31,Resultate!$AD$31='57'!$AD$31)=TRUE,75,0) -> 0 | CQ11: ='57'!$AG$8 -> Uruguay | CR11: =IF((OR('57'!$AG$8=Resultate!$AG$8,'57'!$AI$8=Resultate!$AG$8))=TRUE,100,) -> 0 | CS11: ='57'!$AI$8 -> Spanien | CT11: =IF((OR('57'!$AI$8=Resultate!$AI$8,'57'!$AI$8=Resultate!$AG$8))=TRUE,100,) -> 0 | CU11: ='57'!$AG$13 -> Uruguay | CV11: =IF('57'!$AG$13=Resultate!$AG$13,200,0) -> 0 | CW11: ='57'!$AG$22 -> Brasilien | CX11: =IF((OR('57'!$AG$22=Resultate!$AG$22,'57'!$AI$22=Resultate!$AG$22))=TRUE,250,)+IF((OR('57'!$AG$22=Resultate!$AG$22,'57'!$AI$22=Resultate!$AG$22))=TRUE,IF(AND(Resultate!$AB$48='57'!$AB$48,Resultate!$AD$48='57'!$AD$48)=TRUE,75,0),0) -> 0 | CY11: ='57'!$AI$22 -> Deutschland | CZ11: =IF((OR('57'!$AG$22=Resultate!$AI$22,'57'!$AI$22=Resultate!$AI$22))=TRUE,250,)+IF((OR('57'!$AG$22=Resultate!$AG$22,'57'!$AI$22=Resultate!$AG$22))=TRUE,IF(AND(Resultate!$AB$54='57'!$AB$54,Resultate!$AD$54='57'!$AD$54)=TRUE,75,0),0) -> 0 | DA11: ='57'!$AG$27 -> Deutschland | DB11: =IF('57'!$AG$27=Resultate!$AG$27,300,0) -> 0 | DE11: ='57'!$AN$33 -> 184
A12: 7 | B12: 144 | C12: ='144'!$AH$35 -> Zoller Bruno II | D12: ='144'!$AH$39 -> bruno.zoller@allianz-suisse.ch | E12: =SUM(F12:M12) -> 2225 | F12: =SUM(O12:BJ12) -> 2025 | G12: =SUM(BK12:BZ12) -> 200 | H12: =SUM(CA12:CH12) -> 0 | I12: =SUM(CJ12:CP12) -> 0 | J12: =SUM(CR12:CV12) -> 0 | K12: =SUM(CX12:CZ12) -> 0 | L12: =DB12 -> 0 | M12: =IF(DC12="",0,DC12) -> 0 | N12: ='144'!$AN$33 -> 178 | O12: =IF(Resultate!$K$8="",0,IF('144'!$L$8=Resultate!$L$8,75,0)+IF(AND(Resultate!$I$8='144'!$I$8,Resultate!$K$8='144'!$K$8)=TRUE,75,0)) -> 75 | P12: =IF(Resultate!$K$9="",0,IF('144'!$L$9=Resultate!$L$9,75,0)+IF(AND(Resultate!$I$9='144'!$I$9,Resultate!$K$9='144'!$K$9)=TRUE,75,0)) -> 75 | Q12: =IF(Resultate!$K$15="",0,IF('144'!$L$15=Resultate!$L$15,75,0)+IF(AND(Resultate!$I$15='144'!$I$15,Resultate!$K$15='144'!$K$15)=TRUE,75,0)) -> 0 | R12: =IF(Resultate!$K$16="",0,IF('144'!$L$16=Resultate!$L$16,75,0)+IF(AND(Resultate!$I$16='144'!$I$16,Resultate!$K$16='144'!$K$16)=TRUE,75,0)) -> 0 | S12: =IF(Resultate!$K$22="",0,IF('144'!$L$22=Resultate!$L$22,75,0)+IF(AND(Resultate!$I$22='144'!$I$22,Resultate!$K$22='144'!$K$22)=TRUE,75,0)) -> 75 | T12: =IF(Resultate!$K$23="",0,IF('144'!$L$23=Resultate!$L$23,75,0)+IF(AND(Resultate!$I$23='144'!$I$23,Resultate!$K$23='144'!$K$23)=TRUE,75,0)) -> 75 | U12: =IF(Resultate!$K$29="",0,IF('144'!$L$29=Resultate!$L$29,75,0)+IF(AND(Resultate!$I$29='144'!$I$29,Resultate!$K$29='144'!$K$29)=TRUE,75,0)) -> 0 | V12: =IF(Resultate!$K$30="",0,IF('144'!$L$30=Resultate!$L$30,75,0)+IF(AND(Resultate!$I$30='144'!$I$30,Resultate!$K$30='144'!$K$30)=TRUE,75,0)) -> 0 | W12: =IF(Resultate!$K$36="",0,IF('144'!$L$36=Resultate!$L$36,75,0)+IF(AND(Resultate!$I$36='144'!$I$36,Resultate!$K$36='144'!$K$36)=TRUE,75,0)) -> 150 | X12: =IF(Resultate!$K$37="",0,IF('144'!$L$37=Resultate!$L$37,75,0)+IF(AND(Resultate!$I$37='144'!$I$37,Resultate!$K$37='144'!$K$37)=TRUE,75,0)) -> 75 | Y12: =IF(Resultate!$K$43="",0,IF('144'!$L$43=Resultate!$L$43,75,0)+IF(AND(Resultate!$I$43='144'!$I$43,Resultate!$K$43='144'!$K$43)=TRUE,75,0)) -> 0 | Z12: =IF(Resultate!$K$44="",0,IF('144'!$L$44=Resultate!$L$44,75,0)+IF(AND(Resultate!$I$44='144'!$I$44,Resultate!$K$44='144'!$K$44)=TRUE,75,0)) -> 150 | AA12: =IF(Resultate!$K$50="",0,IF('144'!$L$50=Resultate!$L$50,75,0)+IF(AND(Resultate!$I$50='144'!$I$50,Resultate!$K$50='144'!$K$50)=TRUE,75,0)) -> 150 | AB12: =IF(Resultate!$K$51="",0,IF('144'!$L$51=Resultate!$L$51,75,0)+IF(AND(Resultate!$I$51='144'!$I$51,Resultate!$K$51='144'!$K$51)=TRUE,75,0)) -> 75 | AC12: =IF(Resultate!$K$57="",0,IF('144'!$L$57=Resultate!$L$57,75,0)+IF(AND(Resultate!$I$57='144'!$I$57,Resultate!$K$57='144'!$K$57)=TRUE,75,0)) -> 0 | AD12: =IF(Resultate!$K$58="",0,IF('144'!$L$58=Resultate!$L$58,75,0)+IF(AND(Resultate!$I$58='144'!$I$58,Resultate!$K$58='144'!$K$58)=TRUE,75,0)) -> 0 | AE12: =IF(Resultate!$K$10="",0,IF('144'!$L$10=Resultate!$L$10,75,0)+IF(AND(Resultate!$I$10='144'!$I$10,Resultate!$K$10='144'!$K$10)=TRUE,75,0)) -> 75 | AF12: =IF(Resultate!$K$11="",0,IF('144'!$L$11=Resultate!$L$11,75,0)+IF(AND(Resultate!$I$11='144'!$I$11,Resultate!$K$11='144'!$K$11)=TRUE,75,0)) -> 75 | AG12: =IF(Resultate!$K$17="",0,IF('144'!$L$17=Resultate!$L$17,75,0)+IF(AND(Resultate!$I$17='144'!$I$17,Resultate!$K$17='144'!$K$17)=TRUE,75,0)) -> 75 | AH12: =IF(Resultate!$K$18="",0,IF('144'!$L$18=Resultate!$L$18,75,0)+IF(AND(Resultate!$I$18='144'!$I$18,Resultate!$K$18='144'!$K$18)=TRUE,75,0)) -> 75 | AI12: =IF(Resultate!$K$31="",0,IF('144'!$L$31=Resultate!$L$31,75,0)+IF(AND(Resultate!$I$31='144'!$I$31,Resultate!$K$31='144'!$K$31)=TRUE,75,0)) -> 0 | AJ12: =IF(Resultate!$K$24="",0,IF('144'!$L$24=Resultate!$L$24,75,0)+IF(AND(Resultate!$I$24='144'!$I$24,Resultate!$K$24='144'!$K$24)=TRUE,75,0)) -> 75 | AK12: =IF(Resultate!$K$25="",0,IF('144'!$L$25=Resultate!$L$25,75,0)+IF(AND(Resultate!$I$25='144'!$I$25,Resultate!$K$25='144'!$K$25)=TRUE,75,0)) -> 150 | AL12: =IF(Resultate!$K$32="",0,IF('144'!$L$32=Resultate!$L$32,75,0)+IF(AND(Resultate!$I$32='144'!$I$32,Resultate!$K$32='144'!$K$32)=TRUE,75,0)) -> 0 | AM12: =IF(Resultate!$K$38="",0,IF('144'!$L$38=Resultate!$L$38,75,0)+IF(AND(Resultate!$I$38='144'!$I$38,Resultate!$K$38='144'!$K$38)=TRUE,75,0)) -> 75 | AN12: =IF(Resultate!$K$39="",0,IF('144'!$L$39=Resultate!$L$39,75,0)+IF(AND(Resultate!$I$39='144'!$I$39,Resultate!$K$39='144'!$K$39)=TRUE,75,0)) -> 75 | AO12: =IF(Resultate!$K$45="",0,IF('144'!$L$45=Resultate!$L$45,75,0)+IF(AND(Resultate!$I$45='144'!$I$45,Resultate!$K$45='144'!$K$45)=TRUE,75,0)) -> 75 | AP12: =IF(Resultate!$K$46="",0,IF('144'!$L$46=Resultate!$L$46,75,0)+IF(AND(Resultate!$I$46='144'!$I$46,Resultate!$K$46='144'!$K$46)=TRUE,75,0)) -> 150 | AQ12: =IF(Resultate!$K$52="",0,IF('144'!$L$52=Resultate!$L$52,75,0)+IF(AND(Resultate!$I$52='144'!$I$52,Resultate!$K$52='144'!$K$52)=TRUE,75,0)) -> 75 | AR12: =IF(Resultate!$K$53="",0,IF('144'!$L$53=Resultate!$L$53,75,0)+IF(AND(Resultate!$I$53='144'!$I$53,Resultate!$K$53='144'!$K$53)=TRUE,75,0)) -> 75 | AS12: =IF(Resultate!$K$59="",0,IF('144'!$L$59=Resultate!$L$59,75,0)+IF(AND(Resultate!$I$59='144'!$I$59,Resultate!$K$59='144'!$K$59)=TRUE,75,0)) -> 0 | AT12: =IF(Resultate!$K$60="",0,IF('144'!$L$60=Resultate!$L$60,75,0)+IF(AND(Resultate!$I$60='144'!$I$60,Resultate!$K$60='144'!$K$60)=TRUE,75,0)) -> 75 | AU12: =IF(Resultate!$K$12="",0,IF('144'!$L$12=Resultate!$L$12,75,0)+IF(AND(Resultate!$I$12='144'!$I$12,Resultate!$K$12='144'!$K$12)=TRUE,75,0)) -> 0 | AV12: =IF(Resultate!$K$13="",0,IF('144'!$L$13=Resultate!$L$13,75,0)+IF(AND(Resultate!$I$13='144'!$I$13,Resultate!$K$13='144'!$K$13)=TRUE,75,0)) -> 0 | AW12: =IF(Resultate!$K$19="",0,IF('144'!$L$19=Resultate!$L$19,75,0)+IF(AND(Resultate!$I$19='144'!$I$19,Resultate!$K$19='144'!$K$19)=TRUE,75,0)) -> 0 | AX12: =IF(Resultate!$K$20="",0,IF('144'!$L$20=Resultate!$L$20,75,0)+IF(AND(Resultate!$I$20='144'!$I$20,Resultate!$K$20='144'!$K$20)=TRUE,75,0)) -> 0 | AY12: =IF(Resultate!$K$26="",0,IF('144'!$L$26=Resultate!$L$26,75,0)+IF(AND(Resultate!$I$26='144'!$I$26,Resultate!$K$26='144'!$K$26)=TRUE,75,0)) -> 0 | AZ12: =IF(Resultate!$K$27="",0,IF('144'!$L$27=Resultate!$L$27,75,0)+IF(AND(Resultate!$I$27='144'!$I$27,Resultate!$K$27='144'!$K$27)=TRUE,75,0)) -> 0 | BA12: =IF(Resultate!$K$33="",0,IF('144'!$L$33=Resultate!$L$33,75,0)+IF(AND(Resultate!$I$33='144'!$I$33,Resultate!$K$33='144'!$K$33)=TRUE,75,0)) -> 0 | BB12: =IF(Resultate!$K$34="",0,IF('144'!$L$34=Resultate!$L$34,75,0)+IF(AND(Resultate!$I$34='144'!$I$34,Resultate!$K$34='144'!$K$34)=TRUE,75,0)) -> 0 | BC12: =IF(Resultate!$K$47="",0,IF('144'!$L$47=Resultate!$L$47,75,0)+IF(AND(Resultate!$I$47='144'!$I$47,Resultate!$K$47='144'!$K$47)=TRUE,75,0)) -> 0 | BD12: =IF(Resultate!$K$48="",0,IF('144'!$L$48=Resultate!$L$48,75,0)+IF(AND(Resultate!$I$48='144'!$I$48,Resultate!$K$48='144'!$K$48)=TRUE,75,0)) -> 0 | BE12: =IF(Resultate!$K$40="",0,IF('144'!$L$40=Resultate!$L$40,75,0)+IF(AND(Resultate!$I$40='144'!$I$40,Resultate!$K$40='144'!$K$40)=TRUE,75,0)) -> 0 | BF12: =IF(Resultate!$K$41="",0,IF('144'!$L$41=Resultate!$L$41,75,0)+IF(AND(Resultate!$I$41='144'!$I$41,Resultate!$K$41='144'!$K$41)=TRUE,75,0)) -> 0 | BG12: =IF(Resultate!$K$54="",0,IF('144'!$L$54=Resultate!$L$54,75,0)+IF(AND(Resultate!$I$54='144'!$I$54,Resultate!$K$54='144'!$K$54)=TRUE,75,0)) -> 0 | BH12: =IF(Resultate!$K$55="",0,IF('144'!$L$55=Resultate!$L$55,75,0)+IF(AND(Resultate!$I$55='144'!$I$55,Resultate!$K$55='144'!$K$55)=TRUE,75,0)) -> 0 | BI12: =IF(Resultate!$K$61="",0,IF('144'!$L$61=Resultate!$L$61,75,0)+IF(AND(Resultate!$I$61='144'!$I$61,Resultate!$K$61='144'!$K$61)=TRUE,75,0)) -> 0 | BJ12: =IF(Resultate!$K$62="",0,IF('144'!$L$62=Resultate!$L$62,75,0)+IF(AND(Resultate!$I$62='144'!$I$62,Resultate!$K$62='144'!$K$62)=TRUE,75,0)) -> 0 | BK12: =IF('144'!$O$13=Resultate!$O$13,100,0) -> 100 | BL12: =IF('144'!$Q$13=Resultate!$Q$13,100,0) -> 0 | BM12: =IF('144'!$O$20=Resultate!$O$20,100,0) -> 0 | BN12: =IF('144'!$Q$20=Resultate!$Q$20,100,0) -> 0 | BO12: =IF('144'!$O$27=Resultate!$O$27,100,0) -> 0 | BP12: =IF('144'!$Q$27=Resultate!$Q$27,100,0) -> 100 | BQ12: =IF('144'!$O$34=Resultate!$O$34,100,0) -> 0 | BR12: =IF('144'!$Q$34=Resultate!$Q$34,100,0) -> 0 | BS12: =IF('144'!$O$40=Resultate!$O$40,100,0) -> 0 | BT12: =IF('144'!$Q$40=Resultate!$Q$40,100,0) -> 0 | BU12: =IF('144'!$O$47=Resultate!$O$47,100,0) -> 0 | BV12: =IF('144'!$Q$47=Resultate!$Q$47,100,0) -> 0 | BW12: =IF('144'!$O$54=Resultate!$O$54,100,0) -> 0 | BX12: =IF('144'!$Q$54=Resultate!$Q$54,100,0) -> 0 | BY12: =IF('144'!$O$61=Resultate!$O$61,100,0) -> 0 | BZ12: =IF('144'!$Q$61=Resultate!$Q$61,100,0) -> 0 | CA12: =VALUE(IF('144'!$X$13=Resultate!$X$13,150,0))+IF(AND(Resultate!$O$13='144'!$O$13,Resultate!$Q$13='144'!$Q$13,Resultate!$S$13='144'!$S$13,Resultate!$U$13='144'!$U$13)=TRUE,75,0) -> 0 | CB12: =VALUE(IF('144'!$Z$13=Resultate!$Z$13,150,0))+IF(AND(Resultate!$O$20='144'!$O$20,Resultate!$Q$20='144'!$Q$20,Resultate!$S$20='144'!$S$20,Resultate!$U$20='144'!$U$20)=TRUE,75,0) -> 0 | CC12: =VALUE(IF('144'!$X$19=Resultate!$X$19,150,0))+IF(AND(Resultate!$O$40='144'!$O$40,Resultate!$Q$40='144'!$Q$40,Resultate!$S$40='144'!$S$40,Resultate!$U$40='144'!$U$40)=TRUE,75,0) -> 0 | CD12: =VALUE(IF('144'!$Z$19=Resultate!$Z$19,150,0))+IF(AND(Resultate!$O$47='144'!$O$47,Resultate!$Q$47='144'!$Q$47,Resultate!$S$47='144'!$S$47,Resultate!$U$47='144'!$U$47)=TRUE,75,0) -> 0 | CE12: =VALUE(IF('144'!$X$25=Resultate!$X$25,150,0))+IF(AND(Resultate!$O$27='144'!$O$27,Resultate!$Q$27='144'!$Q$27,Resultate!$S$27='144'!$S$27,Resultate!$U$27='144'!$U$27)=TRUE,75,0) -> 0 | CF12: =VALUE(IF('144'!$Z$25=Resultate!$Z$25,150,0))+IF(AND(Resultate!$O$34='144'!$O$34,Resultate!$Q$34='144'!$Q$34,Resultate!$S$34='144'!$S$34,Resultate!$U$34='144'!$U$34)=TRUE,75,0) -> 0 | CG12: =VALUE(IF('144'!$X$31=Resultate!$X$31,150,0))+IF(AND(Resultate!$O$54='144'!$O$54,Resultate!$Q$54='144'!$Q$54,Resultate!$S$54='144'!$S$54,Resultate!$U$54='144'!$U$54)=TRUE,75,0) -> 0 | CH12: =VALUE(IF('144'!$Z$31=Resultate!$Z$31,150,0))+IF(AND(Resultate!$O$61='144'!$O$61,Resultate!$Q$61='144'!$Q$61,Resultate!$S$61='144'!$S$61,Resultate!$U$61='144'!$U$61)=TRUE,75,0) -> 0 | CI12: ='144'!$X$48 -> Frankreich | CJ12: =VALUE(IF('144'!$X$48=Resultate!$X$48,200,0))+IF(AND(Resultate!$X$13='144'!$X$13,Resultate!$Z$13='144'!$Z$13,Resultate!$AB$13='144'!$AB$13,Resultate!$AD$13='144'!$AD$13)=TRUE,75,0) -> 0 | CK12: ='144'!$Z$48 -> Brasilien | CL12: =VALUE(IF('144'!$Z$48=Resultate!$Z$48,200,0))+IF(AND(Resultate!$X$19='144'!$X$19,Resultate!$Z$19='144'!$Z$19,Resultate!$AB$19='144'!$AB$19,Resultate!$AD$19='144'!$AD$19)=TRUE,75,0) -> 0 | CM12: ='144'!$X$54 -> Spanien | CN12: =VALUE(IF('144'!$X$54=Resultate!$X$54,200,0))+IF(AND(Resultate!$X$25='144'!$X$25,Resultate!$Z$25='144'!$Z$25,Resultate!$AB$25='144'!$AB$25,Resultate!$AD$25='144'!$AD$25)=TRUE,75,0) -> 0 | CO12: ='144'!$Z$54 -> Schweiz | CP12: =VALUE(IF('144'!$Z$54=Resultate!$Z$54,200,0))+IF(AND(Resultate!$X$31='144'!$X$31,Resultate!$Z$31='144'!$Z$31,Resultate!$AB$31='144'!$AB$31,Resultate!$AD$31='144'!$AD$31)=TRUE,75,0) -> 0 | CQ12: ='144'!$AG$8 -> Frankreich | CR12: =IF((OR('144'!$AG$8=Resultate!$AG$8,'144'!$AI$8=Resultate!$AG$8))=TRUE,100,) -> 0 | CS12: ='144'!$AI$8 -> Schweiz | CT12: =IF((OR('144'!$AI$8=Resultate!$AI$8,'144'!$AI$8=Resultate!$AG$8))=TRUE,100,) -> 0 | CU12: ='144'!$AG$13 -> Frankreich | CV12: =IF('144'!$AG$13=Resultate!$AG$13,200,0) -> 0 | CW12: ='144'!$AG$22 -> Brasilien | CX12: =IF((OR('144'!$AG$22=Resultate!$AG$22,'144'!$AI$22=Resultate!$AG$22))=TRUE,250,)+IF((OR('144'!$AG$22=Resultate!$AG$22,'144'!$AI$22=Resultate!$AG$22))=TRUE,IF(AND(Resultate!$AB$48='144'!$AB$48,Resultate!$AD$48='144'!$AD$48)=TRUE,75,0),0) -> 0 | CY12: ='144'!$AI$22 -> Spanien | CZ12: =IF((OR('144'!$AG$22=Resultate!$AI$22,'144'!$AI$22=Resultate!$AI$22))=TRUE,250,)+IF((OR('144'!$AG$22=Resultate!$AG$22,'144'!$AI$22=Resultate!$AG$22))=TRUE,IF(AND(Resultate!$AB$54='144'!$AB$54,Resultate!$AD$54='144'!$AD$54)=TRUE,75,0),0) -> 0 | DA12: ='144'!$AG$27 -> Brasilien | DB12: =IF('144'!$AG$27=Resultate!$AG$27,300,0) -> 0 | DE12: ='144'!$AN$33 -> 178
A13: 8 | B13: 23 | C13: ='23'!$AH$35 -> Müller Marco | D13: ='23'!$AH$39 -> marco_mueller75@bluewin.ch | E13: =SUM(F13:M13) -> 2150 | F13: =SUM(O13:BJ13) -> 1950 | G13: =SUM(BK13:BZ13) -> 200 | H13: =SUM(CA13:CH13) -> 0 | I13: =SUM(CJ13:CP13) -> 0 | J13: =SUM(CR13:CV13) -> 0 | K13: =SUM(CX13:CZ13) -> 0 | L13: =DB13 -> 0 | M13: =IF(DC13="",0,DC13) -> 0 | N13: ='23'!$AN$33 -> 160 | O13: =IF(Resultate!$K$8="",0,IF('23'!$L$8=Resultate!$L$8,75,0)+IF(AND(Resultate!$I$8='23'!$I$8,Resultate!$K$8='23'!$K$8)=TRUE,75,0)) -> 75 | P13: =IF(Resultate!$K$9="",0,IF('23'!$L$9=Resultate!$L$9,75,0)+IF(AND(Resultate!$I$9='23'!$I$9,Resultate!$K$9='23'!$K$9)=TRUE,75,0)) -> 75 | Q13: =IF(Resultate!$K$15="",0,IF('23'!$L$15=Resultate!$L$15,75,0)+IF(AND(Resultate!$I$15='23'!$I$15,Resultate!$K$15='23'!$K$15)=TRUE,75,0)) -> 0 | R13: =IF(Resultate!$K$16="",0,IF('23'!$L$16=Resultate!$L$16,75,0)+IF(AND(Resultate!$I$16='23'!$I$16,Resultate!$K$16='23'!$K$16)=TRUE,75,0)) -> 0 | S13: =IF(Resultate!$K$22="",0,IF('23'!$L$22=Resultate!$L$22,75,0)+IF(AND(Resultate!$I$22='23'!$I$22,Resultate!$K$22='23'!$K$22)=TRUE,75,0)) -> 75 | T13: =IF(Resultate!$K$23="",0,IF('23'!$L$23=Resultate!$L$23,75,0)+IF(AND(Resultate!$I$23='23'!$I$23,Resultate!$K$23='23'!$K$23)=TRUE,75,0)) -> 75 | U13: =IF(Resultate!$K$29="",0,IF('23'!$L$29=Resultate!$L$29,75,0)+IF(AND(Resultate!$I$29='23'!$I$29,Resultate!$K$29='23'!$K$29)=TRUE,75,0)) -> 0 | V13: =IF(Resultate!$K$30="",0,IF('23'!$L$30=Resultate!$L$30,75,0)+IF(AND(Resultate!$I$30='23'!$I$30,Resultate!$K$30='23'!$K$30)=TRUE,75,0)) -> 75 | W13: =IF(Resultate!$K$36="",0,IF('23'!$L$36=Resultate!$L$36,75,0)+IF(AND(Resultate!$I$36='23'!$I$36,Resultate!$K$36='23'!$K$36)=TRUE,75,0)) -> 0 | X13: =IF(Resultate!$K$37="",0,IF('23'!$L$37=Resultate!$L$37,75,0)+IF(AND(Resultate!$I$37='23'!$I$37,Resultate!$K$37='23'!$K$37)=TRUE,75,0)) -> 75 | Y13: =IF(Resultate!$K$43="",0,IF('23'!$L$43=Resultate!$L$43,75,0)+IF(AND(Resultate!$I$43='23'!$I$43,Resultate!$K$43='23'!$K$43)=TRUE,75,0)) -> 0 | Z13: =IF(Resultate!$K$44="",0,IF('23'!$L$44=Resultate!$L$44,75,0)+IF(AND(Resultate!$I$44='23'!$I$44,Resultate!$K$44='23'!$K$44)=TRUE,75,0)) -> 75 | AA13: =IF(Resultate!$K$50="",0,IF('23'!$L$50=Resultate!$L$50,75,0)+IF(AND(Resultate!$I$50='23'!$I$50,Resultate!$K$50='23'!$K$50)=TRUE,75,0)) -> 150 | AB13: =IF(Resultate!$K$51="",0,IF('23'!$L$51=Resultate!$L$51,75,0)+IF(AND(Resultate!$I$51='23'!$I$51,Resultate!$K$51='23'!$K$51)=TRUE,75,0)) -> 75 | AC13: =IF(Resultate!$K$57="",0,IF('23'!$L$57=Resultate!$L$57,75,0)+IF(AND(Resultate!$I$57='23'!$I$57,Resultate!$K$57='23'!$K$57)=TRUE,75,0)) -> 0 | AD13: =IF(Resultate!$K$58="",0,IF('23'!$L$58=Resultate!$L$58,75,0)+IF(AND(Resultate!$I$58='23'!$I$58,Resultate!$K$58='23'!$K$58)=TRUE,75,0)) -> 0 | AE13: =IF(Resultate!$K$10="",0,IF('23'!$L$10=Resultate!$L$10,75,0)+IF(AND(Resultate!$I$10='23'!$I$10,Resultate!$K$10='23'!$K$10)=TRUE,75,0)) -> 75 | AF13: =IF(Resultate!$K$11="",0,IF('23'!$L$11=Resultate!$L$11,75,0)+IF(AND(Resultate!$I$11='23'!$I$11,Resultate!$K$11='23'!$K$11)=TRUE,75,0)) -> 75 | AG13: =IF(Resultate!$K$17="",0,IF('23'!$L$17=Resultate!$L$17,75,0)+IF(AND(Resultate!$I$17='23'!$I$17,Resultate!$K$17='23'!$K$17)=TRUE,75,0)) -> 75 | AH13: =IF(Resultate!$K$18="",0,IF('23'!$L$18=Resultate!$L$18,75,0)+IF(AND(Resultate!$I$18='23'!$I$18,Resultate!$K$18='23'!$K$18)=TRUE,75,0)) -> 75 | AI13: =IF(Resultate!$K$31="",0,IF('23'!$L$31=Resultate!$L$31,75,0)+IF(AND(Resultate!$I$31='23'!$I$31,Resultate!$K$31='23'!$K$31)=TRUE,75,0)) -> 0 | AJ13: =IF(Resultate!$K$24="",0,IF('23'!$L$24=Resultate!$L$24,75,0)+IF(AND(Resultate!$I$24='23'!$I$24,Resultate!$K$24='23'!$K$24)=TRUE,75,0)) -> 75 | AK13: =IF(Resultate!$K$25="",0,IF('23'!$L$25=Resultate!$L$25,75,0)+IF(AND(Resultate!$I$25='23'!$I$25,Resultate!$K$25='23'!$K$25)=TRUE,75,0)) -> 0 | AL13: =IF(Resultate!$K$32="",0,IF('23'!$L$32=Resultate!$L$32,75,0)+IF(AND(Resultate!$I$32='23'!$I$32,Resultate!$K$32='23'!$K$32)=TRUE,75,0)) -> 0 | AM13: =IF(Resultate!$K$38="",0,IF('23'!$L$38=Resultate!$L$38,75,0)+IF(AND(Resultate!$I$38='23'!$I$38,Resultate!$K$38='23'!$K$38)=TRUE,75,0)) -> 150 | AN13: =IF(Resultate!$K$39="",0,IF('23'!$L$39=Resultate!$L$39,75,0)+IF(AND(Resultate!$I$39='23'!$I$39,Resultate!$K$39='23'!$K$39)=TRUE,75,0)) -> 150 | AO13: =IF(Resultate!$K$45="",0,IF('23'!$L$45=Resultate!$L$45,75,0)+IF(AND(Resultate!$I$45='23'!$I$45,Resultate!$K$45='23'!$K$45)=TRUE,75,0)) -> 75 | AP13: =IF(Resultate!$K$46="",0,IF('23'!$L$46=Resultate!$L$46,75,0)+IF(AND(Resultate!$I$46='23'!$I$46,Resultate!$K$46='23'!$K$46)=TRUE,75,0)) -> 150 | AQ13: =IF(Resultate!$K$52="",0,IF('23'!$L$52=Resultate!$L$52,75,0)+IF(AND(Resultate!$I$52='23'!$I$52,Resultate!$K$52='23'!$K$52)=TRUE,75,0)) -> 75 | AR13: =IF(Resultate!$K$53="",0,IF('23'!$L$53=Resultate!$L$53,75,0)+IF(AND(Resultate!$I$53='23'!$I$53,Resultate!$K$53='23'!$K$53)=TRUE,75,0)) -> 75 | AS13: =IF(Resultate!$K$59="",0,IF('23'!$L$59=Resultate!$L$59,75,0)+IF(AND(Resultate!$I$59='23'!$I$59,Resultate!$K$59='23'!$K$59)=TRUE,75,0)) -> 0 | AT13: =IF(Resultate!$K$60="",0,IF('23'!$L$60=Resultate!$L$60,75,0)+IF(AND(Resultate!$I$60='23'!$I$60,Resultate!$K$60='23'!$K$60)=TRUE,75,0)) -> 75 | AU13: =IF(Resultate!$K$12="",0,IF('23'!$L$12=Resultate!$L$12,75,0)+IF(AND(Resultate!$I$12='23'!$I$12,Resultate!$K$12='23'!$K$12)=TRUE,75,0)) -> 75 | AV13: =IF(Resultate!$K$13="",0,IF('23'!$L$13=Resultate!$L$13,75,0)+IF(AND(Resultate!$I$13='23'!$I$13,Resultate!$K$13='23'!$K$13)=TRUE,75,0)) -> 0 | AW13: =IF(Resultate!$K$19="",0,IF('23'!$L$19=Resultate!$L$19,75,0)+IF(AND(Resultate!$I$19='23'!$I$19,Resultate!$K$19='23'!$K$19)=TRUE,75,0)) -> 0 | AX13: =IF(Resultate!$K$20="",0,IF('23'!$L$20=Resultate!$L$20,75,0)+IF(AND(Resultate!$I$20='23'!$I$20,Resultate!$K$20='23'!$K$20)=TRUE,75,0)) -> 0 | AY13: =IF(Resultate!$K$26="",0,IF('23'!$L$26=Resultate!$L$26,75,0)+IF(AND(Resultate!$I$26='23'!$I$26,Resultate!$K$26='23'!$K$26)=TRUE,75,0)) -> 0 | AZ13: =IF(Resultate!$K$27="",0,IF('23'!$L$27=Resultate!$L$27,75,0)+IF(AND(Resultate!$I$27='23'!$I$27,Resultate!$K$27='23'!$K$27)=TRUE,75,0)) -> 0 | BA13: =IF(Resultate!$K$33="",0,IF('23'!$L$33=Resultate!$L$33,75,0)+IF(AND(Resultate!$I$33='23'!$I$33,Resultate!$K$33='23'!$K$33)=TRUE,75,0)) -> 0 | BB13: =IF(Resultate!$K$34="",0,IF('23'!$L$34=Resultate!$L$34,75,0)+IF(AND(Resultate!$I$34='23'!$I$34,Resultate!$K$34='23'!$K$34)=TRUE,75,0)) -> 0 | BC13: =IF(Resultate!$K$47="",0,IF('23'!$L$47=Resultate!$L$47,75,0)+IF(AND(Resultate!$I$47='23'!$I$47,Resultate!$K$47='23'!$K$47)=TRUE,75,0)) -> 0 | BD13: =IF(Resultate!$K$48="",0,IF('23'!$L$48=Resultate!$L$48,75,0)+IF(AND(Resultate!$I$48='23'!$I$48,Resultate!$K$48='23'!$K$48)=TRUE,75,0)) -> 0 | BE13: =IF(Resultate!$K$40="",0,IF('23'!$L$40=Resultate!$L$40,75,0)+IF(AND(Resultate!$I$40='23'!$I$40,Resultate!$K$40='23'!$K$40)=TRUE,75,0)) -> 0 | BF13: =IF(Resultate!$K$41="",0,IF('23'!$L$41=Resultate!$L$41,75,0)+IF(AND(Resultate!$I$41='23'!$I$41,Resultate!$K$41='23'!$K$41)=TRUE,75,0)) -> 0 | BG13: =IF(Resultate!$K$54="",0,IF('23'!$L$54=Resultate!$L$54,75,0)+IF(AND(Resultate!$I$54='23'!$I$54,Resultate!$K$54='23'!$K$54)=TRUE,75,0)) -> 0 | BH13: =IF(Resultate!$K$55="",0,IF('23'!$L$55=Resultate!$L$55,75,0)+IF(AND(Resultate!$I$55='23'!$I$55,Resultate!$K$55='23'!$K$55)=TRUE,75,0)) -> 0 | BI13: =IF(Resultate!$K$61="",0,IF('23'!$L$61=Resultate!$L$61,75,0)+IF(AND(Resultate!$I$61='23'!$I$61,Resultate!$K$61='23'!$K$61)=TRUE,75,0)) -> 0 | BJ13: =IF(Resultate!$K$62="",0,IF('23'!$L$62=Resultate!$L$62,75,0)+IF(AND(Resultate!$I$62='23'!$I$62,Resultate!$K$62='23'!$K$62)=TRUE,75,0)) -> 0 | BK13: =IF('23'!$O$13=Resultate!$O$13,100,0) -> 100 | BL13: =IF('23'!$Q$13=Resultate!$Q$13,100,0) -> 0 | BM13: =IF('23'!$O$20=Resultate!$O$20,100,0) -> 0 | BN13: =IF('23'!$Q$20=Resultate!$Q$20,100,0) -> 0 | BO13: =IF('23'!$O$27=Resultate!$O$27,100,0) -> 0 | BP13: =IF('23'!$Q$27=Resultate!$Q$27,100,0) -> 100 | BQ13: =IF('23'!$O$34=Resultate!$O$34,100,0) -> 0 | BR13: =IF('23'!$Q$34=Resultate!$Q$34,100,0) -> 0 | BS13: =IF('23'!$O$40=Resultate!$O$40,100,0) -> 0 | BT13: =IF('23'!$Q$40=Resultate!$Q$40,100,0) -> 0 | BU13: =IF('23'!$O$47=Resultate!$O$47,100,0) -> 0 | BV13: =IF('23'!$Q$47=Resultate!$Q$47,100,0) -> 0 | BW13: =IF('23'!$O$54=Resultate!$O$54,100,0) -> 0 | BX13: =IF('23'!$Q$54=Resultate!$Q$54,100,0) -> 0 | BY13: =IF('23'!$O$61=Resultate!$O$61,100,0) -> 0 | BZ13: =IF('23'!$Q$61=Resultate!$Q$61,100,0) -> 0 | CA13: =VALUE(IF('23'!$X$13=Resultate!$X$13,150,0))+IF(AND(Resultate!$O$13='23'!$O$13,Resultate!$Q$13='23'!$Q$13,Resultate!$S$13='23'!$S$13,Resultate!$U$13='23'!$U$13)=TRUE,75,0) -> 0 | CB13: =VALUE(IF('23'!$Z$13=Resultate!$Z$13,150,0))+IF(AND(Resultate!$O$20='23'!$O$20,Resultate!$Q$20='23'!$Q$20,Resultate!$S$20='23'!$S$20,Resultate!$U$20='23'!$U$20)=TRUE,75,0) -> 0 | CC13: =VALUE(IF('23'!$X$19=Resultate!$X$19,150,0))+IF(AND(Resultate!$O$40='23'!$O$40,Resultate!$Q$40='23'!$Q$40,Resultate!$S$40='23'!$S$40,Resultate!$U$40='23'!$U$40)=TRUE,75,0) -> 0 | CD13: =VALUE(IF('23'!$Z$19=Resultate!$Z$19,150,0))+IF(AND(Resultate!$O$47='23'!$O$47,Resultate!$Q$47='23'!$Q$47,Resultate!$S$47='23'!$S$47,Resultate!$U$47='23'!$U$47)=TRUE,75,0) -> 0 | CE13: =VALUE(IF('23'!$X$25=Resultate!$X$25,150,0))+IF(AND(Resultate!$O$27='23'!$O$27,Resultate!$Q$27='23'!$Q$27,Resultate!$S$27='23'!$S$27,Resultate!$U$27='23'!$U$27)=TRUE,75,0) -> 0 | CF13: =VALUE(IF('23'!$Z$25=Resultate!$Z$25,150,0))+IF(AND(Resultate!$O$34='23'!$O$34,Resultate!$Q$34='23'!$Q$34,Resultate!$S$34='23'!$S$34,Resultate!$U$34='23'!$U$34)=TRUE,75,0) -> 0 | CG13: =VALUE(IF('23'!$X$31=Resultate!$X$31,150,0))+IF(AND(Resultate!$O$54='23'!$O$54,Resultate!$Q$54='23'!$Q$54,Resultate!$S$54='23'!$S$54,Resultate!$U$54='23'!$U$54)=TRUE,75,0) -> 0 | CH13: =VALUE(IF('23'!$Z$31=Resultate!$Z$31,150,0))+IF(AND(Resultate!$O$61='23'!$O$61,Resultate!$Q$61='23'!$Q$61,Resultate!$S$61='23'!$S$61,Resultate!$U$61='23'!$U$61)=TRUE,75,0) -> 0 | CI13: ='23'!$X$48 -> Frankreich | CJ13: =VALUE(IF('23'!$X$48=Resultate!$X$48,200,0))+IF(AND(Resultate!$X$13='23'!$X$13,Resultate!$Z$13='23'!$Z$13,Resultate!$AB$13='23'!$AB$13,Resultate!$AD$13='23'!$AD$13)=TRUE,75,0) -> 0 | CK13: ='23'!$Z$48 -> Brasilien | CL13: =VALUE(IF('23'!$Z$48=Resultate!$Z$48,200,0))+IF(AND(Resultate!$X$19='23'!$X$19,Resultate!$Z$19='23'!$Z$19,Resultate!$AB$19='23'!$AB$19,Resultate!$AD$19='23'!$AD$19)=TRUE,75,0) -> 0 | CM13: ='23'!$X$54 -> Argentinien | CN13: =VALUE(IF('23'!$X$54=Resultate!$X$54,200,0))+IF(AND(Resultate!$X$25='23'!$X$25,Resultate!$Z$25='23'!$Z$25,Resultate!$AB$25='23'!$AB$25,Resultate!$AD$25='23'!$AD$25)=TRUE,75,0) -> 0 | CO13: ='23'!$Z$54 -> Deutschland | CP13: =VALUE(IF('23'!$Z$54=Resultate!$Z$54,200,0))+IF(AND(Resultate!$X$31='23'!$X$31,Resultate!$Z$31='23'!$Z$31,Resultate!$AB$31='23'!$AB$31,Resultate!$AD$31='23'!$AD$31)=TRUE,75,0) -> 0 | CQ13: ='23'!$AG$8 -> Frankreich | CR13: =IF((OR('23'!$AG$8=Resultate!$AG$8,'23'!$AI$8=Resultate!$AG$8))=TRUE,100,) -> 0 | CS13: ='23'!$AI$8 -> Argentinien | CT13: =IF((OR('23'!$AI$8=Resultate!$AI$8,'23'!$AI$8=Resultate!$AG$8))=TRUE,100,) -> 0 | CU13: ='23'!$AG$13 -> Frankreich | CV13: =IF('23'!$AG$13=Resultate!$AG$13,200,0) -> 0 | CW13: ='23'!$AG$22 -> Brasilien | CX13: =IF((OR('23'!$AG$22=Resultate!$AG$22,'23'!$AI$22=Resultate!$AG$22))=TRUE,250,)+IF((OR('23'!$AG$22=Resultate!$AG$22,'23'!$AI$22=Resultate!$AG$22))=TRUE,IF(AND(Resultate!$AB$48='23'!$AB$48,Resultate!$AD$48='23'!$AD$48)=TRUE,75,0),0) -> 0 | CY13: ='23'!$AI$22 -> Deutschland | CZ13: =IF((OR('23'!$AG$22=Resultate!$AI$22,'23'!$AI$22=Resultate!$AI$22))=TRUE,250,)+IF((OR('23'!$AG$22=Resultate!$AG$22,'23'!$AI$22=Resultate!$AG$22))=TRUE,IF(AND(Resultate!$AB$54='23'!$AB$54,Resultate!$AD$54='23'!$AD$54)=TRUE,75,0),0) -> 0 | DA13: ='23'!$AG$27 -> Deutschland | DB13: =IF('23'!$AG$27=Resultate!$AG$27,300,0) -> 0 | DE13: ='23'!$AN$33 -> 160
A14: 9 | B14: 29 | C14: ='29'!$AH$35 -> Brandshooters 4 | D14: ='29'!$AH$39 -> janet_appert@bluewin.ch | E14: =SUM(F14:M14) -> 2150 | F14: =SUM(O14:BJ14) -> 1950 | G14: =SUM(BK14:BZ14) -> 200 | H14: =SUM(CA14:CH14) -> 0 | I14: =SUM(CJ14:CP14) -> 0 | J14: =SUM(CR14:CV14) -> 0 | K14: =SUM(CX14:CZ14) -> 0 | L14: =DB14 -> 0 | M14: =IF(DC14="",0,DC14) -> 0 | N14: ='29'!$AN$33 -> 205 | O14: =IF(Resultate!$K$8="",0,IF('29'!$L$8=Resultate!$L$8,75,0)+IF(AND(Resultate!$I$8='29'!$I$8,Resultate!$K$8='29'!$K$8)=TRUE,75,0)) -> 75 | P14: =IF(Resultate!$K$9="",0,IF('29'!$L$9=Resultate!$L$9,75,0)+IF(AND(Resultate!$I$9='29'!$I$9,Resultate!$K$9='29'!$K$9)=TRUE,75,0)) -> 75 | Q14: =IF(Resultate!$K$15="",0,IF('29'!$L$15=Resultate!$L$15,75,0)+IF(AND(Resultate!$I$15='29'!$I$15,Resultate!$K$15='29'!$K$15)=TRUE,75,0)) -> 75 | R14: =IF(Resultate!$K$16="",0,IF('29'!$L$16=Resultate!$L$16,75,0)+IF(AND(Resultate!$I$16='29'!$I$16,Resultate!$K$16='29'!$K$16)=TRUE,75,0)) -> 150 | S14: =IF(Resultate!$K$22="",0,IF('29'!$L$22=Resultate!$L$22,75,0)+IF(AND(Resultate!$I$22='29'!$I$22,Resultate!$K$22='29'!$K$22)=TRUE,75,0)) -> 75 | T14: =IF(Resultate!$K$23="",0,IF('29'!$L$23=Resultate!$L$23,75,0)+IF(AND(Resultate!$I$23='29'!$I$23,Resultate!$K$23='29'!$K$23)=TRUE,75,0)) -> 0 | U14: =IF(Resultate!$K$29="",0,IF('29'!$L$29=Resultate!$L$29,75,0)+IF(AND(Resultate!$I$29='29'!$I$29,Resultate!$K$29='29'!$K$29)=TRUE,75,0)) -> 0 | V14: =IF(Resultate!$K$30="",0,IF('29'!$L$30=Resultate!$L$30,75,0)+IF(AND(Resultate!$I$30='29'!$I$30,Resultate!$K$30='29'!$K$30)=TRUE,75,0)) -> 150 | W14: =IF(Resultate!$K$36="",0,IF('29'!$L$36=Resultate!$L$36,75,0)+IF(AND(Resultate!$I$36='29'!$I$36,Resultate!$K$36='29'!$K$36)=TRUE,75,0)) -> 0 | X14: =IF(Resultate!$K$37="",0,IF('29'!$L$37=Resultate!$L$37,75,0)+IF(AND(Resultate!$I$37='29'!$I$37,Resultate!$K$37='29'!$K$37)=TRUE,75,0)) -> 75 | Y14: =IF(Resultate!$K$43="",0,IF('29'!$L$43=Resultate!$L$43,75,0)+IF(AND(Resultate!$I$43='29'!$I$43,Resultate!$K$43='29'!$K$43)=TRUE,75,0)) -> 0 | Z14: =IF(Resultate!$K$44="",0,IF('29'!$L$44=Resultate!$L$44,75,0)+IF(AND(Resultate!$I$44='29'!$I$44,Resultate!$K$44='29'!$K$44)=TRUE,75,0)) -> 75 | AA14: =IF(Resultate!$K$50="",0,IF('29'!$L$50=Resultate!$L$50,75,0)+IF(AND(Resultate!$I$50='29'!$I$50,Resultate!$K$50='29'!$K$50)=TRUE,75,0)) -> 150 | AB14: =IF(Resultate!$K$51="",0,IF('29'!$L$51=Resultate!$L$51,75,0)+IF(AND(Resultate!$I$51='29'!$I$51,Resultate!$K$51='29'!$K$51)=TRUE,75,0)) -> 75 | AC14: =IF(Resultate!$K$57="",0,IF('29'!$L$57=Resultate!$L$57,75,0)+IF(AND(Resultate!$I$57='29'!$I$57,Resultate!$K$57='29'!$K$57)=TRUE,75,0)) -> 0 | AD14: =IF(Resultate!$K$58="",0,IF('29'!$L$58=Resultate!$L$58,75,0)+IF(AND(Resultate!$I$58='29'!$I$58,Resultate!$K$58='29'!$K$58)=TRUE,75,0)) -> 0 | AE14: =IF(Resultate!$K$10="",0,IF('29'!$L$10=Resultate!$L$10,75,0)+IF(AND(Resultate!$I$10='29'!$I$10,Resultate!$K$10='29'!$K$10)=TRUE,75,0)) -> 75 | AF14: =IF(Resultate!$K$11="",0,IF('29'!$L$11=Resultate!$L$11,75,0)+IF(AND(Resultate!$I$11='29'!$I$11,Resultate!$K$11='29'!$K$11)=TRUE,75,0)) -> 75 | AG14: =IF(Resultate!$K$17="",0,IF('29'!$L$17=Resultate!$L$17,75,0)+IF(AND(Resultate!$I$17='29'!$I$17,Resultate!$K$17='29'!$K$17)=TRUE,75,0)) -> 75 | AH14: =IF(Resultate!$K$18="",0,IF('29'!$L$18=Resultate!$L$18,75,0)+IF(AND(Resultate!$I$18='29'!$I$18,Resultate!$K$18='29'!$K$18)=TRUE,75,0)) -> 75 | AI14: =IF(Resultate!$K$31="",0,IF('29'!$L$31=Resultate!$L$31,75,0)+IF(AND(Resultate!$I$31='29'!$I$31,Resultate!$K$31='29'!$K$31)=TRUE,75,0)) -> 0 | AJ14: =IF(Resultate!$K$24="",0,IF('29'!$L$24=Resultate!$L$24,75,0)+IF(AND(Resultate!$I$24='29'!$I$24,Resultate!$K$24='29'!$K$24)=TRUE,75,0)) -> 75 | AK14: =IF(Resultate!$K$25="",0,IF('29'!$L$25=Resultate!$L$25,75,0)+IF(AND(Resultate!$I$25='29'!$I$25,Resultate!$K$25='29'!$K$25)=TRUE,75,0)) -> 0 | AL14: =IF(Resultate!$K$32="",0,IF('29'!$L$32=Resultate!$L$32,75,0)+IF(AND(Resultate!$I$32='29'!$I$32,Resultate!$K$32='29'!$K$32)=TRUE,75,0)) -> 0 | AM14: =IF(Resultate!$K$38="",0,IF('29'!$L$38=Resultate!$L$38,75,0)+IF(AND(Resultate!$I$38='29'!$I$38,Resultate!$K$38='29'!$K$38)=TRUE,75,0)) -> 75 | AN14: =IF(Resultate!$K$39="",0,IF('29'!$L$39=Resultate!$L$39,75,0)+IF(AND(Resultate!$I$39='29'!$I$39,Resultate!$K$39='29'!$K$39)=TRUE,75,0)) -> 150 | AO14: =IF(Resultate!$K$45="",0,IF('29'!$L$45=Resultate!$L$45,75,0)+IF(AND(Resultate!$I$45='29'!$I$45,Resultate!$K$45='29'!$K$45)=TRUE,75,0)) -> 75 | AP14: =IF(Resultate!$K$46="",0,IF('29'!$L$46=Resultate!$L$46,75,0)+IF(AND(Resultate!$I$46='29'!$I$46,Resultate!$K$46='29'!$K$46)=TRUE,75,0)) -> 75 | AQ14: =IF(Resultate!$K$52="",0,IF('29'!$L$52=Resultate!$L$52,75,0)+IF(AND(Resultate!$I$52='29'!$I$52,Resultate!$K$52='29'!$K$52)=TRUE,75,0)) -> 75 | AR14: =IF(Resultate!$K$53="",0,IF('29'!$L$53=Resultate!$L$53,75,0)+IF(AND(Resultate!$I$53='29'!$I$53,Resultate!$K$53='29'!$K$53)=TRUE,75,0)) -> 75 | AS14: =IF(Resultate!$K$59="",0,IF('29'!$L$59=Resultate!$L$59,75,0)+IF(AND(Resultate!$I$59='29'!$I$59,Resultate!$K$59='29'!$K$59)=TRUE,75,0)) -> 0 | AT14: =IF(Resultate!$K$60="",0,IF('29'!$L$60=Resultate!$L$60,75,0)+IF(AND(Resultate!$I$60='29'!$I$60,Resultate!$K$60='29'!$K$60)=TRUE,75,0)) -> 0 | AU14: =IF(Resultate!$K$12="",0,IF('29'!$L$12=Resultate!$L$12,75,0)+IF(AND(Resultate!$I$12='29'!$I$12,Resultate!$K$12='29'!$K$12)=TRUE,75,0)) -> 75 | AV14: =IF(Resultate!$K$13="",0,IF('29'!$L$13=Resultate!$L$13,75,0)+IF(AND(Resultate!$I$13='29'!$I$13,Resultate!$K$13='29'!$K$13)=TRUE,75,0)) -> 0 | AW14: =IF(Resultate!$K$19="",0,IF('29'!$L$19=Resultate!$L$19,75,0)+IF(AND(Resultate!$I$19='29'!$I$19,Resultate!$K$19='29'!$K$19)=TRUE,75,0)) -> 0 | AX14: =IF(Resultate!$K$20="",0,IF('29'!$L$20=Resultate!$L$20,75,0)+IF(AND(Resultate!$I$20='29'!$I$20,Resultate!$K$20='29'!$K$20)=TRUE,75,0)) -> 0 | AY14: =IF(Resultate!$K$26="",0,IF('29'!$L$26=Resultate!$L$26,75,0)+IF(AND(Resultate!$I$26='29'!$I$26,Resultate!$K$26='29'!$K$26)=TRUE,75,0)) -> 0 | AZ14: =IF(Resultate!$K$27="",0,IF('29'!$L$27=Resultate!$L$27,75,0)+IF(AND(Resultate!$I$27='29'!$I$27,Resultate!$K$27='29'!$K$27)=TRUE,75,0)) -> 0 | BA14: =IF(Resultate!$K$33="",0,IF('29'!$L$33=Resultate!$L$33,75,0)+IF(AND(Resultate!$I$33='29'!$I$33,Resultate!$K$33='29'!$K$33)=TRUE,75,0)) -> 0 | BB14: =IF(Resultate!$K$34="",0,IF('29'!$L$34=Resultate!$L$34,75,0)+IF(AND(Resultate!$I$34='29'!$I$34,Resultate!$K$34='29'!$K$34)=TRUE,75,0)) -> 0 | BC14: =IF(Resultate!$K$47="",0,IF('29'!$L$47=Resultate!$L$47,75,0)+IF(AND(Resultate!$I$47='29'!$I$47,Resultate!$K$47='29'!$K$47)=TRUE,75,0)) -> 0 | BD14: =IF(Resultate!$K$48="",0,IF('29'!$L$48=Resultate!$L$48,75,0)+IF(AND(Resultate!$I$48='29'!$I$48,Resultate!$K$48='29'!$K$48)=TRUE,75,0)) -> 0 | BE14: =IF(Resultate!$K$40="",0,IF('29'!$L$40=Resultate!$L$40,75,0)+IF(AND(Resultate!$I$40='29'!$I$40,Resultate!$K$40='29'!$K$40)=TRUE,75,0)) -> 0 | BF14: =IF(Resultate!$K$41="",0,IF('29'!$L$41=Resultate!$L$41,75,0)+IF(AND(Resultate!$I$41='29'!$I$41,Resultate!$K$41='29'!$K$41)=TRUE,75,0)) -> 0 | BG14: =IF(Resultate!$K$54="",0,IF('29'!$L$54=Resultate!$L$54,75,0)+IF(AND(Resultate!$I$54='29'!$I$54,Resultate!$K$54='29'!$K$54)=TRUE,75,0)) -> 0 | BH14: =IF(Resultate!$K$55="",0,IF('29'!$L$55=Resultate!$L$55,75,0)+IF(AND(Resultate!$I$55='29'!$I$55,Resultate!$K$55='29'!$K$55)=TRUE,75,0)) -> 0 | BI14: =IF(Resultate!$K$61="",0,IF('29'!$L$61=Resultate!$L$61,75,0)+IF(AND(Resultate!$I$61='29'!$I$61,Resultate!$K$61='29'!$K$61)=TRUE,75,0)) -> 0 | BJ14: =IF(Resultate!$K$62="",0,IF('29'!$L$62=Resultate!$L$62,75,0)+IF(AND(Resultate!$I$62='29'!$I$62,Resultate!$K$62='29'!$K$62)=TRUE,75,0)) -> 0 | BK14: =IF('29'!$O$13=Resultate!$O$13,100,0) -> 100 | BL14: =IF('29'!$Q$13=Resultate!$Q$13,100,0) -> 0 | BM14: =IF('29'!$O$20=Resultate!$O$20,100,0) -> 0 | BN14: =IF('29'!$Q$20=Resultate!$Q$20,100,0) -> 0 | BO14: =IF('29'!$O$27=Resultate!$O$27,100,0) -> 0 | BP14: =IF('29'!$Q$27=Resultate!$Q$27,100,0) -> 100 | BQ14: =IF('29'!$O$34=Resultate!$O$34,100,0) -> 0 | BR14: =IF('29'!$Q$34=Resultate!$Q$34,100,0) -> 0 | BS14: =IF('29'!$O$40=Resultate!$O$40,100,0) -> 0 | BT14: =IF('29'!$Q$40=Resultate!$Q$40,100,0) -> 0 | BU14: =IF('29'!$O$47=Resultate!$O$47,100,0) -> 0 | BV14: =IF('29'!$Q$47=Resultate!$Q$47,100,0) -> 0 | BW14: =IF('29'!$O$54=Resultate!$O$54,100,0) -> 0 | BX14: =IF('29'!$Q$54=Resultate!$Q$54,100,0) -> 0 | BY14: =IF('29'!$O$61=Resultate!$O$61,100,0) -> 0 | BZ14: =IF('29'!$Q$61=Resultate!$Q$61,100,0) -> 0 | CA14: =VALUE(IF('29'!$X$13=Resultate!$X$13,150,0))+IF(AND(Resultate!$O$13='29'!$O$13,Resultate!$Q$13='29'!$Q$13,Resultate!$S$13='29'!$S$13,Resultate!$U$13='29'!$U$13)=TRUE,75,0) -> 0 | CB14: =VALUE(IF('29'!$Z$13=Resultate!$Z$13,150,0))+IF(AND(Resultate!$O$20='29'!$O$20,Resultate!$Q$20='29'!$Q$20,Resultate!$S$20='29'!$S$20,Resultate!$U$20='29'!$U$20)=TRUE,75,0) -> 0 | CC14: =VALUE(IF('29'!$X$19=Resultate!$X$19,150,0))+IF(AND(Resultate!$O$40='29'!$O$40,Resultate!$Q$40='29'!$Q$40,Resultate!$S$40='29'!$S$40,Resultate!$U$40='29'!$U$40)=TRUE,75,0) -> 0 | CD14: =VALUE(IF('29'!$Z$19=Resultate!$Z$19,150,0))+IF(AND(Resultate!$O$47='29'!$O$47,Resultate!$Q$47='29'!$Q$47,Resultate!$S$47='29'!$S$47,Resultate!$U$47='29'!$U$47)=TRUE,75,0) -> 0 | CE14: =VALUE(IF('29'!$X$25=Resultate!$X$25,150,0))+IF(AND(Resultate!$O$27='29'!$O$27,Resultate!$Q$27='29'!$Q$27,Resultate!$S$27='29'!$S$27,Resultate!$U$27='29'!$U$27)=TRUE,75,0) -> 0 | CF14: =VALUE(IF('29'!$Z$25=Resultate!$Z$25,150,0))+IF(AND(Resultate!$O$34='29'!$O$34,Resultate!$Q$34='29'!$Q$34,Resultate!$S$34='29'!$S$34,Resultate!$U$34='29'!$U$34)=TRUE,75,0) -> 0 | CG14: =VALUE(IF('29'!$X$31=Resultate!$X$31,150,0))+IF(AND(Resultate!$O$54='29'!$O$54,Resultate!$Q$54='29'!$Q$54,Resultate!$S$54='29'!$S$54,Resultate!$U$54='29'!$U$54)=TRUE,75,0) -> 0 | CH14: =VALUE(IF('29'!$Z$31=Resultate!$Z$31,150,0))+IF(AND(Resultate!$O$61='29'!$O$61,Resultate!$Q$61='29'!$Q$61,Resultate!$S$61='29'!$S$61,Resultate!$U$61='29'!$U$61)=TRUE,75,0) -> 0 | CI14: ='29'!$X$48 -> Frankreich | CJ14: =VALUE(IF('29'!$X$48=Resultate!$X$48,200,0))+IF(AND(Resultate!$X$13='29'!$X$13,Resultate!$Z$13='29'!$Z$13,Resultate!$AB$13='29'!$AB$13,Resultate!$AD$13='29'!$AD$13)=TRUE,75,0) -> 0 | CK14: ='29'!$Z$48 -> Brasilien | CL14: =VALUE(IF('29'!$Z$48=Resultate!$Z$48,200,0))+IF(AND(Resultate!$X$19='29'!$X$19,Resultate!$Z$19='29'!$Z$19,Resultate!$AB$19='29'!$AB$19,Resultate!$AD$19='29'!$AD$19)=TRUE,75,0) -> 0 | CM14: ='29'!$X$54 -> Argentinien | CN14: =VALUE(IF('29'!$X$54=Resultate!$X$54,200,0))+IF(AND(Resultate!$X$25='29'!$X$25,Resultate!$Z$25='29'!$Z$25,Resultate!$AB$25='29'!$AB$25,Resultate!$AD$25='29'!$AD$25)=TRUE,75,0) -> 0 | CO14: ='29'!$Z$54 -> Deutschland | CP14: =VALUE(IF('29'!$Z$54=Resultate!$Z$54,200,0))+IF(AND(Resultate!$X$31='29'!$X$31,Resultate!$Z$31='29'!$Z$31,Resultate!$AB$31='29'!$AB$31,Resultate!$AD$31='29'!$AD$31)=TRUE,75,0) -> 0 | CQ14: ='29'!$AG$8 -> Frankreich | CR14: =IF((OR('29'!$AG$8=Resultate!$AG$8,'29'!$AI$8=Resultate!$AG$8))=TRUE,100,) -> 0 | CS14: ='29'!$AI$8 -> Argentinien | CT14: =IF((OR('29'!$AI$8=Resultate!$AI$8,'29'!$AI$8=Resultate!$AG$8))=TRUE,100,) -> 0 | CU14: ='29'!$AG$13 -> Argentinien | CV14: =IF('29'!$AG$13=Resultate!$AG$13,200,0) -> 0 | CW14: ='29'!$AG$22 -> Brasilien | CX14: =IF((OR('29'!$AG$22=Resultate!$AG$22,'29'!$AI$22=Resultate!$AG$22))=TRUE,250,)+IF((OR('29'!$AG$22=Resultate!$AG$22,'29'!$AI$22=Resultate!$AG$22))=TRUE,IF(AND(Resultate!$AB$48='29'!$AB$48,Resultate!$AD$48='29'!$AD$48)=TRUE,75,0),0) -> 0 | CY14: ='29'!$AI$22 -> Deutschland | CZ14: =IF((OR('29'!$AG$22=Resultate!$AI$22,'29'!$AI$22=Resultate!$AI$22))=TRUE,250,)+IF((OR('29'!$AG$22=Resultate!$AG$22,'29'!$AI$22=Resultate!$AG$22))=TRUE,IF(AND(Resultate!$AB$54='29'!$AB$54,Resultate!$AD$54='29'!$AD$54)=TRUE,75,0),0) -> 0 | DA14: ='29'!$AG$27 -> Deutschland | DB14: =IF('29'!$AG$27=Resultate!$AG$27,300,0) -> 0 | DE14: ='29'!$AN$33 -> 205
A15: 10 | B15: 79 | C15: ='79'!$AH$35 -> Zahner Roger | D15: ='79'!$AH$39 -> roger.zahner@bluewin.ch | E15: =SUM(F15:M15) -> 2150 | F15: =SUM(O15:BJ15) -> 1950 | G15: =SUM(BK15:BZ15) -> 200 | H15: =SUM(CA15:CH15) -> 0 | I15: =SUM(CJ15:CP15) -> 0 | J15: =SUM(CR15:CV15) -> 0 | K15: =SUM(CX15:CZ15) -> 0 | L15: =DB15 -> 0 | M15: =IF(DC15="",0,DC15) -> 0 | N15: ='79'!$AN$33 -> 195 | O15: =IF(Resultate!$K$8="",0,IF('79'!$L$8=Resultate!$L$8,75,0)+IF(AND(Resultate!$I$8='79'!$I$8,Resultate!$K$8='79'!$K$8)=TRUE,75,0)) -> 75 | P15: =IF(Resultate!$K$9="",0,IF('79'!$L$9=Resultate!$L$9,75,0)+IF(AND(Resultate!$I$9='79'!$I$9,Resultate!$K$9='79'!$K$9)=TRUE,75,0)) -> 75 | Q15: =IF(Resultate!$K$15="",0,IF('79'!$L$15=Resultate!$L$15,75,0)+IF(AND(Resultate!$I$15='79'!$I$15,Resultate!$K$15='79'!$K$15)=TRUE,75,0)) -> 75 | R15: =IF(Resultate!$K$16="",0,IF('79'!$L$16=Resultate!$L$16,75,0)+IF(AND(Resultate!$I$16='79'!$I$16,Resultate!$K$16='79'!$K$16)=TRUE,75,0)) -> 0 | S15: =IF(Resultate!$K$22="",0,IF('79'!$L$22=Resultate!$L$22,75,0)+IF(AND(Resultate!$I$22='79'!$I$22,Resultate!$K$22='79'!$K$22)=TRUE,75,0)) -> 150 | T15: =IF(Resultate!$K$23="",0,IF('79'!$L$23=Resultate!$L$23,75,0)+IF(AND(Resultate!$I$23='79'!$I$23,Resultate!$K$23='79'!$K$23)=TRUE,75,0)) -> 150 | U15: =IF(Resultate!$K$29="",0,IF('79'!$L$29=Resultate!$L$29,75,0)+IF(AND(Resultate!$I$29='79'!$I$29,Resultate!$K$29='79'!$K$29)=TRUE,75,0)) -> 0 | V15: =IF(Resultate!$K$30="",0,IF('79'!$L$30=Resultate!$L$30,75,0)+IF(AND(Resultate!$I$30='79'!$I$30,Resultate!$K$30='79'!$K$30)=TRUE,75,0)) -> 150 | W15: =IF(Resultate!$K$36="",0,IF('79'!$L$36=Resultate!$L$36,75,0)+IF(AND(Resultate!$I$36='79'!$I$36,Resultate!$K$36='79'!$K$36)=TRUE,75,0)) -> 0 | X15: =IF(Resultate!$K$37="",0,IF('79'!$L$37=Resultate!$L$37,75,0)+IF(AND(Resultate!$I$37='79'!$I$37,Resultate!$K$37='79'!$K$37)=TRUE,75,0)) -> 75 | Y15: =IF(Resultate!$K$43="",0,IF('79'!$L$43=Resultate!$L$43,75,0)+IF(AND(Resultate!$I$43='79'!$I$43,Resultate!$K$43='79'!$K$43)=TRUE,75,0)) -> 0 | Z15: =IF(Resultate!$K$44="",0,IF('79'!$L$44=Resultate!$L$44,75,0)+IF(AND(Resultate!$I$44='79'!$I$44,Resultate!$K$44='79'!$K$44)=TRUE,75,0)) -> 75 | AA15: =IF(Resultate!$K$50="",0,IF('79'!$L$50=Resultate!$L$50,75,0)+IF(AND(Resultate!$I$50='79'!$I$50,Resultate!$K$50='79'!$K$50)=TRUE,75,0)) -> 75 | AB15: =IF(Resultate!$K$51="",0,IF('79'!$L$51=Resultate!$L$51,75,0)+IF(AND(Resultate!$I$51='79'!$I$51,Resultate!$K$51='79'!$K$51)=TRUE,75,0)) -> 75 | AC15: =IF(Resultate!$K$57="",0,IF('79'!$L$57=Resultate!$L$57,75,0)+IF(AND(Resultate!$I$57='79'!$I$57,Resultate!$K$57='79'!$K$57)=TRUE,75,0)) -> 0 | AD15: =IF(Resultate!$K$58="",0,IF('79'!$L$58=Resultate!$L$58,75,0)+IF(AND(Resultate!$I$58='79'!$I$58,Resultate!$K$58='79'!$K$58)=TRUE,75,0)) -> 0 | AE15: =IF(Resultate!$K$10="",0,IF('79'!$L$10=Resultate!$L$10,75,0)+IF(AND(Resultate!$I$10='79'!$I$10,Resultate!$K$10='79'!$K$10)=TRUE,75,0)) -> 0 | AF15: =IF(Resultate!$K$11="",0,IF('79'!$L$11=Resultate!$L$11,75,0)+IF(AND(Resultate!$I$11='79'!$I$11,Resultate!$K$11='79'!$K$11)=TRUE,75,0)) -> 75 | AG15: =IF(Resultate!$K$17="",0,IF('79'!$L$17=Resultate!$L$17,75,0)+IF(AND(Resultate!$I$17='79'!$I$17,Resultate!$K$17='79'!$K$17)=TRUE,75,0)) -> 75 | AH15: =IF(Resultate!$K$18="",0,IF('79'!$L$18=Resultate!$L$18,75,0)+IF(AND(Resultate!$I$18='79'!$I$18,Resultate!$K$18='79'!$K$18)=TRUE,75,0)) -> 75 | AI15: =IF(Resultate!$K$31="",0,IF('79'!$L$31=Resultate!$L$31,75,0)+IF(AND(Resultate!$I$31='79'!$I$31,Resultate!$K$31='79'!$K$31)=TRUE,75,0)) -> 0 | AJ15: =IF(Resultate!$K$24="",0,IF('79'!$L$24=Resultate!$L$24,75,0)+IF(AND(Resultate!$I$24='79'!$I$24,Resultate!$K$24='79'!$K$24)=TRUE,75,0)) -> 150 | AK15: =IF(Resultate!$K$25="",0,IF('79'!$L$25=Resultate!$L$25,75,0)+IF(AND(Resultate!$I$25='79'!$I$25,Resultate!$K$25='79'!$K$25)=TRUE,75,0)) -> 150 | AL15: =IF(Resultate!$K$32="",0,IF('79'!$L$32=Resultate!$L$32,75,0)+IF(AND(Resultate!$I$32='79'!$I$32,Resultate!$K$32='79'!$K$32)=TRUE,75,0)) -> 0 | AM15: =IF(Resultate!$K$38="",0,IF('79'!$L$38=Resultate!$L$38,75,0)+IF(AND(Resultate!$I$38='79'!$I$38,Resultate!$K$38='79'!$K$38)=TRUE,75,0)) -> 75 | AN15: =IF(Resultate!$K$39="",0,IF('79'!$L$39=Resultate!$L$39,75,0)+IF(AND(Resultate!$I$39='79'!$I$39,Resultate!$K$39='79'!$K$39)=TRUE,75,0)) -> 75 | AO15: =IF(Resultate!$K$45="",0,IF('79'!$L$45=Resultate!$L$45,75,0)+IF(AND(Resultate!$I$45='79'!$I$45,Resultate!$K$45='79'!$K$45)=TRUE,75,0)) -> 75 | AP15: =IF(Resultate!$K$46="",0,IF('79'!$L$46=Resultate!$L$46,75,0)+IF(AND(Resultate!$I$46='79'!$I$46,Resultate!$K$46='79'!$K$46)=TRUE,75,0)) -> 75 | AQ15: =IF(Resultate!$K$52="",0,IF('79'!$L$52=Resultate!$L$52,75,0)+IF(AND(Resultate!$I$52='79'!$I$52,Resultate!$K$52='79'!$K$52)=TRUE,75,0)) -> 75 | AR15: =IF(Resultate!$K$53="",0,IF('79'!$L$53=Resultate!$L$53,75,0)+IF(AND(Resultate!$I$53='79'!$I$53,Resultate!$K$53='79'!$K$53)=TRUE,75,0)) -> 0 | AS15: =IF(Resultate!$K$59="",0,IF('79'!$L$59=Resultate!$L$59,75,0)+IF(AND(Resultate!$I$59='79'!$I$59,Resultate!$K$59='79'!$K$59)=TRUE,75,0)) -> 0 | AT15: =IF(Resultate!$K$60="",0,IF('79'!$L$60=Resultate!$L$60,75,0)+IF(AND(Resultate!$I$60='79'!$I$60,Resultate!$K$60='79'!$K$60)=TRUE,75,0)) -> 0 | AU15: =IF(Resultate!$K$12="",0,IF('79'!$L$12=Resultate!$L$12,75,0)+IF(AND(Resultate!$I$12='79'!$I$12,Resultate!$K$12='79'!$K$12)=TRUE,75,0)) -> 75 | AV15: =IF(Resultate!$K$13="",0,IF('79'!$L$13=Resultate!$L$13,75,0)+IF(AND(Resultate!$I$13='79'!$I$13,Resultate!$K$13='79'!$K$13)=TRUE,75,0)) -> 0 | AW15: =IF(Resultate!$K$19="",0,IF('79'!$L$19=Resultate!$L$19,75,0)+IF(AND(Resultate!$I$19='79'!$I$19,Resultate!$K$19='79'!$K$19)=TRUE,75,0)) -> 0 | AX15: =IF(Resultate!$K$20="",0,IF('79'!$L$20=Resultate!$L$20,75,0)+IF(AND(Resultate!$I$20='79'!$I$20,Resultate!$K$20='79'!$K$20)=TRUE,75,0)) -> 0 | AY15: =IF(Resultate!$K$26="",0,IF('79'!$L$26=Resultate!$L$26,75,0)+IF(AND(Resultate!$I$26='79'!$I$26,Resultate!$K$26='79'!$K$26)=TRUE,75,0)) -> 0 | AZ15: =IF(Resultate!$K$27="",0,IF('79'!$L$27=Resultate!$L$27,75,0)+IF(AND(Resultate!$I$27='79'!$I$27,Resultate!$K$27='79'!$K$27)=TRUE,75,0)) -> 0 | BA15: =IF(Resultate!$K$33="",0,IF('79'!$L$33=Resultate!$L$33,75,0)+IF(AND(Resultate!$I$33='79'!$I$33,Resultate!$K$33='79'!$K$33)=TRUE,75,0)) -> 0 | BB15: =IF(Resultate!$K$34="",0,IF('79'!$L$34=Resultate!$L$34,75,0)+IF(AND(Resultate!$I$34='79'!$I$34,Resultate!$K$34='79'!$K$34)=TRUE,75,0)) -> 0 | BC15: =IF(Resultate!$K$47="",0,IF('79'!$L$47=Resultate!$L$47,75,0)+IF(AND(Resultate!$I$47='79'!$I$47,Resultate!$K$47='79'!$K$47)=TRUE,75,0)) -> 0 | BD15: =IF(Resultate!$K$48="",0,IF('79'!$L$48=Resultate!$L$48,75,0)+IF(AND(Resultate!$I$48='79'!$I$48,Resultate!$K$48='79'!$K$48)=TRUE,75,0)) -> 0 | BE15: =IF(Resultate!$K$40="",0,IF('79'!$L$40=Resultate!$L$40,75,0)+IF(AND(Resultate!$I$40='79'!$I$40,Resultate!$K$40='79'!$K$40)=TRUE,75,0)) -> 0 | BF15: =IF(Resultate!$K$41="",0,IF('79'!$L$41=Resultate!$L$41,75,0)+IF(AND(Resultate!$I$41='79'!$I$41,Resultate!$K$41='79'!$K$41)=TRUE,75,0)) -> 0 | BG15: =IF(Resultate!$K$54="",0,IF('79'!$L$54=Resultate!$L$54,75,0)+IF(AND(Resultate!$I$54='79'!$I$54,Resultate!$K$54='79'!$K$54)=TRUE,75,0)) -> 0 | BH15: =IF(Resultate!$K$55="",0,IF('79'!$L$55=Resultate!$L$55,75,0)+IF(AND(Resultate!$I$55='79'!$I$55,Resultate!$K$55='79'!$K$55)=TRUE,75,0)) -> 0 | BI15: =IF(Resultate!$K$61="",0,IF('79'!$L$61=Resultate!$L$61,75,0)+IF(AND(Resultate!$I$61='79'!$I$61,Resultate!$K$61='79'!$K$61)=TRUE,75,0)) -> 0 | BJ15: =IF(Resultate!$K$62="",0,IF('79'!$L$62=Resultate!$L$62,75,0)+IF(AND(Resultate!$I$62='79'!$I$62,Resultate!$K$62='79'!$K$62)=TRUE,75,0)) -> 0 | BK15: =IF('79'!$O$13=Resultate!$O$13,100,0) -> 100 | BL15: =IF('79'!$Q$13=Resultate!$Q$13,100,0) -> 0 | BM15: =IF('79'!$O$20=Resultate!$O$20,100,0) -> 0 | BN15: =IF('79'!$Q$20=Resultate!$Q$20,100,0) -> 0 | BO15: =IF('79'!$O$27=Resultate!$O$27,100,0) -> 0 | BP15: =IF('79'!$Q$27=Resultate!$Q$27,100,0) -> 100 | BQ15: =IF('79'!$O$34=Resultate!$O$34,100,0) -> 0 | BR15: =IF('79'!$Q$34=Resultate!$Q$34,100,0) -> 0 | BS15: =IF('79'!$O$40=Resultate!$O$40,100,0) -> 0 | BT15: =IF('79'!$Q$40=Resultate!$Q$40,100,0) -> 0 | BU15: =IF('79'!$O$47=Resultate!$O$47,100,0) -> 0 | BV15: =IF('79'!$Q$47=Resultate!$Q$47,100,0) -> 0 | BW15: =IF('79'!$O$54=Resultate!$O$54,100,0) -> 0 | BX15: =IF('79'!$Q$54=Resultate!$Q$54,100,0) -> 0 | BY15: =IF('79'!$O$61=Resultate!$O$61,100,0) -> 0 | BZ15: =IF('79'!$Q$61=Resultate!$Q$61,100,0) -> 0 | CA15: =VALUE(IF('79'!$X$13=Resultate!$X$13,150,0))+IF(AND(Resultate!$O$13='79'!$O$13,Resultate!$Q$13='79'!$Q$13,Resultate!$S$13='79'!$S$13,Resultate!$U$13='79'!$U$13)=TRUE,75,0) -> 0 | CB15: =VALUE(IF('79'!$Z$13=Resultate!$Z$13,150,0))+IF(AND(Resultate!$O$20='79'!$O$20,Resultate!$Q$20='79'!$Q$20,Resultate!$S$20='79'!$S$20,Resultate!$U$20='79'!$U$20)=TRUE,75,0) -> 0 | CC15: =VALUE(IF('79'!$X$19=Resultate!$X$19,150,0))+IF(AND(Resultate!$O$40='79'!$O$40,Resultate!$Q$40='79'!$Q$40,Resultate!$S$40='79'!$S$40,Resultate!$U$40='79'!$U$40)=TRUE,75,0) -> 0 | CD15: =VALUE(IF('79'!$Z$19=Resultate!$Z$19,150,0))+IF(AND(Resultate!$O$47='79'!$O$47,Resultate!$Q$47='79'!$Q$47,Resultate!$S$47='79'!$S$47,Resultate!$U$47='79'!$U$47)=TRUE,75,0) -> 0 | CE15: =VALUE(IF('79'!$X$25=Resultate!$X$25,150,0))+IF(AND(Resultate!$O$27='79'!$O$27,Resultate!$Q$27='79'!$Q$27,Resultate!$S$27='79'!$S$27,Resultate!$U$27='79'!$U$27)=TRUE,75,0) -> 0 | CF15: =VALUE(IF('79'!$Z$25=Resultate!$Z$25,150,0))+IF(AND(Resultate!$O$34='79'!$O$34,Resultate!$Q$34='79'!$Q$34,Resultate!$S$34='79'!$S$34,Resultate!$U$34='79'!$U$34)=TRUE,75,0) -> 0 | CG15: =VALUE(IF('79'!$X$31=Resultate!$X$31,150,0))+IF(AND(Resultate!$O$54='79'!$O$54,Resultate!$Q$54='79'!$Q$54,Resultate!$S$54='79'!$S$54,Resultate!$U$54='79'!$U$54)=TRUE,75,0) -> 0 | CH15: =VALUE(IF('79'!$Z$31=Resultate!$Z$31,150,0))+IF(AND(Resultate!$O$61='79'!$O$61,Resultate!$Q$61='79'!$Q$61,Resultate!$S$61='79'!$S$61,Resultate!$U$61='79'!$U$61)=TRUE,75,0) -> 0 | CI15: ='79'!$X$48 -> Spanien | CJ15: =VALUE(IF('79'!$X$48=Resultate!$X$48,200,0))+IF(AND(Resultate!$X$13='79'!$X$13,Resultate!$Z$13='79'!$Z$13,Resultate!$AB$13='79'!$AB$13,Resultate!$AD$13='79'!$AD$13)=TRUE,75,0) -> 0 | CK15: ='79'!$Z$48 -> Brasilien | CL15: =VALUE(IF('79'!$Z$48=Resultate!$Z$48,200,0))+IF(AND(Resultate!$X$19='79'!$X$19,Resultate!$Z$19='79'!$Z$19,Resultate!$AB$19='79'!$AB$19,Resultate!$AD$19='79'!$AD$19)=TRUE,75,0) -> 0 | CM15: ='79'!$X$54 -> Argentinien | CN15: =VALUE(IF('79'!$X$54=Resultate!$X$54,200,0))+IF(AND(Resultate!$X$25='79'!$X$25,Resultate!$Z$25='79'!$Z$25,Resultate!$AB$25='79'!$AB$25,Resultate!$AD$25='79'!$AD$25)=TRUE,75,0) -> 0 | CO15: ='79'!$Z$54 -> Schweiz | CP15: =VALUE(IF('79'!$Z$54=Resultate!$Z$54,200,0))+IF(AND(Resultate!$X$31='79'!$X$31,Resultate!$Z$31='79'!$Z$31,Resultate!$AB$31='79'!$AB$31,Resultate!$AD$31='79'!$AD$31)=TRUE,75,0) -> 0 | CQ15: ='79'!$AG$8 -> Spanien | CR15: =IF((OR('79'!$AG$8=Resultate!$AG$8,'79'!$AI$8=Resultate!$AG$8))=TRUE,100,) -> 0 | CS15: ='79'!$AI$8 -> Schweiz | CT15: =IF((OR('79'!$AI$8=Resultate!$AI$8,'79'!$AI$8=Resultate!$AG$8))=TRUE,100,) -> 0 | CU15: ='79'!$AG$13 -> Spanien | CV15: =IF('79'!$AG$13=Resultate!$AG$13,200,0) -> 0 | CW15: ='79'!$AG$22 -> Brasilien | CX15: =IF((OR('79'!$AG$22=Resultate!$AG$22,'79'!$AI$22=Resultate!$AG$22))=TRUE,250,)+IF((OR('79'!$AG$22=Resultate!$AG$22,'79'!$AI$22=Resultate!$AG$22))=TRUE,IF(AND(Resultate!$AB$48='79'!$AB$48,Resultate!$AD$48='79'!$AD$48)=TRUE,75,0),0) -> 0 | CY15: ='79'!$AI$22 -> Argentinien | CZ15: =IF((OR('79'!$AG$22=Resultate!$AI$22,'79'!$AI$22=Resultate!$AI$22))=TRUE,250,)+IF((OR('79'!$AG$22=Resultate!$AG$22,'79'!$AI$22=Resultate!$AG$22))=TRUE,IF(AND(Resultate!$AB$54='79'!$AB$54,Resultate!$AD$54='79'!$AD$54)=TRUE,75,0),0) -> 0 | DA15: ='79'!$AG$27 -> Argentinien | DB15: =IF('79'!$AG$27=Resultate!$AG$27,300,0) -> 0 | DE15: ='79'!$AN$33 -> 195
A16: 11 | B16: 126 | C16: ='126'!$AH$35 -> Pumuckl & Barbapapa | D16: ='126'!$AH$39 -> chrigel.heer@bluewin.ch | E16: =SUM(F16:M16) -> 2150 | F16: =SUM(O16:BJ16) -> 1950 | G16: =SUM(BK16:BZ16) -> 200 | H16: =SUM(CA16:CH16) -> 0 | I16: =SUM(CJ16:CP16) -> 0 | J16: =SUM(CR16:CV16) -> 0 | K16: =SUM(CX16:CZ16) -> 0 | L16: =DB16 -> 0 | M16: =IF(DC16="",0,DC16) -> 0 | N16: ='126'!$AN$33 -> 174 | O16: =IF(Resultate!$K$8="",0,IF('126'!$L$8=Resultate!$L$8,75,0)+IF(AND(Resultate!$I$8='126'!$I$8,Resultate!$K$8='126'!$K$8)=TRUE,75,0)) -> 75 | P16: =IF(Resultate!$K$9="",0,IF('126'!$L$9=Resultate!$L$9,75,0)+IF(AND(Resultate!$I$9='126'!$I$9,Resultate!$K$9='126'!$K$9)=TRUE,75,0)) -> 75 | Q16: =IF(Resultate!$K$15="",0,IF('126'!$L$15=Resultate!$L$15,75,0)+IF(AND(Resultate!$I$15='126'!$I$15,Resultate!$K$15='126'!$K$15)=TRUE,75,0)) -> 75 | R16: =IF(Resultate!$K$16="",0,IF('126'!$L$16=Resultate!$L$16,75,0)+IF(AND(Resultate!$I$16='126'!$I$16,Resultate!$K$16='126'!$K$16)=TRUE,75,0)) -> 0 | S16: =IF(Resultate!$K$22="",0,IF('126'!$L$22=Resultate!$L$22,75,0)+IF(AND(Resultate!$I$22='126'!$I$22,Resultate!$K$22='126'!$K$22)=TRUE,75,0)) -> 75 | T16: =IF(Resultate!$K$23="",0,IF('126'!$L$23=Resultate!$L$23,75,0)+IF(AND(Resultate!$I$23='126'!$I$23,Resultate!$K$23='126'!$K$23)=TRUE,75,0)) -> 150 | U16: =IF(Resultate!$K$29="",0,IF('126'!$L$29=Resultate!$L$29,75,0)+IF(AND(Resultate!$I$29='126'!$I$29,Resultate!$K$29='126'!$K$29)=TRUE,75,0)) -> 150 | V16: =IF(Resultate!$K$30="",0,IF('126'!$L$30=Resultate!$L$30,75,0)+IF(AND(Resultate!$I$30='126'!$I$30,Resultate!$K$30='126'!$K$30)=TRUE,75,0)) -> 75 | W16: =IF(Resultate!$K$36="",0,IF('126'!$L$36=Resultate!$L$36,75,0)+IF(AND(Resultate!$I$36='126'!$I$36,Resultate!$K$36='126'!$K$36)=TRUE,75,0)) -> 0 | X16: =IF(Resultate!$K$37="",0,IF('126'!$L$37=Resultate!$L$37,75,0)+IF(AND(Resultate!$I$37='126'!$I$37,Resultate!$K$37='126'!$K$37)=TRUE,75,0)) -> 0 | Y16: =IF(Resultate!$K$43="",0,IF('126'!$L$43=Resultate!$L$43,75,0)+IF(AND(Resultate!$I$43='126'!$I$43,Resultate!$K$43='126'!$K$43)=TRUE,75,0)) -> 0 | Z16: =IF(Resultate!$K$44="",0,IF('126'!$L$44=Resultate!$L$44,75,0)+IF(AND(Resultate!$I$44='126'!$I$44,Resultate!$K$44='126'!$K$44)=TRUE,75,0)) -> 0 | AA16: =IF(Resultate!$K$50="",0,IF('126'!$L$50=Resultate!$L$50,75,0)+IF(AND(Resultate!$I$50='126'!$I$50,Resultate!$K$50='126'!$K$50)=TRUE,75,0)) -> 75 | AB16: =IF(Resultate!$K$51="",0,IF('126'!$L$51=Resultate!$L$51,75,0)+IF(AND(Resultate!$I$51='126'!$I$51,Resultate!$K$51='126'!$K$51)=TRUE,75,0)) -> 75 | AC16: =IF(Resultate!$K$57="",0,IF('126'!$L$57=Resultate!$L$57,75,0)+IF(AND(Resultate!$I$57='126'!$I$57,Resultate!$K$57='126'!$K$57)=TRUE,75,0)) -> 0 | AD16: =IF(Resultate!$K$58="",0,IF('126'!$L$58=Resultate!$L$58,75,0)+IF(AND(Resultate!$I$58='126'!$I$58,Resultate!$K$58='126'!$K$58)=TRUE,75,0)) -> 0 | AE16: =IF(Resultate!$K$10="",0,IF('126'!$L$10=Resultate!$L$10,75,0)+IF(AND(Resultate!$I$10='126'!$I$10,Resultate!$K$10='126'!$K$10)=TRUE,75,0)) -> 150 | AF16: =IF(Resultate!$K$11="",0,IF('126'!$L$11=Resultate!$L$11,75,0)+IF(AND(Resultate!$I$11='126'!$I$11,Resultate!$K$11='126'!$K$11)=TRUE,75,0)) -> 75 | AG16: =IF(Resultate!$K$17="",0,IF('126'!$L$17=Resultate!$L$17,75,0)+IF(AND(Resultate!$I$17='126'!$I$17,Resultate!$K$17='126'!$K$17)=TRUE,75,0)) -> 75 | AH16: =IF(Resultate!$K$18="",0,IF('126'!$L$18=Resultate!$L$18,75,0)+IF(AND(Resultate!$I$18='126'!$I$18,Resultate!$K$18='126'!$K$18)=TRUE,75,0)) -> 75 | AI16: =IF(Resultate!$K$31="",0,IF('126'!$L$31=Resultate!$L$31,75,0)+IF(AND(Resultate!$I$31='126'!$I$31,Resultate!$K$31='126'!$K$31)=TRUE,75,0)) -> 0 | AJ16: =IF(Resultate!$K$24="",0,IF('126'!$L$24=Resultate!$L$24,75,0)+IF(AND(Resultate!$I$24='126'!$I$24,Resultate!$K$24='126'!$K$24)=TRUE,75,0)) -> 75 | AK16: =IF(Resultate!$K$25="",0,IF('126'!$L$25=Resultate!$L$25,75,0)+IF(AND(Resultate!$I$25='126'!$I$25,Resultate!$K$25='126'!$K$25)=TRUE,75,0)) -> 0 | AL16: =IF(Resultate!$K$32="",0,IF('126'!$L$32=Resultate!$L$32,75,0)+IF(AND(Resultate!$I$32='126'!$I$32,Resultate!$K$32='126'!$K$32)=TRUE,75,0)) -> 0 | AM16: =IF(Resultate!$K$38="",0,IF('126'!$L$38=Resultate!$L$38,75,0)+IF(AND(Resultate!$I$38='126'!$I$38,Resultate!$K$38='126'!$K$38)=TRUE,75,0)) -> 150 | AN16: =IF(Resultate!$K$39="",0,IF('126'!$L$39=Resultate!$L$39,75,0)+IF(AND(Resultate!$I$39='126'!$I$39,Resultate!$K$39='126'!$K$39)=TRUE,75,0)) -> 150 | AO16: =IF(Resultate!$K$45="",0,IF('126'!$L$45=Resultate!$L$45,75,0)+IF(AND(Resultate!$I$45='126'!$I$45,Resultate!$K$45='126'!$K$45)=TRUE,75,0)) -> 75 | AP16: =IF(Resultate!$K$46="",0,IF('126'!$L$46=Resultate!$L$46,75,0)+IF(AND(Resultate!$I$46='126'!$I$46,Resultate!$K$46='126'!$K$46)=TRUE,75,0)) -> 75 | AQ16: =IF(Resultate!$K$52="",0,IF('126'!$L$52=Resultate!$L$52,75,0)+IF(AND(Resultate!$I$52='126'!$I$52,Resultate!$K$52='126'!$K$52)=TRUE,75,0)) -> 75 | AR16: =IF(Resultate!$K$53="",0,IF('126'!$L$53=Resultate!$L$53,75,0)+IF(AND(Resultate!$I$53='126'!$I$53,Resultate!$K$53='126'!$K$53)=TRUE,75,0)) -> 75 | AS16: =IF(Resultate!$K$59="",0,IF('126'!$L$59=Resultate!$L$59,75,0)+IF(AND(Resultate!$I$59='126'!$I$59,Resultate!$K$59='126'!$K$59)=TRUE,75,0)) -> 0 | AT16: =IF(Resultate!$K$60="",0,IF('126'!$L$60=Resultate!$L$60,75,0)+IF(AND(Resultate!$I$60='126'!$I$60,Resultate!$K$60='126'!$K$60)=TRUE,75,0)) -> 0 | AU16: =IF(Resultate!$K$12="",0,IF('126'!$L$12=Resultate!$L$12,75,0)+IF(AND(Resultate!$I$12='126'!$I$12,Resultate!$K$12='126'!$K$12)=TRUE,75,0)) -> 75 | AV16: =IF(Resultate!$K$13="",0,IF('126'!$L$13=Resultate!$L$13,75,0)+IF(AND(Resultate!$I$13='126'!$I$13,Resultate!$K$13='126'!$K$13)=TRUE,75,0)) -> 0 | AW16: =IF(Resultate!$K$19="",0,IF('126'!$L$19=Resultate!$L$19,75,0)+IF(AND(Resultate!$I$19='126'!$I$19,Resultate!$K$19='126'!$K$19)=TRUE,75,0)) -> 0 | AX16: =IF(Resultate!$K$20="",0,IF('126'!$L$20=Resultate!$L$20,75,0)+IF(AND(Resultate!$I$20='126'!$I$20,Resultate!$K$20='126'!$K$20)=TRUE,75,0)) -> 0 | AY16: =IF(Resultate!$K$26="",0,IF('126'!$L$26=Resultate!$L$26,75,0)+IF(AND(Resultate!$I$26='126'!$I$26,Resultate!$K$26='126'!$K$26)=TRUE,75,0)) -> 0 | AZ16: =IF(Resultate!$K$27="",0,IF('126'!$L$27=Resultate!$L$27,75,0)+IF(AND(Resultate!$I$27='126'!$I$27,Resultate!$K$27='126'!$K$27)=TRUE,75,0)) -> 0 | BA16: =IF(Resultate!$K$33="",0,IF('126'!$L$33=Resultate!$L$33,75,0)+IF(AND(Resultate!$I$33='126'!$I$33,Resultate!$K$33='126'!$K$33)=TRUE,75,0)) -> 0 | BB16: =IF(Resultate!$K$34="",0,IF('126'!$L$34=Resultate!$L$34,75,0)+IF(AND(Resultate!$I$34='126'!$I$34,Resultate!$K$34='126'!$K$34)=TRUE,75,0)) -> 0 | BC16: =IF(Resultate!$K$47="",0,IF('126'!$L$47=Resultate!$L$47,75,0)+IF(AND(Resultate!$I$47='126'!$I$47,Resultate!$K$47='126'!$K$47)=TRUE,75,0)) -> 0 | BD16: =IF(Resultate!$K$48="",0,IF('126'!$L$48=Resultate!$L$48,75,0)+IF(AND(Resultate!$I$48='126'!$I$48,Resultate!$K$48='126'!$K$48)=TRUE,75,0)) -> 0 | BE16: =IF(Resultate!$K$40="",0,IF('126'!$L$40=Resultate!$L$40,75,0)+IF(AND(Resultate!$I$40='126'!$I$40,Resultate!$K$40='126'!$K$40)=TRUE,75,0)) -> 0 | BF16: =IF(Resultate!$K$41="",0,IF('126'!$L$41=Resultate!$L$41,75,0)+IF(AND(Resultate!$I$41='126'!$I$41,Resultate!$K$41='126'!$K$41)=TRUE,75,0)) -> 0 | BG16: =IF(Resultate!$K$54="",0,IF('126'!$L$54=Resultate!$L$54,75,0)+IF(AND(Resultate!$I$54='126'!$I$54,Resultate!$K$54='126'!$K$54)=TRUE,75,0)) -> 0 | BH16: =IF(Resultate!$K$55="",0,IF('126'!$L$55=Resultate!$L$55,75,0)+IF(AND(Resultate!$I$55='126'!$I$55,Resultate!$K$55='126'!$K$55)=TRUE,75,0)) -> 0 | BI16: =IF(Resultate!$K$61="",0,IF('126'!$L$61=Resultate!$L$61,75,0)+IF(AND(Resultate!$I$61='126'!$I$61,Resultate!$K$61='126'!$K$61)=TRUE,75,0)) -> 0 | BJ16: =IF(Resultate!$K$62="",0,IF('126'!$L$62=Resultate!$L$62,75,0)+IF(AND(Resultate!$I$62='126'!$I$62,Resultate!$K$62='126'!$K$62)=TRUE,75,0)) -> 0 | BK16: =IF('126'!$O$13=Resultate!$O$13,100,0) -> 100 | BL16: =IF('126'!$Q$13=Resultate!$Q$13,100,0) -> 0 | BM16: =IF('126'!$O$20=Resultate!$O$20,100,0) -> 0 | BN16: =IF('126'!$Q$20=Resultate!$Q$20,100,0) -> 0 | BO16: =IF('126'!$O$27=Resultate!$O$27,100,0) -> 0 | BP16: =IF('126'!$Q$27=Resultate!$Q$27,100,0) -> 100 | BQ16: =IF('126'!$O$34=Resultate!$O$34,100,0) -> 0 | BR16: =IF('126'!$Q$34=Resultate!$Q$34,100,0) -> 0 | BS16: =IF('126'!$O$40=Resultate!$O$40,100,0) -> 0 | BT16: =IF('126'!$Q$40=Resultate!$Q$40,100,0) -> 0 | BU16: =IF('126'!$O$47=Resultate!$O$47,100,0) -> 0 | BV16: =IF('126'!$Q$47=Resultate!$Q$47,100,0) -> 0 | BW16: =IF('126'!$O$54=Resultate!$O$54,100,0) -> 0 | BX16: =IF('126'!$Q$54=Resultate!$Q$54,100,0) -> 0 | BY16: =IF('126'!$O$61=Resultate!$O$61,100,0) -> 0 | BZ16: =IF('126'!$Q$61=Resultate!$Q$61,100,0) -> 0 | CA16: =VALUE(IF('126'!$X$13=Resultate!$X$13,150,0))+IF(AND(Resultate!$O$13='126'!$O$13,Resultate!$Q$13='126'!$Q$13,Resultate!$S$13='126'!$S$13,Resultate!$U$13='126'!$U$13)=TRUE,75,0) -> 0 | CB16: =VALUE(IF('126'!$Z$13=Resultate!$Z$13,150,0))+IF(AND(Resultate!$O$20='126'!$O$20,Resultate!$Q$20='126'!$Q$20,Resultate!$S$20='126'!$S$20,Resultate!$U$20='126'!$U$20)=TRUE,75,0) -> 0 | CC16: =VALUE(IF('126'!$X$19=Resultate!$X$19,150,0))+IF(AND(Resultate!$O$40='126'!$O$40,Resultate!$Q$40='126'!$Q$40,Resultate!$S$40='126'!$S$40,Resultate!$U$40='126'!$U$40)=TRUE,75,0) -> 0 | CD16: =VALUE(IF('126'!$Z$19=Resultate!$Z$19,150,0))+IF(AND(Resultate!$O$47='126'!$O$47,Resultate!$Q$47='126'!$Q$47,Resultate!$S$47='126'!$S$47,Resultate!$U$47='126'!$U$47)=TRUE,75,0) -> 0 | CE16: =VALUE(IF('126'!$X$25=Resultate!$X$25,150,0))+IF(AND(Resultate!$O$27='126'!$O$27,Resultate!$Q$27='126'!$Q$27,Resultate!$S$27='126'!$S$27,Resultate!$U$27='126'!$U$27)=TRUE,75,0) -> 0 | CF16: =VALUE(IF('126'!$Z$25=Resultate!$Z$25,150,0))+IF(AND(Resultate!$O$34='126'!$O$34,Resultate!$Q$34='126'!$Q$34,Resultate!$S$34='126'!$S$34,Resultate!$U$34='126'!$U$34)=TRUE,75,0) -> 0 | CG16: =VALUE(IF('126'!$X$31=Resultate!$X$31,150,0))+IF(AND(Resultate!$O$54='126'!$O$54,Resultate!$Q$54='126'!$Q$54,Resultate!$S$54='126'!$S$54,Resultate!$U$54='126'!$U$54)=TRUE,75,0) -> 0 | CH16: =VALUE(IF('126'!$Z$31=Resultate!$Z$31,150,0))+IF(AND(Resultate!$O$61='126'!$O$61,Resultate!$Q$61='126'!$Q$61,Resultate!$S$61='126'!$S$61,Resultate!$U$61='126'!$U$61)=TRUE,75,0) -> 0 | CI16: ='126'!$X$48 -> Frankreich | CJ16: =VALUE(IF('126'!$X$48=Resultate!$X$48,200,0))+IF(AND(Resultate!$X$13='126'!$X$13,Resultate!$Z$13='126'!$Z$13,Resultate!$AB$13='126'!$AB$13,Resultate!$AD$13='126'!$AD$13)=TRUE,75,0) -> 0 | CK16: ='126'!$Z$48 -> Brasilien | CL16: =VALUE(IF('126'!$Z$48=Resultate!$Z$48,200,0))+IF(AND(Resultate!$X$19='126'!$X$19,Resultate!$Z$19='126'!$Z$19,Resultate!$AB$19='126'!$AB$19,Resultate!$AD$19='126'!$AD$19)=TRUE,75,0) -> 0 | CM16: ='126'!$X$54 -> Argentinien | CN16: =VALUE(IF('126'!$X$54=Resultate!$X$54,200,0))+IF(AND(Resultate!$X$25='126'!$X$25,Resultate!$Z$25='126'!$Z$25,Resultate!$AB$25='126'!$AB$25,Resultate!$AD$25='126'!$AD$25)=TRUE,75,0) -> 0 | CO16: ='126'!$Z$54 -> Belgien | CP16: =VALUE(IF('126'!$Z$54=Resultate!$Z$54,200,0))+IF(AND(Resultate!$X$31='126'!$X$31,Resultate!$Z$31='126'!$Z$31,Resultate!$AB$31='126'!$AB$31,Resultate!$AD$31='126'!$AD$31)=TRUE,75,0) -> 0 | CQ16: ='126'!$AG$8 -> Frankreich | CR16: =IF((OR('126'!$AG$8=Resultate!$AG$8,'126'!$AI$8=Resultate!$AG$8))=TRUE,100,) -> 0 | CS16: ='126'!$AI$8 -> Belgien | CT16: =IF((OR('126'!$AI$8=Resultate!$AI$8,'126'!$AI$8=Resultate!$AG$8))=TRUE,100,) -> 0 | CU16: ='126'!$AG$13 -> Frankreich | CV16: =IF('126'!$AG$13=Resultate!$AG$13,200,0) -> 0 | CW16: ='126'!$AG$22 -> Brasilien | CX16: =IF((OR('126'!$AG$22=Resultate!$AG$22,'126'!$AI$22=Resultate!$AG$22))=TRUE,250,)+IF((OR('126'!$AG$22=Resultate!$AG$22,'126'!$AI$22=Resultate!$AG$22))=TRUE,IF(AND(Resultate!$AB$48='126'!$AB$48,Resultate!$AD$48='126'!$AD$48)=TRUE,75,0),0) -> 0 | CY16: ='126'!$AI$22 -> Argentinien | CZ16: =IF((OR('126'!$AG$22=Resultate!$AI$22,'126'!$AI$22=Resultate!$AI$22))=TRUE,250,)+IF((OR('126'!$AG$22=Resultate!$AG$22,'126'!$AI$22=Resultate!$AG$22))=TRUE,IF(AND(Resultate!$AB$54='126'!$AB$54,Resultate!$AD$54='126'!$AD$54)=TRUE,75,0),0) -> 0 | DA16: ='126'!$AG$27 -> Argentinien | DB16: =IF('126'!$AG$27=Resultate!$AG$27,300,0) -> 0 | DE16: ='126'!$AN$33 -> 174
A17: 12 | B17: 143 | C17: ='143'!$AH$35 -> Zoller Bruno I | D17: ='143'!$AH$39 -> bruno.zoller@allianz.suisse,ch | E17: =SUM(F17:M17) -> 2150 | F17: =SUM(O17:BJ17) -> 1950 | G17: =SUM(BK17:BZ17) -> 200 | H17: =SUM(CA17:CH17) -> 0 | I17: =SUM(CJ17:CP17) -> 0 | J17: =SUM(CR17:CV17) -> 0 | K17: =SUM(CX17:CZ17) -> 0 | L17: =DB17 -> 0 | M17: =IF(DC17="",0,DC17) -> 0 | N17: ='143'!$AN$33 -> 172 | O17: =IF(Resultate!$K$8="",0,IF('143'!$L$8=Resultate!$L$8,75,0)+IF(AND(Resultate!$I$8='143'!$I$8,Resultate!$K$8='143'!$K$8)=TRUE,75,0)) -> 75 | P17: =IF(Resultate!$K$9="",0,IF('143'!$L$9=Resultate!$L$9,75,0)+IF(AND(Resultate!$I$9='143'!$I$9,Resultate!$K$9='143'!$K$9)=TRUE,75,0)) -> 75 | Q17: =IF(Resultate!$K$15="",0,IF('143'!$L$15=Resultate!$L$15,75,0)+IF(AND(Resultate!$I$15='143'!$I$15,Resultate!$K$15='143'!$K$15)=TRUE,75,0)) -> 0 | R17: =IF(Resultate!$K$16="",0,IF('143'!$L$16=Resultate!$L$16,75,0)+IF(AND(Resultate!$I$16='143'!$I$16,Resultate!$K$16='143'!$K$16)=TRUE,75,0)) -> 0 | S17: =IF(Resultate!$K$22="",0,IF('143'!$L$22=Resultate!$L$22,75,0)+IF(AND(Resultate!$I$22='143'!$I$22,Resultate!$K$22='143'!$K$22)=TRUE,75,0)) -> 75 | T17: =IF(Resultate!$K$23="",0,IF('143'!$L$23=Resultate!$L$23,75,0)+IF(AND(Resultate!$I$23='143'!$I$23,Resultate!$K$23='143'!$K$23)=TRUE,75,0)) -> 0 | U17: =IF(Resultate!$K$29="",0,IF('143'!$L$29=Resultate!$L$29,75,0)+IF(AND(Resultate!$I$29='143'!$I$29,Resultate!$K$29='143'!$K$29)=TRUE,75,0)) -> 0 | V17: =IF(Resultate!$K$30="",0,IF('143'!$L$30=Resultate!$L$30,75,0)+IF(AND(Resultate!$I$30='143'!$I$30,Resultate!$K$30='143'!$K$30)=TRUE,75,0)) -> 0 | W17: =IF(Resultate!$K$36="",0,IF('143'!$L$36=Resultate!$L$36,75,0)+IF(AND(Resultate!$I$36='143'!$I$36,Resultate!$K$36='143'!$K$36)=TRUE,75,0)) -> 150 | X17: =IF(Resultate!$K$37="",0,IF('143'!$L$37=Resultate!$L$37,75,0)+IF(AND(Resultate!$I$37='143'!$I$37,Resultate!$K$37='143'!$K$37)=TRUE,75,0)) -> 0 | Y17: =IF(Resultate!$K$43="",0,IF('143'!$L$43=Resultate!$L$43,75,0)+IF(AND(Resultate!$I$43='143'!$I$43,Resultate!$K$43='143'!$K$43)=TRUE,75,0)) -> 0 | Z17: =IF(Resultate!$K$44="",0,IF('143'!$L$44=Resultate!$L$44,75,0)+IF(AND(Resultate!$I$44='143'!$I$44,Resultate!$K$44='143'!$K$44)=TRUE,75,0)) -> 150 | AA17: =IF(Resultate!$K$50="",0,IF('143'!$L$50=Resultate!$L$50,75,0)+IF(AND(Resultate!$I$50='143'!$I$50,Resultate!$K$50='143'!$K$50)=TRUE,75,0)) -> 75 | AB17: =IF(Resultate!$K$51="",0,IF('143'!$L$51=Resultate!$L$51,75,0)+IF(AND(Resultate!$I$51='143'!$I$51,Resultate!$K$51='143'!$K$51)=TRUE,75,0)) -> 150 | AC17: =IF(Resultate!$K$57="",0,IF('143'!$L$57=Resultate!$L$57,75,0)+IF(AND(Resultate!$I$57='143'!$I$57,Resultate!$K$57='143'!$K$57)=TRUE,75,0)) -> 0 | AD17: =IF(Resultate!$K$58="",0,IF('143'!$L$58=Resultate!$L$58,75,0)+IF(AND(Resultate!$I$58='143'!$I$58,Resultate!$K$58='143'!$K$58)=TRUE,75,0)) -> 0 | AE17: =IF(Resultate!$K$10="",0,IF('143'!$L$10=Resultate!$L$10,75,0)+IF(AND(Resultate!$I$10='143'!$I$10,Resultate!$K$10='143'!$K$10)=TRUE,75,0)) -> 0 | AF17: =IF(Resultate!$K$11="",0,IF('143'!$L$11=Resultate!$L$11,75,0)+IF(AND(Resultate!$I$11='143'!$I$11,Resultate!$K$11='143'!$K$11)=TRUE,75,0)) -> 75 | AG17: =IF(Resultate!$K$17="",0,IF('143'!$L$17=Resultate!$L$17,75,0)+IF(AND(Resultate!$I$17='143'!$I$17,Resultate!$K$17='143'!$K$17)=TRUE,75,0)) -> 75 | AH17: =IF(Resultate!$K$18="",0,IF('143'!$L$18=Resultate!$L$18,75,0)+IF(AND(Resultate!$I$18='143'!$I$18,Resultate!$K$18='143'!$K$18)=TRUE,75,0)) -> 75 | AI17: =IF(Resultate!$K$31="",0,IF('143'!$L$31=Resultate!$L$31,75,0)+IF(AND(Resultate!$I$31='143'!$I$31,Resultate!$K$31='143'!$K$31)=TRUE,75,0)) -> 0 | AJ17: =IF(Resultate!$K$24="",0,IF('143'!$L$24=Resultate!$L$24,75,0)+IF(AND(Resultate!$I$24='143'!$I$24,Resultate!$K$24='143'!$K$24)=TRUE,75,0)) -> 75 | AK17: =IF(Resultate!$K$25="",0,IF('143'!$L$25=Resultate!$L$25,75,0)+IF(AND(Resultate!$I$25='143'!$I$25,Resultate!$K$25='143'!$K$25)=TRUE,75,0)) -> 0 | AL17: =IF(Resultate!$K$32="",0,IF('143'!$L$32=Resultate!$L$32,75,0)+IF(AND(Resultate!$I$32='143'!$I$32,Resultate!$K$32='143'!$K$32)=TRUE,75,0)) -> 75 | AM17: =IF(Resultate!$K$38="",0,IF('143'!$L$38=Resultate!$L$38,75,0)+IF(AND(Resultate!$I$38='143'!$I$38,Resultate!$K$38='143'!$K$38)=TRUE,75,0)) -> 75 | AN17: =IF(Resultate!$K$39="",0,IF('143'!$L$39=Resultate!$L$39,75,0)+IF(AND(Resultate!$I$39='143'!$I$39,Resultate!$K$39='143'!$K$39)=TRUE,75,0)) -> 150 | AO17: =IF(Resultate!$K$45="",0,IF('143'!$L$45=Resultate!$L$45,75,0)+IF(AND(Resultate!$I$45='143'!$I$45,Resultate!$K$45='143'!$K$45)=TRUE,75,0)) -> 75 | AP17: =IF(Resultate!$K$46="",0,IF('143'!$L$46=Resultate!$L$46,75,0)+IF(AND(Resultate!$I$46='143'!$I$46,Resultate!$K$46='143'!$K$46)=TRUE,75,0)) -> 150 | AQ17: =IF(Resultate!$K$52="",0,IF('143'!$L$52=Resultate!$L$52,75,0)+IF(AND(Resultate!$I$52='143'!$I$52,Resultate!$K$52='143'!$K$52)=TRUE,75,0)) -> 75 | AR17: =IF(Resultate!$K$53="",0,IF('143'!$L$53=Resultate!$L$53,75,0)+IF(AND(Resultate!$I$53='143'!$I$53,Resultate!$K$53='143'!$K$53)=TRUE,75,0)) -> 75 | AS17: =IF(Resultate!$K$59="",0,IF('143'!$L$59=Resultate!$L$59,75,0)+IF(AND(Resultate!$I$59='143'!$I$59,Resultate!$K$59='143'!$K$59)=TRUE,75,0)) -> 75 | AT17: =IF(Resultate!$K$60="",0,IF('143'!$L$60=Resultate!$L$60,75,0)+IF(AND(Resultate!$I$60='143'!$I$60,Resultate!$K$60='143'!$K$60)=TRUE,75,0)) -> 75 | AU17: =IF(Resultate!$K$12="",0,IF('143'!$L$12=Resultate!$L$12,75,0)+IF(AND(Resultate!$I$12='143'!$I$12,Resultate!$K$12='143'!$K$12)=TRUE,75,0)) -> 75 | AV17: =IF(Resultate!$K$13="",0,IF('143'!$L$13=Resultate!$L$13,75,0)+IF(AND(Resultate!$I$13='143'!$I$13,Resultate!$K$13='143'!$K$13)=TRUE,75,0)) -> 0 | AW17: =IF(Resultate!$K$19="",0,IF('143'!$L$19=Resultate!$L$19,75,0)+IF(AND(Resultate!$I$19='143'!$I$19,Resultate!$K$19='143'!$K$19)=TRUE,75,0)) -> 0 | AX17: =IF(Resultate!$K$20="",0,IF('143'!$L$20=Resultate!$L$20,75,0)+IF(AND(Resultate!$I$20='143'!$I$20,Resultate!$K$20='143'!$K$20)=TRUE,75,0)) -> 0 | AY17: =IF(Resultate!$K$26="",0,IF('143'!$L$26=Resultate!$L$26,75,0)+IF(AND(Resultate!$I$26='143'!$I$26,Resultate!$K$26='143'!$K$26)=TRUE,75,0)) -> 0 | AZ17: =IF(Resultate!$K$27="",0,IF('143'!$L$27=Resultate!$L$27,75,0)+IF(AND(Resultate!$I$27='143'!$I$27,Resultate!$K$27='143'!$K$27)=TRUE,75,0)) -> 0 | BA17: =IF(Resultate!$K$33="",0,IF('143'!$L$33=Resultate!$L$33,75,0)+IF(AND(Resultate!$I$33='143'!$I$33,Resultate!$K$33='143'!$K$33)=TRUE,75,0)) -> 0 | BB17: =IF(Resultate!$K$34="",0,IF('143'!$L$34=Resultate!$L$34,75,0)+IF(AND(Resultate!$I$34='143'!$I$34,Resultate!$K$34='143'!$K$34)=TRUE,75,0)) -> 0 | BC17: =IF(Resultate!$K$47="",0,IF('143'!$L$47=Resultate!$L$47,75,0)+IF(AND(Resultate!$I$47='143'!$I$47,Resultate!$K$47='143'!$K$47)=TRUE,75,0)) -> 0 | BD17: =IF(Resultate!$K$48="",0,IF('143'!$L$48=Resultate!$L$48,75,0)+IF(AND(Resultate!$I$48='143'!$I$48,Resultate!$K$48='143'!$K$48)=TRUE,75,0)) -> 0 | BE17: =IF(Resultate!$K$40="",0,IF('143'!$L$40=Resultate!$L$40,75,0)+IF(AND(Resultate!$I$40='143'!$I$40,Resultate!$K$40='143'!$K$40)=TRUE,75,0)) -> 0 | BF17: =IF(Resultate!$K$41="",0,IF('143'!$L$41=Resultate!$L$41,75,0)+IF(AND(Resultate!$I$41='143'!$I$41,Resultate!$K$41='143'!$K$41)=TRUE,75,0)) -> 0 | BG17: =IF(Resultate!$K$54="",0,IF('143'!$L$54=Resultate!$L$54,75,0)+IF(AND(Resultate!$I$54='143'!$I$54,Resultate!$K$54='143'!$K$54)=TRUE,75,0)) -> 0 | BH17: =IF(Resultate!$K$55="",0,IF('143'!$L$55=Resultate!$L$55,75,0)+IF(AND(Resultate!$I$55='143'!$I$55,Resultate!$K$55='143'!$K$55)=TRUE,75,0)) -> 0 | BI17: =IF(Resultate!$K$61="",0,IF('143'!$L$61=Resultate!$L$61,75,0)+IF(AND(Resultate!$I$61='143'!$I$61,Resultate!$K$61='143'!$K$61)=TRUE,75,0)) -> 0 | BJ17: =IF(Resultate!$K$62="",0,IF('143'!$L$62=Resultate!$L$62,75,0)+IF(AND(Resultate!$I$62='143'!$I$62,Resultate!$K$62='143'!$K$62)=TRUE,75,0)) -> 0 | BK17: =IF('143'!$O$13=Resultate!$O$13,100,0) -> 100 | BL17: =IF('143'!$Q$13=Resultate!$Q$13,100,0) -> 0 | BM17: =IF('143'!$O$20=Resultate!$O$20,100,0) -> 0 | BN17: =IF('143'!$Q$20=Resultate!$Q$20,100,0) -> 0 | BO17: =IF('143'!$O$27=Resultate!$O$27,100,0) -> 0 | BP17: =IF('143'!$Q$27=Resultate!$Q$27,100,0) -> 100 | BQ17: =IF('143'!$O$34=Resultate!$O$34,100,0) -> 0 | BR17: =IF('143'!$Q$34=Resultate!$Q$34,100,0) -> 0 | BS17: =IF('143'!$O$40=Resultate!$O$40,100,0) -> 0 | BT17: =IF('143'!$Q$40=Resultate!$Q$40,100,0) -> 0 | BU17: =IF('143'!$O$47=Resultate!$O$47,100,0) -> 0 | BV17: =IF('143'!$Q$47=Resultate!$Q$47,100,0) -> 0 | BW17: =IF('143'!$O$54=Resultate!$O$54,100,0) -> 0 | BX17: =IF('143'!$Q$54=Resultate!$Q$54,100,0) -> 0 | BY17: =IF('143'!$O$61=Resultate!$O$61,100,0) -> 0 | BZ17: =IF('143'!$Q$61=Resultate!$Q$61,100,0) -> 0 | CA17: =VALUE(IF('143'!$X$13=Resultate!$X$13,150,0))+IF(AND(Resultate!$O$13='143'!$O$13,Resultate!$Q$13='143'!$Q$13,Resultate!$S$13='143'!$S$13,Resultate!$U$13='143'!$U$13)=TRUE,75,0) -> 0 | CB17: =VALUE(IF('143'!$Z$13=Resultate!$Z$13,150,0))+IF(AND(Resultate!$O$20='143'!$O$20,Resultate!$Q$20='143'!$Q$20,Resultate!$S$20='143'!$S$20,Resultate!$U$20='143'!$U$20)=TRUE,75,0) -> 0 | CC17: =VALUE(IF('143'!$X$19=Resultate!$X$19,150,0))+IF(AND(Resultate!$O$40='143'!$O$40,Resultate!$Q$40='143'!$Q$40,Resultate!$S$40='143'!$S$40,Resultate!$U$40='143'!$U$40)=TRUE,75,0) -> 0 | CD17: =VALUE(IF('143'!$Z$19=Resultate!$Z$19,150,0))+IF(AND(Resultate!$O$47='143'!$O$47,Resultate!$Q$47='143'!$Q$47,Resultate!$S$47='143'!$S$47,Resultate!$U$47='143'!$U$47)=TRUE,75,0) -> 0 | CE17: =VALUE(IF('143'!$X$25=Resultate!$X$25,150,0))+IF(AND(Resultate!$O$27='143'!$O$27,Resultate!$Q$27='143'!$Q$27,Resultate!$S$27='143'!$S$27,Resultate!$U$27='143'!$U$27)=TRUE,75,0) -> 0 | CF17: =VALUE(IF('143'!$Z$25=Resultate!$Z$25,150,0))+IF(AND(Resultate!$O$34='143'!$O$34,Resultate!$Q$34='143'!$Q$34,Resultate!$S$34='143'!$S$34,Resultate!$U$34='143'!$U$34)=TRUE,75,0) -> 0 | CG17: =VALUE(IF('143'!$X$31=Resultate!$X$31,150,0))+IF(AND(Resultate!$O$54='143'!$O$54,Resultate!$Q$54='143'!$Q$54,Resultate!$S$54='143'!$S$54,Resultate!$U$54='143'!$U$54)=TRUE,75,0) -> 0 | CH17: =VALUE(IF('143'!$Z$31=Resultate!$Z$31,150,0))+IF(AND(Resultate!$O$61='143'!$O$61,Resultate!$Q$61='143'!$Q$61,Resultate!$S$61='143'!$S$61,Resultate!$U$61='143'!$U$61)=TRUE,75,0) -> 0 | CI17: ='143'!$X$48 -> Frankreich | CJ17: =VALUE(IF('143'!$X$48=Resultate!$X$48,200,0))+IF(AND(Resultate!$X$13='143'!$X$13,Resultate!$Z$13='143'!$Z$13,Resultate!$AB$13='143'!$AB$13,Resultate!$AD$13='143'!$AD$13)=TRUE,75,0) -> 0 | CK17: ='143'!$Z$48 -> Brasilien | CL17: =VALUE(IF('143'!$Z$48=Resultate!$Z$48,200,0))+IF(AND(Resultate!$X$19='143'!$X$19,Resultate!$Z$19='143'!$Z$19,Resultate!$AB$19='143'!$AB$19,Resultate!$AD$19='143'!$AD$19)=TRUE,75,0) -> 0 | CM17: ='143'!$X$54 -> Argentinien | CN17: =VALUE(IF('143'!$X$54=Resultate!$X$54,200,0))+IF(AND(Resultate!$X$25='143'!$X$25,Resultate!$Z$25='143'!$Z$25,Resultate!$AB$25='143'!$AB$25,Resultate!$AD$25='143'!$AD$25)=TRUE,75,0) -> 0 | CO17: ='143'!$Z$54 -> Schweiz | CP17: =VALUE(IF('143'!$Z$54=Resultate!$Z$54,200,0))+IF(AND(Resultate!$X$31='143'!$X$31,Resultate!$Z$31='143'!$Z$31,Resultate!$AB$31='143'!$AB$31,Resultate!$AD$31='143'!$AD$31)=TRUE,75,0) -> 0 | CQ17: ='143'!$AG$8 -> Frankreich | CR17: =IF((OR('143'!$AG$8=Resultate!$AG$8,'143'!$AI$8=Resultate!$AG$8))=TRUE,100,) -> 0 | CS17: ='143'!$AI$8 -> Argentinien | CT17: =IF((OR('143'!$AI$8=Resultate!$AI$8,'143'!$AI$8=Resultate!$AG$8))=TRUE,100,) -> 0 | CU17: ='143'!$AG$13 -> Frankreich | CV17: =IF('143'!$AG$13=Resultate!$AG$13,200,0) -> 0 | CW17: ='143'!$AG$22 -> Brasilien | CX17: =IF((OR('143'!$AG$22=Resultate!$AG$22,'143'!$AI$22=Resultate!$AG$22))=TRUE,250,)+IF((OR('143'!$AG$22=Resultate!$AG$22,'143'!$AI$22=Resultate!$AG$22))=TRUE,IF(AND(Resultate!$AB$48='143'!$AB$48,Resultate!$AD$48='143'!$AD$48)=TRUE,75,0),0) -> 0 | CY17: ='143'!$AI$22 -> Schweiz | CZ17: =IF((OR('143'!$AG$22=Resultate!$AI$22,'143'!$AI$22=Resultate!$AI$22))=TRUE,250,)+IF((OR('143'!$AG$22=Resultate!$AG$22,'143'!$AI$22=Resultate!$AG$22))=TRUE,IF(AND(Resultate!$AB$54='143'!$AB$54,Resultate!$AD$54='143'!$AD$54)=TRUE,75,0),0) -> 0 | DA17: ='143'!$AG$27 -> Brasilien | DB17: =IF('143'!$AG$27=Resultate!$AG$27,300,0) -> 0 | DE17: ='143'!$AN$33 -> 172
A18: 13 | B18: 152 | C18: ='152'!$AH$35 -> Andrea Mulder | D18: ='152'!$AH$39 -> andrea.mulder@bluewin.ch | E18: =SUM(F18:M18) -> 2150 | F18: =SUM(O18:BJ18) -> 1950 | G18: =SUM(BK18:BZ18) -> 200 | H18: =SUM(CA18:CH18) -> 0 | I18: =SUM(CJ18:CP18) -> 0 | J18: =SUM(CR18:CV18) -> 0 | K18: =SUM(CX18:CZ18) -> 0 | L18: =DB18 -> 0 | M18: =IF(DC18="",0,DC18) -> 0 | N18: ='152'!$AN$33 -> 165 | O18: =IF(Resultate!$K$8="",0,IF('152'!$L$8=Resultate!$L$8,75,0)+IF(AND(Resultate!$I$8='152'!$I$8,Resultate!$K$8='152'!$K$8)=TRUE,75,0)) -> 75 | P18: =IF(Resultate!$K$9="",0,IF('152'!$L$9=Resultate!$L$9,75,0)+IF(AND(Resultate!$I$9='152'!$I$9,Resultate!$K$9='152'!$K$9)=TRUE,75,0)) -> 75 | Q18: =IF(Resultate!$K$15="",0,IF('152'!$L$15=Resultate!$L$15,75,0)+IF(AND(Resultate!$I$15='152'!$I$15,Resultate!$K$15='152'!$K$15)=TRUE,75,0)) -> 0 | R18: =IF(Resultate!$K$16="",0,IF('152'!$L$16=Resultate!$L$16,75,0)+IF(AND(Resultate!$I$16='152'!$I$16,Resultate!$K$16='152'!$K$16)=TRUE,75,0)) -> 0 | S18: =IF(Resultate!$K$22="",0,IF('152'!$L$22=Resultate!$L$22,75,0)+IF(AND(Resultate!$I$22='152'!$I$22,Resultate!$K$22='152'!$K$22)=TRUE,75,0)) -> 75 | T18: =IF(Resultate!$K$23="",0,IF('152'!$L$23=Resultate!$L$23,75,0)+IF(AND(Resultate!$I$23='152'!$I$23,Resultate!$K$23='152'!$K$23)=TRUE,75,0)) -> 75 | U18: =IF(Resultate!$K$29="",0,IF('152'!$L$29=Resultate!$L$29,75,0)+IF(AND(Resultate!$I$29='152'!$I$29,Resultate!$K$29='152'!$K$29)=TRUE,75,0)) -> 0 | V18: =IF(Resultate!$K$30="",0,IF('152'!$L$30=Resultate!$L$30,75,0)+IF(AND(Resultate!$I$30='152'!$I$30,Resultate!$K$30='152'!$K$30)=TRUE,75,0)) -> 0 | W18: =IF(Resultate!$K$36="",0,IF('152'!$L$36=Resultate!$L$36,75,0)+IF(AND(Resultate!$I$36='152'!$I$36,Resultate!$K$36='152'!$K$36)=TRUE,75,0)) -> 0 | X18: =IF(Resultate!$K$37="",0,IF('152'!$L$37=Resultate!$L$37,75,0)+IF(AND(Resultate!$I$37='152'!$I$37,Resultate!$K$37='152'!$K$37)=TRUE,75,0)) -> 150 | Y18: =IF(Resultate!$K$43="",0,IF('152'!$L$43=Resultate!$L$43,75,0)+IF(AND(Resultate!$I$43='152'!$I$43,Resultate!$K$43='152'!$K$43)=TRUE,75,0)) -> 0 | Z18: =IF(Resultate!$K$44="",0,IF('152'!$L$44=Resultate!$L$44,75,0)+IF(AND(Resultate!$I$44='152'!$I$44,Resultate!$K$44='152'!$K$44)=TRUE,75,0)) -> 75 | AA18: =IF(Resultate!$K$50="",0,IF('152'!$L$50=Resultate!$L$50,75,0)+IF(AND(Resultate!$I$50='152'!$I$50,Resultate!$K$50='152'!$K$50)=TRUE,75,0)) -> 75 | AB18: =IF(Resultate!$K$51="",0,IF('152'!$L$51=Resultate!$L$51,75,0)+IF(AND(Resultate!$I$51='152'!$I$51,Resultate!$K$51='152'!$K$51)=TRUE,75,0)) -> 75 | AC18: =IF(Resultate!$K$57="",0,IF('152'!$L$57=Resultate!$L$57,75,0)+IF(AND(Resultate!$I$57='152'!$I$57,Resultate!$K$57='152'!$K$57)=TRUE,75,0)) -> 75 | AD18: =IF(Resultate!$K$58="",0,IF('152'!$L$58=Resultate!$L$58,75,0)+IF(AND(Resultate!$I$58='152'!$I$58,Resultate!$K$58='152'!$K$58)=TRUE,75,0)) -> 0 | AE18: =IF(Resultate!$K$10="",0,IF('152'!$L$10=Resultate!$L$10,75,0)+IF(AND(Resultate!$I$10='152'!$I$10,Resultate!$K$10='152'!$K$10)=TRUE,75,0)) -> 75 | AF18: =IF(Resultate!$K$11="",0,IF('152'!$L$11=Resultate!$L$11,75,0)+IF(AND(Resultate!$I$11='152'!$I$11,Resultate!$K$11='152'!$K$11)=TRUE,75,0)) -> 150 | AG18: =IF(Resultate!$K$17="",0,IF('152'!$L$17=Resultate!$L$17,75,0)+IF(AND(Resultate!$I$17='152'!$I$17,Resultate!$K$17='152'!$K$17)=TRUE,75,0)) -> 75 | AH18: =IF(Resultate!$K$18="",0,IF('152'!$L$18=Resultate!$L$18,75,0)+IF(AND(Resultate!$I$18='152'!$I$18,Resultate!$K$18='152'!$K$18)=TRUE,75,0)) -> 75 | AI18: =IF(Resultate!$K$31="",0,IF('152'!$L$31=Resultate!$L$31,75,0)+IF(AND(Resultate!$I$31='152'!$I$31,Resultate!$K$31='152'!$K$31)=TRUE,75,0)) -> 0 | AJ18: =IF(Resultate!$K$24="",0,IF('152'!$L$24=Resultate!$L$24,75,0)+IF(AND(Resultate!$I$24='152'!$I$24,Resultate!$K$24='152'!$K$24)=TRUE,75,0)) -> 75 | AK18: =IF(Resultate!$K$25="",0,IF('152'!$L$25=Resultate!$L$25,75,0)+IF(AND(Resultate!$I$25='152'!$I$25,Resultate!$K$25='152'!$K$25)=TRUE,75,0)) -> 0 | AL18: =IF(Resultate!$K$32="",0,IF('152'!$L$32=Resultate!$L$32,75,0)+IF(AND(Resultate!$I$32='152'!$I$32,Resultate!$K$32='152'!$K$32)=TRUE,75,0)) -> 0 | AM18: =IF(Resultate!$K$38="",0,IF('152'!$L$38=Resultate!$L$38,75,0)+IF(AND(Resultate!$I$38='152'!$I$38,Resultate!$K$38='152'!$K$38)=TRUE,75,0)) -> 150 | AN18: =IF(Resultate!$K$39="",0,IF('152'!$L$39=Resultate!$L$39,75,0)+IF(AND(Resultate!$I$39='152'!$I$39,Resultate!$K$39='152'!$K$39)=TRUE,75,0)) -> 150 | AO18: =IF(Resultate!$K$45="",0,IF('152'!$L$45=Resultate!$L$45,75,0)+IF(AND(Resultate!$I$45='152'!$I$45,Resultate!$K$45='152'!$K$45)=TRUE,75,0)) -> 75 | AP18: =IF(Resultate!$K$46="",0,IF('152'!$L$46=Resultate!$L$46,75,0)+IF(AND(Resultate!$I$46='152'!$I$46,Resultate!$K$46='152'!$K$46)=TRUE,75,0)) -> 75 | AQ18: =IF(Resultate!$K$52="",0,IF('152'!$L$52=Resultate!$L$52,75,0)+IF(AND(Resultate!$I$52='152'!$I$52,Resultate!$K$52='152'!$K$52)=TRUE,75,0)) -> 75 | AR18: =IF(Resultate!$K$53="",0,IF('152'!$L$53=Resultate!$L$53,75,0)+IF(AND(Resultate!$I$53='152'!$I$53,Resultate!$K$53='152'!$K$53)=TRUE,75,0)) -> 75 | AS18: =IF(Resultate!$K$59="",0,IF('152'!$L$59=Resultate!$L$59,75,0)+IF(AND(Resultate!$I$59='152'!$I$59,Resultate!$K$59='152'!$K$59)=TRUE,75,0)) -> 0 | AT18: =IF(Resultate!$K$60="",0,IF('152'!$L$60=Resultate!$L$60,75,0)+IF(AND(Resultate!$I$60='152'!$I$60,Resultate!$K$60='152'!$K$60)=TRUE,75,0)) -> 75 | AU18: =IF(Resultate!$K$12="",0,IF('152'!$L$12=Resultate!$L$12,75,0)+IF(AND(Resultate!$I$12='152'!$I$12,Resultate!$K$12='152'!$K$12)=TRUE,75,0)) -> 75 | AV18: =IF(Resultate!$K$13="",0,IF('152'!$L$13=Resultate!$L$13,75,0)+IF(AND(Resultate!$I$13='152'!$I$13,Resultate!$K$13='152'!$K$13)=TRUE,75,0)) -> 0 | AW18: =IF(Resultate!$K$19="",0,IF('152'!$L$19=Resultate!$L$19,75,0)+IF(AND(Resultate!$I$19='152'!$I$19,Resultate!$K$19='152'!$K$19)=TRUE,75,0)) -> 0 | AX18: =IF(Resultate!$K$20="",0,IF('152'!$L$20=Resultate!$L$20,75,0)+IF(AND(Resultate!$I$20='152'!$I$20,Resultate!$K$20='152'!$K$20)=TRUE,75,0)) -> 0 | AY18: =IF(Resultate!$K$26="",0,IF('152'!$L$26=Resultate!$L$26,75,0)+IF(AND(Resultate!$I$26='152'!$I$26,Resultate!$K$26='152'!$K$26)=TRUE,75,0)) -> 0 | AZ18: =IF(Resultate!$K$27="",0,IF('152'!$L$27=Resultate!$L$27,75,0)+IF(AND(Resultate!$I$27='152'!$I$27,Resultate!$K$27='152'!$K$27)=TRUE,75,0)) -> 0 | BA18: =IF(Resultate!$K$33="",0,IF('152'!$L$33=Resultate!$L$33,75,0)+IF(AND(Resultate!$I$33='152'!$I$33,Resultate!$K$33='152'!$K$33)=TRUE,75,0)) -> 0 | BB18: =IF(Resultate!$K$34="",0,IF('152'!$L$34=Resultate!$L$34,75,0)+IF(AND(Resultate!$I$34='152'!$I$34,Resultate!$K$34='152'!$K$34)=TRUE,75,0)) -> 0 | BC18: =IF(Resultate!$K$47="",0,IF('152'!$L$47=Resultate!$L$47,75,0)+IF(AND(Resultate!$I$47='152'!$I$47,Resultate!$K$47='152'!$K$47)=TRUE,75,0)) -> 0 | BD18: =IF(Resultate!$K$48="",0,IF('152'!$L$48=Resultate!$L$48,75,0)+IF(AND(Resultate!$I$48='152'!$I$48,Resultate!$K$48='152'!$K$48)=TRUE,75,0)) -> 0 | BE18: =IF(Resultate!$K$40="",0,IF('152'!$L$40=Resultate!$L$40,75,0)+IF(AND(Resultate!$I$40='152'!$I$40,Resultate!$K$40='152'!$K$40)=TRUE,75,0)) -> 0 | BF18: =IF(Resultate!$K$41="",0,IF('152'!$L$41=Resultate!$L$41,75,0)+IF(AND(Resultate!$I$41='152'!$I$41,Resultate!$K$41='152'!$K$41)=TRUE,75,0)) -> 0 | BG18: =IF(Resultate!$K$54="",0,IF('152'!$L$54=Resultate!$L$54,75,0)+IF(AND(Resultate!$I$54='152'!$I$54,Resultate!$K$54='152'!$K$54)=TRUE,75,0)) -> 0 | BH18: =IF(Resultate!$K$55="",0,IF('152'!$L$55=Resultate!$L$55,75,0)+IF(AND(Resultate!$I$55='152'!$I$55,Resultate!$K$55='152'!$K$55)=TRUE,75,0)) -> 0 | BI18: =IF(Resultate!$K$61="",0,IF('152'!$L$61=Resultate!$L$61,75,0)+IF(AND(Resultate!$I$61='152'!$I$61,Resultate!$K$61='152'!$K$61)=TRUE,75,0)) -> 0 | BJ18: =IF(Resultate!$K$62="",0,IF('152'!$L$62=Resultate!$L$62,75,0)+IF(AND(Resultate!$I$62='152'!$I$62,Resultate!$K$62='152'!$K$62)=TRUE,75,0)) -> 0 | BK18: =IF('152'!$O$13=Resultate!$O$13,100,0) -> 100 | BL18: =IF('152'!$Q$13=Resultate!$Q$13,100,0) -> 0 | BM18: =IF('152'!$O$20=Resultate!$O$20,100,0) -> 0 | BN18: =IF('152'!$Q$20=Resultate!$Q$20,100,0) -> 0 | BO18: =IF('152'!$O$27=Resultate!$O$27,100,0) -> 0 | BP18: =IF('152'!$Q$27=Resultate!$Q$27,100,0) -> 100 | BQ18: =IF('152'!$O$34=Resultate!$O$34,100,0) -> 0 | BR18: =IF('152'!$Q$34=Resultate!$Q$34,100,0) -> 0 | BS18: =IF('152'!$O$40=Resultate!$O$40,100,0) -> 0 | BT18: =IF('152'!$Q$40=Resultate!$Q$40,100,0) -> 0 | BU18: =IF('152'!$O$47=Resultate!$O$47,100,0) -> 0 | BV18: =IF('152'!$Q$47=Resultate!$Q$47,100,0) -> 0 | BW18: =IF('152'!$O$54=Resultate!$O$54,100,0) -> 0 | BX18: =IF('152'!$Q$54=Resultate!$Q$54,100,0) -> 0 | BY18: =IF('152'!$O$61=Resultate!$O$61,100,0) -> 0 | BZ18: =IF('152'!$Q$61=Resultate!$Q$61,100,0) -> 0 | CA18: =VALUE(IF('152'!$X$13=Resultate!$X$13,150,0))+IF(AND(Resultate!$O$13='152'!$O$13,Resultate!$Q$13='152'!$Q$13,Resultate!$S$13='152'!$S$13,Resultate!$U$13='152'!$U$13)=TRUE,75,0) -> 0 | CB18: =VALUE(IF('152'!$Z$13=Resultate!$Z$13,150,0))+IF(AND(Resultate!$O$20='152'!$O$20,Resultate!$Q$20='152'!$Q$20,Resultate!$S$20='152'!$S$20,Resultate!$U$20='152'!$U$20)=TRUE,75,0) -> 0 | CC18: =VALUE(IF('152'!$X$19=Resultate!$X$19,150,0))+IF(AND(Resultate!$O$40='152'!$O$40,Resultate!$Q$40='152'!$Q$40,Resultate!$S$40='152'!$S$40,Resultate!$U$40='152'!$U$40)=TRUE,75,0) -> 0 | CD18: =VALUE(IF('152'!$Z$19=Resultate!$Z$19,150,0))+IF(AND(Resultate!$O$47='152'!$O$47,Resultate!$Q$47='152'!$Q$47,Resultate!$S$47='152'!$S$47,Resultate!$U$47='152'!$U$47)=TRUE,75,0) -> 0 | CE18: =VALUE(IF('152'!$X$25=Resultate!$X$25,150,0))+IF(AND(Resultate!$O$27='152'!$O$27,Resultate!$Q$27='152'!$Q$27,Resultate!$S$27='152'!$S$27,Resultate!$U$27='152'!$U$27)=TRUE,75,0) -> 0 | CF18: =VALUE(IF('152'!$Z$25=Resultate!$Z$25,150,0))+IF(AND(Resultate!$O$34='152'!$O$34,Resultate!$Q$34='152'!$Q$34,Resultate!$S$34='152'!$S$34,Resultate!$U$34='152'!$U$34)=TRUE,75,0) -> 0 | CG18: =VALUE(IF('152'!$X$31=Resultate!$X$31,150,0))+IF(AND(Resultate!$O$54='152'!$O$54,Resultate!$Q$54='152'!$Q$54,Resultate!$S$54='152'!$S$54,Resultate!$U$54='152'!$U$54)=TRUE,75,0) -> 0 | CH18: =VALUE(IF('152'!$Z$31=Resultate!$Z$31,150,0))+IF(AND(Resultate!$O$61='152'!$O$61,Resultate!$Q$61='152'!$Q$61,Resultate!$S$61='152'!$S$61,Resultate!$U$61='152'!$U$61)=TRUE,75,0) -> 0 | CI18: ='152'!$X$48 -> Spanien | CJ18: =VALUE(IF('152'!$X$48=Resultate!$X$48,200,0))+IF(AND(Resultate!$X$13='152'!$X$13,Resultate!$Z$13='152'!$Z$13,Resultate!$AB$13='152'!$AB$13,Resultate!$AD$13='152'!$AD$13)=TRUE,75,0) -> 0 | CK18: ='152'!$Z$48 -> Belgien | CL18: =VALUE(IF('152'!$Z$48=Resultate!$Z$48,200,0))+IF(AND(Resultate!$X$19='152'!$X$19,Resultate!$Z$19='152'!$Z$19,Resultate!$AB$19='152'!$AB$19,Resultate!$AD$19='152'!$AD$19)=TRUE,75,0) -> 0 | CM18: ='152'!$X$54 -> Portugal | CN18: =VALUE(IF('152'!$X$54=Resultate!$X$54,200,0))+IF(AND(Resultate!$X$25='152'!$X$25,Resultate!$Z$25='152'!$Z$25,Resultate!$AB$25='152'!$AB$25,Resultate!$AD$25='152'!$AD$25)=TRUE,75,0) -> 0 | CO18: ='152'!$Z$54 -> Schweiz | CP18: =VALUE(IF('152'!$Z$54=Resultate!$Z$54,200,0))+IF(AND(Resultate!$X$31='152'!$X$31,Resultate!$Z$31='152'!$Z$31,Resultate!$AB$31='152'!$AB$31,Resultate!$AD$31='152'!$AD$31)=TRUE,75,0) -> 0 | CQ18: ='152'!$AG$8 -> Spanien | CR18: =IF((OR('152'!$AG$8=Resultate!$AG$8,'152'!$AI$8=Resultate!$AG$8))=TRUE,100,) -> 0 | CS18: ='152'!$AI$8 -> Schweiz | CT18: =IF((OR('152'!$AI$8=Resultate!$AI$8,'152'!$AI$8=Resultate!$AG$8))=TRUE,100,) -> 0 | CU18: ='152'!$AG$13 -> Spanien | CV18: =IF('152'!$AG$13=Resultate!$AG$13,200,0) -> 0 | CW18: ='152'!$AG$22 -> Belgien | CX18: =IF((OR('152'!$AG$22=Resultate!$AG$22,'152'!$AI$22=Resultate!$AG$22))=TRUE,250,)+IF((OR('152'!$AG$22=Resultate!$AG$22,'152'!$AI$22=Resultate!$AG$22))=TRUE,IF(AND(Resultate!$AB$48='152'!$AB$48,Resultate!$AD$48='152'!$AD$48)=TRUE,75,0),0) -> 0 | CY18: ='152'!$AI$22 -> Portugal | CZ18: =IF((OR('152'!$AG$22=Resultate!$AI$22,'152'!$AI$22=Resultate!$AI$22))=TRUE,250,)+IF((OR('152'!$AG$22=Resultate!$AG$22,'152'!$AI$22=Resultate!$AG$22))=TRUE,IF(AND(Resultate!$AB$54='152'!$AB$54,Resultate!$AD$54='152'!$AD$54)=TRUE,75,0),0) -> 0 | DA18: ='152'!$AG$27 -> Belgien | DB18: =IF('152'!$AG$27=Resultate!$AG$27,300,0) -> 0 | DE18: ='152'!$AN$33 -> 165
A19: 14 | B19: 171 | C19: ='171'!$AH$35 -> Ruoss Timo | D19: ='171'!$AH$39 -> 0 | E19: =SUM(F19:M19) -> 2150 | F19: =SUM(O19:BJ19) -> 1950 | G19: =SUM(BK19:BZ19) -> 200 | H19: =SUM(CA19:CH19) -> 0 | I19: =SUM(CJ19:CP19) -> 0 | J19: =SUM(CR19:CV19) -> 0 | K19: =SUM(CX19:CZ19) -> 0 | L19: =DB19 -> 0 | M19: =IF(DC19="",0,DC19) -> 0 | N19: ='171'!$AN$33 -> 168 | O19: =IF(Resultate!$K$8="",0,IF('171'!$L$8=Resultate!$L$8,75,0)+IF(AND(Resultate!$I$8='171'!$I$8,Resultate!$K$8='171'!$K$8)=TRUE,75,0)) -> 75 | P19: =IF(Resultate!$K$9="",0,IF('171'!$L$9=Resultate!$L$9,75,0)+IF(AND(Resultate!$I$9='171'!$I$9,Resultate!$K$9='171'!$K$9)=TRUE,75,0)) -> 75 | Q19: =IF(Resultate!$K$15="",0,IF('171'!$L$15=Resultate!$L$15,75,0)+IF(AND(Resultate!$I$15='171'!$I$15,Resultate!$K$15='171'!$K$15)=TRUE,75,0)) -> 0 | R19: =IF(Resultate!$K$16="",0,IF('171'!$L$16=Resultate!$L$16,75,0)+IF(AND(Resultate!$I$16='171'!$I$16,Resultate!$K$16='171'!$K$16)=TRUE,75,0)) -> 0 | S19: =IF(Resultate!$K$22="",0,IF('171'!$L$22=Resultate!$L$22,75,0)+IF(AND(Resultate!$I$22='171'!$I$22,Resultate!$K$22='171'!$K$22)=TRUE,75,0)) -> 75 | T19: =IF(Resultate!$K$23="",0,IF('171'!$L$23=Resultate!$L$23,75,0)+IF(AND(Resultate!$I$23='171'!$I$23,Resultate!$K$23='171'!$K$23)=TRUE,75,0)) -> 150 | U19: =IF(Resultate!$K$29="",0,IF('171'!$L$29=Resultate!$L$29,75,0)+IF(AND(Resultate!$I$29='171'!$I$29,Resultate!$K$29='171'!$K$29)=TRUE,75,0)) -> 0 | V19: =IF(Resultate!$K$30="",0,IF('171'!$L$30=Resultate!$L$30,75,0)+IF(AND(Resultate!$I$30='171'!$I$30,Resultate!$K$30='171'!$K$30)=TRUE,75,0)) -> 75 | W19: =IF(Resultate!$K$36="",0,IF('171'!$L$36=Resultate!$L$36,75,0)+IF(AND(Resultate!$I$36='171'!$I$36,Resultate!$K$36='171'!$K$36)=TRUE,75,0)) -> 150 | X19: =IF(Resultate!$K$37="",0,IF('171'!$L$37=Resultate!$L$37,75,0)+IF(AND(Resultate!$I$37='171'!$I$37,Resultate!$K$37='171'!$K$37)=TRUE,75,0)) -> 0 | Y19: =IF(Resultate!$K$43="",0,IF('171'!$L$43=Resultate!$L$43,75,0)+IF(AND(Resultate!$I$43='171'!$I$43,Resultate!$K$43='171'!$K$43)=TRUE,75,0)) -> 0 | Z19: =IF(Resultate!$K$44="",0,IF('171'!$L$44=Resultate!$L$44,75,0)+IF(AND(Resultate!$I$44='171'!$I$44,Resultate!$K$44='171'!$K$44)=TRUE,75,0)) -> 150 | AA19: =IF(Resultate!$K$50="",0,IF('171'!$L$50=Resultate!$L$50,75,0)+IF(AND(Resultate!$I$50='171'!$I$50,Resultate!$K$50='171'!$K$50)=TRUE,75,0)) -> 150 | AB19: =IF(Resultate!$K$51="",0,IF('171'!$L$51=Resultate!$L$51,75,0)+IF(AND(Resultate!$I$51='171'!$I$51,Resultate!$K$51='171'!$K$51)=TRUE,75,0)) -> 75 | AC19: =IF(Resultate!$K$57="",0,IF('171'!$L$57=Resultate!$L$57,75,0)+IF(AND(Resultate!$I$57='171'!$I$57,Resultate!$K$57='171'!$K$57)=TRUE,75,0)) -> 0 | AD19: =IF(Resultate!$K$58="",0,IF('171'!$L$58=Resultate!$L$58,75,0)+IF(AND(Resultate!$I$58='171'!$I$58,Resultate!$K$58='171'!$K$58)=TRUE,75,0)) -> 0 | AE19: =IF(Resultate!$K$10="",0,IF('171'!$L$10=Resultate!$L$10,75,0)+IF(AND(Resultate!$I$10='171'!$I$10,Resultate!$K$10='171'!$K$10)=TRUE,75,0)) -> 0 | AF19: =IF(Resultate!$K$11="",0,IF('171'!$L$11=Resultate!$L$11,75,0)+IF(AND(Resultate!$I$11='171'!$I$11,Resultate!$K$11='171'!$K$11)=TRUE,75,0)) -> 75 | AG19: =IF(Resultate!$K$17="",0,IF('171'!$L$17=Resultate!$L$17,75,0)+IF(AND(Resultate!$I$17='171'!$I$17,Resultate!$K$17='171'!$K$17)=TRUE,75,0)) -> 75 | AH19: =IF(Resultate!$K$18="",0,IF('171'!$L$18=Resultate!$L$18,75,0)+IF(AND(Resultate!$I$18='171'!$I$18,Resultate!$K$18='171'!$K$18)=TRUE,75,0)) -> 75 | AI19: =IF(Resultate!$K$31="",0,IF('171'!$L$31=Resultate!$L$31,75,0)+IF(AND(Resultate!$I$31='171'!$I$31,Resultate!$K$31='171'!$K$31)=TRUE,75,0)) -> 0 | AJ19: =IF(Resultate!$K$24="",0,IF('171'!$L$24=Resultate!$L$24,75,0)+IF(AND(Resultate!$I$24='171'!$I$24,Resultate!$K$24='171'!$K$24)=TRUE,75,0)) -> 75 | AK19: =IF(Resultate!$K$25="",0,IF('171'!$L$25=Resultate!$L$25,75,0)+IF(AND(Resultate!$I$25='171'!$I$25,Resultate!$K$25='171'!$K$25)=TRUE,75,0)) -> 0 | AL19: =IF(Resultate!$K$32="",0,IF('171'!$L$32=Resultate!$L$32,75,0)+IF(AND(Resultate!$I$32='171'!$I$32,Resultate!$K$32='171'!$K$32)=TRUE,75,0)) -> 75 | AM19: =IF(Resultate!$K$38="",0,IF('171'!$L$38=Resultate!$L$38,75,0)+IF(AND(Resultate!$I$38='171'!$I$38,Resultate!$K$38='171'!$K$38)=TRUE,75,0)) -> 150 | AN19: =IF(Resultate!$K$39="",0,IF('171'!$L$39=Resultate!$L$39,75,0)+IF(AND(Resultate!$I$39='171'!$I$39,Resultate!$K$39='171'!$K$39)=TRUE,75,0)) -> 75 | AO19: =IF(Resultate!$K$45="",0,IF('171'!$L$45=Resultate!$L$45,75,0)+IF(AND(Resultate!$I$45='171'!$I$45,Resultate!$K$45='171'!$K$45)=TRUE,75,0)) -> 75 | AP19: =IF(Resultate!$K$46="",0,IF('171'!$L$46=Resultate!$L$46,75,0)+IF(AND(Resultate!$I$46='171'!$I$46,Resultate!$K$46='171'!$K$46)=TRUE,75,0)) -> 0 | AQ19: =IF(Resultate!$K$52="",0,IF('171'!$L$52=Resultate!$L$52,75,0)+IF(AND(Resultate!$I$52='171'!$I$52,Resultate!$K$52='171'!$K$52)=TRUE,75,0)) -> 75 | AR19: =IF(Resultate!$K$53="",0,IF('171'!$L$53=Resultate!$L$53,75,0)+IF(AND(Resultate!$I$53='171'!$I$53,Resultate!$K$53='171'!$K$53)=TRUE,75,0)) -> 75 | AS19: =IF(Resultate!$K$59="",0,IF('171'!$L$59=Resultate!$L$59,75,0)+IF(AND(Resultate!$I$59='171'!$I$59,Resultate!$K$59='171'!$K$59)=TRUE,75,0)) -> 75 | AT19: =IF(Resultate!$K$60="",0,IF('171'!$L$60=Resultate!$L$60,75,0)+IF(AND(Resultate!$I$60='171'!$I$60,Resultate!$K$60='171'!$K$60)=TRUE,75,0)) -> 0 | AU19: =IF(Resultate!$K$12="",0,IF('171'!$L$12=Resultate!$L$12,75,0)+IF(AND(Resultate!$I$12='171'!$I$12,Resultate!$K$12='171'!$K$12)=TRUE,75,0)) -> 75 | AV19: =IF(Resultate!$K$13="",0,IF('171'!$L$13=Resultate!$L$13,75,0)+IF(AND(Resultate!$I$13='171'!$I$13,Resultate!$K$13='171'!$K$13)=TRUE,75,0)) -> 0 | AW19: =IF(Resultate!$K$19="",0,IF('171'!$L$19=Resultate!$L$19,75,0)+IF(AND(Resultate!$I$19='171'!$I$19,Resultate!$K$19='171'!$K$19)=TRUE,75,0)) -> 0 | AX19: =IF(Resultate!$K$20="",0,IF('171'!$L$20=Resultate!$L$20,75,0)+IF(AND(Resultate!$I$20='171'!$I$20,Resultate!$K$20='171'!$K$20)=TRUE,75,0)) -> 0 | AY19: =IF(Resultate!$K$26="",0,IF('171'!$L$26=Resultate!$L$26,75,0)+IF(AND(Resultate!$I$26='171'!$I$26,Resultate!$K$26='171'!$K$26)=TRUE,75,0)) -> 0 | AZ19: =IF(Resultate!$K$27="",0,IF('171'!$L$27=Resultate!$L$27,75,0)+IF(AND(Resultate!$I$27='171'!$I$27,Resultate!$K$27='171'!$K$27)=TRUE,75,0)) -> 0 | BA19: =IF(Resultate!$K$33="",0,IF('171'!$L$33=Resultate!$L$33,75,0)+IF(AND(Resultate!$I$33='171'!$I$33,Resultate!$K$33='171'!$K$33)=TRUE,75,0)) -> 0 | BB19: =IF(Resultate!$K$34="",0,IF('171'!$L$34=Resultate!$L$34,75,0)+IF(AND(Resultate!$I$34='171'!$I$34,Resultate!$K$34='171'!$K$34)=TRUE,75,0)) -> 0 | BC19: =IF(Resultate!$K$47="",0,IF('171'!$L$47=Resultate!$L$47,75,0)+IF(AND(Resultate!$I$47='171'!$I$47,Resultate!$K$47='171'!$K$47)=TRUE,75,0)) -> 0 | BD19: =IF(Resultate!$K$48="",0,IF('171'!$L$48=Resultate!$L$48,75,0)+IF(AND(Resultate!$I$48='171'!$I$48,Resultate!$K$48='171'!$K$48)=TRUE,75,0)) -> 0 | BE19: =IF(Resultate!$K$40="",0,IF('171'!$L$40=Resultate!$L$40,75,0)+IF(AND(Resultate!$I$40='171'!$I$40,Resultate!$K$40='171'!$K$40)=TRUE,75,0)) -> 0 | BF19: =IF(Resultate!$K$41="",0,IF('171'!$L$41=Resultate!$L$41,75,0)+IF(AND(Resultate!$I$41='171'!$I$41,Resultate!$K$41='171'!$K$41)=TRUE,75,0)) -> 0 | BG19: =IF(Resultate!$K$54="",0,IF('171'!$L$54=Resultate!$L$54,75,0)+IF(AND(Resultate!$I$54='171'!$I$54,Resultate!$K$54='171'!$K$54)=TRUE,75,0)) -> 0 | BH19: =IF(Resultate!$K$55="",0,IF('171'!$L$55=Resultate!$L$55,75,0)+IF(AND(Resultate!$I$55='171'!$I$55,Resultate!$K$55='171'!$K$55)=TRUE,75,0)) -> 0 | BI19: =IF(Resultate!$K$61="",0,IF('171'!$L$61=Resultate!$L$61,75,0)+IF(AND(Resultate!$I$61='171'!$I$61,Resultate!$K$61='171'!$K$61)=TRUE,75,0)) -> 0 | BJ19: =IF(Resultate!$K$62="",0,IF('171'!$L$62=Resultate!$L$62,75,0)+IF(AND(Resultate!$I$62='171'!$I$62,Resultate!$K$62='171'!$K$62)=TRUE,75,0)) -> 0 | BK19: =IF('171'!$O$13=Resultate!$O$13,100,0) -> 100 | BL19: =IF('171'!$Q$13=Resultate!$Q$13,100,0) -> 0 | BM19: =IF('171'!$O$20=Resultate!$O$20,100,0) -> 0 | BN19: =IF('171'!$Q$20=Resultate!$Q$20,100,0) -> 0 | BO19: =IF('171'!$O$27=Resultate!$O$27,100,0) -> 0 | BP19: =IF('171'!$Q$27=Resultate!$Q$27,100,0) -> 100 | BQ19: =IF('171'!$O$34=Resultate!$O$34,100,0) -> 0 | BR19: =IF('171'!$Q$34=Resultate!$Q$34,100,0) -> 0 | BS19: =IF('171'!$O$40=Resultate!$O$40,100,0) -> 0 | BT19: =IF('171'!$Q$40=Resultate!$Q$40,100,0) -> 0 | BU19: =IF('171'!$O$47=Resultate!$O$47,100,0) -> 0 | BV19: =IF('171'!$Q$47=Resultate!$Q$47,100,0) -> 0 | BW19: =IF('171'!$O$54=Resultate!$O$54,100,0) -> 0 | BX19: =IF('171'!$Q$54=Resultate!$Q$54,100,0) -> 0 | BY19: =IF('171'!$O$61=Resultate!$O$61,100,0) -> 0 | BZ19: =IF('171'!$Q$61=Resultate!$Q$61,100,0) -> 0 | CA19: =VALUE(IF('171'!$X$13=Resultate!$X$13,150,0))+IF(AND(Resultate!$O$13='171'!$O$13,Resultate!$Q$13='171'!$Q$13,Resultate!$S$13='171'!$S$13,Resultate!$U$13='171'!$U$13)=TRUE,75,0) -> 0 | CB19: =VALUE(IF('171'!$Z$13=Resultate!$Z$13,150,0))+IF(AND(Resultate!$O$20='171'!$O$20,Resultate!$Q$20='171'!$Q$20,Resultate!$S$20='171'!$S$20,Resultate!$U$20='171'!$U$20)=TRUE,75,0) -> 0 | CC19: =VALUE(IF('171'!$X$19=Resultate!$X$19,150,0))+IF(AND(Resultate!$O$40='171'!$O$40,Resultate!$Q$40='171'!$Q$40,Resultate!$S$40='171'!$S$40,Resultate!$U$40='171'!$U$40)=TRUE,75,0) -> 0 | CD19: =VALUE(IF('171'!$Z$19=Resultate!$Z$19,150,0))+IF(AND(Resultate!$O$47='171'!$O$47,Resultate!$Q$47='171'!$Q$47,Resultate!$S$47='171'!$S$47,Resultate!$U$47='171'!$U$47)=TRUE,75,0) -> 0 | CE19: =VALUE(IF('171'!$X$25=Resultate!$X$25,150,0))+IF(AND(Resultate!$O$27='171'!$O$27,Resultate!$Q$27='171'!$Q$27,Resultate!$S$27='171'!$S$27,Resultate!$U$27='171'!$U$27)=TRUE,75,0) -> 0 | CF19: =VALUE(IF('171'!$Z$25=Resultate!$Z$25,150,0))+IF(AND(Resultate!$O$34='171'!$O$34,Resultate!$Q$34='171'!$Q$34,Resultate!$S$34='171'!$S$34,Resultate!$U$34='171'!$U$34)=TRUE,75,0) -> 0 | CG19: =VALUE(IF('171'!$X$31=Resultate!$X$31,150,0))+IF(AND(Resultate!$O$54='171'!$O$54,Resultate!$Q$54='171'!$Q$54,Resultate!$S$54='171'!$S$54,Resultate!$U$54='171'!$U$54)=TRUE,75,0) -> 0 | CH19: =VALUE(IF('171'!$Z$31=Resultate!$Z$31,150,0))+IF(AND(Resultate!$O$61='171'!$O$61,Resultate!$Q$61='171'!$Q$61,Resultate!$S$61='171'!$S$61,Resultate!$U$61='171'!$U$61)=TRUE,75,0) -> 0 | CI19: ='171'!$X$48 -> Frankreich | CJ19: =VALUE(IF('171'!$X$48=Resultate!$X$48,200,0))+IF(AND(Resultate!$X$13='171'!$X$13,Resultate!$Z$13='171'!$Z$13,Resultate!$AB$13='171'!$AB$13,Resultate!$AD$13='171'!$AD$13)=TRUE,75,0) -> 0 | CK19: ='171'!$Z$48 -> Belgien | CL19: =VALUE(IF('171'!$Z$48=Resultate!$Z$48,200,0))+IF(AND(Resultate!$X$19='171'!$X$19,Resultate!$Z$19='171'!$Z$19,Resultate!$AB$19='171'!$AB$19,Resultate!$AD$19='171'!$AD$19)=TRUE,75,0) -> 0 | CM19: ='171'!$X$54 -> Spanien | CN19: =VALUE(IF('171'!$X$54=Resultate!$X$54,200,0))+IF(AND(Resultate!$X$25='171'!$X$25,Resultate!$Z$25='171'!$Z$25,Resultate!$AB$25='171'!$AB$25,Resultate!$AD$25='171'!$AD$25)=TRUE,75,0) -> 0 | CO19: ='171'!$Z$54 -> Deutschland | CP19: =VALUE(IF('171'!$Z$54=Resultate!$Z$54,200,0))+IF(AND(Resultate!$X$31='171'!$X$31,Resultate!$Z$31='171'!$Z$31,Resultate!$AB$31='171'!$AB$31,Resultate!$AD$31='171'!$AD$31)=TRUE,75,0) -> 0 | CQ19: ='171'!$AG$8 -> Frankreich | CR19: =IF((OR('171'!$AG$8=Resultate!$AG$8,'171'!$AI$8=Resultate!$AG$8))=TRUE,100,) -> 0 | CS19: ='171'!$AI$8 -> Deutschland | CT19: =IF((OR('171'!$AI$8=Resultate!$AI$8,'171'!$AI$8=Resultate!$AG$8))=TRUE,100,) -> 0 | CU19: ='171'!$AG$13 -> Deutschland | CV19: =IF('171'!$AG$13=Resultate!$AG$13,200,0) -> 0 | CW19: ='171'!$AG$22 -> Belgien | CX19: =IF((OR('171'!$AG$22=Resultate!$AG$22,'171'!$AI$22=Resultate!$AG$22))=TRUE,250,)+IF((OR('171'!$AG$22=Resultate!$AG$22,'171'!$AI$22=Resultate!$AG$22))=TRUE,IF(AND(Resultate!$AB$48='171'!$AB$48,Resultate!$AD$48='171'!$AD$48)=TRUE,75,0),0) -> 0 | CY19: ='171'!$AI$22 -> Spanien | CZ19: =IF((OR('171'!$AG$22=Resultate!$AI$22,'171'!$AI$22=Resultate!$AI$22))=TRUE,250,)+IF((OR('171'!$AG$22=Resultate!$AG$22,'171'!$AI$22=Resultate!$AG$22))=TRUE,IF(AND(Resultate!$AB$54='171'!$AB$54,Resultate!$AD$54='171'!$AD$54)=TRUE,75,0),0) -> 0 | DA19: ='171'!$AG$27 -> Belgien | DB19: =IF('171'!$AG$27=Resultate!$AG$27,300,0) -> 0 | DE19: ='171'!$AN$33 -> 168
A20: 15 | B20: 173 | C20: ='173'!$AH$35 -> Rüdisühli Philipp | D20: ='173'!$AH$39 -> philipp.ruedisuehli@hotmail.com | E20: =SUM(F20:M20) -> 2150 | F20: =SUM(O20:BJ20) -> 1950 | G20: =SUM(BK20:BZ20) -> 200 | H20: =SUM(CA20:CH20) -> 0 | I20: =SUM(CJ20:CP20) -> 0 | J20: =SUM(CR20:CV20) -> 0 | K20: =SUM(CX20:CZ20) -> 0 | L20: =DB20 -> 0 | M20: =IF(DC20="",0,DC20) -> 0 | N20: ='173'!$AN$33 -> 158 | O20: =IF(Resultate!$K$8="",0,IF('173'!$L$8=Resultate!$L$8,75,0)+IF(AND(Resultate!$I$8='173'!$I$8,Resultate!$K$8='173'!$K$8)=TRUE,75,0)) -> 0 | P20: =IF(Resultate!$K$9="",0,IF('173'!$L$9=Resultate!$L$9,75,0)+IF(AND(Resultate!$I$9='173'!$I$9,Resultate!$K$9='173'!$K$9)=TRUE,75,0)) -> 0 | Q20: =IF(Resultate!$K$15="",0,IF('173'!$L$15=Resultate!$L$15,75,0)+IF(AND(Resultate!$I$15='173'!$I$15,Resultate!$K$15='173'!$K$15)=TRUE,75,0)) -> 75 | R20: =IF(Resultate!$K$16="",0,IF('173'!$L$16=Resultate!$L$16,75,0)+IF(AND(Resultate!$I$16='173'!$I$16,Resultate!$K$16='173'!$K$16)=TRUE,75,0)) -> 0 | S20: =IF(Resultate!$K$22="",0,IF('173'!$L$22=Resultate!$L$22,75,0)+IF(AND(Resultate!$I$22='173'!$I$22,Resultate!$K$22='173'!$K$22)=TRUE,75,0)) -> 75 | T20: =IF(Resultate!$K$23="",0,IF('173'!$L$23=Resultate!$L$23,75,0)+IF(AND(Resultate!$I$23='173'!$I$23,Resultate!$K$23='173'!$K$23)=TRUE,75,0)) -> 0 | U20: =IF(Resultate!$K$29="",0,IF('173'!$L$29=Resultate!$L$29,75,0)+IF(AND(Resultate!$I$29='173'!$I$29,Resultate!$K$29='173'!$K$29)=TRUE,75,0)) -> 150 | V20: =IF(Resultate!$K$30="",0,IF('173'!$L$30=Resultate!$L$30,75,0)+IF(AND(Resultate!$I$30='173'!$I$30,Resultate!$K$30='173'!$K$30)=TRUE,75,0)) -> 150 | W20: =IF(Resultate!$K$36="",0,IF('173'!$L$36=Resultate!$L$36,75,0)+IF(AND(Resultate!$I$36='173'!$I$36,Resultate!$K$36='173'!$K$36)=TRUE,75,0)) -> 0 | X20: =IF(Resultate!$K$37="",0,IF('173'!$L$37=Resultate!$L$37,75,0)+IF(AND(Resultate!$I$37='173'!$I$37,Resultate!$K$37='173'!$K$37)=TRUE,75,0)) -> 0 | Y20: =IF(Resultate!$K$43="",0,IF('173'!$L$43=Resultate!$L$43,75,0)+IF(AND(Resultate!$I$43='173'!$I$43,Resultate!$K$43='173'!$K$43)=TRUE,75,0)) -> 0 | Z20: =IF(Resultate!$K$44="",0,IF('173'!$L$44=Resultate!$L$44,75,0)+IF(AND(Resultate!$I$44='173'!$I$44,Resultate!$K$44='173'!$K$44)=TRUE,75,0)) -> 0 | AA20: =IF(Resultate!$K$50="",0,IF('173'!$L$50=Resultate!$L$50,75,0)+IF(AND(Resultate!$I$50='173'!$I$50,Resultate!$K$50='173'!$K$50)=TRUE,75,0)) -> 150 | AB20: =IF(Resultate!$K$51="",0,IF('173'!$L$51=Resultate!$L$51,75,0)+IF(AND(Resultate!$I$51='173'!$I$51,Resultate!$K$51='173'!$K$51)=TRUE,75,0)) -> 75 | AC20: =IF(Resultate!$K$57="",0,IF('173'!$L$57=Resultate!$L$57,75,0)+IF(AND(Resultate!$I$57='173'!$I$57,Resultate!$K$57='173'!$K$57)=TRUE,75,0)) -> 0 | AD20: =IF(Resultate!$K$58="",0,IF('173'!$L$58=Resultate!$L$58,75,0)+IF(AND(Resultate!$I$58='173'!$I$58,Resultate!$K$58='173'!$K$58)=TRUE,75,0)) -> 0 | AE20: =IF(Resultate!$K$10="",0,IF('173'!$L$10=Resultate!$L$10,75,0)+IF(AND(Resultate!$I$10='173'!$I$10,Resultate!$K$10='173'!$K$10)=TRUE,75,0)) -> 75 | AF20: =IF(Resultate!$K$11="",0,IF('173'!$L$11=Resultate!$L$11,75,0)+IF(AND(Resultate!$I$11='173'!$I$11,Resultate!$K$11='173'!$K$11)=TRUE,75,0)) -> 75 | AG20: =IF(Resultate!$K$17="",0,IF('173'!$L$17=Resultate!$L$17,75,0)+IF(AND(Resultate!$I$17='173'!$I$17,Resultate!$K$17='173'!$K$17)=TRUE,75,0)) -> 75 | AH20: =IF(Resultate!$K$18="",0,IF('173'!$L$18=Resultate!$L$18,75,0)+IF(AND(Resultate!$I$18='173'!$I$18,Resultate!$K$18='173'!$K$18)=TRUE,75,0)) -> 0 | AI20: =IF(Resultate!$K$31="",0,IF('173'!$L$31=Resultate!$L$31,75,0)+IF(AND(Resultate!$I$31='173'!$I$31,Resultate!$K$31='173'!$K$31)=TRUE,75,0)) -> 75 | AJ20: =IF(Resultate!$K$24="",0,IF('173'!$L$24=Resultate!$L$24,75,0)+IF(AND(Resultate!$I$24='173'!$I$24,Resultate!$K$24='173'!$K$24)=TRUE,75,0)) -> 75 | AK20: =IF(Resultate!$K$25="",0,IF('173'!$L$25=Resultate!$L$25,75,0)+IF(AND(Resultate!$I$25='173'!$I$25,Resultate!$K$25='173'!$K$25)=TRUE,75,0)) -> 150 | AL20: =IF(Resultate!$K$32="",0,IF('173'!$L$32=Resultate!$L$32,75,0)+IF(AND(Resultate!$I$32='173'!$I$32,Resultate!$K$32='173'!$K$32)=TRUE,75,0)) -> 150 | AM20: =IF(Resultate!$K$38="",0,IF('173'!$L$38=Resultate!$L$38,75,0)+IF(AND(Resultate!$I$38='173'!$I$38,Resultate!$K$38='173'!$K$38)=TRUE,75,0)) -> 0 | AN20: =IF(Resultate!$K$39="",0,IF('173'!$L$39=Resultate!$L$39,75,0)+IF(AND(Resultate!$I$39='173'!$I$39,Resultate!$K$39='173'!$K$39)=TRUE,75,0)) -> 150 | AO20: =IF(Resultate!$K$45="",0,IF('173'!$L$45=Resultate!$L$45,75,0)+IF(AND(Resultate!$I$45='173'!$I$45,Resultate!$K$45='173'!$K$45)=TRUE,75,0)) -> 150 | AP20: =IF(Resultate!$K$46="",0,IF('173'!$L$46=Resultate!$L$46,75,0)+IF(AND(Resultate!$I$46='173'!$I$46,Resultate!$K$46='173'!$K$46)=TRUE,75,0)) -> 0 | AQ20: =IF(Resultate!$K$52="",0,IF('173'!$L$52=Resultate!$L$52,75,0)+IF(AND(Resultate!$I$52='173'!$I$52,Resultate!$K$52='173'!$K$52)=TRUE,75,0)) -> 75 | AR20: =IF(Resultate!$K$53="",0,IF('173'!$L$53=Resultate!$L$53,75,0)+IF(AND(Resultate!$I$53='173'!$I$53,Resultate!$K$53='173'!$K$53)=TRUE,75,0)) -> 75 | AS20: =IF(Resultate!$K$59="",0,IF('173'!$L$59=Resultate!$L$59,75,0)+IF(AND(Resultate!$I$59='173'!$I$59,Resultate!$K$59='173'!$K$59)=TRUE,75,0)) -> 75 | AT20: =IF(Resultate!$K$60="",0,IF('173'!$L$60=Resultate!$L$60,75,0)+IF(AND(Resultate!$I$60='173'!$I$60,Resultate!$K$60='173'!$K$60)=TRUE,75,0)) -> 0 | AU20: =IF(Resultate!$K$12="",0,IF('173'!$L$12=Resultate!$L$12,75,0)+IF(AND(Resultate!$I$12='173'!$I$12,Resultate!$K$12='173'!$K$12)=TRUE,75,0)) -> 75 | AV20: =IF(Resultate!$K$13="",0,IF('173'!$L$13=Resultate!$L$13,75,0)+IF(AND(Resultate!$I$13='173'!$I$13,Resultate!$K$13='173'!$K$13)=TRUE,75,0)) -> 0 | AW20: =IF(Resultate!$K$19="",0,IF('173'!$L$19=Resultate!$L$19,75,0)+IF(AND(Resultate!$I$19='173'!$I$19,Resultate!$K$19='173'!$K$19)=TRUE,75,0)) -> 0 | AX20: =IF(Resultate!$K$20="",0,IF('173'!$L$20=Resultate!$L$20,75,0)+IF(AND(Resultate!$I$20='173'!$I$20,Resultate!$K$20='173'!$K$20)=TRUE,75,0)) -> 0 | AY20: =IF(Resultate!$K$26="",0,IF('173'!$L$26=Resultate!$L$26,75,0)+IF(AND(Resultate!$I$26='173'!$I$26,Resultate!$K$26='173'!$K$26)=TRUE,75,0)) -> 0 | AZ20: =IF(Resultate!$K$27="",0,IF('173'!$L$27=Resultate!$L$27,75,0)+IF(AND(Resultate!$I$27='173'!$I$27,Resultate!$K$27='173'!$K$27)=TRUE,75,0)) -> 0 | BA20: =IF(Resultate!$K$33="",0,IF('173'!$L$33=Resultate!$L$33,75,0)+IF(AND(Resultate!$I$33='173'!$I$33,Resultate!$K$33='173'!$K$33)=TRUE,75,0)) -> 0 | BB20: =IF(Resultate!$K$34="",0,IF('173'!$L$34=Resultate!$L$34,75,0)+IF(AND(Resultate!$I$34='173'!$I$34,Resultate!$K$34='173'!$K$34)=TRUE,75,0)) -> 0 | BC20: =IF(Resultate!$K$47="",0,IF('173'!$L$47=Resultate!$L$47,75,0)+IF(AND(Resultate!$I$47='173'!$I$47,Resultate!$K$47='173'!$K$47)=TRUE,75,0)) -> 0 | BD20: =IF(Resultate!$K$48="",0,IF('173'!$L$48=Resultate!$L$48,75,0)+IF(AND(Resultate!$I$48='173'!$I$48,Resultate!$K$48='173'!$K$48)=TRUE,75,0)) -> 0 | BE20: =IF(Resultate!$K$40="",0,IF('173'!$L$40=Resultate!$L$40,75,0)+IF(AND(Resultate!$I$40='173'!$I$40,Resultate!$K$40='173'!$K$40)=TRUE,75,0)) -> 0 | BF20: =IF(Resultate!$K$41="",0,IF('173'!$L$41=Resultate!$L$41,75,0)+IF(AND(Resultate!$I$41='173'!$I$41,Resultate!$K$41='173'!$K$41)=TRUE,75,0)) -> 0 | BG20: =IF(Resultate!$K$54="",0,IF('173'!$L$54=Resultate!$L$54,75,0)+IF(AND(Resultate!$I$54='173'!$I$54,Resultate!$K$54='173'!$K$54)=TRUE,75,0)) -> 0 | BH20: =IF(Resultate!$K$55="",0,IF('173'!$L$55=Resultate!$L$55,75,0)+IF(AND(Resultate!$I$55='173'!$I$55,Resultate!$K$55='173'!$K$55)=TRUE,75,0)) -> 0 | BI20: =IF(Resultate!$K$61="",0,IF('173'!$L$61=Resultate!$L$61,75,0)+IF(AND(Resultate!$I$61='173'!$I$61,Resultate!$K$61='173'!$K$61)=TRUE,75,0)) -> 0 | BJ20: =IF(Resultate!$K$62="",0,IF('173'!$L$62=Resultate!$L$62,75,0)+IF(AND(Resultate!$I$62='173'!$I$62,Resultate!$K$62='173'!$K$62)=TRUE,75,0)) -> 0 | BK20: =IF('173'!$O$13=Resultate!$O$13,100,0) -> 100 | BL20: =IF('173'!$Q$13=Resultate!$Q$13,100,0) -> 0 | BM20: =IF('173'!$O$20=Resultate!$O$20,100,0) -> 0 | BN20: =IF('173'!$Q$20=Resultate!$Q$20,100,0) -> 0 | BO20: =IF('173'!$O$27=Resultate!$O$27,100,0) -> 0 | BP20: =IF('173'!$Q$27=Resultate!$Q$27,100,0) -> 100 | BQ20: =IF('173'!$O$34=Resultate!$O$34,100,0) -> 0 | BR20: =IF('173'!$Q$34=Resultate!$Q$34,100,0) -> 0 | BS20: =IF('173'!$O$40=Resultate!$O$40,100,0) -> 0 | BT20: =IF('173'!$Q$40=Resultate!$Q$40,100,0) -> 0 | BU20: =IF('173'!$O$47=Resultate!$O$47,100,0) -> 0 | BV20: =IF('173'!$Q$47=Resultate!$Q$47,100,0) -> 0 | BW20: =IF('173'!$O$54=Resultate!$O$54,100,0) -> 0 | BX20: =IF('173'!$Q$54=Resultate!$Q$54,100,0) -> 0 | BY20: =IF('173'!$O$61=Resultate!$O$61,100,0) -> 0 | BZ20: =IF('173'!$Q$61=Resultate!$Q$61,100,0) -> 0 | CA20: =VALUE(IF('173'!$X$13=Resultate!$X$13,150,0))+IF(AND(Resultate!$O$13='173'!$O$13,Resultate!$Q$13='173'!$Q$13,Resultate!$S$13='173'!$S$13,Resultate!$U$13='173'!$U$13)=TRUE,75,0) -> 0 | CB20: =VALUE(IF('173'!$Z$13=Resultate!$Z$13,150,0))+IF(AND(Resultate!$O$20='173'!$O$20,Resultate!$Q$20='173'!$Q$20,Resultate!$S$20='173'!$S$20,Resultate!$U$20='173'!$U$20)=TRUE,75,0) -> 0 | CC20: =VALUE(IF('173'!$X$19=Resultate!$X$19,150,0))+IF(AND(Resultate!$O$40='173'!$O$40,Resultate!$Q$40='173'!$Q$40,Resultate!$S$40='173'!$S$40,Resultate!$U$40='173'!$U$40)=TRUE,75,0) -> 0 | CD20: =VALUE(IF('173'!$Z$19=Resultate!$Z$19,150,0))+IF(AND(Resultate!$O$47='173'!$O$47,Resultate!$Q$47='173'!$Q$47,Resultate!$S$47='173'!$S$47,Resultate!$U$47='173'!$U$47)=TRUE,75,0) -> 0 | CE20: =VALUE(IF('173'!$X$25=Resultate!$X$25,150,0))+IF(AND(Resultate!$O$27='173'!$O$27,Resultate!$Q$27='173'!$Q$27,Resultate!$S$27='173'!$S$27,Resultate!$U$27='173'!$U$27)=TRUE,75,0) -> 0 | CF20: =VALUE(IF('173'!$Z$25=Resultate!$Z$25,150,0))+IF(AND(Resultate!$O$34='173'!$O$34,Resultate!$Q$34='173'!$Q$34,Resultate!$S$34='173'!$S$34,Resultate!$U$34='173'!$U$34)=TRUE,75,0) -> 0 | CG20: =VALUE(IF('173'!$X$31=Resultate!$X$31,150,0))+IF(AND(Resultate!$O$54='173'!$O$54,Resultate!$Q$54='173'!$Q$54,Resultate!$S$54='173'!$S$54,Resultate!$U$54='173'!$U$54)=TRUE,75,0) -> 0 | CH20: =VALUE(IF('173'!$Z$31=Resultate!$Z$31,150,0))+IF(AND(Resultate!$O$61='173'!$O$61,Resultate!$Q$61='173'!$Q$61,Resultate!$S$61='173'!$S$61,Resultate!$U$61='173'!$U$61)=TRUE,75,0) -> 0 | CI20: ='173'!$X$48 -> Frankreich | CJ20: =VALUE(IF('173'!$X$48=Resultate!$X$48,200,0))+IF(AND(Resultate!$X$13='173'!$X$13,Resultate!$Z$13='173'!$Z$13,Resultate!$AB$13='173'!$AB$13,Resultate!$AD$13='173'!$AD$13)=TRUE,75,0) -> 0 | CK20: ='173'!$Z$48 -> Belgien | CL20: =VALUE(IF('173'!$Z$48=Resultate!$Z$48,200,0))+IF(AND(Resultate!$X$19='173'!$X$19,Resultate!$Z$19='173'!$Z$19,Resultate!$AB$19='173'!$AB$19,Resultate!$AD$19='173'!$AD$19)=TRUE,75,0) -> 0 | CM20: ='173'!$X$54 -> Russland | CN20: =VALUE(IF('173'!$X$54=Resultate!$X$54,200,0))+IF(AND(Resultate!$X$25='173'!$X$25,Resultate!$Z$25='173'!$Z$25,Resultate!$AB$25='173'!$AB$25,Resultate!$AD$25='173'!$AD$25)=TRUE,75,0) -> 0 | CO20: ='173'!$Z$54 -> England | CP20: =VALUE(IF('173'!$Z$54=Resultate!$Z$54,200,0))+IF(AND(Resultate!$X$31='173'!$X$31,Resultate!$Z$31='173'!$Z$31,Resultate!$AB$31='173'!$AB$31,Resultate!$AD$31='173'!$AD$31)=TRUE,75,0) -> 0 | CQ20: ='173'!$AG$8 -> Belgien | CR20: =IF((OR('173'!$AG$8=Resultate!$AG$8,'173'!$AI$8=Resultate!$AG$8))=TRUE,100,) -> 0 | CS20: ='173'!$AI$8 -> Russland | CT20: =IF((OR('173'!$AI$8=Resultate!$AI$8,'173'!$AI$8=Resultate!$AG$8))=TRUE,100,) -> 0 | CU20: ='173'!$AG$13 -> Belgien | CV20: =IF('173'!$AG$13=Resultate!$AG$13,200,0) -> 0 | CW20: ='173'!$AG$22 -> Frankreich | CX20: =IF((OR('173'!$AG$22=Resultate!$AG$22,'173'!$AI$22=Resultate!$AG$22))=TRUE,250,)+IF((OR('173'!$AG$22=Resultate!$AG$22,'173'!$AI$22=Resultate!$AG$22))=TRUE,IF(AND(Resultate!$AB$48='173'!$AB$48,Resultate!$AD$48='173'!$AD$48)=TRUE,75,0),0) -> 0 | CY20: ='173'!$AI$22 -> England | CZ20: =IF((OR('173'!$AG$22=Resultate!$AI$22,'173'!$AI$22=Resultate!$AI$22))=TRUE,250,)+IF((OR('173'!$AG$22=Resultate!$AG$22,'173'!$AI$22=Resultate!$AG$22))=TRUE,IF(AND(Resultate!$AB$54='173'!$AB$54,Resultate!$AD$54='173'!$AD$54)=TRUE,75,0),0) -> 0 | DA20: ='173'!$AG$27 -> Frankreich | DB20: =IF('173'!$AG$27=Resultate!$AG$27,300,0) -> 0 | DE20: ='173'!$AN$33 -> 158
A21: 16 | B21: 43 | C21: ='43'!$AH$35 -> Max Muster (JGS) | D21: ='43'!$AH$39 -> 0 | E21: =SUM(F21:M21) -> 2125 | F21: =SUM(O21:BJ21) -> 2025 | G21: =SUM(BK21:BZ21) -> 100 | H21: =SUM(CA21:CH21) -> 0 | I21: =SUM(CJ21:CP21) -> 0 | J21: =SUM(CR21:CV21) -> 0 | K21: =SUM(CX21:CZ21) -> 0 | L21: =DB21 -> 0 | M21: =IF(DC21="",0,DC21) -> 0 | N21: ='43'!$AN$33 -> 131 | O21: =IF(Resultate!$K$8="",0,IF('43'!$L$8=Resultate!$L$8,75,0)+IF(AND(Resultate!$I$8='43'!$I$8,Resultate!$K$8='43'!$K$8)=TRUE,75,0)) -> 75 | P21: =IF(Resultate!$K$9="",0,IF('43'!$L$9=Resultate!$L$9,75,0)+IF(AND(Resultate!$I$9='43'!$I$9,Resultate!$K$9='43'!$K$9)=TRUE,75,0)) -> 0 | Q21: =IF(Resultate!$K$15="",0,IF('43'!$L$15=Resultate!$L$15,75,0)+IF(AND(Resultate!$I$15='43'!$I$15,Resultate!$K$15='43'!$K$15)=TRUE,75,0)) -> 0 | R21: =IF(Resultate!$K$16="",0,IF('43'!$L$16=Resultate!$L$16,75,0)+IF(AND(Resultate!$I$16='43'!$I$16,Resultate!$K$16='43'!$K$16)=TRUE,75,0)) -> 0 | S21: =IF(Resultate!$K$22="",0,IF('43'!$L$22=Resultate!$L$22,75,0)+IF(AND(Resultate!$I$22='43'!$I$22,Resultate!$K$22='43'!$K$22)=TRUE,75,0)) -> 75 | T21: =IF(Resultate!$K$23="",0,IF('43'!$L$23=Resultate!$L$23,75,0)+IF(AND(Resultate!$I$23='43'!$I$23,Resultate!$K$23='43'!$K$23)=TRUE,75,0)) -> 0 | U21: =IF(Resultate!$K$29="",0,IF('43'!$L$29=Resultate!$L$29,75,0)+IF(AND(Resultate!$I$29='43'!$I$29,Resultate!$K$29='43'!$K$29)=TRUE,75,0)) -> 0 | V21: =IF(Resultate!$K$30="",0,IF('43'!$L$30=Resultate!$L$30,75,0)+IF(AND(Resultate!$I$30='43'!$I$30,Resultate!$K$30='43'!$K$30)=TRUE,75,0)) -> 75 | W21: =IF(Resultate!$K$36="",0,IF('43'!$L$36=Resultate!$L$36,75,0)+IF(AND(Resultate!$I$36='43'!$I$36,Resultate!$K$36='43'!$K$36)=TRUE,75,0)) -> 0 | X21: =IF(Resultate!$K$37="",0,IF('43'!$L$37=Resultate!$L$37,75,0)+IF(AND(Resultate!$I$37='43'!$I$37,Resultate!$K$37='43'!$K$37)=TRUE,75,0)) -> 150 | Y21: =IF(Resultate!$K$43="",0,IF('43'!$L$43=Resultate!$L$43,75,0)+IF(AND(Resultate!$I$43='43'!$I$43,Resultate!$K$43='43'!$K$43)=TRUE,75,0)) -> 0 | Z21: =IF(Resultate!$K$44="",0,IF('43'!$L$44=Resultate!$L$44,75,0)+IF(AND(Resultate!$I$44='43'!$I$44,Resultate!$K$44='43'!$K$44)=TRUE,75,0)) -> 150 | AA21: =IF(Resultate!$K$50="",0,IF('43'!$L$50=Resultate!$L$50,75,0)+IF(AND(Resultate!$I$50='43'!$I$50,Resultate!$K$50='43'!$K$50)=TRUE,75,0)) -> 150 | AB21: =IF(Resultate!$K$51="",0,IF('43'!$L$51=Resultate!$L$51,75,0)+IF(AND(Resultate!$I$51='43'!$I$51,Resultate!$K$51='43'!$K$51)=TRUE,75,0)) -> 75 | AC21: =IF(Resultate!$K$57="",0,IF('43'!$L$57=Resultate!$L$57,75,0)+IF(AND(Resultate!$I$57='43'!$I$57,Resultate!$K$57='43'!$K$57)=TRUE,75,0)) -> 0 | AD21: =IF(Resultate!$K$58="",0,IF('43'!$L$58=Resultate!$L$58,75,0)+IF(AND(Resultate!$I$58='43'!$I$58,Resultate!$K$58='43'!$K$58)=TRUE,75,0)) -> 0 | AE21: =IF(Resultate!$K$10="",0,IF('43'!$L$10=Resultate!$L$10,75,0)+IF(AND(Resultate!$I$10='43'!$I$10,Resultate!$K$10='43'!$K$10)=TRUE,75,0)) -> 0 | AF21: =IF(Resultate!$K$11="",0,IF('43'!$L$11=Resultate!$L$11,75,0)+IF(AND(Resultate!$I$11='43'!$I$11,Resultate!$K$11='43'!$K$11)=TRUE,75,0)) -> 75 | AG21: =IF(Resultate!$K$17="",0,IF('43'!$L$17=Resultate!$L$17,75,0)+IF(AND(Resultate!$I$17='43'!$I$17,Resultate!$K$17='43'!$K$17)=TRUE,75,0)) -> 75 | AH21: =IF(Resultate!$K$18="",0,IF('43'!$L$18=Resultate!$L$18,75,0)+IF(AND(Resultate!$I$18='43'!$I$18,Resultate!$K$18='43'!$K$18)=TRUE,75,0)) -> 150 | AI21: =IF(Resultate!$K$31="",0,IF('43'!$L$31=Resultate!$L$31,75,0)+IF(AND(Resultate!$I$31='43'!$I$31,Resultate!$K$31='43'!$K$31)=TRUE,75,0)) -> 0 | AJ21: =IF(Resultate!$K$24="",0,IF('43'!$L$24=Resultate!$L$24,75,0)+IF(AND(Resultate!$I$24='43'!$I$24,Resultate!$K$24='43'!$K$24)=TRUE,75,0)) -> 150 | AK21: =IF(Resultate!$K$25="",0,IF('43'!$L$25=Resultate!$L$25,75,0)+IF(AND(Resultate!$I$25='43'!$I$25,Resultate!$K$25='43'!$K$25)=TRUE,75,0)) -> 150 | AL21: =IF(Resultate!$K$32="",0,IF('43'!$L$32=Resultate!$L$32,75,0)+IF(AND(Resultate!$I$32='43'!$I$32,Resultate!$K$32='43'!$K$32)=TRUE,75,0)) -> 0 | AM21: =IF(Resultate!$K$38="",0,IF('43'!$L$38=Resultate!$L$38,75,0)+IF(AND(Resultate!$I$38='43'!$I$38,Resultate!$K$38='43'!$K$38)=TRUE,75,0)) -> 75 | AN21: =IF(Resultate!$K$39="",0,IF('43'!$L$39=Resultate!$L$39,75,0)+IF(AND(Resultate!$I$39='43'!$I$39,Resultate!$K$39='43'!$K$39)=TRUE,75,0)) -> 0 | AO21: =IF(Resultate!$K$45="",0,IF('43'!$L$45=Resultate!$L$45,75,0)+IF(AND(Resultate!$I$45='43'!$I$45,Resultate!$K$45='43'!$K$45)=TRUE,75,0)) -> 150 | AP21: =IF(Resultate!$K$46="",0,IF('43'!$L$46=Resultate!$L$46,75,0)+IF(AND(Resultate!$I$46='43'!$I$46,Resultate!$K$46='43'!$K$46)=TRUE,75,0)) -> 75 | AQ21: =IF(Resultate!$K$52="",0,IF('43'!$L$52=Resultate!$L$52,75,0)+IF(AND(Resultate!$I$52='43'!$I$52,Resultate!$K$52='43'!$K$52)=TRUE,75,0)) -> 75 | AR21: =IF(Resultate!$K$53="",0,IF('43'!$L$53=Resultate!$L$53,75,0)+IF(AND(Resultate!$I$53='43'!$I$53,Resultate!$K$53='43'!$K$53)=TRUE,75,0)) -> 75 | AS21: =IF(Resultate!$K$59="",0,IF('43'!$L$59=Resultate!$L$59,75,0)+IF(AND(Resultate!$I$59='43'!$I$59,Resultate!$K$59='43'!$K$59)=TRUE,75,0)) -> 75 | AT21: =IF(Resultate!$K$60="",0,IF('43'!$L$60=Resultate!$L$60,75,0)+IF(AND(Resultate!$I$60='43'!$I$60,Resultate!$K$60='43'!$K$60)=TRUE,75,0)) -> 75 | AU21: =IF(Resultate!$K$12="",0,IF('43'!$L$12=Resultate!$L$12,75,0)+IF(AND(Resultate!$I$12='43'!$I$12,Resultate!$K$12='43'!$K$12)=TRUE,75,0)) -> 75 | AV21: =IF(Resultate!$K$13="",0,IF('43'!$L$13=Resultate!$L$13,75,0)+IF(AND(Resultate!$I$13='43'!$I$13,Resultate!$K$13='43'!$K$13)=TRUE,75,0)) -> 0 | AW21: =IF(Resultate!$K$19="",0,IF('43'!$L$19=Resultate!$L$19,75,0)+IF(AND(Resultate!$I$19='43'!$I$19,Resultate!$K$19='43'!$K$19)=TRUE,75,0)) -> 0 | AX21: =IF(Resultate!$K$20="",0,IF('43'!$L$20=Resultate!$L$20,75,0)+IF(AND(Resultate!$I$20='43'!$I$20,Resultate!$K$20='43'!$K$20)=TRUE,75,0)) -> 0 | AY21: =IF(Resultate!$K$26="",0,IF('43'!$L$26=Resultate!$L$26,75,0)+IF(AND(Resultate!$I$26='43'!$I$26,Resultate!$K$26='43'!$K$26)=TRUE,75,0)) -> 0 | AZ21: =IF(Resultate!$K$27="",0,IF('43'!$L$27=Resultate!$L$27,75,0)+IF(AND(Resultate!$I$27='43'!$I$27,Resultate!$K$27='43'!$K$27)=TRUE,75,0)) -> 0 | BA21: =IF(Resultate!$K$33="",0,IF('43'!$L$33=Resultate!$L$33,75,0)+IF(AND(Resultate!$I$33='43'!$I$33,Resultate!$K$33='43'!$K$33)=TRUE,75,0)) -> 0 | BB21: =IF(Resultate!$K$34="",0,IF('43'!$L$34=Resultate!$L$34,75,0)+IF(AND(Resultate!$I$34='43'!$I$34,Resultate!$K$34='43'!$K$34)=TRUE,75,0)) -> 0 | BC21: =IF(Resultate!$K$47="",0,IF('43'!$L$47=Resultate!$L$47,75,0)+IF(AND(Resultate!$I$47='43'!$I$47,Resultate!$K$47='43'!$K$47)=TRUE,75,0)) -> 0 | BD21: =IF(Resultate!$K$48="",0,IF('43'!$L$48=Resultate!$L$48,75,0)+IF(AND(Resultate!$I$48='43'!$I$48,Resultate!$K$48='43'!$K$48)=TRUE,75,0)) -> 0 | BE21: =IF(Resultate!$K$40="",0,IF('43'!$L$40=Resultate!$L$40,75,0)+IF(AND(Resultate!$I$40='43'!$I$40,Resultate!$K$40='43'!$K$40)=TRUE,75,0)) -> 0 | BF21: =IF(Resultate!$K$41="",0,IF('43'!$L$41=Resultate!$L$41,75,0)+IF(AND(Resultate!$I$41='43'!$I$41,Resultate!$K$41='43'!$K$41)=TRUE,75,0)) -> 0 | BG21: =IF(Resultate!$K$54="",0,IF('43'!$L$54=Resultate!$L$54,75,0)+IF(AND(Resultate!$I$54='43'!$I$54,Resultate!$K$54='43'!$K$54)=TRUE,75,0)) -> 0 | BH21: =IF(Resultate!$K$55="",0,IF('43'!$L$55=Resultate!$L$55,75,0)+IF(AND(Resultate!$I$55='43'!$I$55,Resultate!$K$55='43'!$K$55)=TRUE,75,0)) -> 0 | BI21: =IF(Resultate!$K$61="",0,IF('43'!$L$61=Resultate!$L$61,75,0)+IF(AND(Resultate!$I$61='43'!$I$61,Resultate!$K$61='43'!$K$61)=TRUE,75,0)) -> 0 | BJ21: =IF(Resultate!$K$62="",0,IF('43'!$L$62=Resultate!$L$62,75,0)+IF(AND(Resultate!$I$62='43'!$I$62,Resultate!$K$62='43'!$K$62)=TRUE,75,0)) -> 0 | BK21: =IF('43'!$O$13=Resultate!$O$13,100,0) -> 100 | BL21: =IF('43'!$Q$13=Resultate!$Q$13,100,0) -> 0 | BM21: =IF('43'!$O$20=Resultate!$O$20,100,0) -> 0 | BN21: =IF('43'!$Q$20=Resultate!$Q$20,100,0) -> 0 | BO21: =IF('43'!$O$27=Resultate!$O$27,100,0) -> 0 | BP21: =IF('43'!$Q$27=Resultate!$Q$27,100,0) -> 0 | BQ21: =IF('43'!$O$34=Resultate!$O$34,100,0) -> 0 | BR21: =IF('43'!$Q$34=Resultate!$Q$34,100,0) -> 0 | BS21: =IF('43'!$O$40=Resultate!$O$40,100,0) -> 0 | BT21: =IF('43'!$Q$40=Resultate!$Q$40,100,0) -> 0 | BU21: =IF('43'!$O$47=Resultate!$O$47,100,0) -> 0 | BV21: =IF('43'!$Q$47=Resultate!$Q$47,100,0) -> 0 | BW21: =IF('43'!$O$54=Resultate!$O$54,100,0) -> 0 | BX21: =IF('43'!$Q$54=Resultate!$Q$54,100,0) -> 0 | BY21: =IF('43'!$O$61=Resultate!$O$61,100,0) -> 0 | BZ21: =IF('43'!$Q$61=Resultate!$Q$61,100,0) -> 0 | CA21: =VALUE(IF('43'!$X$13=Resultate!$X$13,150,0))+IF(AND(Resultate!$O$13='43'!$O$13,Resultate!$Q$13='43'!$Q$13,Resultate!$S$13='43'!$S$13,Resultate!$U$13='43'!$U$13)=TRUE,75,0) -> 0 | CB21: =VALUE(IF('43'!$Z$13=Resultate!$Z$13,150,0))+IF(AND(Resultate!$O$20='43'!$O$20,Resultate!$Q$20='43'!$Q$20,Resultate!$S$20='43'!$S$20,Resultate!$U$20='43'!$U$20)=TRUE,75,0) -> 0 | CC21: =VALUE(IF('43'!$X$19=Resultate!$X$19,150,0))+IF(AND(Resultate!$O$40='43'!$O$40,Resultate!$Q$40='43'!$Q$40,Resultate!$S$40='43'!$S$40,Resultate!$U$40='43'!$U$40)=TRUE,75,0) -> 0 | CD21: =VALUE(IF('43'!$Z$19=Resultate!$Z$19,150,0))+IF(AND(Resultate!$O$47='43'!$O$47,Resultate!$Q$47='43'!$Q$47,Resultate!$S$47='43'!$S$47,Resultate!$U$47='43'!$U$47)=TRUE,75,0) -> 0 | CE21: =VALUE(IF('43'!$X$25=Resultate!$X$25,150,0))+IF(AND(Resultate!$O$27='43'!$O$27,Resultate!$Q$27='43'!$Q$27,Resultate!$S$27='43'!$S$27,Resultate!$U$27='43'!$U$27)=TRUE,75,0) -> 0 | CF21: =VALUE(IF('43'!$Z$25=Resultate!$Z$25,150,0))+IF(AND(Resultate!$O$34='43'!$O$34,Resultate!$Q$34='43'!$Q$34,Resultate!$S$34='43'!$S$34,Resultate!$U$34='43'!$U$34)=TRUE,75,0) -> 0 | CG21: =VALUE(IF('43'!$X$31=Resultate!$X$31,150,0))+IF(AND(Resultate!$O$54='43'!$O$54,Resultate!$Q$54='43'!$Q$54,Resultate!$S$54='43'!$S$54,Resultate!$U$54='43'!$U$54)=TRUE,75,0) -> 0 | CH21: =VALUE(IF('43'!$Z$31=Resultate!$Z$31,150,0))+IF(AND(Resultate!$O$61='43'!$O$61,Resultate!$Q$61='43'!$Q$61,Resultate!$S$61='43'!$S$61,Resultate!$U$61='43'!$U$61)=TRUE,75,0) -> 0 | CI21: ='43'!$X$48 -> Frankreich | CJ21: =VALUE(IF('43'!$X$48=Resultate!$X$48,200,0))+IF(AND(Resultate!$X$13='43'!$X$13,Resultate!$Z$13='43'!$Z$13,Resultate!$AB$13='43'!$AB$13,Resultate!$AD$13='43'!$AD$13)=TRUE,75,0) -> 0 | CK21: ='43'!$Z$48 -> Belgien | CL21: =VALUE(IF('43'!$Z$48=Resultate!$Z$48,200,0))+IF(AND(Resultate!$X$19='43'!$X$19,Resultate!$Z$19='43'!$Z$19,Resultate!$AB$19='43'!$AB$19,Resultate!$AD$19='43'!$AD$19)=TRUE,75,0) -> 0 | CM21: ='43'!$X$54 -> Spanien | CN21: =VALUE(IF('43'!$X$54=Resultate!$X$54,200,0))+IF(AND(Resultate!$X$25='43'!$X$25,Resultate!$Z$25='43'!$Z$25,Resultate!$AB$25='43'!$AB$25,Resultate!$AD$25='43'!$AD$25)=TRUE,75,0) -> 0 | CO21: ='43'!$Z$54 -> Deutschland | CP21: =VALUE(IF('43'!$Z$54=Resultate!$Z$54,200,0))+IF(AND(Resultate!$X$31='43'!$X$31,Resultate!$Z$31='43'!$Z$31,Resultate!$AB$31='43'!$AB$31,Resultate!$AD$31='43'!$AD$31)=TRUE,75,0) -> 0 | CQ21: ='43'!$AG$8 -> Frankreich | CR21: =IF((OR('43'!$AG$8=Resultate!$AG$8,'43'!$AI$8=Resultate!$AG$8))=TRUE,100,) -> 0 | CS21: ='43'!$AI$8 -> Spanien | CT21: =IF((OR('43'!$AI$8=Resultate!$AI$8,'43'!$AI$8=Resultate!$AG$8))=TRUE,100,) -> 0 | CU21: ='43'!$AG$13 -> Spanien | CV21: =IF('43'!$AG$13=Resultate!$AG$13,200,0) -> 0 | CW21: ='43'!$AG$22 -> Belgien | CX21: =IF((OR('43'!$AG$22=Resultate!$AG$22,'43'!$AI$22=Resultate!$AG$22))=TRUE,250,)+IF((OR('43'!$AG$22=Resultate!$AG$22,'43'!$AI$22=Resultate!$AG$22))=TRUE,IF(AND(Resultate!$AB$48='43'!$AB$48,Resultate!$AD$48='43'!$AD$48)=TRUE,75,0),0) -> 0 | CY21: ='43'!$AI$22 -> Deutschland | CZ21: =IF((OR('43'!$AG$22=Resultate!$AI$22,'43'!$AI$22=Resultate!$AI$22))=TRUE,250,)+IF((OR('43'!$AG$22=Resultate!$AG$22,'43'!$AI$22=Resultate!$AG$22))=TRUE,IF(AND(Resultate!$AB$54='43'!$AB$54,Resultate!$AD$54='43'!$AD$54)=TRUE,75,0),0) -> 0 | DA21: ='43'!$AG$27 -> Deutschland | DB21: =IF('43'!$AG$27=Resultate!$AG$27,300,0) -> 0 | DE21: ='43'!$AN$33 -> 131
A22: 17 | B22: 62 | C22: ='62'!$AH$35 -> Menzi Emil | D22: ='62'!$AH$39 -> menzico@hotmail.com | E22: =SUM(F22:M22) -> 2125 | F22: =SUM(O22:BJ22) -> 2025 | G22: =SUM(BK22:BZ22) -> 100 | H22: =SUM(CA22:CH22) -> 0 | I22: =SUM(CJ22:CP22) -> 0 | J22: =SUM(CR22:CV22) -> 0 | K22: =SUM(CX22:CZ22) -> 0 | L22: =DB22 -> 0 | M22: =IF(DC22="",0,DC22) -> 0 | N22: ='62'!$AN$33 -> 176 | O22: =IF(Resultate!$K$8="",0,IF('62'!$L$8=Resultate!$L$8,75,0)+IF(AND(Resultate!$I$8='62'!$I$8,Resultate!$K$8='62'!$K$8)=TRUE,75,0)) -> 0 | P22: =IF(Resultate!$K$9="",0,IF('62'!$L$9=Resultate!$L$9,75,0)+IF(AND(Resultate!$I$9='62'!$I$9,Resultate!$K$9='62'!$K$9)=TRUE,75,0)) -> 75 | Q22: =IF(Resultate!$K$15="",0,IF('62'!$L$15=Resultate!$L$15,75,0)+IF(AND(Resultate!$I$15='62'!$I$15,Resultate!$K$15='62'!$K$15)=TRUE,75,0)) -> 0 | R22: =IF(Resultate!$K$16="",0,IF('62'!$L$16=Resultate!$L$16,75,0)+IF(AND(Resultate!$I$16='62'!$I$16,Resultate!$K$16='62'!$K$16)=TRUE,75,0)) -> 0 | S22: =IF(Resultate!$K$22="",0,IF('62'!$L$22=Resultate!$L$22,75,0)+IF(AND(Resultate!$I$22='62'!$I$22,Resultate!$K$22='62'!$K$22)=TRUE,75,0)) -> 75 | T22: =IF(Resultate!$K$23="",0,IF('62'!$L$23=Resultate!$L$23,75,0)+IF(AND(Resultate!$I$23='62'!$I$23,Resultate!$K$23='62'!$K$23)=TRUE,75,0)) -> 0 | U22: =IF(Resultate!$K$29="",0,IF('62'!$L$29=Resultate!$L$29,75,0)+IF(AND(Resultate!$I$29='62'!$I$29,Resultate!$K$29='62'!$K$29)=TRUE,75,0)) -> 0 | V22: =IF(Resultate!$K$30="",0,IF('62'!$L$30=Resultate!$L$30,75,0)+IF(AND(Resultate!$I$30='62'!$I$30,Resultate!$K$30='62'!$K$30)=TRUE,75,0)) -> 75 | W22: =IF(Resultate!$K$36="",0,IF('62'!$L$36=Resultate!$L$36,75,0)+IF(AND(Resultate!$I$36='62'!$I$36,Resultate!$K$36='62'!$K$36)=TRUE,75,0)) -> 0 | X22: =IF(Resultate!$K$37="",0,IF('62'!$L$37=Resultate!$L$37,75,0)+IF(AND(Resultate!$I$37='62'!$I$37,Resultate!$K$37='62'!$K$37)=TRUE,75,0)) -> 150 | Y22: =IF(Resultate!$K$43="",0,IF('62'!$L$43=Resultate!$L$43,75,0)+IF(AND(Resultate!$I$43='62'!$I$43,Resultate!$K$43='62'!$K$43)=TRUE,75,0)) -> 0 | Z22: =IF(Resultate!$K$44="",0,IF('62'!$L$44=Resultate!$L$44,75,0)+IF(AND(Resultate!$I$44='62'!$I$44,Resultate!$K$44='62'!$K$44)=TRUE,75,0)) -> 75 | AA22: =IF(Resultate!$K$50="",0,IF('62'!$L$50=Resultate!$L$50,75,0)+IF(AND(Resultate!$I$50='62'!$I$50,Resultate!$K$50='62'!$K$50)=TRUE,75,0)) -> 75 | AB22: =IF(Resultate!$K$51="",0,IF('62'!$L$51=Resultate!$L$51,75,0)+IF(AND(Resultate!$I$51='62'!$I$51,Resultate!$K$51='62'!$K$51)=TRUE,75,0)) -> 75 | AC22: =IF(Resultate!$K$57="",0,IF('62'!$L$57=Resultate!$L$57,75,0)+IF(AND(Resultate!$I$57='62'!$I$57,Resultate!$K$57='62'!$K$57)=TRUE,75,0)) -> 150 | AD22: =IF(Resultate!$K$58="",0,IF('62'!$L$58=Resultate!$L$58,75,0)+IF(AND(Resultate!$I$58='62'!$I$58,Resultate!$K$58='62'!$K$58)=TRUE,75,0)) -> 0 | AE22: =IF(Resultate!$K$10="",0,IF('62'!$L$10=Resultate!$L$10,75,0)+IF(AND(Resultate!$I$10='62'!$I$10,Resultate!$K$10='62'!$K$10)=TRUE,75,0)) -> 0 | AF22: =IF(Resultate!$K$11="",0,IF('62'!$L$11=Resultate!$L$11,75,0)+IF(AND(Resultate!$I$11='62'!$I$11,Resultate!$K$11='62'!$K$11)=TRUE,75,0)) -> 150 | AG22: =IF(Resultate!$K$17="",0,IF('62'!$L$17=Resultate!$L$17,75,0)+IF(AND(Resultate!$I$17='62'!$I$17,Resultate!$K$17='62'!$K$17)=TRUE,75,0)) -> 150 | AH22: =IF(Resultate!$K$18="",0,IF('62'!$L$18=Resultate!$L$18,75,0)+IF(AND(Resultate!$I$18='62'!$I$18,Resultate!$K$18='62'!$K$18)=TRUE,75,0)) -> 150 | AI22: =IF(Resultate!$K$31="",0,IF('62'!$L$31=Resultate!$L$31,75,0)+IF(AND(Resultate!$I$31='62'!$I$31,Resultate!$K$31='62'!$K$31)=TRUE,75,0)) -> 0 | AJ22: =IF(Resultate!$K$24="",0,IF('62'!$L$24=Resultate!$L$24,75,0)+IF(AND(Resultate!$I$24='62'!$I$24,Resultate!$K$24='62'!$K$24)=TRUE,75,0)) -> 0 | AK22: =IF(Resultate!$K$25="",0,IF('62'!$L$25=Resultate!$L$25,75,0)+IF(AND(Resultate!$I$25='62'!$I$25,Resultate!$K$25='62'!$K$25)=TRUE,75,0)) -> 0 | AL22: =IF(Resultate!$K$32="",0,IF('62'!$L$32=Resultate!$L$32,75,0)+IF(AND(Resultate!$I$32='62'!$I$32,Resultate!$K$32='62'!$K$32)=TRUE,75,0)) -> 150 | AM22: =IF(Resultate!$K$38="",0,IF('62'!$L$38=Resultate!$L$38,75,0)+IF(AND(Resultate!$I$38='62'!$I$38,Resultate!$K$38='62'!$K$38)=TRUE,75,0)) -> 150 | AN22: =IF(Resultate!$K$39="",0,IF('62'!$L$39=Resultate!$L$39,75,0)+IF(AND(Resultate!$I$39='62'!$I$39,Resultate!$K$39='62'!$K$39)=TRUE,75,0)) -> 150 | AO22: =IF(Resultate!$K$45="",0,IF('62'!$L$45=Resultate!$L$45,75,0)+IF(AND(Resultate!$I$45='62'!$I$45,Resultate!$K$45='62'!$K$45)=TRUE,75,0)) -> 0 | AP22: =IF(Resultate!$K$46="",0,IF('62'!$L$46=Resultate!$L$46,75,0)+IF(AND(Resultate!$I$46='62'!$I$46,Resultate!$K$46='62'!$K$46)=TRUE,75,0)) -> 75 | AQ22: =IF(Resultate!$K$52="",0,IF('62'!$L$52=Resultate!$L$52,75,0)+IF(AND(Resultate!$I$52='62'!$I$52,Resultate!$K$52='62'!$K$52)=TRUE,75,0)) -> 75 | AR22: =IF(Resultate!$K$53="",0,IF('62'!$L$53=Resultate!$L$53,75,0)+IF(AND(Resultate!$I$53='62'!$I$53,Resultate!$K$53='62'!$K$53)=TRUE,75,0)) -> 75 | AS22: =IF(Resultate!$K$59="",0,IF('62'!$L$59=Resultate!$L$59,75,0)+IF(AND(Resultate!$I$59='62'!$I$59,Resultate!$K$59='62'!$K$59)=TRUE,75,0)) -> 0 | AT22: =IF(Resultate!$K$60="",0,IF('62'!$L$60=Resultate!$L$60,75,0)+IF(AND(Resultate!$I$60='62'!$I$60,Resultate!$K$60='62'!$K$60)=TRUE,75,0)) -> 75 | AU22: =IF(Resultate!$K$12="",0,IF('62'!$L$12=Resultate!$L$12,75,0)+IF(AND(Resultate!$I$12='62'!$I$12,Resultate!$K$12='62'!$K$12)=TRUE,75,0)) -> 75 | AV22: =IF(Resultate!$K$13="",0,IF('62'!$L$13=Resultate!$L$13,75,0)+IF(AND(Resultate!$I$13='62'!$I$13,Resultate!$K$13='62'!$K$13)=TRUE,75,0)) -> 0 | AW22: =IF(Resultate!$K$19="",0,IF('62'!$L$19=Resultate!$L$19,75,0)+IF(AND(Resultate!$I$19='62'!$I$19,Resultate!$K$19='62'!$K$19)=TRUE,75,0)) -> 0 | AX22: =IF(Resultate!$K$20="",0,IF('62'!$L$20=Resultate!$L$20,75,0)+IF(AND(Resultate!$I$20='62'!$I$20,Resultate!$K$20='62'!$K$20)=TRUE,75,0)) -> 0 | AY22: =IF(Resultate!$K$26="",0,IF('62'!$L$26=Resultate!$L$26,75,0)+IF(AND(Resultate!$I$26='62'!$I$26,Resultate!$K$26='62'!$K$26)=TRUE,75,0)) -> 0 | AZ22: =IF(Resultate!$K$27="",0,IF('62'!$L$27=Resultate!$L$27,75,0)+IF(AND(Resultate!$I$27='62'!$I$27,Resultate!$K$27='62'!$K$27)=TRUE,75,0)) -> 0 | BA22: =IF(Resultate!$K$33="",0,IF('62'!$L$33=Resultate!$L$33,75,0)+IF(AND(Resultate!$I$33='62'!$I$33,Resultate!$K$33='62'!$K$33)=TRUE,75,0)) -> 0 | BB22: =IF(Resultate!$K$34="",0,IF('62'!$L$34=Resultate!$L$34,75,0)+IF(AND(Resultate!$I$34='62'!$I$34,Resultate!$K$34='62'!$K$34)=TRUE,75,0)) -> 0 | BC22: =IF(Resultate!$K$47="",0,IF('62'!$L$47=Resultate!$L$47,75,0)+IF(AND(Resultate!$I$47='62'!$I$47,Resultate!$K$47='62'!$K$47)=TRUE,75,0)) -> 0 | BD22: =IF(Resultate!$K$48="",0,IF('62'!$L$48=Resultate!$L$48,75,0)+IF(AND(Resultate!$I$48='62'!$I$48,Resultate!$K$48='62'!$K$48)=TRUE,75,0)) -> 0 | BE22: =IF(Resultate!$K$40="",0,IF('62'!$L$40=Resultate!$L$40,75,0)+IF(AND(Resultate!$I$40='62'!$I$40,Resultate!$K$40='62'!$K$40)=TRUE,75,0)) -> 0 | BF22: =IF(Resultate!$K$41="",0,IF('62'!$L$41=Resultate!$L$41,75,0)+IF(AND(Resultate!$I$41='62'!$I$41,Resultate!$K$41='62'!$K$41)=TRUE,75,0)) -> 0 | BG22: =IF(Resultate!$K$54="",0,IF('62'!$L$54=Resultate!$L$54,75,0)+IF(AND(Resultate!$I$54='62'!$I$54,Resultate!$K$54='62'!$K$54)=TRUE,75,0)) -> 0 | BH22: =IF(Resultate!$K$55="",0,IF('62'!$L$55=Resultate!$L$55,75,0)+IF(AND(Resultate!$I$55='62'!$I$55,Resultate!$K$55='62'!$K$55)=TRUE,75,0)) -> 0 | BI22: =IF(Resultate!$K$61="",0,IF('62'!$L$61=Resultate!$L$61,75,0)+IF(AND(Resultate!$I$61='62'!$I$61,Resultate!$K$61='62'!$K$61)=TRUE,75,0)) -> 0 | BJ22: =IF(Resultate!$K$62="",0,IF('62'!$L$62=Resultate!$L$62,75,0)+IF(AND(Resultate!$I$62='62'!$I$62,Resultate!$K$62='62'!$K$62)=TRUE,75,0)) -> 0 | BK22: =IF('62'!$O$13=Resultate!$O$13,100,0) -> 100 | BL22: =IF('62'!$Q$13=Resultate!$Q$13,100,0) -> 0 | BM22: =IF('62'!$O$20=Resultate!$O$20,100,0) -> 0 | BN22: =IF('62'!$Q$20=Resultate!$Q$20,100,0) -> 0 | BO22: =IF('62'!$O$27=Resultate!$O$27,100,0) -> 0 | BP22: =IF('62'!$Q$27=Resultate!$Q$27,100,0) -> 0 | BQ22: =IF('62'!$O$34=Resultate!$O$34,100,0) -> 0 | BR22: =IF('62'!$Q$34=Resultate!$Q$34,100,0) -> 0 | BS22: =IF('62'!$O$40=Resultate!$O$40,100,0) -> 0 | BT22: =IF('62'!$Q$40=Resultate!$Q$40,100,0) -> 0 | BU22: =IF('62'!$O$47=Resultate!$O$47,100,0) -> 0 | BV22: =IF('62'!$Q$47=Resultate!$Q$47,100,0) -> 0 | BW22: =IF('62'!$O$54=Resultate!$O$54,100,0) -> 0 | BX22: =IF('62'!$Q$54=Resultate!$Q$54,100,0) -> 0 | BY22: =IF('62'!$O$61=Resultate!$O$61,100,0) -> 0 | BZ22: =IF('62'!$Q$61=Resultate!$Q$61,100,0) -> 0 | CA22: =VALUE(IF('62'!$X$13=Resultate!$X$13,150,0))+IF(AND(Resultate!$O$13='62'!$O$13,Resultate!$Q$13='62'!$Q$13,Resultate!$S$13='62'!$S$13,Resultate!$U$13='62'!$U$13)=TRUE,75,0) -> 0 | CB22: =VALUE(IF('62'!$Z$13=Resultate!$Z$13,150,0))+IF(AND(Resultate!$O$20='62'!$O$20,Resultate!$Q$20='62'!$Q$20,Resultate!$S$20='62'!$S$20,Resultate!$U$20='62'!$U$20)=TRUE,75,0) -> 0 | CC22: =VALUE(IF('62'!$X$19=Resultate!$X$19,150,0))+IF(AND(Resultate!$O$40='62'!$O$40,Resultate!$Q$40='62'!$Q$40,Resultate!$S$40='62'!$S$40,Resultate!$U$40='62'!$U$40)=TRUE,75,0) -> 0 | CD22: =VALUE(IF('62'!$Z$19=Resultate!$Z$19,150,0))+IF(AND(Resultate!$O$47='62'!$O$47,Resultate!$Q$47='62'!$Q$47,Resultate!$S$47='62'!$S$47,Resultate!$U$47='62'!$U$47)=TRUE,75,0) -> 0 | CE22: =VALUE(IF('62'!$X$25=Resultate!$X$25,150,0))+IF(AND(Resultate!$O$27='62'!$O$27,Resultate!$Q$27='62'!$Q$27,Resultate!$S$27='62'!$S$27,Resultate!$U$27='62'!$U$27)=TRUE,75,0) -> 0 | CF22: =VALUE(IF('62'!$Z$25=Resultate!$Z$25,150,0))+IF(AND(Resultate!$O$34='62'!$O$34,Resultate!$Q$34='62'!$Q$34,Resultate!$S$34='62'!$S$34,Resultate!$U$34='62'!$U$34)=TRUE,75,0) -> 0 | CG22: =VALUE(IF('62'!$X$31=Resultate!$X$31,150,0))+IF(AND(Resultate!$O$54='62'!$O$54,Resultate!$Q$54='62'!$Q$54,Resultate!$S$54='62'!$S$54,Resultate!$U$54='62'!$U$54)=TRUE,75,0) -> 0 | CH22: =VALUE(IF('62'!$Z$31=Resultate!$Z$31,150,0))+IF(AND(Resultate!$O$61='62'!$O$61,Resultate!$Q$61='62'!$Q$61,Resultate!$S$61='62'!$S$61,Resultate!$U$61='62'!$U$61)=TRUE,75,0) -> 0 | CI22: ='62'!$X$48 -> Frankreich | CJ22: =VALUE(IF('62'!$X$48=Resultate!$X$48,200,0))+IF(AND(Resultate!$X$13='62'!$X$13,Resultate!$Z$13='62'!$Z$13,Resultate!$AB$13='62'!$AB$13,Resultate!$AD$13='62'!$AD$13)=TRUE,75,0) -> 0 | CK22: ='62'!$Z$48 -> Schweiz | CL22: =VALUE(IF('62'!$Z$48=Resultate!$Z$48,200,0))+IF(AND(Resultate!$X$19='62'!$X$19,Resultate!$Z$19='62'!$Z$19,Resultate!$AB$19='62'!$AB$19,Resultate!$AD$19='62'!$AD$19)=TRUE,75,0) -> 0 | CM22: ='62'!$X$54 -> Spanien | CN22: =VALUE(IF('62'!$X$54=Resultate!$X$54,200,0))+IF(AND(Resultate!$X$25='62'!$X$25,Resultate!$Z$25='62'!$Z$25,Resultate!$AB$25='62'!$AB$25,Resultate!$AD$25='62'!$AD$25)=TRUE,75,0) -> 0 | CO22: ='62'!$Z$54 -> Deutschland | CP22: =VALUE(IF('62'!$Z$54=Resultate!$Z$54,200,0))+IF(AND(Resultate!$X$31='62'!$X$31,Resultate!$Z$31='62'!$Z$31,Resultate!$AB$31='62'!$AB$31,Resultate!$AD$31='62'!$AD$31)=TRUE,75,0) -> 0 | CQ22: ='62'!$AG$8 -> Frankreich | CR22: =IF((OR('62'!$AG$8=Resultate!$AG$8,'62'!$AI$8=Resultate!$AG$8))=TRUE,100,) -> 0 | CS22: ='62'!$AI$8 -> Spanien | CT22: =IF((OR('62'!$AI$8=Resultate!$AI$8,'62'!$AI$8=Resultate!$AG$8))=TRUE,100,) -> 0 | CU22: ='62'!$AG$13 -> Spanien | CV22: =IF('62'!$AG$13=Resultate!$AG$13,200,0) -> 0 | CW22: ='62'!$AG$22 -> Schweiz | CX22: =IF((OR('62'!$AG$22=Resultate!$AG$22,'62'!$AI$22=Resultate!$AG$22))=TRUE,250,)+IF((OR('62'!$AG$22=Resultate!$AG$22,'62'!$AI$22=Resultate!$AG$22))=TRUE,IF(AND(Resultate!$AB$48='62'!$AB$48,Resultate!$AD$48='62'!$AD$48)=TRUE,75,0),0) -> 0 | CY22: ='62'!$AI$22 -> Deutschland | CZ22: =IF((OR('62'!$AG$22=Resultate!$AI$22,'62'!$AI$22=Resultate!$AI$22))=TRUE,250,)+IF((OR('62'!$AG$22=Resultate!$AG$22,'62'!$AI$22=Resultate!$AG$22))=TRUE,IF(AND(Resultate!$AB$54='62'!$AB$54,Resultate!$AD$54='62'!$AD$54)=TRUE,75,0),0) -> 0 | DA22: ='62'!$AG$27 -> Schweiz | DB22: =IF('62'!$AG$27=Resultate!$AG$27,300,0) -> 0 | DE22: ='62'!$AN$33 -> 176
A23: 18 | B23: 9 | C23: ='9'!$AH$35 -> Ба́бушка | D23: ='9'!$AH$39 -> conny.zoller@thurweb.ch | E23: =SUM(F23:M23) -> 2075 | F23: =SUM(O23:BJ23) -> 1875 | G23: =SUM(BK23:BZ23) -> 200 | H23: =SUM(CA23:CH23) -> 0 | I23: =SUM(CJ23:CP23) -> 0 | J23: =SUM(CR23:CV23) -> 0 | K23: =SUM(CX23:CZ23) -> 0 | L23: =DB23 -> 0 | M23: =IF(DC23="",0,DC23) -> 0 | N23: ='9'!$AN$33 -> 173 | O23: =IF(Resultate!$K$8="",0,IF('9'!$L$8=Resultate!$L$8,75,0)+IF(AND(Resultate!$I$8='9'!$I$8,Resultate!$K$8='9'!$K$8)=TRUE,75,0)) -> 75 | P23: =IF(Resultate!$K$9="",0,IF('9'!$L$9=Resultate!$L$9,75,0)+IF(AND(Resultate!$I$9='9'!$I$9,Resultate!$K$9='9'!$K$9)=TRUE,75,0)) -> 75 | Q23: =IF(Resultate!$K$15="",0,IF('9'!$L$15=Resultate!$L$15,75,0)+IF(AND(Resultate!$I$15='9'!$I$15,Resultate!$K$15='9'!$K$15)=TRUE,75,0)) -> 75 | R23: =IF(Resultate!$K$16="",0,IF('9'!$L$16=Resultate!$L$16,75,0)+IF(AND(Resultate!$I$16='9'!$I$16,Resultate!$K$16='9'!$K$16)=TRUE,75,0)) -> 150 | S23: =IF(Resultate!$K$22="",0,IF('9'!$L$22=Resultate!$L$22,75,0)+IF(AND(Resultate!$I$22='9'!$I$22,Resultate!$K$22='9'!$K$22)=TRUE,75,0)) -> 75 | T23: =IF(Resultate!$K$23="",0,IF('9'!$L$23=Resultate!$L$23,75,0)+IF(AND(Resultate!$I$23='9'!$I$23,Resultate!$K$23='9'!$K$23)=TRUE,75,0)) -> 0 | U23: =IF(Resultate!$K$29="",0,IF('9'!$L$29=Resultate!$L$29,75,0)+IF(AND(Resultate!$I$29='9'!$I$29,Resultate!$K$29='9'!$K$29)=TRUE,75,0)) -> 0 | V23: =IF(Resultate!$K$30="",0,IF('9'!$L$30=Resultate!$L$30,75,0)+IF(AND(Resultate!$I$30='9'!$I$30,Resultate!$K$30='9'!$K$30)=TRUE,75,0)) -> 0 | W23: =IF(Resultate!$K$36="",0,IF('9'!$L$36=Resultate!$L$36,75,0)+IF(AND(Resultate!$I$36='9'!$I$36,Resultate!$K$36='9'!$K$36)=TRUE,75,0)) -> 0 | X23: =IF(Resultate!$K$37="",0,IF('9'!$L$37=Resultate!$L$37,75,0)+IF(AND(Resultate!$I$37='9'!$I$37,Resultate!$K$37='9'!$K$37)=TRUE,75,0)) -> 0 | Y23: =IF(Resultate!$K$43="",0,IF('9'!$L$43=Resultate!$L$43,75,0)+IF(AND(Resultate!$I$43='9'!$I$43,Resultate!$K$43='9'!$K$43)=TRUE,75,0)) -> 0 | Z23: =IF(Resultate!$K$44="",0,IF('9'!$L$44=Resultate!$L$44,75,0)+IF(AND(Resultate!$I$44='9'!$I$44,Resultate!$K$44='9'!$K$44)=TRUE,75,0)) -> 0 | AA23: =IF(Resultate!$K$50="",0,IF('9'!$L$50=Resultate!$L$50,75,0)+IF(AND(Resultate!$I$50='9'!$I$50,Resultate!$K$50='9'!$K$50)=TRUE,75,0)) -> 75 | AB23: =IF(Resultate!$K$51="",0,IF('9'!$L$51=Resultate!$L$51,75,0)+IF(AND(Resultate!$I$51='9'!$I$51,Resultate!$K$51='9'!$K$51)=TRUE,75,0)) -> 75 | AC23: =IF(Resultate!$K$57="",0,IF('9'!$L$57=Resultate!$L$57,75,0)+IF(AND(Resultate!$I$57='9'!$I$57,Resultate!$K$57='9'!$K$57)=TRUE,75,0)) -> 75 | AD23: =IF(Resultate!$K$58="",0,IF('9'!$L$58=Resultate!$L$58,75,0)+IF(AND(Resultate!$I$58='9'!$I$58,Resultate!$K$58='9'!$K$58)=TRUE,75,0)) -> 0 | AE23: =IF(Resultate!$K$10="",0,IF('9'!$L$10=Resultate!$L$10,75,0)+IF(AND(Resultate!$I$10='9'!$I$10,Resultate!$K$10='9'!$K$10)=TRUE,75,0)) -> 75 | AF23: =IF(Resultate!$K$11="",0,IF('9'!$L$11=Resultate!$L$11,75,0)+IF(AND(Resultate!$I$11='9'!$I$11,Resultate!$K$11='9'!$K$11)=TRUE,75,0)) -> 75 | AG23: =IF(Resultate!$K$17="",0,IF('9'!$L$17=Resultate!$L$17,75,0)+IF(AND(Resultate!$I$17='9'!$I$17,Resultate!$K$17='9'!$K$17)=TRUE,75,0)) -> 75 | AH23: =IF(Resultate!$K$18="",0,IF('9'!$L$18=Resultate!$L$18,75,0)+IF(AND(Resultate!$I$18='9'!$I$18,Resultate!$K$18='9'!$K$18)=TRUE,75,0)) -> 75 | AI23: =IF(Resultate!$K$31="",0,IF('9'!$L$31=Resultate!$L$31,75,0)+IF(AND(Resultate!$I$31='9'!$I$31,Resultate!$K$31='9'!$K$31)=TRUE,75,0)) -> 75 | AJ23: =IF(Resultate!$K$24="",0,IF('9'!$L$24=Resultate!$L$24,75,0)+IF(AND(Resultate!$I$24='9'!$I$24,Resultate!$K$24='9'!$K$24)=TRUE,75,0)) -> 150 | AK23: =IF(Resultate!$K$25="",0,IF('9'!$L$25=Resultate!$L$25,75,0)+IF(AND(Resultate!$I$25='9'!$I$25,Resultate!$K$25='9'!$K$25)=TRUE,75,0)) -> 0 | AL23: =IF(Resultate!$K$32="",0,IF('9'!$L$32=Resultate!$L$32,75,0)+IF(AND(Resultate!$I$32='9'!$I$32,Resultate!$K$32='9'!$K$32)=TRUE,75,0)) -> 0 | AM23: =IF(Resultate!$K$38="",0,IF('9'!$L$38=Resultate!$L$38,75,0)+IF(AND(Resultate!$I$38='9'!$I$38,Resultate!$K$38='9'!$K$38)=TRUE,75,0)) -> 75 | AN23: =IF(Resultate!$K$39="",0,IF('9'!$L$39=Resultate!$L$39,75,0)+IF(AND(Resultate!$I$39='9'!$I$39,Resultate!$K$39='9'!$K$39)=TRUE,75,0)) -> 150 | AO23: =IF(Resultate!$K$45="",0,IF('9'!$L$45=Resultate!$L$45,75,0)+IF(AND(Resultate!$I$45='9'!$I$45,Resultate!$K$45='9'!$K$45)=TRUE,75,0)) -> 75 | AP23: =IF(Resultate!$K$46="",0,IF('9'!$L$46=Resultate!$L$46,75,0)+IF(AND(Resultate!$I$46='9'!$I$46,Resultate!$K$46='9'!$K$46)=TRUE,75,0)) -> 75 | AQ23: =IF(Resultate!$K$52="",0,IF('9'!$L$52=Resultate!$L$52,75,0)+IF(AND(Resultate!$I$52='9'!$I$52,Resultate!$K$52='9'!$K$52)=TRUE,75,0)) -> 75 | AR23: =IF(Resultate!$K$53="",0,IF('9'!$L$53=Resultate!$L$53,75,0)+IF(AND(Resultate!$I$53='9'!$I$53,Resultate!$K$53='9'!$K$53)=TRUE,75,0)) -> 75 | AS23: =IF(Resultate!$K$59="",0,IF('9'!$L$59=Resultate!$L$59,75,0)+IF(AND(Resultate!$I$59='9'!$I$59,Resultate!$K$59='9'!$K$59)=TRUE,75,0)) -> 0 | AT23: =IF(Resultate!$K$60="",0,IF('9'!$L$60=Resultate!$L$60,75,0)+IF(AND(Resultate!$I$60='9'!$I$60,Resultate!$K$60='9'!$K$60)=TRUE,75,0)) -> 150 | AU23: =IF(Resultate!$K$12="",0,IF('9'!$L$12=Resultate!$L$12,75,0)+IF(AND(Resultate!$I$12='9'!$I$12,Resultate!$K$12='9'!$K$12)=TRUE,75,0)) -> 0 | AV23: =IF(Resultate!$K$13="",0,IF('9'!$L$13=Resultate!$L$13,75,0)+IF(AND(Resultate!$I$13='9'!$I$13,Resultate!$K$13='9'!$K$13)=TRUE,75,0)) -> 0 | AW23: =IF(Resultate!$K$19="",0,IF('9'!$L$19=Resultate!$L$19,75,0)+IF(AND(Resultate!$I$19='9'!$I$19,Resultate!$K$19='9'!$K$19)=TRUE,75,0)) -> 0 | AX23: =IF(Resultate!$K$20="",0,IF('9'!$L$20=Resultate!$L$20,75,0)+IF(AND(Resultate!$I$20='9'!$I$20,Resultate!$K$20='9'!$K$20)=TRUE,75,0)) -> 0 | AY23: =IF(Resultate!$K$26="",0,IF('9'!$L$26=Resultate!$L$26,75,0)+IF(AND(Resultate!$I$26='9'!$I$26,Resultate!$K$26='9'!$K$26)=TRUE,75,0)) -> 0 | AZ23: =IF(Resultate!$K$27="",0,IF('9'!$L$27=Resultate!$L$27,75,0)+IF(AND(Resultate!$I$27='9'!$I$27,Resultate!$K$27='9'!$K$27)=TRUE,75,0)) -> 0 | BA23: =IF(Resultate!$K$33="",0,IF('9'!$L$33=Resultate!$L$33,75,0)+IF(AND(Resultate!$I$33='9'!$I$33,Resultate!$K$33='9'!$K$33)=TRUE,75,0)) -> 0 | BB23: =IF(Resultate!$K$34="",0,IF('9'!$L$34=Resultate!$L$34,75,0)+IF(AND(Resultate!$I$34='9'!$I$34,Resultate!$K$34='9'!$K$34)=TRUE,75,0)) -> 0 | BC23: =IF(Resultate!$K$47="",0,IF('9'!$L$47=Resultate!$L$47,75,0)+IF(AND(Resultate!$I$47='9'!$I$47,Resultate!$K$47='9'!$K$47)=TRUE,75,0)) -> 0 | BD23: =IF(Resultate!$K$48="",0,IF('9'!$L$48=Resultate!$L$48,75,0)+IF(AND(Resultate!$I$48='9'!$I$48,Resultate!$K$48='9'!$K$48)=TRUE,75,0)) -> 0 | BE23: =IF(Resultate!$K$40="",0,IF('9'!$L$40=Resultate!$L$40,75,0)+IF(AND(Resultate!$I$40='9'!$I$40,Resultate!$K$40='9'!$K$40)=TRUE,75,0)) -> 0 | BF23: =IF(Resultate!$K$41="",0,IF('9'!$L$41=Resultate!$L$41,75,0)+IF(AND(Resultate!$I$41='9'!$I$41,Resultate!$K$41='9'!$K$41)=TRUE,75,0)) -> 0 | BG23: =IF(Resultate!$K$54="",0,IF('9'!$L$54=Resultate!$L$54,75,0)+IF(AND(Resultate!$I$54='9'!$I$54,Resultate!$K$54='9'!$K$54)=TRUE,75,0)) -> 0 | BH23: =IF(Resultate!$K$55="",0,IF('9'!$L$55=Resultate!$L$55,75,0)+IF(AND(Resultate!$I$55='9'!$I$55,Resultate!$K$55='9'!$K$55)=TRUE,75,0)) -> 0 | BI23: =IF(Resultate!$K$61="",0,IF('9'!$L$61=Resultate!$L$61,75,0)+IF(AND(Resultate!$I$61='9'!$I$61,Resultate!$K$61='9'!$K$61)=TRUE,75,0)) -> 0 | BJ23: =IF(Resultate!$K$62="",0,IF('9'!$L$62=Resultate!$L$62,75,0)+IF(AND(Resultate!$I$62='9'!$I$62,Resultate!$K$62='9'!$K$62)=TRUE,75,0)) -> 0 | BK23: =IF('9'!$O$13=Resultate!$O$13,100,0) -> 100 | BL23: =IF('9'!$Q$13=Resultate!$Q$13,100,0) -> 0 | BM23: =IF('9'!$O$20=Resultate!$O$20,100,0) -> 0 | BN23: =IF('9'!$Q$20=Resultate!$Q$20,100,0) -> 0 | BO23: =IF('9'!$O$27=Resultate!$O$27,100,0) -> 0 | BP23: =IF('9'!$Q$27=Resultate!$Q$27,100,0) -> 100 | BQ23: =IF('9'!$O$34=Resultate!$O$34,100,0) -> 0 | BR23: =IF('9'!$Q$34=Resultate!$Q$34,100,0) -> 0 | BS23: =IF('9'!$O$40=Resultate!$O$40,100,0) -> 0 | BT23: =IF('9'!$Q$40=Resultate!$Q$40,100,0) -> 0 | BU23: =IF('9'!$O$47=Resultate!$O$47,100,0) -> 0 | BV23: =IF('9'!$Q$47=Resultate!$Q$47,100,0) -> 0 | BW23: =IF('9'!$O$54=Resultate!$O$54,100,0) -> 0 | BX23: =IF('9'!$Q$54=Resultate!$Q$54,100,0) -> 0 | BY23: =IF('9'!$O$61=Resultate!$O$61,100,0) -> 0 | BZ23: =IF('9'!$Q$61=Resultate!$Q$61,100,0) -> 0 | CA23: =VALUE(IF('9'!$X$13=Resultate!$X$13,150,0))+IF(AND(Resultate!$O$13='9'!$O$13,Resultate!$Q$13='9'!$Q$13,Resultate!$S$13='9'!$S$13,Resultate!$U$13='9'!$U$13)=TRUE,75,0) -> 0 | CB23: =VALUE(IF('9'!$Z$13=Resultate!$Z$13,150,0))+IF(AND(Resultate!$O$20='9'!$O$20,Resultate!$Q$20='9'!$Q$20,Resultate!$S$20='9'!$S$20,Resultate!$U$20='9'!$U$20)=TRUE,75,0) -> 0 | CC23: =VALUE(IF('9'!$X$19=Resultate!$X$19,150,0))+IF(AND(Resultate!$O$40='9'!$O$40,Resultate!$Q$40='9'!$Q$40,Resultate!$S$40='9'!$S$40,Resultate!$U$40='9'!$U$40)=TRUE,75,0) -> 0 | CD23: =VALUE(IF('9'!$Z$19=Resultate!$Z$19,150,0))+IF(AND(Resultate!$O$47='9'!$O$47,Resultate!$Q$47='9'!$Q$47,Resultate!$S$47='9'!$S$47,Resultate!$U$47='9'!$U$47)=TRUE,75,0) -> 0 | CE23: =VALUE(IF('9'!$X$25=Resultate!$X$25,150,0))+IF(AND(Resultate!$O$27='9'!$O$27,Resultate!$Q$27='9'!$Q$27,Resultate!$S$27='9'!$S$27,Resultate!$U$27='9'!$U$27)=TRUE,75,0) -> 0 | CF23: =VALUE(IF('9'!$Z$25=Resultate!$Z$25,150,0))+IF(AND(Resultate!$O$34='9'!$O$34,Resultate!$Q$34='9'!$Q$34,Resultate!$S$34='9'!$S$34,Resultate!$U$34='9'!$U$34)=TRUE,75,0) -> 0 | CG23: =VALUE(IF('9'!$X$31=Resultate!$X$31,150,0))+IF(AND(Resultate!$O$54='9'!$O$54,Resultate!$Q$54='9'!$Q$54,Resultate!$S$54='9'!$S$54,Resultate!$U$54='9'!$U$54)=TRUE,75,0) -> 0 | CH23: =VALUE(IF('9'!$Z$31=Resultate!$Z$31,150,0))+IF(AND(Resultate!$O$61='9'!$O$61,Resultate!$Q$61='9'!$Q$61,Resultate!$S$61='9'!$S$61,Resultate!$U$61='9'!$U$61)=TRUE,75,0) -> 0 | CI23: ='9'!$X$48 -> Frankreich | CJ23: =VALUE(IF('9'!$X$48=Resultate!$X$48,200,0))+IF(AND(Resultate!$X$13='9'!$X$13,Resultate!$Z$13='9'!$Z$13,Resultate!$AB$13='9'!$AB$13,Resultate!$AD$13='9'!$AD$13)=TRUE,75,0) -> 0 | CK23: ='9'!$Z$48 -> Brasilien | CL23: =VALUE(IF('9'!$Z$48=Resultate!$Z$48,200,0))+IF(AND(Resultate!$X$19='9'!$X$19,Resultate!$Z$19='9'!$Z$19,Resultate!$AB$19='9'!$AB$19,Resultate!$AD$19='9'!$AD$19)=TRUE,75,0) -> 0 | CM23: ='9'!$X$54 -> Spanien | CN23: =VALUE(IF('9'!$X$54=Resultate!$X$54,200,0))+IF(AND(Resultate!$X$25='9'!$X$25,Resultate!$Z$25='9'!$Z$25,Resultate!$AB$25='9'!$AB$25,Resultate!$AD$25='9'!$AD$25)=TRUE,75,0) -> 0 | CO23: ='9'!$Z$54 -> Deutschland | CP23: =VALUE(IF('9'!$Z$54=Resultate!$Z$54,200,0))+IF(AND(Resultate!$X$31='9'!$X$31,Resultate!$Z$31='9'!$Z$31,Resultate!$AB$31='9'!$AB$31,Resultate!$AD$31='9'!$AD$31)=TRUE,75,0) -> 0 | CQ23: ='9'!$AG$8 -> Brasilien | CR23: =IF((OR('9'!$AG$8=Resultate!$AG$8,'9'!$AI$8=Resultate!$AG$8))=TRUE,100,) -> 0 | CS23: ='9'!$AI$8 -> Deutschland | CT23: =IF((OR('9'!$AI$8=Resultate!$AI$8,'9'!$AI$8=Resultate!$AG$8))=TRUE,100,) -> 0 | CU23: ='9'!$AG$13 -> Deutschland | CV23: =IF('9'!$AG$13=Resultate!$AG$13,200,0) -> 0 | CW23: ='9'!$AG$22 -> Frankreich | CX23: =IF((OR('9'!$AG$22=Resultate!$AG$22,'9'!$AI$22=Resultate!$AG$22))=TRUE,250,)+IF((OR('9'!$AG$22=Resultate!$AG$22,'9'!$AI$22=Resultate!$AG$22))=TRUE,IF(AND(Resultate!$AB$48='9'!$AB$48,Resultate!$AD$48='9'!$AD$48)=TRUE,75,0),0) -> 0 | CY23: ='9'!$AI$22 -> Spanien | CZ23: =IF((OR('9'!$AG$22=Resultate!$AI$22,'9'!$AI$22=Resultate!$AI$22))=TRUE,250,)+IF((OR('9'!$AG$22=Resultate!$AG$22,'9'!$AI$22=Resultate!$AG$22))=TRUE,IF(AND(Resultate!$AB$54='9'!$AB$54,Resultate!$AD$54='9'!$AD$54)=TRUE,75,0),0) -> 0 | DA23: ='9'!$AG$27 -> Spanien | DB23: =IF('9'!$AG$27=Resultate!$AG$27,300,0) -> 0 | DE23: ='9'!$AN$33 -> 173
A24: 19 | B24: 22 | C24: ='22'!$AH$35 -> Wiesli Marc | D24: ='22'!$AH$39 -> marc.wiesli1@gmx.ch | E24: =SUM(F24:M24) -> 2075 | F24: =SUM(O24:BJ24) -> 1875 | G24: =SUM(BK24:BZ24) -> 200 | H24: =SUM(CA24:CH24) -> 0 | I24: =SUM(CJ24:CP24) -> 0 | J24: =SUM(CR24:CV24) -> 0 | K24: =SUM(CX24:CZ24) -> 0 | L24: =DB24 -> 0 | M24: =IF(DC24="",0,DC24) -> 0 | N24: ='22'!$AN$33 -> 191 | O24: =IF(Resultate!$K$8="",0,IF('22'!$L$8=Resultate!$L$8,75,0)+IF(AND(Resultate!$I$8='22'!$I$8,Resultate!$K$8='22'!$K$8)=TRUE,75,0)) -> 75 | P24: =IF(Resultate!$K$9="",0,IF('22'!$L$9=Resultate!$L$9,75,0)+IF(AND(Resultate!$I$9='22'!$I$9,Resultate!$K$9='22'!$K$9)=TRUE,75,0)) -> 75 | Q24: =IF(Resultate!$K$15="",0,IF('22'!$L$15=Resultate!$L$15,75,0)+IF(AND(Resultate!$I$15='22'!$I$15,Resultate!$K$15='22'!$K$15)=TRUE,75,0)) -> 0 | R24: =IF(Resultate!$K$16="",0,IF('22'!$L$16=Resultate!$L$16,75,0)+IF(AND(Resultate!$I$16='22'!$I$16,Resultate!$K$16='22'!$K$16)=TRUE,75,0)) -> 75 | S24: =IF(Resultate!$K$22="",0,IF('22'!$L$22=Resultate!$L$22,75,0)+IF(AND(Resultate!$I$22='22'!$I$22,Resultate!$K$22='22'!$K$22)=TRUE,75,0)) -> 75 | T24: =IF(Resultate!$K$23="",0,IF('22'!$L$23=Resultate!$L$23,75,0)+IF(AND(Resultate!$I$23='22'!$I$23,Resultate!$K$23='22'!$K$23)=TRUE,75,0)) -> 75 | U24: =IF(Resultate!$K$29="",0,IF('22'!$L$29=Resultate!$L$29,75,0)+IF(AND(Resultate!$I$29='22'!$I$29,Resultate!$K$29='22'!$K$29)=TRUE,75,0)) -> 0 | V24: =IF(Resultate!$K$30="",0,IF('22'!$L$30=Resultate!$L$30,75,0)+IF(AND(Resultate!$I$30='22'!$I$30,Resultate!$K$30='22'!$K$30)=TRUE,75,0)) -> 75 | W24: =IF(Resultate!$K$36="",0,IF('22'!$L$36=Resultate!$L$36,75,0)+IF(AND(Resultate!$I$36='22'!$I$36,Resultate!$K$36='22'!$K$36)=TRUE,75,0)) -> 0 | X24: =IF(Resultate!$K$37="",0,IF('22'!$L$37=Resultate!$L$37,75,0)+IF(AND(Resultate!$I$37='22'!$I$37,Resultate!$K$37='22'!$K$37)=TRUE,75,0)) -> 75 | Y24: =IF(Resultate!$K$43="",0,IF('22'!$L$43=Resultate!$L$43,75,0)+IF(AND(Resultate!$I$43='22'!$I$43,Resultate!$K$43='22'!$K$43)=TRUE,75,0)) -> 0 | Z24: =IF(Resultate!$K$44="",0,IF('22'!$L$44=Resultate!$L$44,75,0)+IF(AND(Resultate!$I$44='22'!$I$44,Resultate!$K$44='22'!$K$44)=TRUE,75,0)) -> 75 | AA24: =IF(Resultate!$K$50="",0,IF('22'!$L$50=Resultate!$L$50,75,0)+IF(AND(Resultate!$I$50='22'!$I$50,Resultate!$K$50='22'!$K$50)=TRUE,75,0)) -> 75 | AB24: =IF(Resultate!$K$51="",0,IF('22'!$L$51=Resultate!$L$51,75,0)+IF(AND(Resultate!$I$51='22'!$I$51,Resultate!$K$51='22'!$K$51)=TRUE,75,0)) -> 150 | AC24: =IF(Resultate!$K$57="",0,IF('22'!$L$57=Resultate!$L$57,75,0)+IF(AND(Resultate!$I$57='22'!$I$57,Resultate!$K$57='22'!$K$57)=TRUE,75,0)) -> 0 | AD24: =IF(Resultate!$K$58="",0,IF('22'!$L$58=Resultate!$L$58,75,0)+IF(AND(Resultate!$I$58='22'!$I$58,Resultate!$K$58='22'!$K$58)=TRUE,75,0)) -> 0 | AE24: =IF(Resultate!$K$10="",0,IF('22'!$L$10=Resultate!$L$10,75,0)+IF(AND(Resultate!$I$10='22'!$I$10,Resultate!$K$10='22'!$K$10)=TRUE,75,0)) -> 75 | AF24: =IF(Resultate!$K$11="",0,IF('22'!$L$11=Resultate!$L$11,75,0)+IF(AND(Resultate!$I$11='22'!$I$11,Resultate!$K$11='22'!$K$11)=TRUE,75,0)) -> 75 | AG24: =IF(Resultate!$K$17="",0,IF('22'!$L$17=Resultate!$L$17,75,0)+IF(AND(Resultate!$I$17='22'!$I$17,Resultate!$K$17='22'!$K$17)=TRUE,75,0)) -> 75 | AH24: =IF(Resultate!$K$18="",0,IF('22'!$L$18=Resultate!$L$18,75,0)+IF(AND(Resultate!$I$18='22'!$I$18,Resultate!$K$18='22'!$K$18)=TRUE,75,0)) -> 75 | AI24: =IF(Resultate!$K$31="",0,IF('22'!$L$31=Resultate!$L$31,75,0)+IF(AND(Resultate!$I$31='22'!$I$31,Resultate!$K$31='22'!$K$31)=TRUE,75,0)) -> 0 | AJ24: =IF(Resultate!$K$24="",0,IF('22'!$L$24=Resultate!$L$24,75,0)+IF(AND(Resultate!$I$24='22'!$I$24,Resultate!$K$24='22'!$K$24)=TRUE,75,0)) -> 75 | AK24: =IF(Resultate!$K$25="",0,IF('22'!$L$25=Resultate!$L$25,75,0)+IF(AND(Resultate!$I$25='22'!$I$25,Resultate!$K$25='22'!$K$25)=TRUE,75,0)) -> 0 | AL24: =IF(Resultate!$K$32="",0,IF('22'!$L$32=Resultate!$L$32,75,0)+IF(AND(Resultate!$I$32='22'!$I$32,Resultate!$K$32='22'!$K$32)=TRUE,75,0)) -> 0 | AM24: =IF(Resultate!$K$38="",0,IF('22'!$L$38=Resultate!$L$38,75,0)+IF(AND(Resultate!$I$38='22'!$I$38,Resultate!$K$38='22'!$K$38)=TRUE,75,0)) -> 75 | AN24: =IF(Resultate!$K$39="",0,IF('22'!$L$39=Resultate!$L$39,75,0)+IF(AND(Resultate!$I$39='22'!$I$39,Resultate!$K$39='22'!$K$39)=TRUE,75,0)) -> 150 | AO24: =IF(Resultate!$K$45="",0,IF('22'!$L$45=Resultate!$L$45,75,0)+IF(AND(Resultate!$I$45='22'!$I$45,Resultate!$K$45='22'!$K$45)=TRUE,75,0)) -> 150 | AP24: =IF(Resultate!$K$46="",0,IF('22'!$L$46=Resultate!$L$46,75,0)+IF(AND(Resultate!$I$46='22'!$I$46,Resultate!$K$46='22'!$K$46)=TRUE,75,0)) -> 0 | AQ24: =IF(Resultate!$K$52="",0,IF('22'!$L$52=Resultate!$L$52,75,0)+IF(AND(Resultate!$I$52='22'!$I$52,Resultate!$K$52='22'!$K$52)=TRUE,75,0)) -> 75 | AR24: =IF(Resultate!$K$53="",0,IF('22'!$L$53=Resultate!$L$53,75,0)+IF(AND(Resultate!$I$53='22'!$I$53,Resultate!$K$53='22'!$K$53)=TRUE,75,0)) -> 75 | AS24: =IF(Resultate!$K$59="",0,IF('22'!$L$59=Resultate!$L$59,75,0)+IF(AND(Resultate!$I$59='22'!$I$59,Resultate!$K$59='22'!$K$59)=TRUE,75,0)) -> 0 | AT24: =IF(Resultate!$K$60="",0,IF('22'!$L$60=Resultate!$L$60,75,0)+IF(AND(Resultate!$I$60='22'!$I$60,Resultate!$K$60='22'!$K$60)=TRUE,75,0)) -> 75 | AU24: =IF(Resultate!$K$12="",0,IF('22'!$L$12=Resultate!$L$12,75,0)+IF(AND(Resultate!$I$12='22'!$I$12,Resultate!$K$12='22'!$K$12)=TRUE,75,0)) -> 75 | AV24: =IF(Resultate!$K$13="",0,IF('22'!$L$13=Resultate!$L$13,75,0)+IF(AND(Resultate!$I$13='22'!$I$13,Resultate!$K$13='22'!$K$13)=TRUE,75,0)) -> 0 | AW24: =IF(Resultate!$K$19="",0,IF('22'!$L$19=Resultate!$L$19,75,0)+IF(AND(Resultate!$I$19='22'!$I$19,Resultate!$K$19='22'!$K$19)=TRUE,75,0)) -> 0 | AX24: =IF(Resultate!$K$20="",0,IF('22'!$L$20=Resultate!$L$20,75,0)+IF(AND(Resultate!$I$20='22'!$I$20,Resultate!$K$20='22'!$K$20)=TRUE,75,0)) -> 0 | AY24: =IF(Resultate!$K$26="",0,IF('22'!$L$26=Resultate!$L$26,75,0)+IF(AND(Resultate!$I$26='22'!$I$26,Resultate!$K$26='22'!$K$26)=TRUE,75,0)) -> 0 | AZ24: =IF(Resultate!$K$27="",0,IF('22'!$L$27=Resultate!$L$27,75,0)+IF(AND(Resultate!$I$27='22'!$I$27,Resultate!$K$27='22'!$K$27)=TRUE,75,0)) -> 0 | BA24: =IF(Resultate!$K$33="",0,IF('22'!$L$33=Resultate!$L$33,75,0)+IF(AND(Resultate!$I$33='22'!$I$33,Resultate!$K$33='22'!$K$33)=TRUE,75,0)) -> 0 | BB24: =IF(Resultate!$K$34="",0,IF('22'!$L$34=Resultate!$L$34,75,0)+IF(AND(Resultate!$I$34='22'!$I$34,Resultate!$K$34='22'!$K$34)=TRUE,75,0)) -> 0 | BC24: =IF(Resultate!$K$47="",0,IF('22'!$L$47=Resultate!$L$47,75,0)+IF(AND(Resultate!$I$47='22'!$I$47,Resultate!$K$47='22'!$K$47)=TRUE,75,0)) -> 0 | BD24: =IF(Resultate!$K$48="",0,IF('22'!$L$48=Resultate!$L$48,75,0)+IF(AND(Resultate!$I$48='22'!$I$48,Resultate!$K$48='22'!$K$48)=TRUE,75,0)) -> 0 | BE24: =IF(Resultate!$K$40="",0,IF('22'!$L$40=Resultate!$L$40,75,0)+IF(AND(Resultate!$I$40='22'!$I$40,Resultate!$K$40='22'!$K$40)=TRUE,75,0)) -> 0 | BF24: =IF(Resultate!$K$41="",0,IF('22'!$L$41=Resultate!$L$41,75,0)+IF(AND(Resultate!$I$41='22'!$I$41,Resultate!$K$41='22'!$K$41)=TRUE,75,0)) -> 0 | BG24: =IF(Resultate!$K$54="",0,IF('22'!$L$54=Resultate!$L$54,75,0)+IF(AND(Resultate!$I$54='22'!$I$54,Resultate!$K$54='22'!$K$54)=TRUE,75,0)) -> 0 | BH24: =IF(Resultate!$K$55="",0,IF('22'!$L$55=Resultate!$L$55,75,0)+IF(AND(Resultate!$I$55='22'!$I$55,Resultate!$K$55='22'!$K$55)=TRUE,75,0)) -> 0 | BI24: =IF(Resultate!$K$61="",0,IF('22'!$L$61=Resultate!$L$61,75,0)+IF(AND(Resultate!$I$61='22'!$I$61,Resultate!$K$61='22'!$K$61)=TRUE,75,0)) -> 0 | BJ24: =IF(Resultate!$K$62="",0,IF('22'!$L$62=Resultate!$L$62,75,0)+IF(AND(Resultate!$I$62='22'!$I$62,Resultate!$K$62='22'!$K$62)=TRUE,75,0)) -> 0 | BK24: =IF('22'!$O$13=Resultate!$O$13,100,0) -> 100 | BL24: =IF('22'!$Q$13=Resultate!$Q$13,100,0) -> 0 | BM24: =IF('22'!$O$20=Resultate!$O$20,100,0) -> 0 | BN24: =IF('22'!$Q$20=Resultate!$Q$20,100,0) -> 0 | BO24: =IF('22'!$O$27=Resultate!$O$27,100,0) -> 0 | BP24: =IF('22'!$Q$27=Resultate!$Q$27,100,0) -> 100 | BQ24: =IF('22'!$O$34=Resultate!$O$34,100,0) -> 0 | BR24: =IF('22'!$Q$34=Resultate!$Q$34,100,0) -> 0 | BS24: =IF('22'!$O$40=Resultate!$O$40,100,0) -> 0 | BT24: =IF('22'!$Q$40=Resultate!$Q$40,100,0) -> 0 | BU24: =IF('22'!$O$47=Resultate!$O$47,100,0) -> 0 | BV24: =IF('22'!$Q$47=Resultate!$Q$47,100,0) -> 0 | BW24: =IF('22'!$O$54=Resultate!$O$54,100,0) -> 0 | BX24: =IF('22'!$Q$54=Resultate!$Q$54,100,0) -> 0 | BY24: =IF('22'!$O$61=Resultate!$O$61,100,0) -> 0 | BZ24: =IF('22'!$Q$61=Resultate!$Q$61,100,0) -> 0 | CA24: =VALUE(IF('22'!$X$13=Resultate!$X$13,150,0))+IF(AND(Resultate!$O$13='22'!$O$13,Resultate!$Q$13='22'!$Q$13,Resultate!$S$13='22'!$S$13,Resultate!$U$13='22'!$U$13)=TRUE,75,0) -> 0 | CB24: =VALUE(IF('22'!$Z$13=Resultate!$Z$13,150,0))+IF(AND(Resultate!$O$20='22'!$O$20,Resultate!$Q$20='22'!$Q$20,Resultate!$S$20='22'!$S$20,Resultate!$U$20='22'!$U$20)=TRUE,75,0) -> 0 | CC24: =VALUE(IF('22'!$X$19=Resultate!$X$19,150,0))+IF(AND(Resultate!$O$40='22'!$O$40,Resultate!$Q$40='22'!$Q$40,Resultate!$S$40='22'!$S$40,Resultate!$U$40='22'!$U$40)=TRUE,75,0) -> 0 | CD24: =VALUE(IF('22'!$Z$19=Resultate!$Z$19,150,0))+IF(AND(Resultate!$O$47='22'!$O$47,Resultate!$Q$47='22'!$Q$47,Resultate!$S$47='22'!$S$47,Resultate!$U$47='22'!$U$47)=TRUE,75,0) -> 0 | CE24: =VALUE(IF('22'!$X$25=Resultate!$X$25,150,0))+IF(AND(Resultate!$O$27='22'!$O$27,Resultate!$Q$27='22'!$Q$27,Resultate!$S$27='22'!$S$27,Resultate!$U$27='22'!$U$27)=TRUE,75,0) -> 0 | CF24: =VALUE(IF('22'!$Z$25=Resultate!$Z$25,150,0))+IF(AND(Resultate!$O$34='22'!$O$34,Resultate!$Q$34='22'!$Q$34,Resultate!$S$34='22'!$S$34,Resultate!$U$34='22'!$U$34)=TRUE,75,0) -> 0 | CG24: =VALUE(IF('22'!$X$31=Resultate!$X$31,150,0))+IF(AND(Resultate!$O$54='22'!$O$54,Resultate!$Q$54='22'!$Q$54,Resultate!$S$54='22'!$S$54,Resultate!$U$54='22'!$U$54)=TRUE,75,0) -> 0 | CH24: =VALUE(IF('22'!$Z$31=Resultate!$Z$31,150,0))+IF(AND(Resultate!$O$61='22'!$O$61,Resultate!$Q$61='22'!$Q$61,Resultate!$S$61='22'!$S$61,Resultate!$U$61='22'!$U$61)=TRUE,75,0) -> 0 | CI24: ='22'!$X$48 -> Frankreich | CJ24: =VALUE(IF('22'!$X$48=Resultate!$X$48,200,0))+IF(AND(Resultate!$X$13='22'!$X$13,Resultate!$Z$13='22'!$Z$13,Resultate!$AB$13='22'!$AB$13,Resultate!$AD$13='22'!$AD$13)=TRUE,75,0) -> 0 | CK24: ='22'!$Z$48 -> Brasilien | CL24: =VALUE(IF('22'!$Z$48=Resultate!$Z$48,200,0))+IF(AND(Resultate!$X$19='22'!$X$19,Resultate!$Z$19='22'!$Z$19,Resultate!$AB$19='22'!$AB$19,Resultate!$AD$19='22'!$AD$19)=TRUE,75,0) -> 0 | CM24: ='22'!$X$54 -> Spanien | CN24: =VALUE(IF('22'!$X$54=Resultate!$X$54,200,0))+IF(AND(Resultate!$X$25='22'!$X$25,Resultate!$Z$25='22'!$Z$25,Resultate!$AB$25='22'!$AB$25,Resultate!$AD$25='22'!$AD$25)=TRUE,75,0) -> 0 | CO24: ='22'!$Z$54 -> Deutschland | CP24: =VALUE(IF('22'!$Z$54=Resultate!$Z$54,200,0))+IF(AND(Resultate!$X$31='22'!$X$31,Resultate!$Z$31='22'!$Z$31,Resultate!$AB$31='22'!$AB$31,Resultate!$AD$31='22'!$AD$31)=TRUE,75,0) -> 0 | CQ24: ='22'!$AG$8 -> Frankreich | CR24: =IF((OR('22'!$AG$8=Resultate!$AG$8,'22'!$AI$8=Resultate!$AG$8))=TRUE,100,) -> 0 | CS24: ='22'!$AI$8 -> Spanien | CT24: =IF((OR('22'!$AI$8=Resultate!$AI$8,'22'!$AI$8=Resultate!$AG$8))=TRUE,100,) -> 0 | CU24: ='22'!$AG$13 -> Frankreich | CV24: =IF('22'!$AG$13=Resultate!$AG$13,200,0) -> 0 | CW24: ='22'!$AG$22 -> Brasilien | CX24: =IF((OR('22'!$AG$22=Resultate!$AG$22,'22'!$AI$22=Resultate!$AG$22))=TRUE,250,)+IF((OR('22'!$AG$22=Resultate!$AG$22,'22'!$AI$22=Resultate!$AG$22))=TRUE,IF(AND(Resultate!$AB$48='22'!$AB$48,Resultate!$AD$48='22'!$AD$48)=TRUE,75,0),0) -> 0 | CY24: ='22'!$AI$22 -> Deutschland | CZ24: =IF((OR('22'!$AG$22=Resultate!$AI$22,'22'!$AI$22=Resultate!$AI$22))=TRUE,250,)+IF((OR('22'!$AG$22=Resultate!$AG$22,'22'!$AI$22=Resultate!$AG$22))=TRUE,IF(AND(Resultate!$AB$54='22'!$AB$54,Resultate!$AD$54='22'!$AD$54)=TRUE,75,0),0) -> 0 | DA24: ='22'!$AG$27 -> Brasilien | DB24: =IF('22'!$AG$27=Resultate!$AG$27,300,0) -> 0 | DE24: ='22'!$AN$33 -> 191
A25: 20 | B25: 52 | C25: ='52'!$AH$35 -> Seiler Suchada und Sunisa | D25: ='52'!$AH$39 -> suchada@leunet.ch | E25: =SUM(F25:M25) -> 2075 | F25: =SUM(O25:BJ25) -> 1875 | G25: =SUM(BK25:BZ25) -> 200 | H25: =SUM(CA25:CH25) -> 0 | I25: =SUM(CJ25:CP25) -> 0 | J25: =SUM(CR25:CV25) -> 0 | K25: =SUM(CX25:CZ25) -> 0 | L25: =DB25 -> 0 | M25: =IF(DC25="",0,DC25) -> 0 | N25: ='52'!$AN$33 -> 218 | O25: =IF(Resultate!$K$8="",0,IF('52'!$L$8=Resultate!$L$8,75,0)+IF(AND(Resultate!$I$8='52'!$I$8,Resultate!$K$8='52'!$K$8)=TRUE,75,0)) -> 75 | P25: =IF(Resultate!$K$9="",0,IF('52'!$L$9=Resultate!$L$9,75,0)+IF(AND(Resultate!$I$9='52'!$I$9,Resultate!$K$9='52'!$K$9)=TRUE,75,0)) -> 75 | Q25: =IF(Resultate!$K$15="",0,IF('52'!$L$15=Resultate!$L$15,75,0)+IF(AND(Resultate!$I$15='52'!$I$15,Resultate!$K$15='52'!$K$15)=TRUE,75,0)) -> 0 | R25: =IF(Resultate!$K$16="",0,IF('52'!$L$16=Resultate!$L$16,75,0)+IF(AND(Resultate!$I$16='52'!$I$16,Resultate!$K$16='52'!$K$16)=TRUE,75,0)) -> 0 | S25: =IF(Resultate!$K$22="",0,IF('52'!$L$22=Resultate!$L$22,75,0)+IF(AND(Resultate!$I$22='52'!$I$22,Resultate!$K$22='52'!$K$22)=TRUE,75,0)) -> 150 | T25: =IF(Resultate!$K$23="",0,IF('52'!$L$23=Resultate!$L$23,75,0)+IF(AND(Resultate!$I$23='52'!$I$23,Resultate!$K$23='52'!$K$23)=TRUE,75,0)) -> 75 | U25: =IF(Resultate!$K$29="",0,IF('52'!$L$29=Resultate!$L$29,75,0)+IF(AND(Resultate!$I$29='52'!$I$29,Resultate!$K$29='52'!$K$29)=TRUE,75,0)) -> 75 | V25: =IF(Resultate!$K$30="",0,IF('52'!$L$30=Resultate!$L$30,75,0)+IF(AND(Resultate!$I$30='52'!$I$30,Resultate!$K$30='52'!$K$30)=TRUE,75,0)) -> 75 | W25: =IF(Resultate!$K$36="",0,IF('52'!$L$36=Resultate!$L$36,75,0)+IF(AND(Resultate!$I$36='52'!$I$36,Resultate!$K$36='52'!$K$36)=TRUE,75,0)) -> 0 | X25: =IF(Resultate!$K$37="",0,IF('52'!$L$37=Resultate!$L$37,75,0)+IF(AND(Resultate!$I$37='52'!$I$37,Resultate!$K$37='52'!$K$37)=TRUE,75,0)) -> 0 | Y25: =IF(Resultate!$K$43="",0,IF('52'!$L$43=Resultate!$L$43,75,0)+IF(AND(Resultate!$I$43='52'!$I$43,Resultate!$K$43='52'!$K$43)=TRUE,75,0)) -> 0 | Z25: =IF(Resultate!$K$44="",0,IF('52'!$L$44=Resultate!$L$44,75,0)+IF(AND(Resultate!$I$44='52'!$I$44,Resultate!$K$44='52'!$K$44)=TRUE,75,0)) -> 75 | AA25: =IF(Resultate!$K$50="",0,IF('52'!$L$50=Resultate!$L$50,75,0)+IF(AND(Resultate!$I$50='52'!$I$50,Resultate!$K$50='52'!$K$50)=TRUE,75,0)) -> 75 | AB25: =IF(Resultate!$K$51="",0,IF('52'!$L$51=Resultate!$L$51,75,0)+IF(AND(Resultate!$I$51='52'!$I$51,Resultate!$K$51='52'!$K$51)=TRUE,75,0)) -> 150 | AC25: =IF(Resultate!$K$57="",0,IF('52'!$L$57=Resultate!$L$57,75,0)+IF(AND(Resultate!$I$57='52'!$I$57,Resultate!$K$57='52'!$K$57)=TRUE,75,0)) -> 0 | AD25: =IF(Resultate!$K$58="",0,IF('52'!$L$58=Resultate!$L$58,75,0)+IF(AND(Resultate!$I$58='52'!$I$58,Resultate!$K$58='52'!$K$58)=TRUE,75,0)) -> 0 | AE25: =IF(Resultate!$K$10="",0,IF('52'!$L$10=Resultate!$L$10,75,0)+IF(AND(Resultate!$I$10='52'!$I$10,Resultate!$K$10='52'!$K$10)=TRUE,75,0)) -> 0 | AF25: =IF(Resultate!$K$11="",0,IF('52'!$L$11=Resultate!$L$11,75,0)+IF(AND(Resultate!$I$11='52'!$I$11,Resultate!$K$11='52'!$K$11)=TRUE,75,0)) -> 75 | AG25: =IF(Resultate!$K$17="",0,IF('52'!$L$17=Resultate!$L$17,75,0)+IF(AND(Resultate!$I$17='52'!$I$17,Resultate!$K$17='52'!$K$17)=TRUE,75,0)) -> 75 | AH25: =IF(Resultate!$K$18="",0,IF('52'!$L$18=Resultate!$L$18,75,0)+IF(AND(Resultate!$I$18='52'!$I$18,Resultate!$K$18='52'!$K$18)=TRUE,75,0)) -> 75 | AI25: =IF(Resultate!$K$31="",0,IF('52'!$L$31=Resultate!$L$31,75,0)+IF(AND(Resultate!$I$31='52'!$I$31,Resultate!$K$31='52'!$K$31)=TRUE,75,0)) -> 75 | AJ25: =IF(Resultate!$K$24="",0,IF('52'!$L$24=Resultate!$L$24,75,0)+IF(AND(Resultate!$I$24='52'!$I$24,Resultate!$K$24='52'!$K$24)=TRUE,75,0)) -> 75 | AK25: =IF(Resultate!$K$25="",0,IF('52'!$L$25=Resultate!$L$25,75,0)+IF(AND(Resultate!$I$25='52'!$I$25,Resultate!$K$25='52'!$K$25)=TRUE,75,0)) -> 75 | AL25: =IF(Resultate!$K$32="",0,IF('52'!$L$32=Resultate!$L$32,75,0)+IF(AND(Resultate!$I$32='52'!$I$32,Resultate!$K$32='52'!$K$32)=TRUE,75,0)) -> 0 | AM25: =IF(Resultate!$K$38="",0,IF('52'!$L$38=Resultate!$L$38,75,0)+IF(AND(Resultate!$I$38='52'!$I$38,Resultate!$K$38='52'!$K$38)=TRUE,75,0)) -> 75 | AN25: =IF(Resultate!$K$39="",0,IF('52'!$L$39=Resultate!$L$39,75,0)+IF(AND(Resultate!$I$39='52'!$I$39,Resultate!$K$39='52'!$K$39)=TRUE,75,0)) -> 75 | AO25: =IF(Resultate!$K$45="",0,IF('52'!$L$45=Resultate!$L$45,75,0)+IF(AND(Resultate!$I$45='52'!$I$45,Resultate!$K$45='52'!$K$45)=TRUE,75,0)) -> 0 | AP25: =IF(Resultate!$K$46="",0,IF('52'!$L$46=Resultate!$L$46,75,0)+IF(AND(Resultate!$I$46='52'!$I$46,Resultate!$K$46='52'!$K$46)=TRUE,75,0)) -> 150 | AQ25: =IF(Resultate!$K$52="",0,IF('52'!$L$52=Resultate!$L$52,75,0)+IF(AND(Resultate!$I$52='52'!$I$52,Resultate!$K$52='52'!$K$52)=TRUE,75,0)) -> 75 | AR25: =IF(Resultate!$K$53="",0,IF('52'!$L$53=Resultate!$L$53,75,0)+IF(AND(Resultate!$I$53='52'!$I$53,Resultate!$K$53='52'!$K$53)=TRUE,75,0)) -> 75 | AS25: =IF(Resultate!$K$59="",0,IF('52'!$L$59=Resultate!$L$59,75,0)+IF(AND(Resultate!$I$59='52'!$I$59,Resultate!$K$59='52'!$K$59)=TRUE,75,0)) -> 150 | AT25: =IF(Resultate!$K$60="",0,IF('52'!$L$60=Resultate!$L$60,75,0)+IF(AND(Resultate!$I$60='52'!$I$60,Resultate!$K$60='52'!$K$60)=TRUE,75,0)) -> 0 | AU25: =IF(Resultate!$K$12="",0,IF('52'!$L$12=Resultate!$L$12,75,0)+IF(AND(Resultate!$I$12='52'!$I$12,Resultate!$K$12='52'!$K$12)=TRUE,75,0)) -> 0 | AV25: =IF(Resultate!$K$13="",0,IF('52'!$L$13=Resultate!$L$13,75,0)+IF(AND(Resultate!$I$13='52'!$I$13,Resultate!$K$13='52'!$K$13)=TRUE,75,0)) -> 0 | AW25: =IF(Resultate!$K$19="",0,IF('52'!$L$19=Resultate!$L$19,75,0)+IF(AND(Resultate!$I$19='52'!$I$19,Resultate!$K$19='52'!$K$19)=TRUE,75,0)) -> 0 | AX25: =IF(Resultate!$K$20="",0,IF('52'!$L$20=Resultate!$L$20,75,0)+IF(AND(Resultate!$I$20='52'!$I$20,Resultate!$K$20='52'!$K$20)=TRUE,75,0)) -> 0 | AY25: =IF(Resultate!$K$26="",0,IF('52'!$L$26=Resultate!$L$26,75,0)+IF(AND(Resultate!$I$26='52'!$I$26,Resultate!$K$26='52'!$K$26)=TRUE,75,0)) -> 0 | AZ25: =IF(Resultate!$K$27="",0,IF('52'!$L$27=Resultate!$L$27,75,0)+IF(AND(Resultate!$I$27='52'!$I$27,Resultate!$K$27='52'!$K$27)=TRUE,75,0)) -> 0 | BA25: =IF(Resultate!$K$33="",0,IF('52'!$L$33=Resultate!$L$33,75,0)+IF(AND(Resultate!$I$33='52'!$I$33,Resultate!$K$33='52'!$K$33)=TRUE,75,0)) -> 0 | BB25: =IF(Resultate!$K$34="",0,IF('52'!$L$34=Resultate!$L$34,75,0)+IF(AND(Resultate!$I$34='52'!$I$34,Resultate!$K$34='52'!$K$34)=TRUE,75,0)) -> 0 | BC25: =IF(Resultate!$K$47="",0,IF('52'!$L$47=Resultate!$L$47,75,0)+IF(AND(Resultate!$I$47='52'!$I$47,Resultate!$K$47='52'!$K$47)=TRUE,75,0)) -> 0 | BD25: =IF(Resultate!$K$48="",0,IF('52'!$L$48=Resultate!$L$48,75,0)+IF(AND(Resultate!$I$48='52'!$I$48,Resultate!$K$48='52'!$K$48)=TRUE,75,0)) -> 0 | BE25: =IF(Resultate!$K$40="",0,IF('52'!$L$40=Resultate!$L$40,75,0)+IF(AND(Resultate!$I$40='52'!$I$40,Resultate!$K$40='52'!$K$40)=TRUE,75,0)) -> 0 | BF25: =IF(Resultate!$K$41="",0,IF('52'!$L$41=Resultate!$L$41,75,0)+IF(AND(Resultate!$I$41='52'!$I$41,Resultate!$K$41='52'!$K$41)=TRUE,75,0)) -> 0 | BG25: =IF(Resultate!$K$54="",0,IF('52'!$L$54=Resultate!$L$54,75,0)+IF(AND(Resultate!$I$54='52'!$I$54,Resultate!$K$54='52'!$K$54)=TRUE,75,0)) -> 0 | BH25: =IF(Resultate!$K$55="",0,IF('52'!$L$55=Resultate!$L$55,75,0)+IF(AND(Resultate!$I$55='52'!$I$55,Resultate!$K$55='52'!$K$55)=TRUE,75,0)) -> 0 | BI25: =IF(Resultate!$K$61="",0,IF('52'!$L$61=Resultate!$L$61,75,0)+IF(AND(Resultate!$I$61='52'!$I$61,Resultate!$K$61='52'!$K$61)=TRUE,75,0)) -> 0 | BJ25: =IF(Resultate!$K$62="",0,IF('52'!$L$62=Resultate!$L$62,75,0)+IF(AND(Resultate!$I$62='52'!$I$62,Resultate!$K$62='52'!$K$62)=TRUE,75,0)) -> 0 | BK25: =IF('52'!$O$13=Resultate!$O$13,100,0) -> 100 | BL25: =IF('52'!$Q$13=Resultate!$Q$13,100,0) -> 0 | BM25: =IF('52'!$O$20=Resultate!$O$20,100,0) -> 0 | BN25: =IF('52'!$Q$20=Resultate!$Q$20,100,0) -> 0 | BO25: =IF('52'!$O$27=Resultate!$O$27,100,0) -> 0 | BP25: =IF('52'!$Q$27=Resultate!$Q$27,100,0) -> 100 | BQ25: =IF('52'!$O$34=Resultate!$O$34,100,0) -> 0 | BR25: =IF('52'!$Q$34=Resultate!$Q$34,100,0) -> 0 | BS25: =IF('52'!$O$40=Resultate!$O$40,100,0) -> 0 | BT25: =IF('52'!$Q$40=Resultate!$Q$40,100,0) -> 0 | BU25: =IF('52'!$O$47=Resultate!$O$47,100,0) -> 0 | BV25: =IF('52'!$Q$47=Resultate!$Q$47,100,0) -> 0 | BW25: =IF('52'!$O$54=Resultate!$O$54,100,0) -> 0 | BX25: =IF('52'!$Q$54=Resultate!$Q$54,100,0) -> 0 | BY25: =IF('52'!$O$61=Resultate!$O$61,100,0) -> 0 | BZ25: =IF('52'!$Q$61=Resultate!$Q$61,100,0) -> 0 | CA25: =VALUE(IF('52'!$X$13=Resultate!$X$13,150,0))+IF(AND(Resultate!$O$13='52'!$O$13,Resultate!$Q$13='52'!$Q$13,Resultate!$S$13='52'!$S$13,Resultate!$U$13='52'!$U$13)=TRUE,75,0) -> 0 | CB25: =VALUE(IF('52'!$Z$13=Resultate!$Z$13,150,0))+IF(AND(Resultate!$O$20='52'!$O$20,Resultate!$Q$20='52'!$Q$20,Resultate!$S$20='52'!$S$20,Resultate!$U$20='52'!$U$20)=TRUE,75,0) -> 0 | CC25: =VALUE(IF('52'!$X$19=Resultate!$X$19,150,0))+IF(AND(Resultate!$O$40='52'!$O$40,Resultate!$Q$40='52'!$Q$40,Resultate!$S$40='52'!$S$40,Resultate!$U$40='52'!$U$40)=TRUE,75,0) -> 0 | CD25: =VALUE(IF('52'!$Z$19=Resultate!$Z$19,150,0))+IF(AND(Resultate!$O$47='52'!$O$47,Resultate!$Q$47='52'!$Q$47,Resultate!$S$47='52'!$S$47,Resultate!$U$47='52'!$U$47)=TRUE,75,0) -> 0 | CE25: =VALUE(IF('52'!$X$25=Resultate!$X$25,150,0))+IF(AND(Resultate!$O$27='52'!$O$27,Resultate!$Q$27='52'!$Q$27,Resultate!$S$27='52'!$S$27,Resultate!$U$27='52'!$U$27)=TRUE,75,0) -> 0 | CF25: =VALUE(IF('52'!$Z$25=Resultate!$Z$25,150,0))+IF(AND(Resultate!$O$34='52'!$O$34,Resultate!$Q$34='52'!$Q$34,Resultate!$S$34='52'!$S$34,Resultate!$U$34='52'!$U$34)=TRUE,75,0) -> 0 | CG25: =VALUE(IF('52'!$X$31=Resultate!$X$31,150,0))+IF(AND(Resultate!$O$54='52'!$O$54,Resultate!$Q$54='52'!$Q$54,Resultate!$S$54='52'!$S$54,Resultate!$U$54='52'!$U$54)=TRUE,75,0) -> 0 | CH25: =VALUE(IF('52'!$Z$31=Resultate!$Z$31,150,0))+IF(AND(Resultate!$O$61='52'!$O$61,Resultate!$Q$61='52'!$Q$61,Resultate!$S$61='52'!$S$61,Resultate!$U$61='52'!$U$61)=TRUE,75,0) -> 0 | CI25: ='52'!$X$48 -> Frankreich | CJ25: =VALUE(IF('52'!$X$48=Resultate!$X$48,200,0))+IF(AND(Resultate!$X$13='52'!$X$13,Resultate!$Z$13='52'!$Z$13,Resultate!$AB$13='52'!$AB$13,Resultate!$AD$13='52'!$AD$13)=TRUE,75,0) -> 0 | CK25: ='52'!$Z$48 -> Brasilien | CL25: =VALUE(IF('52'!$Z$48=Resultate!$Z$48,200,0))+IF(AND(Resultate!$X$19='52'!$X$19,Resultate!$Z$19='52'!$Z$19,Resultate!$AB$19='52'!$AB$19,Resultate!$AD$19='52'!$AD$19)=TRUE,75,0) -> 0 | CM25: ='52'!$X$54 -> Portugal | CN25: =VALUE(IF('52'!$X$54=Resultate!$X$54,200,0))+IF(AND(Resultate!$X$25='52'!$X$25,Resultate!$Z$25='52'!$Z$25,Resultate!$AB$25='52'!$AB$25,Resultate!$AD$25='52'!$AD$25)=TRUE,75,0) -> 0 | CO25: ='52'!$Z$54 -> Deutschland | CP25: =VALUE(IF('52'!$Z$54=Resultate!$Z$54,200,0))+IF(AND(Resultate!$X$31='52'!$X$31,Resultate!$Z$31='52'!$Z$31,Resultate!$AB$31='52'!$AB$31,Resultate!$AD$31='52'!$AD$31)=TRUE,75,0) -> 0 | CQ25: ='52'!$AG$8 -> Brasilien | CR25: =IF((OR('52'!$AG$8=Resultate!$AG$8,'52'!$AI$8=Resultate!$AG$8))=TRUE,100,) -> 0 | CS25: ='52'!$AI$8 -> Portugal | CT25: =IF((OR('52'!$AI$8=Resultate!$AI$8,'52'!$AI$8=Resultate!$AG$8))=TRUE,100,) -> 0 | CU25: ='52'!$AG$13 -> Brasilien | CV25: =IF('52'!$AG$13=Resultate!$AG$13,200,0) -> 0 | CW25: ='52'!$AG$22 -> Frankreich | CX25: =IF((OR('52'!$AG$22=Resultate!$AG$22,'52'!$AI$22=Resultate!$AG$22))=TRUE,250,)+IF((OR('52'!$AG$22=Resultate!$AG$22,'52'!$AI$22=Resultate!$AG$22))=TRUE,IF(AND(Resultate!$AB$48='52'!$AB$48,Resultate!$AD$48='52'!$AD$48)=TRUE,75,0),0) -> 0 | CY25: ='52'!$AI$22 -> Deutschland | CZ25: =IF((OR('52'!$AG$22=Resultate!$AI$22,'52'!$AI$22=Resultate!$AI$22))=TRUE,250,)+IF((OR('52'!$AG$22=Resultate!$AG$22,'52'!$AI$22=Resultate!$AG$22))=TRUE,IF(AND(Resultate!$AB$54='52'!$AB$54,Resultate!$AD$54='52'!$AD$54)=TRUE,75,0),0) -> 0 | DA25: ='52'!$AG$27 -> Frankreich | DB25: =IF('52'!$AG$27=Resultate!$AG$27,300,0) -> 0 | DE25: ='52'!$AN$33 -> 218
